{"text_format":"1","workbook":"xlsx","n_sheets":4,"sheets":["入力の仕方","入力シート","印刷_年金保険","印刷_基金"],"not_rendered":{"charts":0,"images":1,"macros":1,"external_links":0,"defined_names":2,"comments":0,"pivot_tables":0},"unopened":[],"bounds":{"document_bytes":16777216,"sheet_cells":100000,"rows_first":2000,"rows_last":500,"rows_between":2000,"halvings":0,"cell_chars":16384,"cell_head_chars":4096},"cells_cut":0,"cells_raw":0,"read":"whole","date_system":"1900"}

{"sheet":"入力の仕方","index":0,"n_rows":56,"n_cols":12,"rows_kept":56,"cut":false,"hidden":false,"merged":[[4,0,4,37],[5,1,5,37],[48,1,48,10],[28,11,28,37],[29,11,29,37],[30,11,30,37],[42,1,42,10],[8,1,8,37],[9,1,9,37],[10,1,10,37],[13,11,13,37],[14,11,14,37],[15,11,15,37],[23,1,23,10],[6,1,6,37],[7,1,7,37],[43,1,43,10],[44,1,44,10],[37,1,37,10],[38,1,38,10],[40,1,40,10],[41,1,41,10],[23,11,23,37],[21,11,21,37],[30,1,30,10],[32,1,32,10],[13,1,13,10],[28,1,28,10],[29,1,29,10],[0,0,0,37],[1,0,1,37],[2,0,2,37],[46,1,46,10],[16,11,16,37],[17,11,17,37],[18,11,18,37],[19,11,19,37],[20,11,20,37],[18,1,18,10],[19,1,19,10],[34,1,34,10],[35,1,35,10],[36,1,36,10],[20,1,20,10],[21,1,21,10],[34,11,34,37],[35,11,35,37],[36,11,36,37],[39,1,39,10],[14,1,14,10],[15,1,15,10],[16,1,16,10],[17,1,17,10],[39,11,39,37],[31,1,31,10],[33,1,33,10],[31,11,31,37],[33,11,33,37],[37,11,37,37],[38,11,38,37],[32,11,32,37],[40,11,40,37],[44,11,44,37],[45,11,45,37],[46,11,46,37],[47,11,47,37],[53,1,53,10],[55,1,55,10],[52,1,52,10],[47,1,47,10],[45,1,45,10],[49,1,49,10],[50,1,50,10],[51,1,51,10],[54,1,54,10],[51,11,51,37],[41,11,41,37],[42,11,42,37],[43,11,43,37],[55,11,55,37],[52,11,52,37],[53,11,53,37],[48,11,48,37],[49,11,49,37],[50,11,50,37],[54,11,54,37]]}
["加入者資格取得届　（紙面）　作成要領"]
[]
["※このファイルは、年金事務所と当基金へ提出する取得届を同時に作成するためのものです。"]
[]
["作成に際してのご注意事項"]
["・","このファイルは、紙面でご提出いただく際にご使用ください。"]
[null,"「入力」シートに必要事項を入力し、入力内容をチェックしたうえで「印刷」シートを印刷して、ご提出ください。"]
[null,"なお、「入力」シートの一部または全てに入力を行わないまま「印刷」シートを印刷することで、一部または全てを手書きしてご提出いただくことも可能です。"]
["・","列の並べ替えや行は削除等を行わないでください。（入力が可能なセル以外には保護がかかっています。）"]
["・","一度に、24件まで入力することが出来ます。"]
[null,"24件を超えて入力する場合は、「印刷」シートを印刷後、「入力」シートの内容を抹消して入力しなおしてください。"]
[]
["項目について"]
[null,"企業年金基金　事業所番号",null,null,null,null,null,null,null,null,null,"当基金の事業所番号を入力してください。"]
[null,"厚生年金保険　事業所整理記号",null,null,null,null,null,null,null,null,null,"厚生年金保険の事業所整理記号を入力してください。"]
[null,"厚生年金保険　事業所番号",null,null,null,null,null,null,null,null,null,"厚生年金保険の事業所番号を入力してください。"]
[null,"事業所所在地（郵便番号）"]
[null,"事業所所在地（番地）"]
[null,"事業所所在地（ビル名）",null,null,null,null,null,null,null,null,null,"事業所の情報を入力してください。"]
[null,"事業所名称",null,null,null,null,null,null,null,null,null,"※郵便番号は\"-（ハイフン）\"を入れて入力してください。"]
[null,"事業主氏名"]
[null,"事業所電話番号"]
[]
[null,"提出日",null,null,null,null,null,null,null,null,null,"提出年月日を入力してください。"]
[]
[]
[]
[null,"（※）は年金事務所へ提出する取得届に必要となります。"]
[null,"通番",null,null,null,null,null,null,null,null,null,"上から順にデータを作成してください。※「１－１」は1ページの1番目という意味です。"]
[null,"被保険者整理番号（※）",null,null,null,null,null,null,null,null,null,"被保険者整理番号を指定している場合には入力してください。"]
[null,"氏名（フリガナ）",null,null,null,null,null,null,null,null,null,"氏名をカタカナで入力してください。氏と名の間には空白（スペース）を半角で入力してください。"]
[null,null,null,null,null,null,null,null,null,null,null,"※空白（スペース）は必ず1文字は入れてください。"]
[null,"氏名（漢字）",null,null,null,null,null,null,null,null,null,"氏名を漢字で入力してください。氏と名の間には空白（スペース）を全角で入力してください。"]
[null,null,null,null,null,null,null,null,null,null,null,"※空白（スペース）は必ず1文字は入れてください。"]
[null,"生年月日",null,null,null,null,null,null,null,null,null,"生年月日を入力してください。（例：「2000/1/5」や「H12/1/5」等と入力すると「H12.1.5」と表示されます。）"]
[null,"性別",null,null,null,null,null,null,null,null,null,"「男」または「女」をプルダウンから選択してください。"]
[null,"個人番号（※）",null,null,null,null,null,null,null,null,null,"個人番号を入力してください。"]
[null,"取得区分",null,null,null,null,null,null,null,null,null,"「1．健保・厚年」、「3．共済出向」または「4．船保任継」をプルダウンから選択してください。"]
[null,"基礎年金番号",null,null,null,null,null,null,null,null,null,"基礎年金番号を\"-（ハイフン）\"なしで入力してください。"]
[null,null,null,null,null,null,null,null,null,null,null,"取得時に基礎年金番号が不明な場合は空欄でご提出ください。"]
[null,"資格取得年月日",null,null,null,null,null,null,null,null,null,"資格取得年月日を入力してください。（例：「2019/5/1」や「R1/5/1」等と入力すると「R1.5.1」と表示されます。）"]
[null,"報酬月額：通貨によるものの額",null,null,null,null,null,null,null,null,null,"報酬月額（給与見込額）を入力してください。"]
[null,"報酬月額：現物によるものの額",null,null,null,null,null,null,null,null,null,"合計は自動で計算されます。"]
[null,"報酬月額：合計"]
[null,"被扶養者",null,null,null,null,null,null,null,null,null,"「0．無」または「1．有」をプルダウンから選択してください。"]
[null,"備考：備考",null,null,null,null,null,null,null,null,null,"「1．70歳以上被用者該当」、「2．二以上事業所勤務者の取得」、「3．短時間労働者の取得」、"]
[null,null,null,null,null,null,null,null,null,null,null,"「4．退職後の継続再雇用者の取得」、「5．その他」を該当する場合はプルダウンから選択してください。"]
[null,"備考：その他を選んだ理由等",null,null,null,null,null,null,null,null,null,"上記で「5．その他」を選択した場合は理由を、また特記事項があれば入力してください。"]
[null,"住所：郵便番号（※）",null,null,null,null,null,null,null,null,null,"個人番号を入力しなかった場合には入力してください。"]
[null,"住所：フリガナ（※）",null,null,null,null,null,null,null,null,null,"それぞれのセルに郵便番号、住所のフリガナ、住所、マンション名等を入力してください。"]
[null,"住所：漢字で住所を番地まで（※）",null,null,null,null,null,null,null,null,null,"※郵便番号は\"-（ハイフン）\"を入れて入力してください。"]
[null,"住所：マンション名等（※）"]
[null,"住所：理由（※）",null,null,null,null,null,null,null,null,null,"住所を入力した場合に「1．海外在住」、「2．短期在留」または「3．その他」をプルダウンから選択してください。"]
[null,"住所：その他を選んだ理由等（※）",null,null,null,null,null,null,null,null,null,"上記で「3．その他」を選択した場合は理由を、また特記事項があれば入力してください。"]
[null,"資格確認書発行要否",null,null,null,null,null,null,null,null,null,"資格確認書が必要な場合はレ点を入力し、不要の場合は空白にしてください。"]
[null,"加入者番号",null,null,null,null,null,null,null,null,null,"事業所間異動の場合は入力してください。（10桁で。満たない場合は前に”０”を付けて10桁にしてください。）"]

{"sheet":"入力シート","index":1,"n_rows":38,"n_cols":24,"rows_kept":38,"cut":false,"hidden":false,"merged":[[2,3,2,8],[3,3,3,8],[12,23,13,23],[12,10,12,12],[12,13,13,13],[12,14,12,15],[12,16,12,21],[11,16,11,23],[8,10,8,11],[12,5,13,5],[12,6,13,6],[12,8,13,8],[12,7,13,7],[12,4,13,4],[0,10,0,11],[4,10,4,11],[5,0,5,2],[6,0,6,2],[7,0,7,2],[6,3,6,8],[7,3,7,8],[0,0,0,2],[1,0,1,2],[2,0,2,2],[3,0,3,2],[4,0,4,2],[1,3,1,4],[5,3,5,8],[0,3,0,8],[1,6,1,8],[8,0,8,2],[8,3,8,8],[4,3,4,8],[12,22,13,22],[9,0,9,2],[10,0,10,2],[12,0,13,0]]}
["企業年金基金　事業所番号",null,null,null,null,null,null,null,null,null,"厚生年金保険のみ印刷"]
["厚生年金保険　事業所整理記号",null,null,null,null,"－",null,null,null,null,"開始ページ"]
["厚生年金保険　事業所番号",null,null,null,null,null,null,null,null,null,"終了ページ"]
["事業所所在地（郵便番号）　※\"-\"を入れて入力"]
["事業所所在地（番地）",null,null,null,null,null,null,null,null,null,"基金のみ印刷"]
["事業所所在地（ビル名）",null,null,null,null,null,null,null,null,null,"開始ページ"]
["事業所名称",null,null,null,null,null,null,null,null,null,"終了ページ"]
["事業主氏名"]
["事業所電話番号",null,null,null,null,null,null,null,null,null,"厚生年金・基金の両方を印刷"]
[null,null,null,null,null,null,null,null,null,null,"開始ページ"]
["提出日",null,null,null,null,null,null,null,null,null,"終了ページ"]
[null,null,null,null,null,null,null,null,null,null,null,null,null,null,null,null,"※郵便番号は\"-（ハイフン）\"を入れて入力"]
["通番","被保険者","氏名","氏名","生年月日","性別","個人番号","取得区分","基礎年金番号\n（”-”なし）","資格取得","報酬月額",null,null,"被扶養者","備考",null,"住所",null,null,null,null,null,"資格確認書\n発行要否","加入者番号"]
[null,"整理番号","フリガナ","漢字",null,null,null,null,null,"年月日","通貨","現物","合計",null,"備考","その他を選んだ\n理由等","郵便番号","フリガナ","番地","マンション名等","理由","その他を選んだ\n理由等"]
["1-1",null,null,null,null,null,null,null,null,null,null,null,{"$f":"IF(K15=\"\",\"\",K15+L15)","v":""}]
["1-2",null,null,null,null,null,null,null,null,null,null,null,{"$f":"IF(K16=\"\",\"\",K16+L16)","v":""}]
["1-3",null,null,null,null,null,null,null,null,null,null,null,""]
["1-4",null,null,null,null,null,null,null,null,null,null,null,""]
["2-1",null,null,null,null,null,null,null,null,null,null,null,""]
["2-2",null,null,null,null,null,null,null,null,null,null,null,""]
["2-3",null,null,null,null,null,null,null,null,null,null,null,""]
["2-4",null,null,null,null,null,null,null,null,null,null,null,""]
["3-1",null,null,null,null,null,null,null,null,null,null,null,""]
["3-2",null,null,null,null,null,null,null,null,null,null,null,""]
["3-3",null,null,null,null,null,null,null,null,null,null,null,""]
["3-4",null,null,null,null,null,null,null,null,null,null,null,""]
["4-1",null,null,null,null,null,null,null,null,null,null,null,""]
["4-2",null,null,null,null,null,null,null,null,null,null,null,""]
["4-3",null,null,null,null,null,null,null,null,null,null,null,""]
["4-4",null,null,null,null,null,null,null,null,null,null,null,""]
["5-1",null,null,null,null,null,null,null,null,null,null,null,""]
["5-2",null,null,null,null,null,null,null,null,null,null,null,""]
["5-3",null,null,null,null,null,null,null,null,null,null,null,""]
["5-4",null,null,null,null,null,null,null,null,null,null,null,""]
["6-1",null,null,null,null,null,null,null,null,null,null,null,""]
["6-2",null,null,null,null,null,null,null,null,null,null,null,""]
["6-3",null,null,null,null,null,null,null,null,null,null,null,""]
["6-4",null,null,null,null,null,null,null,null,null,null,null,""]

{"sheet":"印刷_年金保険","index":2,"n_rows":918,"n_cols":65,"rows_kept":918,"cut":false,"hidden":false,"merged":[[42,39,43,50],[24,8,25,35],[18,7,22,12],[65,51,69,58],[53,41,54,44],[63,51,64,53],[913,46,915,57],[916,46,918,57],[912,59,913,61],[912,62,919,63],[912,64,919,69],[914,59,919,61],[2,18,6,25],[2,1,4,8],[5,1,7,2],[5,3,7,4],[5,5,7,6],[5,7,7,8],[2,27,6,47],[7,27,9,47],[43,3,47,6],[48,3,50,6],[26,8,29,9],[18,13,22,14],[18,24,22,28],[18,29,22,36],[18,15,22,23],[14,1,17,13],[18,1,50,2],[18,3,22,6],[24,3,24,6],[26,10,29,24],[38,3,42,6],[26,3,37,6],[7,18,9,25],[63,7,69,12],[70,12,72,21],[70,22,72,22],[24,7,50,7],[44,39,50,69],[43,8,47,35],[17,55,17,69],[18,55,20,69],[39,39,41,53],[76,3,77,6],[77,10,78,19],[77,20,78,44],[79,8,80,44],[81,8,82,44],[70,7,72,11],[73,7,75,11],[77,46,79,57],[80,46,82,57],[76,59,77,61],[14,14,17,17],[48,8,50,35],[38,8,42,35],[34,8,37,35],[30,8,33,35],[53,62,62,69],[70,46,72,68],[73,46,75,68],[63,62,69,69],[53,59,54,61],[63,59,64,61],[65,59,69,61],[56,51,62,58],[95,56,96,57],[95,59,96,61],[95,62,101,69],[78,59,83,61],[76,64,83,69],[76,62,83,63],[55,59,62,61],[55,41,62,44],[85,62,94,69],[87,59,94,61],[88,51,94,58],[105,23,107,24],[105,46,107,68],[95,45,101,50],[95,51,96,53],[95,54,96,55],[53,1,83,2],[70,41,71,44],[72,41,75,44],[53,17,56,28],[53,29,56,40],[57,17,62,28],[57,29,62,40],[70,39,71,40],[77,8,78,9],[70,3,71,6],[72,3,75,6],[73,12,75,21],[73,22,75,22],[53,13,54,16],[63,13,64,16],[65,13,69,16],[63,54,64,55],[63,56,64,57],[53,56,54,57],[53,54,54,55],[53,51,54,53],[63,25,69,26],[63,27,69,28],[72,25,75,38],[72,39,75,40],[55,13,62,16],[63,45,69,50],[63,17,69,18],[63,19,69,20],[53,45,62,50],[53,3,54,6],[53,7,62,12],[63,3,64,6],[65,3,69,6],[63,39,69,40],[63,37,69,38],[63,41,64,44],[65,41,69,44],[63,21,69,22],[55,3,62,6],[70,23,72,24],[73,23,75,24],[70,25,71,36],[63,23,69,24],[63,29,69,30],[63,31,69,32],[63,33,69,34],[63,35,69,36],[85,1,115,2],[85,7,94,12],[85,17,88,28],[85,29,88,40],[85,45,94,50],[87,3,94,6],[87,13,94,16],[87,41,94,44],[89,17,94,28],[89,29,94,40],[95,3,96,6],[95,7,101,12],[95,13,96,16],[95,21,101,22],[95,23,101,24],[95,25,101,26],[78,3,83,6],[95,35,101,36],[95,37,101,38],[95,39,101,40],[95,41,96,44],[95,27,101,28],[95,29,101,30],[85,59,86,61],[85,54,86,55],[85,56,86,57],[85,3,86,6],[85,13,86,16],[95,31,101,32],[95,33,101,34],[85,41,86,44],[85,51,86,53],[97,3,101,6],[97,13,101,16],[97,41,101,44],[97,51,101,58],[97,59,101,61],[95,17,101,18],[95,19,101,20],[117,1,147,2],[117,3,118,6],[117,7,126,12],[117,13,118,16],[117,17,120,28],[117,29,120,40],[117,41,118,44],[117,45,126,50],[117,51,118,53],[117,54,118,55],[117,56,118,57],[117,59,118,61],[127,3,128,6],[127,7,133,12],[127,13,128,16],[127,17,133,18],[127,62,133,69],[129,41,133,44],[129,51,133,58],[129,59,133,61],[109,46,111,57],[112,46,114,57],[108,59,109,61],[110,59,115,61],[117,62,126,69],[119,3,126,6],[119,13,126,16],[119,41,126,44],[102,3,103,6],[102,7,104,11],[102,12,104,21],[102,22,104,22],[102,23,104,24],[102,25,103,36],[102,39,103,40],[102,41,103,44],[102,46,104,68],[104,3,107,6],[104,25,107,38],[104,39,107,40],[104,41,107,44],[105,7,107,11],[105,12,107,21],[105,22,107,22],[108,64,115,69],[108,62,115,63],[121,17,126,28],[121,29,126,40],[127,19,133,20],[127,21,133,22],[127,23,133,24],[127,25,133,26],[127,27,133,28],[129,3,133,6],[129,13,133,16],[108,3,109,6],[109,8,110,9],[109,10,110,19],[109,20,110,44],[110,3,115,6],[113,8,114,44],[111,8,112,44],[119,59,126,61],[120,51,126,58],[127,41,128,44],[127,45,133,50],[127,51,128,53],[127,54,128,55],[127,56,128,57],[127,59,128,61],[127,29,133,30],[127,31,133,32],[127,33,133,34],[127,35,133,36],[127,37,133,38],[127,39,133,40],[140,3,141,6],[141,8,142,9],[141,10,142,19],[141,20,142,44],[142,3,147,6],[143,8,144,44],[145,8,146,44],[134,3,135,6],[134,7,136,11],[134,12,136,21],[134,22,136,22],[134,23,136,24],[134,25,135,36],[134,39,135,40],[134,41,135,44],[134,46,136,68],[136,3,139,6],[136,25,139,38],[136,39,139,40],[136,41,139,44],[137,7,139,11],[137,12,139,21],[137,22,139,22],[137,23,139,24],[137,46,139,68],[141,46,143,57],[144,46,146,57],[140,59,141,61],[142,59,147,61],[140,62,147,63],[140,64,147,69],[149,1,179,2],[149,3,150,6],[149,7,158,12],[149,13,150,16],[149,17,152,28],[149,29,152,40],[149,41,150,44],[149,45,158,50],[149,51,150,53],[159,3,160,6],[159,7,165,12],[159,13,160,16],[159,17,165,18],[159,19,165,20],[159,21,165,22],[159,23,165,24],[159,25,165,26],[159,27,165,28],[159,29,165,30],[159,31,165,32],[159,33,165,34],[159,35,165,36],[159,37,165,38],[159,39,165,40],[159,45,165,50],[159,51,160,53],[172,3,173,6],[173,8,174,9],[173,10,174,19],[173,20,174,44],[174,3,179,6],[175,8,176,44],[159,54,160,55],[159,56,160,57],[159,59,160,61],[159,62,165,69],[161,3,165,6],[161,13,165,16],[161,41,165,44],[161,51,165,58],[161,59,165,61],[149,54,150,55],[149,56,150,57],[149,59,150,61],[149,62,158,69],[151,3,158,6],[151,13,158,16],[151,41,158,44],[151,59,158,61],[152,51,158,58],[153,17,158,28],[153,29,158,40],[159,41,160,44],[177,8,178,44],[166,7,168,11],[166,12,168,21],[166,22,168,22],[166,23,168,24],[166,25,167,36],[166,39,167,40],[166,41,167,44],[166,46,168,68],[168,3,171,6],[168,25,171,38],[168,39,171,40],[168,41,171,44],[169,7,171,11],[169,12,171,21],[169,22,171,22],[169,23,171,24],[169,46,171,68],[166,3,167,6],[173,46,175,57],[176,46,178,57],[172,59,173,61],[172,62,179,63],[172,64,179,69],[174,59,179,61],[201,1,231,2],[201,3,202,6],[201,7,210,12],[201,13,202,16],[201,17,204,28],[201,29,204,40],[201,41,202,44],[201,45,210,50],[201,51,202,53],[211,3,212,6],[211,7,217,12],[211,13,212,16],[211,17,217,18],[211,19,217,20],[211,21,217,22],[211,23,217,24],[211,25,217,26],[211,27,217,28],[211,29,217,30],[211,31,217,32],[211,33,217,34],[211,35,217,36],[211,37,217,38],[211,39,217,40],[211,41,212,44],[211,45,217,50],[211,51,212,53],[224,3,225,6],[225,8,226,9],[225,10,226,19],[225,20,226,44],[226,3,231,6],[211,54,212,55],[211,56,212,57],[211,59,212,61],[211,62,217,69],[213,3,217,6],[213,13,217,16],[213,41,217,44],[213,51,217,58],[213,59,217,61],[201,54,202,55],[201,56,202,57],[201,59,202,61],[201,62,210,69],[203,3,210,6],[203,13,210,16],[203,41,210,44],[203,59,210,61],[204,51,210,58],[205,17,210,28],[205,29,210,40],[227,8,228,44],[229,8,230,44],[218,3,219,6],[218,7,220,11],[218,12,220,21],[218,22,220,22],[218,23,220,24],[218,25,219,36],[218,39,219,40],[218,41,219,44],[218,46,220,68],[220,3,223,6],[220,25,223,38],[220,39,223,40],[220,41,223,44],[221,7,223,11],[221,12,223,21],[221,22,223,22],[221,23,223,24],[221,46,223,68],[225,46,227,57],[228,46,230,57],[224,59,225,61],[224,62,231,63],[224,64,231,69],[226,59,231,61],[233,1,263,2],[233,3,234,6],[233,7,242,12],[233,13,234,16],[233,17,236,28],[233,29,236,40],[233,41,234,44],[233,45,242,50],[233,51,234,53],[243,3,244,6],[243,7,249,12],[243,13,244,16],[243,17,249,18],[243,19,249,20],[243,21,249,22],[243,23,249,24],[243,25,249,26],[243,27,249,28],[243,29,249,30],[243,31,249,32],[243,33,249,34],[243,35,249,36],[243,37,249,38],[243,39,249,40],[243,41,244,44],[243,45,249,50],[243,51,244,53],[256,3,257,6],[257,8,258,9],[257,10,258,19],[257,20,258,44],[258,3,263,6],[243,54,244,55],[243,56,244,57],[243,59,244,61],[243,62,249,69],[245,3,249,6],[245,13,249,16],[245,41,249,44],[245,51,249,58],[245,59,249,61],[233,54,234,55],[233,56,234,57],[233,59,234,61],[233,62,242,69],[235,3,242,6],[235,13,242,16],[235,41,242,44],[235,59,242,61],[236,51,242,58],[237,17,242,28],[237,29,242,40],[259,8,260,44],[261,8,262,44],[250,3,251,6],[250,7,252,11],[250,12,252,21],[250,22,252,22],[250,23,252,24],[250,25,251,36],[250,39,251,40],[250,41,251,44],[250,46,252,68],[252,3,255,6],[252,25,255,38],[252,39,255,40],[252,41,255,44],[253,7,255,11],[253,12,255,21],[253,22,255,22],[253,23,255,24],[253,46,255,68],[257,46,259,57],[260,46,262,57],[256,59,257,61],[256,62,263,63],[256,64,263,69],[258,59,263,61],[265,1,295,2],[265,3,266,6],[265,7,274,12],[265,13,266,16],[265,17,268,28],[265,29,268,40],[265,41,266,44],[265,45,274,50],[265,51,266,53],[275,3,276,6],[275,7,281,12],[275,13,276,16],[275,17,281,18],[275,19,281,20],[275,21,281,22],[275,23,281,24],[275,25,281,26],[275,27,281,28],[275,29,281,30],[275,31,281,32],[275,33,281,34],[275,35,281,36],[275,37,281,38],[275,39,281,40],[275,41,276,44],[275,45,281,50],[275,51,276,53],[288,3,289,6],[289,8,290,9],[289,10,290,19],[289,20,290,44],[290,3,295,6],[275,54,276,55],[275,56,276,57],[275,59,276,61],[275,62,281,69],[277,3,281,6],[277,13,281,16],[277,41,281,44],[277,51,281,58],[277,59,281,61],[265,54,266,55],[265,56,266,57],[265,59,266,61],[265,62,274,69],[267,3,274,6],[267,13,274,16],[267,41,274,44],[267,59,274,61],[268,51,274,58],[269,17,274,28],[269,29,274,40],[291,8,292,44],[293,8,294,44],[282,3,283,6],[282,7,284,11],[282,12,284,21],[282,22,284,22],[282,23,284,24],[282,25,283,36],[282,39,283,40],[282,41,283,44],[282,46,284,68],[284,3,287,6],[284,25,287,38],[284,39,287,40],[284,41,287,44],[285,7,287,11],[285,12,287,21],[285,22,287,22],[285,23,287,24],[285,46,287,68],[289,46,291,57],[292,46,294,57],[288,59,289,61],[288,62,295,63],[288,64,295,69],[290,59,295,61],[297,1,327,2],[297,3,298,6],[297,7,306,12],[297,13,298,16],[297,17,300,28],[297,29,300,40],[297,41,298,44],[297,45,306,50],[297,51,298,53],[307,3,308,6],[307,7,313,12],[307,13,308,16],[307,17,313,18],[307,19,313,20],[307,21,313,22],[307,23,313,24],[307,25,313,26],[307,27,313,28],[307,29,313,30],[307,31,313,32],[307,33,313,34],[307,35,313,36],[307,37,313,38],[307,39,313,40],[307,41,308,44],[307,45,313,50],[307,51,308,53],[320,3,321,6],[321,8,322,9],[321,10,322,19],[321,20,322,44],[322,3,327,6],[307,54,308,55],[307,56,308,57],[307,59,308,61],[307,62,313,69],[309,3,313,6],[309,13,313,16],[309,41,313,44],[309,51,313,58],[309,59,313,61],[297,54,298,55],[297,56,298,57],[297,59,298,61],[297,62,306,69],[299,3,306,6],[299,13,306,16],[299,41,306,44],[299,59,306,61],[300,51,306,58],[301,17,306,28],[301,29,306,40],[323,8,324,44],[325,8,326,44],[314,3,315,6],[314,7,316,11],[314,12,316,21],[314,22,316,22],[314,23,316,24],[314,25,315,36],[314,39,315,40],[314,41,315,44],[314,46,316,68],[316,3,319,6],[316,25,319,38],[316,39,319,40],[316,41,319,44],[317,7,319,11],[317,12,319,21],[317,22,319,22],[317,23,319,24],[317,46,319,68],[321,46,323,57],[324,46,326,57],[320,59,321,61],[320,62,327,63],[320,64,327,69],[322,59,327,61],[349,1,379,2],[349,3,350,6],[349,7,358,12],[349,13,350,16],[349,17,352,28],[349,29,352,40],[349,41,350,44],[349,45,358,50],[349,51,350,53],[359,3,360,6],[359,7,365,12],[359,13,360,16],[359,17,365,18],[359,19,365,20],[359,21,365,22],[359,23,365,24],[359,25,365,26],[359,27,365,28],[359,29,365,30],[359,31,365,32],[359,33,365,34],[359,35,365,36],[359,37,365,38],[359,39,365,40],[359,41,360,44],[359,45,365,50],[359,51,360,53],[372,3,373,6],[373,8,374,9],[373,10,374,19],[373,20,374,44],[374,3,379,6],[359,54,360,55],[359,56,360,57],[359,59,360,61],[359,62,365,69],[361,3,365,6],[361,13,365,16],[361,41,365,44],[361,51,365,58],[361,59,365,61],[349,54,350,55],[349,56,350,57],[349,59,350,61],[349,62,358,69],[351,3,358,6],[351,13,358,16],[351,41,358,44],[351,59,358,61],[352,51,358,58],[353,17,358,28],[353,29,358,40],[375,8,376,44],[377,8,378,44],[366,3,367,6],[366,7,368,11],[366,12,368,21],[366,22,368,22],[366,23,368,24],[366,25,367,36],[366,39,367,40],[366,41,367,44],[366,46,368,68],[368,3,371,6],[368,25,371,38],[368,39,371,40],[368,41,371,44],[369,7,371,11],[369,12,371,21],[369,22,371,22],[369,23,371,24],[369,46,371,68],[373,46,375,57],[376,46,378,57],[372,59,373,61],[372,62,379,63],[372,64,379,69],[374,59,379,61],[381,1,411,2],[381,3,382,6],[381,7,390,12],[381,13,382,16],[381,17,384,28],[381,29,384,40],[381,41,382,44],[381,45,390,50],[381,51,382,53],[391,3,392,6],[391,7,397,12],[391,13,392,16],[391,17,397,18],[391,19,397,20],[391,21,397,22],[391,23,397,24],[391,25,397,26],[391,27,397,28],[391,29,397,30],[391,31,397,32],[391,33,397,34],[391,35,397,36],[391,37,397,38],[391,39,397,40],[391,41,392,44],[391,45,397,50],[391,51,392,53],[404,3,405,6],[405,8,406,9],[405,10,406,19],[405,20,406,44],[406,3,411,6],[391,54,392,55],[391,56,392,57],[391,59,392,61],[391,62,397,69],[393,3,397,6],[393,13,397,16],[393,41,397,44],[393,51,397,58],[393,59,397,61],[381,54,382,55],[381,56,382,57],[381,59,382,61],[381,62,390,69],[383,3,390,6],[383,13,390,16],[383,41,390,44],[383,59,390,61],[384,51,390,58],[385,17,390,28],[385,29,390,40],[407,8,408,44],[409,8,410,44],[398,3,399,6],[398,7,400,11],[398,12,400,21],[398,22,400,22],[398,23,400,24],[398,25,399,36],[398,39,399,40],[398,41,399,44],[398,46,400,68],[400,3,403,6],[400,25,403,38],[400,39,403,40],[400,41,403,44],[401,7,403,11],[401,12,403,21],[401,22,403,22],[401,23,403,24],[401,46,403,68],[405,46,407,57],[408,46,410,57],[404,59,405,61],[404,62,411,63],[404,64,411,69],[406,59,411,61],[413,1,443,2],[413,3,414,6],[413,7,422,12],[413,13,414,16],[413,17,416,28],[413,29,416,40],[413,41,414,44],[413,45,422,50],[413,51,414,53],[423,3,424,6],[423,7,429,12],[423,13,424,16],[423,17,429,18],[423,19,429,20],[423,21,429,22],[423,23,429,24],[423,25,429,26],[423,27,429,28],[423,29,429,30],[423,31,429,32],[423,33,429,34],[423,35,429,36],[423,37,429,38],[423,39,429,40],[423,41,424,44],[423,45,429,50],[423,51,424,53],[436,3,437,6],[437,8,438,9],[437,10,438,19],[437,20,438,44],[438,3,443,6],[423,54,424,55],[423,56,424,57],[423,59,424,61],[423,62,429,69],[425,3,429,6],[425,13,429,16],[425,41,429,44],[425,51,429,58],[425,59,429,61],[413,54,414,55],[413,56,414,57],[413,59,414,61],[413,62,422,69],[415,3,422,6],[415,13,422,16],[415,41,422,44],[415,59,422,61],[416,51,422,58],[417,17,422,28],[417,29,422,40],[439,8,440,44],[441,8,442,44],[430,3,431,6],[430,7,432,11],[430,12,432,21],[430,22,432,22],[430,23,432,24],[430,25,431,36],[430,39,431,40],[430,41,431,44],[430,46,432,68],[432,3,435,6],[432,25,435,38],[432,39,435,40],[432,41,435,44],[433,7,435,11],[433,12,435,21],[433,22,435,22],[433,23,435,24],[433,46,435,68],[437,46,439,57],[440,46,442,57],[436,59,437,61],[436,62,443,63],[436,64,443,69],[438,59,443,61],[445,1,475,2],[445,3,446,6],[445,7,454,12],[445,13,446,16],[445,17,448,28],[445,29,448,40],[445,41,446,44],[445,45,454,50],[445,51,446,53],[455,3,456,6],[455,7,461,12],[455,13,456,16],[455,17,461,18],[455,19,461,20],[455,21,461,22],[455,23,461,24],[455,25,461,26],[455,27,461,28],[455,29,461,30],[455,31,461,32],[455,33,461,34],[455,35,461,36],[455,37,461,38],[455,39,461,40],[455,41,456,44],[455,45,461,50],[455,51,456,53],[468,3,469,6],[469,8,470,9],[469,10,470,19],[469,20,470,44],[470,3,475,6],[455,54,456,55],[455,56,456,57],[455,59,456,61],[455,62,461,69],[457,3,461,6],[457,13,461,16],[457,41,461,44],[457,51,461,58],[457,59,461,61],[445,54,446,55],[445,56,446,57],[445,59,446,61],[445,62,454,69],[447,3,454,6],[447,13,454,16],[447,41,454,44],[447,59,454,61],[448,51,454,58],[449,17,454,28],[449,29,454,40],[471,8,472,44],[473,8,474,44],[462,3,463,6],[462,7,464,11],[462,12,464,21],[462,22,464,22],[462,23,464,24],[462,25,463,36],[462,39,463,40],[462,41,463,44],[462,46,464,68],[464,3,467,6],[464,25,467,38],[464,39,467,40],[464,41,467,44],[465,7,467,11],[465,12,467,21],[465,22,467,22],[465,23,467,24],[465,46,467,68],[469,46,471,57],[472,46,474,57],[468,59,469,61],[468,62,475,63],[468,64,475,69],[470,59,475,61],[497,1,527,2],[497,3,498,6],[497,7,506,12],[497,13,498,16],[497,17,500,28],[497,29,500,40],[497,41,498,44],[497,45,506,50],[497,51,498,53],[507,3,508,6],[507,7,513,12],[507,13,508,16],[507,17,513,18],[507,19,513,20],[507,21,513,22],[507,23,513,24],[507,25,513,26],[507,27,513,28],[507,29,513,30],[507,31,513,32],[507,33,513,34]],"merged_total":1909,"flags":["merged_cut"]}
[]
[]
[null,"様式コード",null,null,null,null,null,null,null,null,null,null,null,null,null,null,null,null,"健　康　保　険\n厚生年金保険",null,null,null,null,null,null,null,null,"被保険者資格取得届"]
[]
[]
[null,"２",null,"２",null,"０",null,"０"]
[]
[null,null,null,null,null,null,null,null,null,null,null,null,null,null,null,null,null,null,"厚生年金保険",null,null,null,null,null,null,null,null,"70歳以上被用者該当届"]
[]
[]
[]
[]
[]
[]
[null,{"$f":"IF(入力シート!$D$11=\"\",\"\",入力シート!$D$11)","v":""},null,null,null,null,null,null,null,null,null,null,null,null,"提出"]
[]
[]
[]
[null,"提\n出\n者\n記\n入\n欄",null,"事 業 所\n整理記号",null,null,null,{"$f":"IF(入力シート!$D$2=\"\",\"\",DBCS(入力シート!$D$2))","v":""},null,null,null,null,null,"-",null,{"$f":"IF(入力シート!$G$2=\"\",\"\",DBCS(入力シート!$G$2))","v":""},null,null,null,null,null,null,null,null,"事業所\n番　号",null,null,null,null,{"$f":"IF(入力シート!$D$3=\"\",\"\",DBCS(入力シート!$D$3))","v":""},null,null,null,null,null,null,null,null,null,null,null,null,null,null,null,null,null,null,null,null,null,null,null,null,null,"受付印"]
[]
[]
[]
[]
[]
[null,null,null,null,null,null,null,null,"届書記入の個人番号に誤りがないことを確認しました。"]
[]
[null,null,null,"事業所\n所在地",null,null,null,null,"〒",null,{"$f":"IF(入力シート!$D$4=\"\",\"\",DBCS(入力シート!$D$4))","v":""}]
[]
[]
[]
[null,null,null,null,null,null,null,null,{"$f":"IF(入力シート!$D$5=\"\",\"\",DBCS(入力シート!$D$5))","v":""}]
[]
[]
[]
[null,null,null,null,null,null,null,null,{"$f":"IF(入力シート!$D$6=\"\",\"\",DBCS(入力シート!$D$6))","v":""}]
[]
[]
[]
[null,null,null,"事業所\n名　称",null,null,null,null,{"$f":"IF(入力シート!$D$7=\"\",\"\",DBCS(入力シート!$D$7))","v":""}]
[null,null,null,null,null,null,null,null,null,null,null,null,null,null,null,null,null,null,null,null,null,null,null,null,null,null,null,null,null,null,null,null,null,null,null,null,null,null,null,"社会保険労務士記載欄"]
[]
[]
[null,null,null,null,null,null,null,null,null,null,null,null,null,null,null,null,null,null,null,null,null,null,null,null,null,null,null,null,null,null,null,null,null,null,null,null,null,null,null,"　　氏　　名　　等"]
[null,null,null,"事業主\n氏　名",null,null,null,null,{"$f":"IF(入力シート!$D$8=\"\",\"\",DBCS(入力シート!$D$8))","v":""}]
[]
[]
[]
[]
[null,null,null,"電話番号",null,null,null,null,{"$f":"IF(入力シート!$D$9=\"\",\"\",DBCS(入力シート!$D$9))","v":""}]
[]
[]
[]
[]
[null,"被保険者\n１",null,"①",null,null,null,{"$f":"IF(入力シート!$B$15=\"\",\"\",DBCS(入力シート!$B$15))","v":""},null,null,null,null,null,"②",null,null,null,{"$f":"IFERROR(LEFT(入力シート!$C$15,FIND(\" \",入力シート!$C$15,1)-1),\"\")","v":""},null,null,null,null,null,null,null,null,null,null,null,{"$f":"IFERROR(RIGHT(入力シート!$C$15,LEN(入力シート!$C$15)-FIND(\" \",入力シート!$C$15,1)),\"\")","v":""},null,null,null,null,null,null,null,null,null,null,null,"③",null,null,null,{"$f":"IF(入力シート!$E$15=\"\",\"\",IF(TEXT(入力シート!$E$15,\"g\")=\"S\",\"5．昭和\",IF(TEXT(入力シート!$E$15,\"g\")=\"H\",\"7．平成\",IF(TEXT(入力シート!$E$15,\"g\")=\"R\",\"9．令和\"))))","v":""},null,null,null,null,null,"年",null,null,"月",null,"日",null,null,"④",null,null,{"$f":"IF(入力シート!$F$15=\"\",\"\",IF(入力シート!$F$15=\"男\",\"1．男\",\"2．女\"))","v":""}]
[]
[null,null,null,"被保険者\n整理番号",null,null,null,null,null,null,null,null,null,"氏名",null,null,null,null,null,null,null,null,null,null,null,null,null,null,null,null,null,null,null,null,null,null,null,null,null,null,null,"生年\n月日",null,null,null,null,null,null,null,null,null,null,null,null,null,null,null,null,null,"種別"]
[null,null,null,null,null,null,null,null,null,null,null,null,null,null,null,null,null,null,null,null,null,null,null,null,null,null,null,null,null,null,null,null,null,null,null,null,null,null,null,null,null,null,null,null,null,null,null,null,null,null,null,{"$f":"IF(入力シート!$E$15=\"\",\"\",DBCS(TEXT(入力シート!$E$15,\"eemmdd\")))","v":""}]
[null,null,null,null,null,null,null,null,null,null,null,null,null,null,null,null,null,{"$f":"IFERROR(LEFT(入力シート!$D$15,FIND(\"　\",入力シート!$D$15,1)-1),\"\")","v":""},null,null,null,null,null,null,null,null,null,null,null,{"$f":"IFERROR(RIGHT(入力シート!$D$15,LEN(入力シート!$D$15)-FIND(\"　\",入力シート!$D$15,1)),\"\")","v":""}]
[]
[]
[]
[]
[]
[null,null,null,"⑤",null,null,null,{"$f":"IF(入力シート!$H$15=\"\",\"\",DBCS(入力シート!$H$15))","v":""},null,null,null,null,null,"⑥",null,null,null,{"$f":"IFERROR(IF(入力シート!$G$15=\"\",DBCS(LEFT(RIGHT(入力シート!$I$15,28-COLUMN()))),DBCS(LEFT(RIGHT(入力シート!$G$15,30-COLUMN())))),\"\")","v":""},null,{"$f":"IFERROR(IF(入力シート!$G$15=\"\",DBCS(LEFT(RIGHT(入力シート!$I$15,29-COLUMN()))),DBCS(LEFT(RIGHT(入力シート!$G$15,31-COLUMN())))),\"\")","v":""},null,{"$f":"IFERROR(IF(入力シート!$G$15=\"\",DBCS(LEFT(RIGHT(入力シート!$I$15,30-COLUMN()))),DBCS(LEFT(RIGHT(入力シート!$G$15,32-COLUMN())))),\"\")","v":""},null,{"$f":"IFERROR(IF(入力シート!$G$15=\"\",DBCS(LEFT(RIGHT(入力シート!$I$15,31-COLUMN()))),DBCS(LEFT(RIGHT(入力シート!$G$15,33-COLUMN())))),\"\")","v":""},null,{"$f":"IFERROR(IF(入力シート!$G$15=\"\",DBCS(LEFT(RIGHT(入力シート!$I$15,32-COLUMN()))),DBCS(LEFT(RIGHT(入力シート!$G$15,34-COLUMN())))),\"\")","v":""},null,{"$f":"IFERROR(IF(入力シート!$G$15=\"\",DBCS(LEFT(RIGHT(入力シート!$I$15,33-COLUMN()))),DBCS(LEFT(RIGHT(入力シート!$G$15,35-COLUMN())))),\"\")","v":""},null,{"$f":"IFERROR(IF(入力シート!$G$15=\"\",DBCS(LEFT(RIGHT(入力シート!$I$15,34-COLUMN()))),DBCS(LEFT(RIGHT(入力シート!$G$15,36-COLUMN())))),\"\")","v":""},null,{"$f":"IFERROR(IF(入力シート!$G$15=\"\",DBCS(LEFT(RIGHT(入力シート!$I$15,35-COLUMN()))),DBCS(LEFT(RIGHT(入力シート!$G$15,37-COLUMN())))),\"\")","v":""},null,{"$f":"IFERROR(IF(入力シート!$G$15=\"\",DBCS(LEFT(RIGHT(入力シート!$I$15,36-COLUMN()))),DBCS(LEFT(RIGHT(入力シート!$G$15,38-COLUMN())))),\"\")","v":""},null,{"$f":"IFERROR(IF(入力シート!$G$15=\"\",DBCS(LEFT(RIGHT(入力シート!$I$15,37-COLUMN()))),DBCS(LEFT(RIGHT(入力シート!$G$15,39-COLUMN())))),\"\")","v":""},null,{"$f":"IFERROR(IF(入力シート!$G$15=\"\",\"\",DBCS(LEFT(RIGHT(入力シート!$G$15,40-COLUMN())))),\"\")","v":""},null,{"$f":"IFERROR(IF(入力シート!$G$15=\"\",\"\",DBCS(LEFT(RIGHT(入力シート!$G$15,41-COLUMN())))),\"\")","v":""},null,"⑦",null,null,null,{"$f":"IF(入力シート!$J$15=\"\",\"\",IF(TEXT(入力シート!$J$15,\"g\")=\"S\",\"5．昭和\",IF(TEXT(入力シート!$J$15,\"g\")=\"H\",\"7．平成\",IF(TEXT(入力シート!$J$15,\"g\")=\"R\",\"9．令和\"))))","v":""},null,null,null,null,null,"年",null,null,"月",null,"日",null,null,"⑧",null,null,{"$f":"IF(入力シート!$N$15=\"\",\"\",DBCS(入力シート!$N$15))","v":""}]
[]
[null,null,null,"取得\n区分",null,null,null,null,null,null,null,null,null,"個人番号\n（基礎年\n金番号）",null,null,null,null,null,null,null,null,null,null,null,null,null,null,null,null,null,null,null,null,null,null,null,null,null,null,null,"取　得\n（該当）\n年月日",null,null,null,null,null,null,null,null,null,{"$f":"IF(入力シート!$J$15=\"\",\"\",DBCS(TEXT(入力シート!$J$15,\"eemmdd\")))","v":""},null,null,null,null,null,null,null,"被扶\n養者"]
[null,null,null,null,null,null,null,null,null,null,null,null,null,null,null,null,null,null,null,null,null,null,null,null,null,null,null,null,null,null,null,null,null,null,null,null,null,null,null,null,null,null,null,null,null,null,null,null,null,null,null,null,null,null,null,null,null,null,null,"被扶\n養者"]
[]
[]
[]
[null,null,null,"⑨",null,null,null,"㋐（通貨）",null,null,null,null,{"$f":"IF(入力シート!$K$15=\"\",\"\",入力シート!$K$15)","v":""},null,null,null,null,null,null,null,null,null,null,"円",null,"㋒（合計　㋐+㋑）",null,null,null,null,null,null,null,null,null,null,null,null,null,"円",null,"⑩",null,null,null,null,{"$f":"IF(入力シート!$O$15=\"\",\"\",DBCS(入力シート!$O$15))","v":""}]
[]
[null,null,null,"報酬\n月額",null,null,null,null,null,null,null,null,null,null,null,null,null,null,null,null,null,null,null,null,null,{"$f":"IF(入力シート!$M$15=\"\",\"\",入力シート!$M$15)","v":""},null,null,null,null,null,null,null,null,null,null,null,null,null,null,null,"備　考"]
[null,null,null,null,null,null,null,"㋑（現物）",null,null,null,null,{"$f":"IF(入力シート!$L$15=\"\",\"\",入力シート!$L$15)","v":""},null,null,null,null,null,null,null,null,null,null,"円",null,null,null,null,null,null,null,null,null,null,null,null,null,null,null,null,null,null,null,null,null,null,{"$f":"IF(入力シート!$P$15=\"\",\"\",DBCS(入力シート!$P$15))","v":""}]
[]
[]
[null,null,null,"⑪",null,null,null,null,null,null,null,null,null,null,null,null,null,null,null,null,null,null,null,null,null,null,null,null,null,null,null,null,null,null,null,null,null,null,null,null,null,null,null,null,null,null,null,null,null,null,null,null,null,null,null,null,null,null,null,"⑫",null,null,"□",null,"発行が必要"]
[null,null,null,null,null,null,null,null,"〒",null,{"$f":"IF(入力シート!$Q$15=\"\",\"\",DBCS(入力シート!$Q$15))","v":""},null,null,null,null,null,null,null,null,null,{"$f":"IF(入力シート!$R$15=\"\",\"\",DBCS(入力シート!$R$15))","v":""},null,null,null,null,null,null,null,null,null,null,null,null,null,null,null,null,null,null,null,null,null,null,null,null,null,{"$f":"IF(入力シート!$U$15=\"\",\"\",DBCS(入力シート!$U$15))","v":""}]
[null,null,null,"住所",null,null,null,null,null,null,null,null,null,null,null,null,null,null,null,null,null,null,null,null,null,null,null,null,null,null,null,null,null,null,null,null,null,null,null,null,null,null,null,null,null,null,null,null,null,null,null,null,null,null,null,null,null,null,null,"資格確認書\n発行要否"]
[null,null,null,null,null,null,null,null,{"$f":"IF(入力シート!$S$15=\"\",\"\",DBCS(入力シート!$S$15))","v":""},null,null,null,null,null,null,null,null,null,null,null,null,null,null,null,null,null,null,null,null,null,null,null,null,null,null,null,null,null,null,null,null,null,null,null,null,null,null,null,null,null,null,null,null,null,null,null,null,null,null,"被扶\n養者"]
[null,null,null,null,null,null,null,null,null,null,null,null,null,null,null,null,null,null,null,null,null,null,null,null,null,null,null,null,null,null,null,null,null,null,null,null,null,null,null,null,null,null,null,null,null,null,{"$f":"IF(入力シート!$V$15=\"\",\"\",DBCS(入力シート!$V$15))","v":""}]
[null,null,null,null,null,null,null,null,{"$f":"IF(入力シート!$T$15=\"\",\"\",DBCS(入力シート!$T$15))","v":""}]
[]
[]
[]
[null,"被保険者\n２",null,"①",null,null,null,{"$f":"IF(入力シート!$B$16=\"\",\"\",DBCS(入力シート!$B$16))","v":""},null,null,null,null,null,"②",null,null,null,{"$f":"IFERROR(LEFT(入力シート!$C$16,FIND(\" \",入力シート!$C$16,1)-1),\"\")","v":""},null,null,null,null,null,null,null,null,null,null,null,{"$f":"IFERROR(RIGHT(入力シート!$C$16,LEN(入力シート!$C$16)-FIND(\" \",入力シート!$C$16,1)),\"\")","v":""},null,null,null,null,null,null,null,null,null,null,null,"③",null,null,null,{"$f":"IF(入力シート!$E$16=\"\",\"\",IF(TEXT(入力シート!$E$16,\"g\")=\"S\",\"5．昭和\",IF(TEXT(入力シート!$E$16,\"g\")=\"H\",\"7．平成\",IF(TEXT(入力シート!$E$16,\"g\")=\"R\",\"9．令和\"))))","v":""},null,null,null,null,null,"年",null,null,"月",null,"日",null,null,"④",null,null,{"$f":"IF(入力シート!$F$16=\"\",\"\",IF(入力シート!$F$16=\"男\",\"1．男\",\"2．女\"))","v":""}]
[]
[null,null,null,"被保険者\n整理番号",null,null,null,null,null,null,null,null,null,"氏名",null,null,null,null,null,null,null,null,null,null,null,null,null,null,null,null,null,null,null,null,null,null,null,null,null,null,null,"生年\n月日",null,null,null,null,null,null,null,null,null,null,null,null,null,null,null,null,null,"種別"]
[null,null,null,null,null,null,null,null,null,null,null,null,null,null,null,null,null,null,null,null,null,null,null,null,null,null,null,null,null,null,null,null,null,null,null,null,null,null,null,null,null,null,null,null,null,null,null,null,null,null,null,{"$f":"IF(入力シート!$E$16=\"\",\"\",DBCS(TEXT(入力シート!$E$16,\"eemmdd\")))","v":""}]
[null,null,null,null,null,null,null,null,null,null,null,null,null,null,null,null,null,{"$f":"IFERROR(LEFT(入力シート!$D$16,FIND(\"　\",入力シート!$D$16,1)-1),\"\")","v":""},null,null,null,null,null,null,null,null,null,null,null,{"$f":"IFERROR(RIGHT(入力シート!$D$16,LEN(入力シート!$D$16)-FIND(\"　\",入力シート!$D$16,1)),\"\")","v":""}]
[]
[]
[]
[]
[]
[null,null,null,"⑤",null,null,null,{"$f":"IF(入力シート!$H$16=\"\",\"\",DBCS(入力シート!$H$16))","v":""},null,null,null,null,null,"⑥",null,null,null,{"$f":"IFERROR(IF(入力シート!$G$16=\"\",DBCS(LEFT(RIGHT(入力シート!$I$16,28-COLUMN()))),DBCS(LEFT(RIGHT(入力シート!$G$16,30-COLUMN())))),\"\")","v":""},null,{"$f":"IFERROR(IF(入力シート!$G$16=\"\",DBCS(LEFT(RIGHT(入力シート!$I$16,29-COLUMN()))),DBCS(LEFT(RIGHT(入力シート!$G$16,31-COLUMN())))),\"\")","v":""},null,{"$f":"IFERROR(IF(入力シート!$G$16=\"\",DBCS(LEFT(RIGHT(入力シート!$I$16,30-COLUMN()))),DBCS(LEFT(RIGHT(入力シート!$G$16,32-COLUMN())))),\"\")","v":""},null,{"$f":"IFERROR(IF(入力シート!$G$16=\"\",DBCS(LEFT(RIGHT(入力シート!$I$16,31-COLUMN()))),DBCS(LEFT(RIGHT(入力シート!$G$16,33-COLUMN())))),\"\")","v":""},null,{"$f":"IFERROR(IF(入力シート!$G$16=\"\",DBCS(LEFT(RIGHT(入力シート!$I$16,32-COLUMN()))),DBCS(LEFT(RIGHT(入力シート!$G$16,34-COLUMN())))),\"\")","v":""},null,{"$f":"IFERROR(IF(入力シート!$G$16=\"\",DBCS(LEFT(RIGHT(入力シート!$I$16,33-COLUMN()))),DBCS(LEFT(RIGHT(入力シート!$G$16,35-COLUMN())))),\"\")","v":""},null,{"$f":"IFERROR(IF(入力シート!$G$16=\"\",DBCS(LEFT(RIGHT(入力シート!$I$16,34-COLUMN()))),DBCS(LEFT(RIGHT(入力シート!$G$16,36-COLUMN())))),\"\")","v":""},null,{"$f":"IFERROR(IF(入力シート!$G$16=\"\",DBCS(LEFT(RIGHT(入力シート!$I$16,35-COLUMN()))),DBCS(LEFT(RIGHT(入力シート!$G$16,37-COLUMN())))),\"\")","v":""},null,{"$f":"IFERROR(IF(入力シート!$G$16=\"\",DBCS(LEFT(RIGHT(入力シート!$I$16,36-COLUMN()))),DBCS(LEFT(RIGHT(入力シート!$G$16,38-COLUMN())))),\"\")","v":""},null,{"$f":"IFERROR(IF(入力シート!$G$16=\"\",DBCS(LEFT(RIGHT(入力シート!$I$16,37-COLUMN()))),DBCS(LEFT(RIGHT(入力シート!$G$16,39-COLUMN())))),\"\")","v":""},null,{"$f":"IFERROR(IF(入力シート!$G$16=\"\",\"\",DBCS(LEFT(RIGHT(入力シート!$G$16,40-COLUMN())))),\"\")","v":""},null,{"$f":"IFERROR(IF(入力シート!$G$16=\"\",\"\",DBCS(LEFT(RIGHT(入力シート!$G$16,41-COLUMN())))),\"\")","v":""},null,"⑦",null,null,null,{"$f":"IF(入力シート!$J$16=\"\",\"\",IF(TEXT(入力シート!$J$16,\"g\")=\"S\",\"5．昭和\",IF(TEXT(入力シート!$J$16,\"g\")=\"H\",\"7．平成\",IF(TEXT(入力シート!$J$16,\"g\")=\"R\",\"9．令和\"))))","v":""},null,null,null,null,null,"年",null,null,"月",null,"日",null,null,"⑧",null,null,{"$f":"IF(入力シート!$N$16=\"\",\"\",DBCS(入力シート!$N$16))","v":""}]
[]
[null,null,null,"取得\n区分",null,null,null,null,null,null,null,null,null,"個人番号\n（基礎年\n金番号）",null,null,null,null,null,null,null,null,null,null,null,null,null,null,null,null,null,null,null,null,null,null,null,null,null,null,null,"取　得\n（該当）\n年月日",null,null,null,null,null,null,null,null,null,{"$f":"IF(入力シート!$J$16=\"\",\"\",DBCS(TEXT(入力シート!$J$16,\"eemmdd\")))","v":""},null,null,null,null,null,null,null,"被扶\n養者"]
[null,null,null,null,null,null,null,null,null,null,null,null,null,null,null,null,null,null,null,null,null,null,null,null,null,null,null,null,null,null,null,null,null,null,null,null,null,null,null,null,null,null,null,null,null,null,null,null,null,null,null,null,null,null,null,null,null,null,null,"被扶\n養者"]
[]
[]
[]
[null,null,null,"⑨",null,null,null,"㋐（通貨）",null,null,null,null,{"$f":"IF(入力シート!$K$16=\"\",\"\",入力シート!$K$16)","v":""},null,null,null,null,null,null,null,null,null,null,"円",null,"㋒（合計　㋐+㋑）",null,null,null,null,null,null,null,null,null,null,null,null,null,"円",null,"⑩",null,null,null,null,{"$f":"IF(入力シート!$O$16=\"\",\"\",DBCS(入力シート!$O$16))","v":""}]
[]
[null,null,null,"報酬\n月額",null,null,null,null,null,null,null,null,null,null,null,null,null,null,null,null,null,null,null,null,null,{"$f":"IF(入力シート!$M$16=\"\",\"\",入力シート!$M$16)","v":""},null,null,null,null,null,null,null,null,null,null,null,null,null,null,null,"備　考"]
[null,null,null,null,null,null,null,"㋑（現物）",null,null,null,null,{"$f":"IF(入力シート!$L$16=\"\",\"\",入力シート!$L$16)","v":""},null,null,null,null,null,null,null,null,null,null,"円",null,null,null,null,null,null,null,null,null,null,null,null,null,null,null,null,null,null,null,null,null,null,{"$f":"IF(入力シート!$P$16=\"\",\"\",DBCS(入力シート!$P$16))","v":""}]
[]
[]
[null,null,null,"⑪",null,null,null,null,null,null,null,null,null,null,null,null,null,null,null,null,null,null,null,null,null,null,null,null,null,null,null,null,null,null,null,null,null,null,null,null,null,null,null,null,null,null,null,null,null,null,null,null,null,null,null,null,null,null,null,"⑫",null,null,"□",null,"発行が必要"]
[null,null,null,null,null,null,null,null,"〒",null,{"$f":"IF(入力シート!$Q$16=\"\",\"\",DBCS(入力シート!$Q$16))","v":""},null,null,null,null,null,null,null,null,null,{"$f":"IF(入力シート!$R$16=\"\",\"\",DBCS(入力シート!$R$16))","v":""},null,null,null,null,null,null,null,null,null,null,null,null,null,null,null,null,null,null,null,null,null,null,null,null,null,{"$f":"IF(入力シート!$U$16=\"\",\"\",DBCS(入力シート!$U$16))","v":""}]
[null,null,null,"住所",null,null,null,null,null,null,null,null,null,null,null,null,null,null,null,null,null,null,null,null,null,null,null,null,null,null,null,null,null,null,null,null,null,null,null,null,null,null,null,null,null,null,null,null,null,null,null,null,null,null,null,null,null,null,null,"資格確認書\n発行要否"]
[null,null,null,null,null,null,null,null,{"$f":"IF(入力シート!$S$16=\"\",\"\",DBCS(入力シート!$S$16))","v":""},null,null,null,null,null,null,null,null,null,null,null,null,null,null,null,null,null,null,null,null,null,null,null,null,null,null,null,null,null,null,null,null,null,null,null,null,null,null,null,null,null,null,null,null,null,null,null,null,null,null,"被扶\n養者"]
[null,null,null,null,null,null,null,null,null,null,null,null,null,null,null,null,null,null,null,null,null,null,null,null,null,null,null,null,null,null,null,null,null,null,null,null,null,null,null,null,null,null,null,null,null,null,{"$f":"IF(入力シート!$V$16=\"\",\"\",DBCS(入力シート!$V$16))","v":""}]
[null,null,null,null,null,null,null,null,{"$f":"IF(入力シート!$T$16=\"\",\"\",DBCS(入力シート!$T$16))","v":""}]
[]
[]
[]
[null,"被保険者\n３",null,"①",null,null,null,{"$f":"IF(入力シート!$B$17=\"\",\"\",DBCS(入力シート!$B$17))","v":""},null,null,null,null,null,"②",null,null,null,{"$f":"IFERROR(LEFT(入力シート!$C$17,FIND(\" \",入力シート!$C$17,1)-1),\"\")","v":""},null,null,null,null,null,null,null,null,null,null,null,{"$f":"IFERROR(RIGHT(入力シート!$C$17,LEN(入力シート!$C$17)-FIND(\" \",入力シート!$C$17,1)),\"\")","v":""},null,null,null,null,null,null,null,null,null,null,null,"③",null,null,null,{"$f":"IF(入力シート!$E$17=\"\",\"\",IF(TEXT(入力シート!$E$17,\"g\")=\"S\",\"5．昭和\",IF(TEXT(入力シート!$E$17,\"g\")=\"H\",\"7．平成\",IF(TEXT(入力シート!$E$17,\"g\")=\"R\",\"9．令和\"))))","v":""},null,null,null,null,null,"年",null,null,"月",null,"日",null,null,"④",null,null,{"$f":"IF(入力シート!$F$17=\"\",\"\",IF(入力シート!$F$17=\"男\",\"1．男\",\"2．女\"))","v":""}]
[]
[null,null,null,"被保険者\n整理番号",null,null,null,null,null,null,null,null,null,"氏名",null,null,null,null,null,null,null,null,null,null,null,null,null,null,null,null,null,null,null,null,null,null,null,null,null,null,null,"生年\n月日",null,null,null,null,null,null,null,null,null,null,null,null,null,null,null,null,null,"種別"]
[null,null,null,null,null,null,null,null,null,null,null,null,null,null,null,null,null,null,null,null,null,null,null,null,null,null,null,null,null,null,null,null,null,null,null,null,null,null,null,null,null,null,null,null,null,null,null,null,null,null,null,{"$f":"IF(入力シート!$E$17=\"\",\"\",DBCS(TEXT(入力シート!$E$17,\"eemmdd\")))","v":""}]
[null,null,null,null,null,null,null,null,null,null,null,null,null,null,null,null,null,{"$f":"IFERROR(LEFT(入力シート!$D$17,FIND(\"　\",入力シート!$D$17,1)-1),\"\")","v":""},null,null,null,null,null,null,null,null,null,null,null,{"$f":"IFERROR(RIGHT(入力シート!$D$17,LEN(入力シート!$D$17)-FIND(\"　\",入力シート!$D$17,1)),\"\")","v":""}]
[]
[]
[]
[]
[]
[null,null,null,"⑤",null,null,null,{"$f":"IF(入力シート!$H$17=\"\",\"\",DBCS(入力シート!$H$17))","v":""},null,null,null,null,null,"⑥",null,null,null,{"$f":"IFERROR(IF(入力シート!$G$17=\"\",DBCS(LEFT(RIGHT(入力シート!$I$17,28-COLUMN()))),DBCS(LEFT(RIGHT(入力シート!$G$17,30-COLUMN())))),\"\")","v":""},null,{"$f":"IFERROR(IF(入力シート!$G$17=\"\",DBCS(LEFT(RIGHT(入力シート!$I$17,29-COLUMN()))),DBCS(LEFT(RIGHT(入力シート!$G$17,31-COLUMN())))),\"\")","v":""},null,{"$f":"IFERROR(IF(入力シート!$G$17=\"\",DBCS(LEFT(RIGHT(入力シート!$I$17,30-COLUMN()))),DBCS(LEFT(RIGHT(入力シート!$G$17,32-COLUMN())))),\"\")","v":""},null,{"$f":"IFERROR(IF(入力シート!$G$17=\"\",DBCS(LEFT(RIGHT(入力シート!$I$17,31-COLUMN()))),DBCS(LEFT(RIGHT(入力シート!$G$17,33-COLUMN())))),\"\")","v":""},null,{"$f":"IFERROR(IF(入力シート!$G$17=\"\",DBCS(LEFT(RIGHT(入力シート!$I$17,32-COLUMN()))),DBCS(LEFT(RIGHT(入力シート!$G$17,34-COLUMN())))),\"\")","v":""},null,{"$f":"IFERROR(IF(入力シート!$G$17=\"\",DBCS(LEFT(RIGHT(入力シート!$I$17,33-COLUMN()))),DBCS(LEFT(RIGHT(入力シート!$G$17,35-COLUMN())))),\"\")","v":""},null,{"$f":"IFERROR(IF(入力シート!$G$17=\"\",DBCS(LEFT(RIGHT(入力シート!$I$17,34-COLUMN()))),DBCS(LEFT(RIGHT(入力シート!$G$17,36-COLUMN())))),\"\")","v":""},null,{"$f":"IFERROR(IF(入力シート!$G$17=\"\",DBCS(LEFT(RIGHT(入力シート!$I$17,35-COLUMN()))),DBCS(LEFT(RIGHT(入力シート!$G$17,37-COLUMN())))),\"\")","v":""},null,{"$f":"IFERROR(IF(入力シート!$G$17=\"\",DBCS(LEFT(RIGHT(入力シート!$I$17,36-COLUMN()))),DBCS(LEFT(RIGHT(入力シート!$G$17,38-COLUMN())))),\"\")","v":""},null,{"$f":"IFERROR(IF(入力シート!$G$17=\"\",DBCS(LEFT(RIGHT(入力シート!$I$17,37-COLUMN()))),DBCS(LEFT(RIGHT(入力シート!$G$17,39-COLUMN())))),\"\")","v":""},null,{"$f":"IFERROR(IF(入力シート!$G$17=\"\",\"\",DBCS(LEFT(RIGHT(入力シート!$G$17,40-COLUMN())))),\"\")","v":""},null,{"$f":"IFERROR(IF(入力シート!$G$17=\"\",\"\",DBCS(LEFT(RIGHT(入力シート!$G$17,41-COLUMN())))),\"\")","v":""},null,"⑦",null,null,null,{"$f":"IF(入力シート!$J$17=\"\",\"\",IF(TEXT(入力シート!$J$17,\"g\")=\"S\",\"5．昭和\",IF(TEXT(入力シート!$J$17,\"g\")=\"H\",\"7．平成\",IF(TEXT(入力シート!$J$17,\"g\")=\"R\",\"9．令和\"))))","v":""},null,null,null,null,null,"年",null,null,"月",null,"日",null,null,"⑧",null,null,{"$f":"IF(入力シート!$N$17=\"\",\"\",DBCS(入力シート!$N$17))","v":""}]
[]
[null,null,null,"取得\n区分",null,null,null,null,null,null,null,null,null,"個人番号\n（基礎年\n金番号）",null,null,null,null,null,null,null,null,null,null,null,null,null,null,null,null,null,null,null,null,null,null,null,null,null,null,null,"取　得\n（該当）\n年月日",null,null,null,null,null,null,null,null,null,{"$f":"IF(入力シート!$J$17=\"\",\"\",DBCS(TEXT(入力シート!$J$17,\"eemmdd\")))","v":""},null,null,null,null,null,null,null,"被扶\n養者"]
[null,null,null,null,null,null,null,null,null,null,null,null,null,null,null,null,null,null,null,null,null,null,null,null,null,null,null,null,null,null,null,null,null,null,null,null,null,null,null,null,null,null,null,null,null,null,null,null,null,null,null,null,null,null,null,null,null,null,null,"被扶\n養者"]
[]
[]
[]
[null,null,null,"⑨",null,null,null,"㋐（通貨）",null,null,null,null,{"$f":"IF(入力シート!$K$17=\"\",\"\",入力シート!$K$17)","v":""},null,null,null,null,null,null,null,null,null,null,"円",null,"㋒（合計　㋐+㋑）",null,null,null,null,null,null,null,null,null,null,null,null,null,"円",null,"⑩",null,null,null,null,{"$f":"IF(入力シート!$O$17=\"\",\"\",DBCS(入力シート!$O$17))","v":""}]
[]
[null,null,null,"報酬\n月額",null,null,null,null,null,null,null,null,null,null,null,null,null,null,null,null,null,null,null,null,null,{"$f":"IF(入力シート!$M$17=\"\",\"\",入力シート!$M$17)","v":""},null,null,null,null,null,null,null,null,null,null,null,null,null,null,null,"備　考"]
[null,null,null,null,null,null,null,"㋑（現物）",null,null,null,null,{"$f":"IF(入力シート!$L$17=\"\",\"\",入力シート!$L$17)","v":""},null,null,null,null,null,null,null,null,null,null,"円",null,null,null,null,null,null,null,null,null,null,null,null,null,null,null,null,null,null,null,null,null,null,{"$f":"IF(入力シート!$P$17=\"\",\"\",DBCS(入力シート!$P$17))","v":""}]
[]
[]
[null,null,null,"⑪",null,null,null,null,null,null,null,null,null,null,null,null,null,null,null,null,null,null,null,null,null,null,null,null,null,null,null,null,null,null,null,null,null,null,null,null,null,null,null,null,null,null,null,null,null,null,null,null,null,null,null,null,null,null,null,"⑫",null,null,"□",null,"発行が必要"]
[null,null,null,null,null,null,null,null,"〒",null,{"$f":"IF(入力シート!$Q$17=\"\",\"\",DBCS(入力シート!$Q$17))","v":""},null,null,null,null,null,null,null,null,null,{"$f":"IF(入力シート!$R$17=\"\",\"\",DBCS(入力シート!$R$17))","v":""},null,null,null,null,null,null,null,null,null,null,null,null,null,null,null,null,null,null,null,null,null,null,null,null,null,{"$f":"IF(入力シート!$U$17=\"\",\"\",DBCS(入力シート!$U$17))","v":""}]
[null,null,null,"住所",null,null,null,null,null,null,null,null,null,null,null,null,null,null,null,null,null,null,null,null,null,null,null,null,null,null,null,null,null,null,null,null,null,null,null,null,null,null,null,null,null,null,null,null,null,null,null,null,null,null,null,null,null,null,null,"資格確認書\n発行要否"]
[null,null,null,null,null,null,null,null,{"$f":"IF(入力シート!$S$17=\"\",\"\",DBCS(入力シート!$S$17))","v":""},null,null,null,null,null,null,null,null,null,null,null,null,null,null,null,null,null,null,null,null,null,null,null,null,null,null,null,null,null,null,null,null,null,null,null,null,null,null,null,null,null,null,null,null,null,null,null,null,null,null,"被扶\n養者"]
[null,null,null,null,null,null,null,null,null,null,null,null,null,null,null,null,null,null,null,null,null,null,null,null,null,null,null,null,null,null,null,null,null,null,null,null,null,null,null,null,null,null,null,null,null,null,{"$f":"IF(入力シート!$V$17=\"\",\"\",DBCS(入力シート!$V$17))","v":""}]
[null,null,null,null,null,null,null,null,{"$f":"IF(入力シート!$T$17=\"\",\"\",DBCS(入力シート!$T$17))","v":""}]
[]
[]
[]
[null,"被保険者\n４",null,"①",null,null,null,{"$f":"IF(入力シート!$B$18=\"\",\"\",DBCS(入力シート!$B$18))","v":""},null,null,null,null,null,"②",null,null,null,{"$f":"IFERROR(LEFT(入力シート!$C$18,FIND(\" \",入力シート!$C$18,1)-1),\"\")","v":""},null,null,null,null,null,null,null,null,null,null,null,{"$f":"IFERROR(RIGHT(入力シート!$C$18,LEN(入力シート!$C$18)-FIND(\" \",入力シート!$C$18,1)),\"\")","v":""},null,null,null,null,null,null,null,null,null,null,null,"③",null,null,null,{"$f":"IF(入力シート!$E$18=\"\",\"\",IF(TEXT(入力シート!$E$18,\"g\")=\"S\",\"5．昭和\",IF(TEXT(入力シート!$E$18,\"g\")=\"H\",\"7．平成\",IF(TEXT(入力シート!$E$18,\"g\")=\"R\",\"9．令和\"))))","v":""},null,null,null,null,null,"年",null,null,"月",null,"日",null,null,"④",null,null,{"$f":"IF(入力シート!$F$18=\"\",\"\",IF(入力シート!$F$18=\"男\",\"1．男\",\"2．女\"))","v":""}]
[]
[null,null,null,"被保険者\n整理番号",null,null,null,null,null,null,null,null,null,"氏名",null,null,null,null,null,null,null,null,null,null,null,null,null,null,null,null,null,null,null,null,null,null,null,null,null,null,null,"生年\n月日",null,null,null,null,null,null,null,null,null,null,null,null,null,null,null,null,null,"種別"]
[null,null,null,null,null,null,null,null,null,null,null,null,null,null,null,null,null,null,null,null,null,null,null,null,null,null,null,null,null,null,null,null,null,null,null,null,null,null,null,null,null,null,null,null,null,null,null,null,null,null,null,{"$f":"IF(入力シート!$E$18=\"\",\"\",DBCS(TEXT(入力シート!$E$18,\"eemmdd\")))","v":""}]
[null,null,null,null,null,null,null,null,null,null,null,null,null,null,null,null,null,{"$f":"IFERROR(LEFT(入力シート!$D$18,FIND(\"　\",入力シート!$D$18,1)-1),\"\")","v":""},null,null,null,null,null,null,null,null,null,null,null,{"$f":"IFERROR(RIGHT(入力シート!$D$18,LEN(入力シート!$D$18)-FIND(\"　\",入力シート!$D$18,1)),\"\")","v":""}]
[]
[]
[]
[]
[]
[null,null,null,"⑤",null,null,null,{"$f":"IF(入力シート!$H$18=\"\",\"\",DBCS(入力シート!$H$18))","v":""},null,null,null,null,null,"⑥",null,null,null,{"$f":"IFERROR(IF(入力シート!$G$18=\"\",DBCS(LEFT(RIGHT(入力シート!$I$18,28-COLUMN()))),DBCS(LEFT(RIGHT(入力シート!$G$18,30-COLUMN())))),\"\")","v":""},null,{"$f":"IFERROR(IF(入力シート!$G$18=\"\",DBCS(LEFT(RIGHT(入力シート!$I$18,29-COLUMN()))),DBCS(LEFT(RIGHT(入力シート!$G$18,31-COLUMN())))),\"\")","v":""},null,{"$f":"IFERROR(IF(入力シート!$G$18=\"\",DBCS(LEFT(RIGHT(入力シート!$I$18,30-COLUMN()))),DBCS(LEFT(RIGHT(入力シート!$G$18,32-COLUMN())))),\"\")","v":""},null,{"$f":"IFERROR(IF(入力シート!$G$18=\"\",DBCS(LEFT(RIGHT(入力シート!$I$18,31-COLUMN()))),DBCS(LEFT(RIGHT(入力シート!$G$18,33-COLUMN())))),\"\")","v":""},null,{"$f":"IFERROR(IF(入力シート!$G$18=\"\",DBCS(LEFT(RIGHT(入力シート!$I$18,32-COLUMN()))),DBCS(LEFT(RIGHT(入力シート!$G$18,34-COLUMN())))),\"\")","v":""},null,{"$f":"IFERROR(IF(入力シート!$G$18=\"\",DBCS(LEFT(RIGHT(入力シート!$I$18,33-COLUMN()))),DBCS(LEFT(RIGHT(入力シート!$G$18,35-COLUMN())))),\"\")","v":""},null,{"$f":"IFERROR(IF(入力シート!$G$18=\"\",DBCS(LEFT(RIGHT(入力シート!$I$18,34-COLUMN()))),DBCS(LEFT(RIGHT(入力シート!$G$18,36-COLUMN())))),\"\")","v":""},null,{"$f":"IFERROR(IF(入力シート!$G$18=\"\",DBCS(LEFT(RIGHT(入力シート!$I$18,35-COLUMN()))),DBCS(LEFT(RIGHT(入力シート!$G$18,37-COLUMN())))),\"\")","v":""},null,{"$f":"IFERROR(IF(入力シート!$G$18=\"\",DBCS(LEFT(RIGHT(入力シート!$I$18,36-COLUMN()))),DBCS(LEFT(RIGHT(入力シート!$G$18,38-COLUMN())))),\"\")","v":""},null,{"$f":"IFERROR(IF(入力シート!$G$18=\"\",DBCS(LEFT(RIGHT(入力シート!$I$18,37-COLUMN()))),DBCS(LEFT(RIGHT(入力シート!$G$18,39-COLUMN())))),\"\")","v":""},null,{"$f":"IFERROR(IF(入力シート!$G$18=\"\",\"\",DBCS(LEFT(RIGHT(入力シート!$G$18,40-COLUMN())))),\"\")","v":""},null,{"$f":"IFERROR(IF(入力シート!$G$18=\"\",\"\",DBCS(LEFT(RIGHT(入力シート!$G$18,41-COLUMN())))),\"\")","v":""},null,"⑦",null,null,null,{"$f":"IF(入力シート!$J$18=\"\",\"\",IF(TEXT(入力シート!$J$18,\"g\")=\"S\",\"5．昭和\",IF(TEXT(入力シート!$J$18,\"g\")=\"H\",\"7．平成\",IF(TEXT(入力シート!$J$18,\"g\")=\"R\",\"9．令和\"))))","v":""},null,null,null,null,null,"年",null,null,"月",null,"日",null,null,"⑧",null,null,{"$f":"IF(入力シート!$N$18=\"\",\"\",DBCS(入力シート!$N$18))","v":""}]
[]
[null,null,null,"取得\n区分",null,null,null,null,null,null,null,null,null,"個人番号\n（基礎年\n金番号）",null,null,null,null,null,null,null,null,null,null,null,null,null,null,null,null,null,null,null,null,null,null,null,null,null,null,null,"取　得\n（該当）\n年月日",null,null,null,null,null,null,null,null,null,{"$f":"IF(入力シート!$J$18=\"\",\"\",DBCS(TEXT(入力シート!$J$18,\"eemmdd\")))","v":""},null,null,null,null,null,null,null,"被扶\n養者"]
[null,null,null,null,null,null,null,null,null,null,null,null,null,null,null,null,null,null,null,null,null,null,null,null,null,null,null,null,null,null,null,null,null,null,null,null,null,null,null,null,null,null,null,null,null,null,null,null,null,null,null,null,null,null,null,null,null,null,null,"被扶\n養者"]
[]
[]
[]
[null,null,null,"⑨",null,null,null,"㋐（通貨）",null,null,null,null,{"$f":"IF(入力シート!$K$18=\"\",\"\",入力シート!$K$18)","v":""},null,null,null,null,null,null,null,null,null,null,"円",null,"㋒（合計　㋐+㋑）",null,null,null,null,null,null,null,null,null,null,null,null,null,"円",null,"⑩",null,null,null,null,{"$f":"IF(入力シート!$O$18=\"\",\"\",DBCS(入力シート!$O$18))","v":""}]
[]
[null,null,null,"報酬\n月額",null,null,null,null,null,null,null,null,null,null,null,null,null,null,null,null,null,null,null,null,null,{"$f":"IF(入力シート!$M$18=\"\",\"\",入力シート!$M$18)","v":""},null,null,null,null,null,null,null,null,null,null,null,null,null,null,null,"備　考"]
[null,null,null,null,null,null,null,"㋑（現物）",null,null,null,null,{"$f":"IF(入力シート!$L$18=\"\",\"\",入力シート!$L$18)","v":""},null,null,null,null,null,null,null,null,null,null,"円",null,null,null,null,null,null,null,null,null,null,null,null,null,null,null,null,null,null,null,null,null,null,{"$f":"IF(入力シート!$P$18=\"\",\"\",DBCS(入力シート!$P$18))","v":""}]
[]
[]
[null,null,null,"⑪",null,null,null,null,null,null,null,null,null,null,null,null,null,null,null,null,null,null,null,null,null,null,null,null,null,null,null,null,null,null,null,null,null,null,null,null,null,null,null,null,null,null,null,null,null,null,null,null,null,null,null,null,null,null,null,"⑫",null,null,"□",null,"発行が必要"]
[null,null,null,null,null,null,null,null,"〒",null,{"$f":"IF(入力シート!$Q$18=\"\",\"\",DBCS(入力シート!$Q$18))","v":""},null,null,null,null,null,null,null,null,null,{"$f":"IF(入力シート!$R$18=\"\",\"\",DBCS(入力シート!$R$18))","v":""},null,null,null,null,null,null,null,null,null,null,null,null,null,null,null,null,null,null,null,null,null,null,null,null,null,{"$f":"IF(入力シート!$U$18=\"\",\"\",DBCS(入力シート!$U$18))","v":""}]
[null,null,null,"住所",null,null,null,null,null,null,null,null,null,null,null,null,null,null,null,null,null,null,null,null,null,null,null,null,null,null,null,null,null,null,null,null,null,null,null,null,null,null,null,null,null,null,null,null,null,null,null,null,null,null,null,null,null,null,null,"資格確認書\n発行要否"]
[null,null,null,null,null,null,null,null,{"$f":"IF(入力シート!$S$18=\"\",\"\",DBCS(入力シート!$S$18))","v":""},null,null,null,null,null,null,null,null,null,null,null,null,null,null,null,null,null,null,null,null,null,null,null,null,null,null,null,null,null,null,null,null,null,null,null,null,null,null,null,null,null,null,null,null,null,null,null,null,null,null,"被扶\n養者"]
[null,null,null,null,null,null,null,null,null,null,null,null,null,null,null,null,null,null,null,null,null,null,null,null,null,null,null,null,null,null,null,null,null,null,null,null,null,null,null,null,null,null,null,null,null,null,{"$f":"IF(入力シート!$V$18=\"\",\"\",DBCS(入力シート!$V$18))","v":""}]
[null,null,null,null,null,null,null,null,{"$f":"IF(入力シート!$T$18=\"\",\"\",DBCS(入力シート!$T$18))","v":""}]
[]
[]
[]
[]
[]
[]
[]
[]
[]
[]
[]
[]
[]
[]
[]
[]
[]
[]
[]
[]
[]
[]
[]
[null,"被保険者\n１",null,"①",null,null,null,{"$f":"IF(入力シート!$B$19=\"\",\"\",DBCS(入力シート!$B$19))","v":""},null,null,null,null,null,"②",null,null,null,{"$f":"IFERROR(LEFT(入力シート!$C$19,FIND(\" \",入力シート!$C$19,1)-1),\"\")","v":""},null,null,null,null,null,null,null,null,null,null,null,{"$f":"IFERROR(RIGHT(入力シート!$C$19,LEN(入力シート!$C$19)-FIND(\" \",入力シート!$C$19,1)),\"\")","v":""},null,null,null,null,null,null,null,null,null,null,null,"③",null,null,null,{"$f":"IF(入力シート!$E$19=\"\",\"\",IF(TEXT(入力シート!$E$19,\"g\")=\"S\",\"5．昭和\",IF(TEXT(入力シート!$E$19,\"g\")=\"H\",\"7．平成\",IF(TEXT(入力シート!$E$19,\"g\")=\"R\",\"9．令和\"))))","v":""},null,null,null,null,null,"年",null,null,"月",null,"日",null,null,"④",null,null,{"$f":"IF(入力シート!$F$19=\"\",\"\",IF(入力シート!$F$19=\"男\",\"1．男\",\"2．女\"))","v":""}]
[]
[null,null,null,"被保険者\n整理番号",null,null,null,null,null,null,null,null,null,"氏名",null,null,null,null,null,null,null,null,null,null,null,null,null,null,null,null,null,null,null,null,null,null,null,null,null,null,null,"生年\n月日",null,null,null,null,null,null,null,null,null,null,null,null,null,null,null,null,null,"種別"]
[null,null,null,null,null,null,null,null,null,null,null,null,null,null,null,null,null,null,null,null,null,null,null,null,null,null,null,null,null,null,null,null,null,null,null,null,null,null,null,null,null,null,null,null,null,null,null,null,null,null,null,{"$f":"IF(入力シート!$E$19=\"\",\"\",DBCS(TEXT(入力シート!$E$19,\"eemmdd\")))","v":""}]
[null,null,null,null,null,null,null,null,null,null,null,null,null,null,null,null,null,{"$f":"IFERROR(LEFT(入力シート!$D$19,FIND(\"　\",入力シート!$D$19,1)-1),\"\")","v":""},null,null,null,null,null,null,null,null,null,null,null,{"$f":"IFERROR(RIGHT(入力シート!$D$19,LEN(入力シート!$D$19)-FIND(\"　\",入力シート!$D$19,1)),\"\")","v":""}]
[]
[]
[]
[]
[]
[null,null,null,"⑤",null,null,null,{"$f":"IF(入力シート!$H$19=\"\",\"\",DBCS(入力シート!$H$19))","v":""},null,null,null,null,null,"⑥",null,null,null,{"$f":"IFERROR(IF(入力シート!$G$19=\"\",DBCS(LEFT(RIGHT(入力シート!$I$19,28-COLUMN()))),DBCS(LEFT(RIGHT(入力シート!$G$19,30-COLUMN())))),\"\")","v":""},null,{"$f":"IFERROR(IF(入力シート!$G$19=\"\",DBCS(LEFT(RIGHT(入力シート!$I$19,29-COLUMN()))),DBCS(LEFT(RIGHT(入力シート!$G$19,31-COLUMN())))),\"\")","v":""},null,{"$f":"IFERROR(IF(入力シート!$G$19=\"\",DBCS(LEFT(RIGHT(入力シート!$I$19,30-COLUMN()))),DBCS(LEFT(RIGHT(入力シート!$G$19,32-COLUMN())))),\"\")","v":""},null,{"$f":"IFERROR(IF(入力シート!$G$19=\"\",DBCS(LEFT(RIGHT(入力シート!$I$19,31-COLUMN()))),DBCS(LEFT(RIGHT(入力シート!$G$19,33-COLUMN())))),\"\")","v":""},null,{"$f":"IFERROR(IF(入力シート!$G$19=\"\",DBCS(LEFT(RIGHT(入力シート!$I$19,32-COLUMN()))),DBCS(LEFT(RIGHT(入力シート!$G$19,34-COLUMN())))),\"\")","v":""},null,{"$f":"IFERROR(IF(入力シート!$G$19=\"\",DBCS(LEFT(RIGHT(入力シート!$I$19,33-COLUMN()))),DBCS(LEFT(RIGHT(入力シート!$G$19,35-COLUMN())))),\"\")","v":""},null,{"$f":"IFERROR(IF(入力シート!$G$19=\"\",DBCS(LEFT(RIGHT(入力シート!$I$19,34-COLUMN()))),DBCS(LEFT(RIGHT(入力シート!$G$19,36-COLUMN())))),\"\")","v":""},null,{"$f":"IFERROR(IF(入力シート!$G$19=\"\",DBCS(LEFT(RIGHT(入力シート!$I$19,35-COLUMN()))),DBCS(LEFT(RIGHT(入力シート!$G$19,37-COLUMN())))),\"\")","v":""},null,{"$f":"IFERROR(IF(入力シート!$G$19=\"\",DBCS(LEFT(RIGHT(入力シート!$I$19,36-COLUMN()))),DBCS(LEFT(RIGHT(入力シート!$G$19,38-COLUMN())))),\"\")","v":""},null,{"$f":"IFERROR(IF(入力シート!$G$19=\"\",DBCS(LEFT(RIGHT(入力シート!$I$19,37-COLUMN()))),DBCS(LEFT(RIGHT(入力シート!$G$19,39-COLUMN())))),\"\")","v":""},null,{"$f":"IFERROR(IF(入力シート!$G$19=\"\",\"\",DBCS(LEFT(RIGHT(入力シート!$G$19,40-COLUMN())))),\"\")","v":""},null,{"$f":"IFERROR(IF(入力シート!$G$19=\"\",\"\",DBCS(LEFT(RIGHT(入力シート!$G$19,41-COLUMN())))),\"\")","v":""},null,"⑦",null,null,null,{"$f":"IF(入力シート!$J$19=\"\",\"\",IF(TEXT(入力シート!$J$19,\"g\")=\"S\",\"5．昭和\",IF(TEXT(入力シート!$J$19,\"g\")=\"H\",\"7．平成\",IF(TEXT(入力シート!$J$19,\"g\")=\"R\",\"9．令和\"))))","v":""},null,null,null,null,null,"年",null,null,"月",null,"日",null,null,"⑧",null,null,{"$f":"IF(入力シート!$N$19=\"\",\"\",DBCS(入力シート!$N$19))","v":""}]
[]
[null,null,null,"取得\n区分",null,null,null,null,null,null,null,null,null,"個人番号\n（基礎年\n金番号）",null,null,null,null,null,null,null,null,null,null,null,null,null,null,null,null,null,null,null,null,null,null,null,null,null,null,null,"取　得\n（該当）\n年月日",null,null,null,null,null,null,null,null,null,{"$f":"IF(入力シート!$J$19=\"\",\"\",DBCS(TEXT(入力シート!$J$19,\"eemmdd\")))","v":""},null,null,null,null,null,null,null,"被扶\n養者"]
[null,null,null,null,null,null,null,null,null,null,null,null,null,null,null,null,null,null,null,null,null,null,null,null,null,null,null,null,null,null,null,null,null,null,null,null,null,null,null,null,null,null,null,null,null,null,null,null,null,null,null,null,null,null,null,null,null,null,null,"被扶\n養者"]
[]
[]
[]
[null,null,null,"⑨",null,null,null,"㋐（通貨）",null,null,null,null,{"$f":"IF(入力シート!$K$19=\"\",\"\",入力シート!$K$19)","v":""},null,null,null,null,null,null,null,null,null,null,"円",null,"㋒（合計　㋐+㋑）",null,null,null,null,null,null,null,null,null,null,null,null,null,"円",null,"⑩",null,null,null,null,{"$f":"IF(入力シート!$O$19=\"\",\"\",DBCS(入力シート!$O$19))","v":""}]
[]
[null,null,null,"報酬\n月額",null,null,null,null,null,null,null,null,null,null,null,null,null,null,null,null,null,null,null,null,null,{"$f":"IF(入力シート!$M$19=\"\",\"\",入力シート!$M$19)","v":""},null,null,null,null,null,null,null,null,null,null,null,null,null,null,null,"備　考"]
[null,null,null,null,null,null,null,"㋑（現物）",null,null,null,null,{"$f":"IF(入力シート!$L$19=\"\",\"\",入力シート!$L$19)","v":""},null,null,null,null,null,null,null,null,null,null,"円",null,null,null,null,null,null,null,null,null,null,null,null,null,null,null,null,null,null,null,null,null,null,{"$f":"IF(入力シート!$P$19=\"\",\"\",DBCS(入力シート!$P$19))","v":""}]
[]
[]
[null,null,null,"⑪",null,null,null,null,null,null,null,null,null,null,null,null,null,null,null,null,null,null,null,null,null,null,null,null,null,null,null,null,null,null,null,null,null,null,null,null,null,null,null,null,null,null,null,null,null,null,null,null,null,null,null,null,null,null,null,"⑫",null,null,"□",null,"発行が必要"]
[null,null,null,null,null,null,null,null,"〒",null,{"$f":"IF(入力シート!$Q$19=\"\",\"\",DBCS(入力シート!$Q$19))","v":""},null,null,null,null,null,null,null,null,null,{"$f":"IF(入力シート!$R$19=\"\",\"\",DBCS(入力シート!$R$19))","v":""},null,null,null,null,null,null,null,null,null,null,null,null,null,null,null,null,null,null,null,null,null,null,null,null,null,{"$f":"IF(入力シート!$U$19=\"\",\"\",DBCS(入力シート!$U$19))","v":""}]
[null,null,null,"住所",null,null,null,null,null,null,null,null,null,null,null,null,null,null,null,null,null,null,null,null,null,null,null,null,null,null,null,null,null,null,null,null,null,null,null,null,null,null,null,null,null,null,null,null,null,null,null,null,null,null,null,null,null,null,null,"資格確認書\n発行要否"]
[null,null,null,null,null,null,null,null,{"$f":"IF(入力シート!$S$19=\"\",\"\",DBCS(入力シート!$S$19))","v":""},null,null,null,null,null,null,null,null,null,null,null,null,null,null,null,null,null,null,null,null,null,null,null,null,null,null,null,null,null,null,null,null,null,null,null,null,null,null,null,null,null,null,null,null,null,null,null,null,null,null,"被扶\n養者"]
[null,null,null,null,null,null,null,null,null,null,null,null,null,null,null,null,null,null,null,null,null,null,null,null,null,null,null,null,null,null,null,null,null,null,null,null,null,null,null,null,null,null,null,null,null,null,{"$f":"IF(入力シート!$V$19=\"\",\"\",DBCS(入力シート!$V$19))","v":""}]
[null,null,null,null,null,null,null,null,{"$f":"IF(入力シート!$T$19=\"\",\"\",DBCS(入力シート!$T$19))","v":""}]
[]
[]
[]
[null,"被保険者\n２",null,"①",null,null,null,{"$f":"IF(入力シート!$B$20=\"\",\"\",DBCS(入力シート!$B$20))","v":""},null,null,null,null,null,"②",null,null,null,{"$f":"IFERROR(LEFT(入力シート!$C$20,FIND(\" \",入力シート!$C$20,1)-1),\"\")","v":""},null,null,null,null,null,null,null,null,null,null,null,{"$f":"IFERROR(RIGHT(入力シート!$C$20,LEN(入力シート!$C$20)-FIND(\" \",入力シート!$C$20,1)),\"\")","v":""},null,null,null,null,null,null,null,null,null,null,null,"③",null,null,null,{"$f":"IF(入力シート!$E$20=\"\",\"\",IF(TEXT(入力シート!$E$20,\"g\")=\"S\",\"5．昭和\",IF(TEXT(入力シート!$E$20,\"g\")=\"H\",\"7．平成\",IF(TEXT(入力シート!$E$20,\"g\")=\"R\",\"9．令和\"))))","v":""},null,null,null,null,null,"年",null,null,"月",null,"日",null,null,"④",null,null,{"$f":"IF(入力シート!$F$20=\"\",\"\",IF(入力シート!$F$20=\"男\",\"1．男\",\"2．女\"))","v":""}]
[]
[null,null,null,"被保険者\n整理番号",null,null,null,null,null,null,null,null,null,"氏名",null,null,null,null,null,null,null,null,null,null,null,null,null,null,null,null,null,null,null,null,null,null,null,null,null,null,null,"生年\n月日",null,null,null,null,null,null,null,null,null,null,null,null,null,null,null,null,null,"種別"]
[null,null,null,null,null,null,null,null,null,null,null,null,null,null,null,null,null,null,null,null,null,null,null,null,null,null,null,null,null,null,null,null,null,null,null,null,null,null,null,null,null,null,null,null,null,null,null,null,null,null,null,{"$f":"IF(入力シート!$E$20=\"\",\"\",DBCS(TEXT(入力シート!$E$20,\"eemmdd\")))","v":""}]
[null,null,null,null,null,null,null,null,null,null,null,null,null,null,null,null,null,{"$f":"IFERROR(LEFT(入力シート!$D$20,FIND(\"　\",入力シート!$D$20,1)-1),\"\")","v":""},null,null,null,null,null,null,null,null,null,null,null,{"$f":"IFERROR(RIGHT(入力シート!$D$20,LEN(入力シート!$D$20)-FIND(\"　\",入力シート!$D$20,1)),\"\")","v":""}]
[]
[]
[]
[]
[]
[null,null,null,"⑤",null,null,null,{"$f":"IF(入力シート!$H$20=\"\",\"\",DBCS(入力シート!$H$20))","v":""},null,null,null,null,null,"⑥",null,null,null,{"$f":"IFERROR(IF(入力シート!$G$20=\"\",DBCS(LEFT(RIGHT(入力シート!$I$20,28-COLUMN()))),DBCS(LEFT(RIGHT(入力シート!$G$20,30-COLUMN())))),\"\")","v":""},null,{"$f":"IFERROR(IF(入力シート!$G$20=\"\",DBCS(LEFT(RIGHT(入力シート!$I$20,29-COLUMN()))),DBCS(LEFT(RIGHT(入力シート!$G$20,31-COLUMN())))),\"\")","v":""},null,{"$f":"IFERROR(IF(入力シート!$G$20=\"\",DBCS(LEFT(RIGHT(入力シート!$I$20,30-COLUMN()))),DBCS(LEFT(RIGHT(入力シート!$G$20,32-COLUMN())))),\"\")","v":""},null,{"$f":"IFERROR(IF(入力シート!$G$20=\"\",DBCS(LEFT(RIGHT(入力シート!$I$20,31-COLUMN()))),DBCS(LEFT(RIGHT(入力シート!$G$20,33-COLUMN())))),\"\")","v":""},null,{"$f":"IFERROR(IF(入力シート!$G$20=\"\",DBCS(LEFT(RIGHT(入力シート!$I$20,32-COLUMN()))),DBCS(LEFT(RIGHT(入力シート!$G$20,34-COLUMN())))),\"\")","v":""},null,{"$f":"IFERROR(IF(入力シート!$G$20=\"\",DBCS(LEFT(RIGHT(入力シート!$I$20,33-COLUMN()))),DBCS(LEFT(RIGHT(入力シート!$G$20,35-COLUMN())))),\"\")","v":""},null,{"$f":"IFERROR(IF(入力シート!$G$20=\"\",DBCS(LEFT(RIGHT(入力シート!$I$20,34-COLUMN()))),DBCS(LEFT(RIGHT(入力シート!$G$20,36-COLUMN())))),\"\")","v":""},null,{"$f":"IFERROR(IF(入力シート!$G$20=\"\",DBCS(LEFT(RIGHT(入力シート!$I$20,35-COLUMN()))),DBCS(LEFT(RIGHT(入力シート!$G$20,37-COLUMN())))),\"\")","v":""},null,{"$f":"IFERROR(IF(入力シート!$G$20=\"\",DBCS(LEFT(RIGHT(入力シート!$I$20,36-COLUMN()))),DBCS(LEFT(RIGHT(入力シート!$G$20,38-COLUMN())))),\"\")","v":""},null,{"$f":"IFERROR(IF(入力シート!$G$20=\"\",DBCS(LEFT(RIGHT(入力シート!$I$20,37-COLUMN()))),DBCS(LEFT(RIGHT(入力シート!$G$20,39-COLUMN())))),\"\")","v":""},null,{"$f":"IFERROR(IF(入力シート!$G$20=\"\",\"\",DBCS(LEFT(RIGHT(入力シート!$G$20,40-COLUMN())))),\"\")","v":""},null,{"$f":"IFERROR(IF(入力シート!$G$20=\"\",\"\",DBCS(LEFT(RIGHT(入力シート!$G$20,41-COLUMN())))),\"\")","v":""},null,"⑦",null,null,null,{"$f":"IF(入力シート!$J$20=\"\",\"\",IF(TEXT(入力シート!$J$20,\"g\")=\"S\",\"5．昭和\",IF(TEXT(入力シート!$J$20,\"g\")=\"H\",\"7．平成\",IF(TEXT(入力シート!$J$20,\"g\")=\"R\",\"9．令和\"))))","v":""},null,null,null,null,null,"年",null,null,"月",null,"日",null,null,"⑧",null,null,{"$f":"IF(入力シート!$N$20=\"\",\"\",DBCS(入力シート!$N$20))","v":""}]
[]
[null,null,null,"取得\n区分",null,null,null,null,null,null,null,null,null,"個人番号\n（基礎年\n金番号）",null,null,null,null,null,null,null,null,null,null,null,null,null,null,null,null,null,null,null,null,null,null,null,null,null,null,null,"取　得\n（該当）\n年月日",null,null,null,null,null,null,null,null,null,{"$f":"IF(入力シート!$J$20=\"\",\"\",DBCS(TEXT(入力シート!$J$20,\"eemmdd\")))","v":""},null,null,null,null,null,null,null,"被扶\n養者"]
[null,null,null,null,null,null,null,null,null,null,null,null,null,null,null,null,null,null,null,null,null,null,null,null,null,null,null,null,null,null,null,null,null,null,null,null,null,null,null,null,null,null,null,null,null,null,null,null,null,null,null,null,null,null,null,null,null,null,null,"被扶\n養者"]
[]
[]
[]
[null,null,null,"⑨",null,null,null,"㋐（通貨）",null,null,null,null,{"$f":"IF(入力シート!$K$20=\"\",\"\",入力シート!$K$20)","v":""},null,null,null,null,null,null,null,null,null,null,"円",null,"㋒（合計　㋐+㋑）",null,null,null,null,null,null,null,null,null,null,null,null,null,"円",null,"⑩",null,null,null,null,{"$f":"IF(入力シート!$O$20=\"\",\"\",DBCS(入力シート!$O$20))","v":""}]
[]
[null,null,null,"報酬\n月額",null,null,null,null,null,null,null,null,null,null,null,null,null,null,null,null,null,null,null,null,null,{"$f":"IF(入力シート!$M$20=\"\",\"\",入力シート!$M$20)","v":""},null,null,null,null,null,null,null,null,null,null,null,null,null,null,null,"備　考"]
[null,null,null,null,null,null,null,"㋑（現物）",null,null,null,null,{"$f":"IF(入力シート!$L$20=\"\",\"\",入力シート!$L$20)","v":""},null,null,null,null,null,null,null,null,null,null,"円",null,null,null,null,null,null,null,null,null,null,null,null,null,null,null,null,null,null,null,null,null,null,{"$f":"IF(入力シート!$P$20=\"\",\"\",DBCS(入力シート!$P$20))","v":""}]
[]
[]
[null,null,null,"⑪",null,null,null,null,null,null,null,null,null,null,null,null,null,null,null,null,null,null,null,null,null,null,null,null,null,null,null,null,null,null,null,null,null,null,null,null,null,null,null,null,null,null,null,null,null,null,null,null,null,null,null,null,null,null,null,"⑫",null,null,"□",null,"発行が必要"]
[null,null,null,null,null,null,null,null,"〒",null,{"$f":"IF(入力シート!$Q$20=\"\",\"\",DBCS(入力シート!$Q$20))","v":""},null,null,null,null,null,null,null,null,null,{"$f":"IF(入力シート!$R$20=\"\",\"\",DBCS(入力シート!$R$20))","v":""},null,null,null,null,null,null,null,null,null,null,null,null,null,null,null,null,null,null,null,null,null,null,null,null,null,{"$f":"IF(入力シート!$U$20=\"\",\"\",DBCS(入力シート!$U$20))","v":""}]
[null,null,null,"住所",null,null,null,null,null,null,null,null,null,null,null,null,null,null,null,null,null,null,null,null,null,null,null,null,null,null,null,null,null,null,null,null,null,null,null,null,null,null,null,null,null,null,null,null,null,null,null,null,null,null,null,null,null,null,null,"資格確認書\n発行要否"]
[null,null,null,null,null,null,null,null,{"$f":"IF(入力シート!$S$20=\"\",\"\",DBCS(入力シート!$S$20))","v":""},null,null,null,null,null,null,null,null,null,null,null,null,null,null,null,null,null,null,null,null,null,null,null,null,null,null,null,null,null,null,null,null,null,null,null,null,null,null,null,null,null,null,null,null,null,null,null,null,null,null,"被扶\n養者"]
[null,null,null,null,null,null,null,null,null,null,null,null,null,null,null,null,null,null,null,null,null,null,null,null,null,null,null,null,null,null,null,null,null,null,null,null,null,null,null,null,null,null,null,null,null,null,{"$f":"IF(入力シート!$V$20=\"\",\"\",DBCS(入力シート!$V$20))","v":""}]
[null,null,null,null,null,null,null,null,{"$f":"IF(入力シート!$T$20=\"\",\"\",DBCS(入力シート!$T$20))","v":""}]
[]
[]
[]
[null,"被保険者\n３",null,"①",null,null,null,{"$f":"IF(入力シート!$B$21=\"\",\"\",DBCS(入力シート!$B$21))","v":""},null,null,null,null,null,"②",null,null,null,{"$f":"IFERROR(LEFT(入力シート!$C$21,FIND(\" \",入力シート!$C$21,1)-1),\"\")","v":""},null,null,null,null,null,null,null,null,null,null,null,{"$f":"IFERROR(RIGHT(入力シート!$C$21,LEN(入力シート!$C$21)-FIND(\" \",入力シート!$C$21,1)),\"\")","v":""},null,null,null,null,null,null,null,null,null,null,null,"③",null,null,null,{"$f":"IF(入力シート!$E$21=\"\",\"\",IF(TEXT(入力シート!$E$21,\"g\")=\"S\",\"5．昭和\",IF(TEXT(入力シート!$E$21,\"g\")=\"H\",\"7．平成\",IF(TEXT(入力シート!$E$21,\"g\")=\"R\",\"9．令和\"))))","v":""},null,null,null,null,null,"年",null,null,"月",null,"日",null,null,"④",null,null,{"$f":"IF(入力シート!$F$21=\"\",\"\",IF(入力シート!$F$21=\"男\",\"1．男\",\"2．女\"))","v":""}]
[]
[null,null,null,"被保険者\n整理番号",null,null,null,null,null,null,null,null,null,"氏名",null,null,null,null,null,null,null,null,null,null,null,null,null,null,null,null,null,null,null,null,null,null,null,null,null,null,null,"生年\n月日",null,null,null,null,null,null,null,null,null,null,null,null,null,null,null,null,null,"種別"]
[null,null,null,null,null,null,null,null,null,null,null,null,null,null,null,null,null,null,null,null,null,null,null,null,null,null,null,null,null,null,null,null,null,null,null,null,null,null,null,null,null,null,null,null,null,null,null,null,null,null,null,{"$f":"IF(入力シート!$E$21=\"\",\"\",DBCS(TEXT(入力シート!$E$21,\"eemmdd\")))","v":""}]
[null,null,null,null,null,null,null,null,null,null,null,null,null,null,null,null,null,{"$f":"IFERROR(LEFT(入力シート!$D$21,FIND(\"　\",入力シート!$D$21,1)-1),\"\")","v":""},null,null,null,null,null,null,null,null,null,null,null,{"$f":"IFERROR(RIGHT(入力シート!$D$21,LEN(入力シート!$D$21)-FIND(\"　\",入力シート!$D$21,1)),\"\")","v":""}]
[]
[]
[]
[]
[]
[null,null,null,"⑤",null,null,null,{"$f":"IF(入力シート!$H$21=\"\",\"\",DBCS(入力シート!$H$21))","v":""},null,null,null,null,null,"⑥",null,null,null,{"$f":"IFERROR(IF(入力シート!$G$21=\"\",DBCS(LEFT(RIGHT(入力シート!$I$21,28-COLUMN()))),DBCS(LEFT(RIGHT(入力シート!$G$21,30-COLUMN())))),\"\")","v":""},null,{"$f":"IFERROR(IF(入力シート!$G$21=\"\",DBCS(LEFT(RIGHT(入力シート!$I$21,29-COLUMN()))),DBCS(LEFT(RIGHT(入力シート!$G$21,31-COLUMN())))),\"\")","v":""},null,{"$f":"IFERROR(IF(入力シート!$G$21=\"\",DBCS(LEFT(RIGHT(入力シート!$I$21,30-COLUMN()))),DBCS(LEFT(RIGHT(入力シート!$G$21,32-COLUMN())))),\"\")","v":""},null,{"$f":"IFERROR(IF(入力シート!$G$21=\"\",DBCS(LEFT(RIGHT(入力シート!$I$21,31-COLUMN()))),DBCS(LEFT(RIGHT(入力シート!$G$21,33-COLUMN())))),\"\")","v":""},null,{"$f":"IFERROR(IF(入力シート!$G$21=\"\",DBCS(LEFT(RIGHT(入力シート!$I$21,32-COLUMN()))),DBCS(LEFT(RIGHT(入力シート!$G$21,34-COLUMN())))),\"\")","v":""},null,{"$f":"IFERROR(IF(入力シート!$G$21=\"\",DBCS(LEFT(RIGHT(入力シート!$I$21,33-COLUMN()))),DBCS(LEFT(RIGHT(入力シート!$G$21,35-COLUMN())))),\"\")","v":""},null,{"$f":"IFERROR(IF(入力シート!$G$21=\"\",DBCS(LEFT(RIGHT(入力シート!$I$21,34-COLUMN()))),DBCS(LEFT(RIGHT(入力シート!$G$21,36-COLUMN())))),\"\")","v":""},null,{"$f":"IFERROR(IF(入力シート!$G$21=\"\",DBCS(LEFT(RIGHT(入力シート!$I$21,35-COLUMN()))),DBCS(LEFT(RIGHT(入力シート!$G$21,37-COLUMN())))),\"\")","v":""},null,{"$f":"IFERROR(IF(入力シート!$G$21=\"\",DBCS(LEFT(RIGHT(入力シート!$I$21,36-COLUMN()))),DBCS(LEFT(RIGHT(入力シート!$G$21,38-COLUMN())))),\"\")","v":""},null,{"$f":"IFERROR(IF(入力シート!$G$21=\"\",DBCS(LEFT(RIGHT(入力シート!$I$21,37-COLUMN()))),DBCS(LEFT(RIGHT(入力シート!$G$21,39-COLUMN())))),\"\")","v":""},null,{"$f":"IFERROR(IF(入力シート!$G$21=\"\",\"\",DBCS(LEFT(RIGHT(入力シート!$G$21,40-COLUMN())))),\"\")","v":""},null,{"$f":"IFERROR(IF(入力シート!$G$21=\"\",\"\",DBCS(LEFT(RIGHT(入力シート!$G$21,41-COLUMN())))),\"\")","v":""},null,"⑦",null,null,null,{"$f":"IF(入力シート!$J$21=\"\",\"\",IF(TEXT(入力シート!$J$21,\"g\")=\"S\",\"5．昭和\",IF(TEXT(入力シート!$J$21,\"g\")=\"H\",\"7．平成\",IF(TEXT(入力シート!$J$21,\"g\")=\"R\",\"9．令和\"))))","v":""},null,null,null,null,null,"年",null,null,"月",null,"日",null,null,"⑧",null,null,{"$f":"IF(入力シート!$N$21=\"\",\"\",DBCS(入力シート!$N$21))","v":""}]
[]
[null,null,null,"取得\n区分",null,null,null,null,null,null,null,null,null,"個人番号\n（基礎年\n金番号）",null,null,null,null,null,null,null,null,null,null,null,null,null,null,null,null,null,null,null,null,null,null,null,null,null,null,null,"取　得\n（該当）\n年月日",null,null,null,null,null,null,null,null,null,{"$f":"IF(入力シート!$J$21=\"\",\"\",DBCS(TEXT(入力シート!$J$21,\"eemmdd\")))","v":""},null,null,null,null,null,null,null,"被扶\n養者"]
[null,null,null,null,null,null,null,null,null,null,null,null,null,null,null,null,null,null,null,null,null,null,null,null,null,null,null,null,null,null,null,null,null,null,null,null,null,null,null,null,null,null,null,null,null,null,null,null,null,null,null,null,null,null,null,null,null,null,null,"被扶\n養者"]
[]
[]
[]
[null,null,null,"⑨",null,null,null,"㋐（通貨）",null,null,null,null,{"$f":"IF(入力シート!$K$21=\"\",\"\",入力シート!$K$21)","v":""},null,null,null,null,null,null,null,null,null,null,"円",null,"㋒（合計　㋐+㋑）",null,null,null,null,null,null,null,null,null,null,null,null,null,"円",null,"⑩",null,null,null,null,{"$f":"IF(入力シート!$O$21=\"\",\"\",DBCS(入力シート!$O$21))","v":""}]
[]
[null,null,null,"報酬\n月額",null,null,null,null,null,null,null,null,null,null,null,null,null,null,null,null,null,null,null,null,null,{"$f":"IF(入力シート!$M$21=\"\",\"\",入力シート!$M$21)","v":""},null,null,null,null,null,null,null,null,null,null,null,null,null,null,null,"備　考"]
[null,null,null,null,null,null,null,"㋑（現物）",null,null,null,null,{"$f":"IF(入力シート!$L$21=\"\",\"\",入力シート!$L$21)","v":""},null,null,null,null,null,null,null,null,null,null,"円",null,null,null,null,null,null,null,null,null,null,null,null,null,null,null,null,null,null,null,null,null,null,{"$f":"IF(入力シート!$P$21=\"\",\"\",DBCS(入力シート!$P$21))","v":""}]
[]
[]
[null,null,null,"⑪",null,null,null,null,null,null,null,null,null,null,null,null,null,null,null,null,null,null,null,null,null,null,null,null,null,null,null,null,null,null,null,null,null,null,null,null,null,null,null,null,null,null,null,null,null,null,null,null,null,null,null,null,null,null,null,"⑫",null,null,"□",null,"発行が必要"]
[null,null,null,null,null,null,null,null,"〒",null,{"$f":"IF(入力シート!$Q$21=\"\",\"\",DBCS(入力シート!$Q$21))","v":""},null,null,null,null,null,null,null,null,null,{"$f":"IF(入力シート!$R$21=\"\",\"\",DBCS(入力シート!$R$21))","v":""},null,null,null,null,null,null,null,null,null,null,null,null,null,null,null,null,null,null,null,null,null,null,null,null,null,{"$f":"IF(入力シート!$U$21=\"\",\"\",DBCS(入力シート!$U$21))","v":""}]
[null,null,null,"住所",null,null,null,null,null,null,null,null,null,null,null,null,null,null,null,null,null,null,null,null,null,null,null,null,null,null,null,null,null,null,null,null,null,null,null,null,null,null,null,null,null,null,null,null,null,null,null,null,null,null,null,null,null,null,null,"資格確認書\n発行要否"]
[null,null,null,null,null,null,null,null,{"$f":"IF(入力シート!$S$21=\"\",\"\",DBCS(入力シート!$S$21))","v":""},null,null,null,null,null,null,null,null,null,null,null,null,null,null,null,null,null,null,null,null,null,null,null,null,null,null,null,null,null,null,null,null,null,null,null,null,null,null,null,null,null,null,null,null,null,null,null,null,null,null,"被扶\n養者"]
[null,null,null,null,null,null,null,null,null,null,null,null,null,null,null,null,null,null,null,null,null,null,null,null,null,null,null,null,null,null,null,null,null,null,null,null,null,null,null,null,null,null,null,null,null,null,{"$f":"IF(入力シート!$V$21=\"\",\"\",DBCS(入力シート!$V$21))","v":""}]
[null,null,null,null,null,null,null,null,{"$f":"IF(入力シート!$T$21=\"\",\"\",DBCS(入力シート!$T$21))","v":""}]
[]
[]
[]
[null,"被保険者\n４",null,"①",null,null,null,{"$f":"IF(入力シート!$B$22=\"\",\"\",DBCS(入力シート!$B$22))","v":""},null,null,null,null,null,"②",null,null,null,{"$f":"IFERROR(LEFT(入力シート!$C$22,FIND(\" \",入力シート!$C$22,1)-1),\"\")","v":""},null,null,null,null,null,null,null,null,null,null,null,{"$f":"IFERROR(RIGHT(入力シート!$C$22,LEN(入力シート!$C$22)-FIND(\" \",入力シート!$C$22,1)),\"\")","v":""},null,null,null,null,null,null,null,null,null,null,null,"③",null,null,null,{"$f":"IF(入力シート!$E$22=\"\",\"\",IF(TEXT(入力シート!$E$22,\"g\")=\"S\",\"5．昭和\",IF(TEXT(入力シート!$E$22,\"g\")=\"H\",\"7．平成\",IF(TEXT(入力シート!$E$22,\"g\")=\"R\",\"9．令和\"))))","v":""},null,null,null,null,null,"年",null,null,"月",null,"日",null,null,"④",null,null,{"$f":"IF(入力シート!$F$22=\"\",\"\",IF(入力シート!$F$22=\"男\",\"1．男\",\"2．女\"))","v":""}]
[]
[null,null,null,"被保険者\n整理番号",null,null,null,null,null,null,null,null,null,"氏名",null,null,null,null,null,null,null,null,null,null,null,null,null,null,null,null,null,null,null,null,null,null,null,null,null,null,null,"生年\n月日",null,null,null,null,null,null,null,null,null,null,null,null,null,null,null,null,null,"種別"]
[null,null,null,null,null,null,null,null,null,null,null,null,null,null,null,null,null,null,null,null,null,null,null,null,null,null,null,null,null,null,null,null,null,null,null,null,null,null,null,null,null,null,null,null,null,null,null,null,null,null,null,{"$f":"IF(入力シート!$E$22=\"\",\"\",DBCS(TEXT(入力シート!$E$22,\"eemmdd\")))","v":""}]
[null,null,null,null,null,null,null,null,null,null,null,null,null,null,null,null,null,{"$f":"IFERROR(LEFT(入力シート!$D$22,FIND(\"　\",入力シート!$D$22,1)-1),\"\")","v":""},null,null,null,null,null,null,null,null,null,null,null,{"$f":"IFERROR(RIGHT(入力シート!$D$22,LEN(入力シート!$D$22)-FIND(\"　\",入力シート!$D$22,1)),\"\")","v":""}]
[]
[]
[]
[]
[]
[null,null,null,"⑤",null,null,null,{"$f":"IF(入力シート!$H$22=\"\",\"\",DBCS(入力シート!$H$22))","v":""},null,null,null,null,null,"⑥",null,null,null,{"$f":"IFERROR(IF(入力シート!$G$22=\"\",DBCS(LEFT(RIGHT(入力シート!$I$22,28-COLUMN()))),DBCS(LEFT(RIGHT(入力シート!$G$22,30-COLUMN())))),\"\")","v":""},null,{"$f":"IFERROR(IF(入力シート!$G$22=\"\",DBCS(LEFT(RIGHT(入力シート!$I$22,29-COLUMN()))),DBCS(LEFT(RIGHT(入力シート!$G$22,31-COLUMN())))),\"\")","v":""},null,{"$f":"IFERROR(IF(入力シート!$G$22=\"\",DBCS(LEFT(RIGHT(入力シート!$I$22,30-COLUMN()))),DBCS(LEFT(RIGHT(入力シート!$G$22,32-COLUMN())))),\"\")","v":""},null,{"$f":"IFERROR(IF(入力シート!$G$22=\"\",DBCS(LEFT(RIGHT(入力シート!$I$22,31-COLUMN()))),DBCS(LEFT(RIGHT(入力シート!$G$22,33-COLUMN())))),\"\")","v":""},null,{"$f":"IFERROR(IF(入力シート!$G$22=\"\",DBCS(LEFT(RIGHT(入力シート!$I$22,32-COLUMN()))),DBCS(LEFT(RIGHT(入力シート!$G$22,34-COLUMN())))),\"\")","v":""},null,{"$f":"IFERROR(IF(入力シート!$G$22=\"\",DBCS(LEFT(RIGHT(入力シート!$I$22,33-COLUMN()))),DBCS(LEFT(RIGHT(入力シート!$G$22,35-COLUMN())))),\"\")","v":""},null,{"$f":"IFERROR(IF(入力シート!$G$22=\"\",DBCS(LEFT(RIGHT(入力シート!$I$22,34-COLUMN()))),DBCS(LEFT(RIGHT(入力シート!$G$22,36-COLUMN())))),\"\")","v":""},null,{"$f":"IFERROR(IF(入力シート!$G$22=\"\",DBCS(LEFT(RIGHT(入力シート!$I$22,35-COLUMN()))),DBCS(LEFT(RIGHT(入力シート!$G$22,37-COLUMN())))),\"\")","v":""},null,{"$f":"IFERROR(IF(入力シート!$G$22=\"\",DBCS(LEFT(RIGHT(入力シート!$I$22,36-COLUMN()))),DBCS(LEFT(RIGHT(入力シート!$G$22,38-COLUMN())))),\"\")","v":""},null,{"$f":"IFERROR(IF(入力シート!$G$22=\"\",DBCS(LEFT(RIGHT(入力シート!$I$22,37-COLUMN()))),DBCS(LEFT(RIGHT(入力シート!$G$22,39-COLUMN())))),\"\")","v":""},null,{"$f":"IFERROR(IF(入力シート!$G$22=\"\",\"\",DBCS(LEFT(RIGHT(入力シート!$G$22,40-COLUMN())))),\"\")","v":""},null,{"$f":"IFERROR(IF(入力シート!$G$22=\"\",\"\",DBCS(LEFT(RIGHT(入力シート!$G$22,41-COLUMN())))),\"\")","v":""},null,"⑦",null,null,null,{"$f":"IF(入力シート!$J$22=\"\",\"\",IF(TEXT(入力シート!$J$22,\"g\")=\"S\",\"5．昭和\",IF(TEXT(入力シート!$J$22,\"g\")=\"H\",\"7．平成\",IF(TEXT(入力シート!$J$22,\"g\")=\"R\",\"9．令和\"))))","v":""},null,null,null,null,null,"年",null,null,"月",null,"日",null,null,"⑧",null,null,{"$f":"IF(入力シート!$N$22=\"\",\"\",DBCS(入力シート!$N$22))","v":""}]
[]
[null,null,null,"取得\n区分",null,null,null,null,null,null,null,null,null,"個人番号\n（基礎年\n金番号）",null,null,null,null,null,null,null,null,null,null,null,null,null,null,null,null,null,null,null,null,null,null,null,null,null,null,null,"取　得\n（該当）\n年月日",null,null,null,null,null,null,null,null,null,{"$f":"IF(入力シート!$J$22=\"\",\"\",DBCS(TEXT(入力シート!$J$22,\"eemmdd\")))","v":""},null,null,null,null,null,null,null,"被扶\n養者"]
[null,null,null,null,null,null,null,null,null,null,null,null,null,null,null,null,null,null,null,null,null,null,null,null,null,null,null,null,null,null,null,null,null,null,null,null,null,null,null,null,null,null,null,null,null,null,null,null,null,null,null,null,null,null,null,null,null,null,null,"被扶\n養者"]
[]
[]
[]
[null,null,null,"⑨",null,null,null,"㋐（通貨）",null,null,null,null,{"$f":"IF(入力シート!$K$22=\"\",\"\",入力シート!$K$22)","v":""},null,null,null,null,null,null,null,null,null,null,"円",null,"㋒（合計　㋐+㋑）",null,null,null,null,null,null,null,null,null,null,null,null,null,"円",null,"⑩",null,null,null,null,{"$f":"IF(入力シート!$O$22=\"\",\"\",DBCS(入力シート!$O$22))","v":""}]
[]
[null,null,null,"報酬\n月額",null,null,null,null,null,null,null,null,null,null,null,null,null,null,null,null,null,null,null,null,null,{"$f":"IF(入力シート!$M$22=\"\",\"\",入力シート!$M$22)","v":""},null,null,null,null,null,null,null,null,null,null,null,null,null,null,null,"備　考"]
[null,null,null,null,null,null,null,"㋑（現物）",null,null,null,null,{"$f":"IF(入力シート!$L$22=\"\",\"\",入力シート!$L$22)","v":""},null,null,null,null,null,null,null,null,null,null,"円",null,null,null,null,null,null,null,null,null,null,null,null,null,null,null,null,null,null,null,null,null,null,{"$f":"IF(入力シート!$P$22=\"\",\"\",DBCS(入力シート!$P$22))","v":""}]
[]
[]
[null,null,null,"⑪",null,null,null,null,null,null,null,null,null,null,null,null,null,null,null,null,null,null,null,null,null,null,null,null,null,null,null,null,null,null,null,null,null,null,null,null,null,null,null,null,null,null,null,null,null,null,null,null,null,null,null,null,null,null,null,"⑫",null,null,"□",null,"発行が必要"]
[null,null,null,null,null,null,null,null,"〒",null,{"$f":"IF(入力シート!$Q$22=\"\",\"\",DBCS(入力シート!$Q$22))","v":""},null,null,null,null,null,null,null,null,null,{"$f":"IF(入力シート!$R$22=\"\",\"\",DBCS(入力シート!$R$22))","v":""},null,null,null,null,null,null,null,null,null,null,null,null,null,null,null,null,null,null,null,null,null,null,null,null,null,{"$f":"IF(入力シート!$U$22=\"\",\"\",DBCS(入力シート!$U$22))","v":""}]
[null,null,null,"住所",null,null,null,null,null,null,null,null,null,null,null,null,null,null,null,null,null,null,null,null,null,null,null,null,null,null,null,null,null,null,null,null,null,null,null,null,null,null,null,null,null,null,null,null,null,null,null,null,null,null,null,null,null,null,null,"資格確認書\n発行要否"]
[null,null,null,null,null,null,null,null,{"$f":"IF(入力シート!$S$22=\"\",\"\",DBCS(入力シート!$S$22))","v":""},null,null,null,null,null,null,null,null,null,null,null,null,null,null,null,null,null,null,null,null,null,null,null,null,null,null,null,null,null,null,null,null,null,null,null,null,null,null,null,null,null,null,null,null,null,null,null,null,null,null,"被扶\n養者"]
[null,null,null,null,null,null,null,null,null,null,null,null,null,null,null,null,null,null,null,null,null,null,null,null,null,null,null,null,null,null,null,null,null,null,null,null,null,null,null,null,null,null,null,null,null,null,{"$f":"IF(入力シート!$V$22=\"\",\"\",DBCS(入力シート!$V$22))","v":""}]
[null,null,null,null,null,null,null,null,{"$f":"IF(入力シート!$T$22=\"\",\"\",DBCS(入力シート!$T$22))","v":""}]
[]
[]
[]
[]
[]
[]
[]
[]
[]
[]
[]
[]
[]
[]
[]
[]
[]
[]
[]
[]
[]
[]
[]
[null,"被保険者\n１",null,"①",null,null,null,{"$f":"IF(入力シート!$B$23=\"\",\"\",DBCS(入力シート!$B$23))","v":""},null,null,null,null,null,"②",null,null,null,{"$f":"IFERROR(LEFT(入力シート!$C$23,FIND(\" \",入力シート!$C$23,1)-1),\"\")","v":""},null,null,null,null,null,null,null,null,null,null,null,{"$f":"IFERROR(RIGHT(入力シート!$C$23,LEN(入力シート!$C$23)-FIND(\" \",入力シート!$C$23,1)),\"\")","v":""},null,null,null,null,null,null,null,null,null,null,null,"③",null,null,null,{"$f":"IF(入力シート!$E$23=\"\",\"\",IF(TEXT(入力シート!$E$23,\"g\")=\"S\",\"5．昭和\",IF(TEXT(入力シート!$E$23,\"g\")=\"H\",\"7．平成\",IF(TEXT(入力シート!$E$23,\"g\")=\"R\",\"9．令和\"))))","v":""},null,null,null,null,null,"年",null,null,"月",null,"日",null,null,"④",null,null,{"$f":"IF(入力シート!$F$23=\"\",\"\",IF(入力シート!$F$23=\"男\",\"1．男\",\"2．女\"))","v":""}]
[]
[null,null,null,"被保険者\n整理番号",null,null,null,null,null,null,null,null,null,"氏名",null,null,null,null,null,null,null,null,null,null,null,null,null,null,null,null,null,null,null,null,null,null,null,null,null,null,null,"生年\n月日",null,null,null,null,null,null,null,null,null,null,null,null,null,null,null,null,null,"種別"]
[null,null,null,null,null,null,null,null,null,null,null,null,null,null,null,null,null,null,null,null,null,null,null,null,null,null,null,null,null,null,null,null,null,null,null,null,null,null,null,null,null,null,null,null,null,null,null,null,null,null,null,{"$f":"IF(入力シート!$E$23=\"\",\"\",DBCS(TEXT(入力シート!$E$23,\"eemmdd\")))","v":""}]
[null,null,null,null,null,null,null,null,null,null,null,null,null,null,null,null,null,{"$f":"IFERROR(LEFT(入力シート!$D$23,FIND(\"　\",入力シート!$D$23,1)-1),\"\")","v":""},null,null,null,null,null,null,null,null,null,null,null,{"$f":"IFERROR(RIGHT(入力シート!$D$23,LEN(入力シート!$D$23)-FIND(\"　\",入力シート!$D$23,1)),\"\")","v":""}]
[]
[]
[]
[]
[]
[null,null,null,"⑤",null,null,null,{"$f":"IF(入力シート!$H$23=\"\",\"\",DBCS(入力シート!$H$23))","v":""},null,null,null,null,null,"⑥",null,null,null,{"$f":"IFERROR(IF(入力シート!$G$23=\"\",DBCS(LEFT(RIGHT(入力シート!$I$23,28-COLUMN()))),DBCS(LEFT(RIGHT(入力シート!$G$23,30-COLUMN())))),\"\")","v":""},null,{"$f":"IFERROR(IF(入力シート!$G$23=\"\",DBCS(LEFT(RIGHT(入力シート!$I$23,29-COLUMN()))),DBCS(LEFT(RIGHT(入力シート!$G$23,31-COLUMN())))),\"\")","v":""},null,{"$f":"IFERROR(IF(入力シート!$G$23=\"\",DBCS(LEFT(RIGHT(入力シート!$I$23,30-COLUMN()))),DBCS(LEFT(RIGHT(入力シート!$G$23,32-COLUMN())))),\"\")","v":""},null,{"$f":"IFERROR(IF(入力シート!$G$23=\"\",DBCS(LEFT(RIGHT(入力シート!$I$23,31-COLUMN()))),DBCS(LEFT(RIGHT(入力シート!$G$23,33-COLUMN())))),\"\")","v":""},null,{"$f":"IFERROR(IF(入力シート!$G$23=\"\",DBCS(LEFT(RIGHT(入力シート!$I$23,32-COLUMN()))),DBCS(LEFT(RIGHT(入力シート!$G$23,34-COLUMN())))),\"\")","v":""},null,{"$f":"IFERROR(IF(入力シート!$G$23=\"\",DBCS(LEFT(RIGHT(入力シート!$I$23,33-COLUMN()))),DBCS(LEFT(RIGHT(入力シート!$G$23,35-COLUMN())))),\"\")","v":""},null,{"$f":"IFERROR(IF(入力シート!$G$23=\"\",DBCS(LEFT(RIGHT(入力シート!$I$23,34-COLUMN()))),DBCS(LEFT(RIGHT(入力シート!$G$23,36-COLUMN())))),\"\")","v":""},null,{"$f":"IFERROR(IF(入力シート!$G$23=\"\",DBCS(LEFT(RIGHT(入力シート!$I$23,35-COLUMN()))),DBCS(LEFT(RIGHT(入力シート!$G$23,37-COLUMN())))),\"\")","v":""},null,{"$f":"IFERROR(IF(入力シート!$G$23=\"\",DBCS(LEFT(RIGHT(入力シート!$I$23,36-COLUMN()))),DBCS(LEFT(RIGHT(入力シート!$G$23,38-COLUMN())))),\"\")","v":""},null,{"$f":"IFERROR(IF(入力シート!$G$23=\"\",DBCS(LEFT(RIGHT(入力シート!$I$23,37-COLUMN()))),DBCS(LEFT(RIGHT(入力シート!$G$23,39-COLUMN())))),\"\")","v":""},null,{"$f":"IFERROR(IF(入力シート!$G$23=\"\",\"\",DBCS(LEFT(RIGHT(入力シート!$G$23,40-COLUMN())))),\"\")","v":""},null,{"$f":"IFERROR(IF(入力シート!$G$23=\"\",\"\",DBCS(LEFT(RIGHT(入力シート!$G$23,41-COLUMN())))),\"\")","v":""},null,"⑦",null,null,null,{"$f":"IF(入力シート!$J$23=\"\",\"\",IF(TEXT(入力シート!$J$23,\"g\")=\"S\",\"5．昭和\",IF(TEXT(入力シート!$J$23,\"g\")=\"H\",\"7．平成\",IF(TEXT(入力シート!$J$23,\"g\")=\"R\",\"9．令和\"))))","v":""},null,null,null,null,null,"年",null,null,"月",null,"日",null,null,"⑧",null,null,{"$f":"IF(入力シート!$N$23=\"\",\"\",DBCS(入力シート!$N$23))","v":""}]
[]
[null,null,null,"取得\n区分",null,null,null,null,null,null,null,null,null,"個人番号\n（基礎年\n金番号）",null,null,null,null,null,null,null,null,null,null,null,null,null,null,null,null,null,null,null,null,null,null,null,null,null,null,null,"取　得\n（該当）\n年月日",null,null,null,null,null,null,null,null,null,{"$f":"IF(入力シート!$J$23=\"\",\"\",DBCS(TEXT(入力シート!$J$23,\"eemmdd\")))","v":""},null,null,null,null,null,null,null,"被扶\n養者"]
[null,null,null,null,null,null,null,null,null,null,null,null,null,null,null,null,null,null,null,null,null,null,null,null,null,null,null,null,null,null,null,null,null,null,null,null,null,null,null,null,null,null,null,null,null,null,null,null,null,null,null,null,null,null,null,null,null,null,null,"被扶\n養者"]
[]
[]
[]
[null,null,null,"⑨",null,null,null,"㋐（通貨）",null,null,null,null,{"$f":"IF(入力シート!$K$23=\"\",\"\",入力シート!$K$23)","v":""},null,null,null,null,null,null,null,null,null,null,"円",null,"㋒（合計　㋐+㋑）",null,null,null,null,null,null,null,null,null,null,null,null,null,"円",null,"⑩",null,null,null,null,{"$f":"IF(入力シート!$O$23=\"\",\"\",DBCS(入力シート!$O$23))","v":""}]
[]
[null,null,null,"報酬\n月額",null,null,null,null,null,null,null,null,null,null,null,null,null,null,null,null,null,null,null,null,null,{"$f":"IF(入力シート!$M$23=\"\",\"\",入力シート!$M$23)","v":""},null,null,null,null,null,null,null,null,null,null,null,null,null,null,null,"備　考"]
[null,null,null,null,null,null,null,"㋑（現物）",null,null,null,null,{"$f":"IF(入力シート!$L$23=\"\",\"\",入力シート!$L$23)","v":""},null,null,null,null,null,null,null,null,null,null,"円",null,null,null,null,null,null,null,null,null,null,null,null,null,null,null,null,null,null,null,null,null,null,{"$f":"IF(入力シート!$P$23=\"\",\"\",DBCS(入力シート!$P$23))","v":""}]
[]
[]
[null,null,null,"⑪",null,null,null,null,null,null,null,null,null,null,null,null,null,null,null,null,null,null,null,null,null,null,null,null,null,null,null,null,null,null,null,null,null,null,null,null,null,null,null,null,null,null,null,null,null,null,null,null,null,null,null,null,null,null,null,"⑫",null,null,"□",null,"発行が必要"]
[null,null,null,null,null,null,null,null,"〒",null,{"$f":"IF(入力シート!$Q$23=\"\",\"\",DBCS(入力シート!$Q$23))","v":""},null,null,null,null,null,null,null,null,null,{"$f":"IF(入力シート!$R$23=\"\",\"\",DBCS(入力シート!$R$23))","v":""},null,null,null,null,null,null,null,null,null,null,null,null,null,null,null,null,null,null,null,null,null,null,null,null,null,{"$f":"IF(入力シート!$U$23=\"\",\"\",DBCS(入力シート!$U$23))","v":""}]
[null,null,null,"住所",null,null,null,null,null,null,null,null,null,null,null,null,null,null,null,null,null,null,null,null,null,null,null,null,null,null,null,null,null,null,null,null,null,null,null,null,null,null,null,null,null,null,null,null,null,null,null,null,null,null,null,null,null,null,null,"資格確認書\n発行要否"]
[null,null,null,null,null,null,null,null,{"$f":"IF(入力シート!$S$23=\"\",\"\",DBCS(入力シート!$S$23))","v":""},null,null,null,null,null,null,null,null,null,null,null,null,null,null,null,null,null,null,null,null,null,null,null,null,null,null,null,null,null,null,null,null,null,null,null,null,null,null,null,null,null,null,null,null,null,null,null,null,null,null,"被扶\n養者"]
[null,null,null,null,null,null,null,null,null,null,null,null,null,null,null,null,null,null,null,null,null,null,null,null,null,null,null,null,null,null,null,null,null,null,null,null,null,null,null,null,null,null,null,null,null,null,{"$f":"IF(入力シート!$V$23=\"\",\"\",DBCS(入力シート!$V$23))","v":""}]
[null,null,null,null,null,null,null,null,{"$f":"IF(入力シート!$T$23=\"\",\"\",DBCS(入力シート!$T$23))","v":""}]
[]
[]
[]
[null,"被保険者\n２",null,"①",null,null,null,{"$f":"IF(入力シート!$B$24=\"\",\"\",DBCS(入力シート!$B$24))","v":""},null,null,null,null,null,"②",null,null,null,{"$f":"IFERROR(LEFT(入力シート!$C$24,FIND(\" \",入力シート!$C$24,1)-1),\"\")","v":""},null,null,null,null,null,null,null,null,null,null,null,{"$f":"IFERROR(RIGHT(入力シート!$C$24,LEN(入力シート!$C$24)-FIND(\" \",入力シート!$C$24,1)),\"\")","v":""},null,null,null,null,null,null,null,null,null,null,null,"③",null,null,null,{"$f":"IF(入力シート!$E$24=\"\",\"\",IF(TEXT(入力シート!$E$24,\"g\")=\"S\",\"5．昭和\",IF(TEXT(入力シート!$E$24,\"g\")=\"H\",\"7．平成\",IF(TEXT(入力シート!$E$24,\"g\")=\"R\",\"9．令和\"))))","v":""},null,null,null,null,null,"年",null,null,"月",null,"日",null,null,"④",null,null,{"$f":"IF(入力シート!$F$24=\"\",\"\",IF(入力シート!$F$24=\"男\",\"1．男\",\"2．女\"))","v":""}]
[]
[null,null,null,"被保険者\n整理番号",null,null,null,null,null,null,null,null,null,"氏名",null,null,null,null,null,null,null,null,null,null,null,null,null,null,null,null,null,null,null,null,null,null,null,null,null,null,null,"生年\n月日",null,null,null,null,null,null,null,null,null,null,null,null,null,null,null,null,null,"種別"]
[null,null,null,null,null,null,null,null,null,null,null,null,null,null,null,null,null,null,null,null,null,null,null,null,null,null,null,null,null,null,null,null,null,null,null,null,null,null,null,null,null,null,null,null,null,null,null,null,null,null,null,{"$f":"IF(入力シート!$E$24=\"\",\"\",DBCS(TEXT(入力シート!$E$24,\"eemmdd\")))","v":""}]
[null,null,null,null,null,null,null,null,null,null,null,null,null,null,null,null,null,{"$f":"IFERROR(LEFT(入力シート!$D$24,FIND(\"　\",入力シート!$D$24,1)-1),\"\")","v":""},null,null,null,null,null,null,null,null,null,null,null,{"$f":"IFERROR(RIGHT(入力シート!$D$24,LEN(入力シート!$D$24)-FIND(\"　\",入力シート!$D$24,1)),\"\")","v":""}]
[]
[]
[]
[]
[]
[null,null,null,"⑤",null,null,null,{"$f":"IF(入力シート!$H$24=\"\",\"\",DBCS(入力シート!$H$24))","v":""},null,null,null,null,null,"⑥",null,null,null,{"$f":"IFERROR(IF(入力シート!$G$24=\"\",DBCS(LEFT(RIGHT(入力シート!$I$24,28-COLUMN()))),DBCS(LEFT(RIGHT(入力シート!$G$24,30-COLUMN())))),\"\")","v":""},null,{"$f":"IFERROR(IF(入力シート!$G$24=\"\",DBCS(LEFT(RIGHT(入力シート!$I$24,29-COLUMN()))),DBCS(LEFT(RIGHT(入力シート!$G$24,31-COLUMN())))),\"\")","v":""},null,{"$f":"IFERROR(IF(入力シート!$G$24=\"\",DBCS(LEFT(RIGHT(入力シート!$I$24,30-COLUMN()))),DBCS(LEFT(RIGHT(入力シート!$G$24,32-COLUMN())))),\"\")","v":""},null,{"$f":"IFERROR(IF(入力シート!$G$24=\"\",DBCS(LEFT(RIGHT(入力シート!$I$24,31-COLUMN()))),DBCS(LEFT(RIGHT(入力シート!$G$24,33-COLUMN())))),\"\")","v":""},null,{"$f":"IFERROR(IF(入力シート!$G$24=\"\",DBCS(LEFT(RIGHT(入力シート!$I$24,32-COLUMN()))),DBCS(LEFT(RIGHT(入力シート!$G$24,34-COLUMN())))),\"\")","v":""},null,{"$f":"IFERROR(IF(入力シート!$G$24=\"\",DBCS(LEFT(RIGHT(入力シート!$I$24,33-COLUMN()))),DBCS(LEFT(RIGHT(入力シート!$G$24,35-COLUMN())))),\"\")","v":""},null,{"$f":"IFERROR(IF(入力シート!$G$24=\"\",DBCS(LEFT(RIGHT(入力シート!$I$24,34-COLUMN()))),DBCS(LEFT(RIGHT(入力シート!$G$24,36-COLUMN())))),\"\")","v":""},null,{"$f":"IFERROR(IF(入力シート!$G$24=\"\",DBCS(LEFT(RIGHT(入力シート!$I$24,35-COLUMN()))),DBCS(LEFT(RIGHT(入力シート!$G$24,37-COLUMN())))),\"\")","v":""},null,{"$f":"IFERROR(IF(入力シート!$G$24=\"\",DBCS(LEFT(RIGHT(入力シート!$I$24,36-COLUMN()))),DBCS(LEFT(RIGHT(入力シート!$G$24,38-COLUMN())))),\"\")","v":""},null,{"$f":"IFERROR(IF(入力シート!$G$24=\"\",DBCS(LEFT(RIGHT(入力シート!$I$24,37-COLUMN()))),DBCS(LEFT(RIGHT(入力シート!$G$24,39-COLUMN())))),\"\")","v":""},null,{"$f":"IFERROR(IF(入力シート!$G$24=\"\",\"\",DBCS(LEFT(RIGHT(入力シート!$G$24,40-COLUMN())))),\"\")","v":""},null,{"$f":"IFERROR(IF(入力シート!$G$24=\"\",\"\",DBCS(LEFT(RIGHT(入力シート!$G$24,41-COLUMN())))),\"\")","v":""},null,"⑦",null,null,null,{"$f":"IF(入力シート!$J$24=\"\",\"\",IF(TEXT(入力シート!$J$24,\"g\")=\"S\",\"5．昭和\",IF(TEXT(入力シート!$J$24,\"g\")=\"H\",\"7．平成\",IF(TEXT(入力シート!$J$24,\"g\")=\"R\",\"9．令和\"))))","v":""},null,null,null,null,null,"年",null,null,"月",null,"日",null,null,"⑧",null,null,{"$f":"IF(入力シート!$N$24=\"\",\"\",DBCS(入力シート!$N$24))","v":""}]
[]
[null,null,null,"取得\n区分",null,null,null,null,null,null,null,null,null,"個人番号\n（基礎年\n金番号）",null,null,null,null,null,null,null,null,null,null,null,null,null,null,null,null,null,null,null,null,null,null,null,null,null,null,null,"取　得\n（該当）\n年月日",null,null,null,null,null,null,null,null,null,{"$f":"IF(入力シート!$J$24=\"\",\"\",DBCS(TEXT(入力シート!$J$24,\"eemmdd\")))","v":""},null,null,null,null,null,null,null,"被扶\n養者"]
[null,null,null,null,null,null,null,null,null,null,null,null,null,null,null,null,null,null,null,null,null,null,null,null,null,null,null,null,null,null,null,null,null,null,null,null,null,null,null,null,null,null,null,null,null,null,null,null,null,null,null,null,null,null,null,null,null,null,null,"被扶\n養者"]
[]
[]
[]
[null,null,null,"⑨",null,null,null,"㋐（通貨）",null,null,null,null,{"$f":"IF(入力シート!$K$24=\"\",\"\",入力シート!$K$24)","v":""},null,null,null,null,null,null,null,null,null,null,"円",null,"㋒（合計　㋐+㋑）",null,null,null,null,null,null,null,null,null,null,null,null,null,"円",null,"⑩",null,null,null,null,{"$f":"IF(入力シート!$O$24=\"\",\"\",DBCS(入力シート!$O$24))","v":""}]
[]
[null,null,null,"報酬\n月額",null,null,null,null,null,null,null,null,null,null,null,null,null,null,null,null,null,null,null,null,null,{"$f":"IF(入力シート!$M$24=\"\",\"\",入力シート!$M$24)","v":""},null,null,null,null,null,null,null,null,null,null,null,null,null,null,null,"備　考"]
[null,null,null,null,null,null,null,"㋑（現物）",null,null,null,null,{"$f":"IF(入力シート!$L$24=\"\",\"\",入力シート!$L$24)","v":""},null,null,null,null,null,null,null,null,null,null,"円",null,null,null,null,null,null,null,null,null,null,null,null,null,null,null,null,null,null,null,null,null,null,{"$f":"IF(入力シート!$P$24=\"\",\"\",DBCS(入力シート!$P$24))","v":""}]
[]
[]
[null,null,null,"⑪",null,null,null,null,null,null,null,null,null,null,null,null,null,null,null,null,null,null,null,null,null,null,null,null,null,null,null,null,null,null,null,null,null,null,null,null,null,null,null,null,null,null,null,null,null,null,null,null,null,null,null,null,null,null,null,"⑫",null,null,"□",null,"発行が必要"]
[null,null,null,null,null,null,null,null,"〒",null,{"$f":"IF(入力シート!$Q$24=\"\",\"\",DBCS(入力シート!$Q$24))","v":""},null,null,null,null,null,null,null,null,null,{"$f":"IF(入力シート!$R$24=\"\",\"\",DBCS(入力シート!$R$24))","v":""},null,null,null,null,null,null,null,null,null,null,null,null,null,null,null,null,null,null,null,null,null,null,null,null,null,{"$f":"IF(入力シート!$U$24=\"\",\"\",DBCS(入力シート!$U$24))","v":""}]
[null,null,null,"住所",null,null,null,null,null,null,null,null,null,null,null,null,null,null,null,null,null,null,null,null,null,null,null,null,null,null,null,null,null,null,null,null,null,null,null,null,null,null,null,null,null,null,null,null,null,null,null,null,null,null,null,null,null,null,null,"資格確認書\n発行要否"]
[null,null,null,null,null,null,null,null,{"$f":"IF(入力シート!$S$24=\"\",\"\",DBCS(入力シート!$S$24))","v":""},null,null,null,null,null,null,null,null,null,null,null,null,null,null,null,null,null,null,null,null,null,null,null,null,null,null,null,null,null,null,null,null,null,null,null,null,null,null,null,null,null,null,null,null,null,null,null,null,null,null,"被扶\n養者"]
[null,null,null,null,null,null,null,null,null,null,null,null,null,null,null,null,null,null,null,null,null,null,null,null,null,null,null,null,null,null,null,null,null,null,null,null,null,null,null,null,null,null,null,null,null,null,{"$f":"IF(入力シート!$V$24=\"\",\"\",DBCS(入力シート!$V$24))","v":""}]
[null,null,null,null,null,null,null,null,{"$f":"IF(入力シート!$T$24=\"\",\"\",DBCS(入力シート!$T$24))","v":""}]
[]
[]
[]
[null,"被保険者\n３",null,"①",null,null,null,{"$f":"IF(入力シート!$B$25=\"\",\"\",DBCS(入力シート!$B$25))","v":""},null,null,null,null,null,"②",null,null,null,{"$f":"IFERROR(LEFT(入力シート!$C$25,FIND(\" \",入力シート!$C$25,1)-1),\"\")","v":""},null,null,null,null,null,null,null,null,null,null,null,{"$f":"IFERROR(RIGHT(入力シート!$C$25,LEN(入力シート!$C$25)-FIND(\" \",入力シート!$C$25,1)),\"\")","v":""},null,null,null,null,null,null,null,null,null,null,null,"③",null,null,null,{"$f":"IF(入力シート!$E$25=\"\",\"\",IF(TEXT(入力シート!$E$25,\"g\")=\"S\",\"5．昭和\",IF(TEXT(入力シート!$E$25,\"g\")=\"H\",\"7．平成\",IF(TEXT(入力シート!$E$25,\"g\")=\"R\",\"9．令和\"))))","v":""},null,null,null,null,null,"年",null,null,"月",null,"日",null,null,"④",null,null,{"$f":"IF(入力シート!$F$25=\"\",\"\",IF(入力シート!$F$25=\"男\",\"1．男\",\"2．女\"))","v":""}]
[]
[null,null,null,"被保険者\n整理番号",null,null,null,null,null,null,null,null,null,"氏名",null,null,null,null,null,null,null,null,null,null,null,null,null,null,null,null,null,null,null,null,null,null,null,null,null,null,null,"生年\n月日",null,null,null,null,null,null,null,null,null,null,null,null,null,null,null,null,null,"種別"]
[null,null,null,null,null,null,null,null,null,null,null,null,null,null,null,null,null,null,null,null,null,null,null,null,null,null,null,null,null,null,null,null,null,null,null,null,null,null,null,null,null,null,null,null,null,null,null,null,null,null,null,{"$f":"IF(入力シート!$E$25=\"\",\"\",DBCS(TEXT(入力シート!$E$25,\"eemmdd\")))","v":""}]
[null,null,null,null,null,null,null,null,null,null,null,null,null,null,null,null,null,{"$f":"IFERROR(LEFT(入力シート!$D$25,FIND(\"　\",入力シート!$D$25,1)-1),\"\")","v":""},null,null,null,null,null,null,null,null,null,null,null,{"$f":"IFERROR(RIGHT(入力シート!$D$25,LEN(入力シート!$D$25)-FIND(\"　\",入力シート!$D$25,1)),\"\")","v":""}]
[]
[]
[]
[]
[]
[null,null,null,"⑤",null,null,null,{"$f":"IF(入力シート!$H$25=\"\",\"\",DBCS(入力シート!$H$25))","v":""},null,null,null,null,null,"⑥",null,null,null,{"$f":"IFERROR(IF(入力シート!$G$25=\"\",DBCS(LEFT(RIGHT(入力シート!$I$25,28-COLUMN()))),DBCS(LEFT(RIGHT(入力シート!$G$25,30-COLUMN())))),\"\")","v":""},null,{"$f":"IFERROR(IF(入力シート!$G$25=\"\",DBCS(LEFT(RIGHT(入力シート!$I$25,29-COLUMN()))),DBCS(LEFT(RIGHT(入力シート!$G$25,31-COLUMN())))),\"\")","v":""},null,{"$f":"IFERROR(IF(入力シート!$G$25=\"\",DBCS(LEFT(RIGHT(入力シート!$I$25,30-COLUMN()))),DBCS(LEFT(RIGHT(入力シート!$G$25,32-COLUMN())))),\"\")","v":""},null,{"$f":"IFERROR(IF(入力シート!$G$25=\"\",DBCS(LEFT(RIGHT(入力シート!$I$25,31-COLUMN()))),DBCS(LEFT(RIGHT(入力シート!$G$25,33-COLUMN())))),\"\")","v":""},null,{"$f":"IFERROR(IF(入力シート!$G$25=\"\",DBCS(LEFT(RIGHT(入力シート!$I$25,32-COLUMN()))),DBCS(LEFT(RIGHT(入力シート!$G$25,34-COLUMN())))),\"\")","v":""},null,{"$f":"IFERROR(IF(入力シート!$G$25=\"\",DBCS(LEFT(RIGHT(入力シート!$I$25,33-COLUMN()))),DBCS(LEFT(RIGHT(入力シート!$G$25,35-COLUMN())))),\"\")","v":""},null,{"$f":"IFERROR(IF(入力シート!$G$25=\"\",DBCS(LEFT(RIGHT(入力シート!$I$25,34-COLUMN()))),DBCS(LEFT(RIGHT(入力シート!$G$25,36-COLUMN())))),\"\")","v":""},null,{"$f":"IFERROR(IF(入力シート!$G$25=\"\",DBCS(LEFT(RIGHT(入力シート!$I$25,35-COLUMN()))),DBCS(LEFT(RIGHT(入力シート!$G$25,37-COLUMN())))),\"\")","v":""},null,{"$f":"IFERROR(IF(入力シート!$G$25=\"\",DBCS(LEFT(RIGHT(入力シート!$I$25,36-COLUMN()))),DBCS(LEFT(RIGHT(入力シート!$G$25,38-COLUMN())))),\"\")","v":""},null,{"$f":"IFERROR(IF(入力シート!$G$25=\"\",DBCS(LEFT(RIGHT(入力シート!$I$25,37-COLUMN()))),DBCS(LEFT(RIGHT(入力シート!$G$25,39-COLUMN())))),\"\")","v":""},null,{"$f":"IFERROR(IF(入力シート!$G$25=\"\",\"\",DBCS(LEFT(RIGHT(入力シート!$G$25,40-COLUMN())))),\"\")","v":""},null,{"$f":"IFERROR(IF(入力シート!$G$25=\"\",\"\",DBCS(LEFT(RIGHT(入力シート!$G$25,41-COLUMN())))),\"\")","v":""},null,"⑦",null,null,null,{"$f":"IF(入力シート!$J$25=\"\",\"\",IF(TEXT(入力シート!$J$25,\"g\")=\"S\",\"5．昭和\",IF(TEXT(入力シート!$J$25,\"g\")=\"H\",\"7．平成\",IF(TEXT(入力シート!$J$25,\"g\")=\"R\",\"9．令和\"))))","v":""},null,null,null,null,null,"年",null,null,"月",null,"日",null,null,"⑧",null,null,{"$f":"IF(入力シート!$N$25=\"\",\"\",DBCS(入力シート!$N$25))","v":""}]
[]
[null,null,null,"取得\n区分",null,null,null,null,null,null,null,null,null,"個人番号\n（基礎年\n金番号）",null,null,null,null,null,null,null,null,null,null,null,null,null,null,null,null,null,null,null,null,null,null,null,null,null,null,null,"取　得\n（該当）\n年月日",null,null,null,null,null,null,null,null,null,{"$f":"IF(入力シート!$J$25=\"\",\"\",DBCS(TEXT(入力シート!$J$25,\"eemmdd\")))","v":""},null,null,null,null,null,null,null,"被扶\n養者"]
[null,null,null,null,null,null,null,null,null,null,null,null,null,null,null,null,null,null,null,null,null,null,null,null,null,null,null,null,null,null,null,null,null,null,null,null,null,null,null,null,null,null,null,null,null,null,null,null,null,null,null,null,null,null,null,null,null,null,null,"被扶\n養者"]
[]
[]
[]
[null,null,null,"⑨",null,null,null,"㋐（通貨）",null,null,null,null,{"$f":"IF(入力シート!$K$25=\"\",\"\",入力シート!$K$25)","v":""},null,null,null,null,null,null,null,null,null,null,"円",null,"㋒（合計　㋐+㋑）",null,null,null,null,null,null,null,null,null,null,null,null,null,"円",null,"⑩",null,null,null,null,{"$f":"IF(入力シート!$O$25=\"\",\"\",DBCS(入力シート!$O$25))","v":""}]
[]
[null,null,null,"報酬\n月額",null,null,null,null,null,null,null,null,null,null,null,null,null,null,null,null,null,null,null,null,null,{"$f":"IF(入力シート!$M$25=\"\",\"\",入力シート!$M$25)","v":""},null,null,null,null,null,null,null,null,null,null,null,null,null,null,null,"備　考"]
[null,null,null,null,null,null,null,"㋑（現物）",null,null,null,null,{"$f":"IF(入力シート!$L$25=\"\",\"\",入力シート!$L$25)","v":""},null,null,null,null,null,null,null,null,null,null,"円",null,null,null,null,null,null,null,null,null,null,null,null,null,null,null,null,null,null,null,null,null,null,{"$f":"IF(入力シート!$P$25=\"\",\"\",DBCS(入力シート!$P$25))","v":""}]
[]
[]
[null,null,null,"⑪",null,null,null,null,null,null,null,null,null,null,null,null,null,null,null,null,null,null,null,null,null,null,null,null,null,null,null,null,null,null,null,null,null,null,null,null,null,null,null,null,null,null,null,null,null,null,null,null,null,null,null,null,null,null,null,"⑫",null,null,"□",null,"発行が必要"]
[null,null,null,null,null,null,null,null,"〒",null,{"$f":"IF(入力シート!$Q$25=\"\",\"\",DBCS(入力シート!$Q$25))","v":""},null,null,null,null,null,null,null,null,null,{"$f":"IF(入力シート!$R$25=\"\",\"\",DBCS(入力シート!$R$25))","v":""},null,null,null,null,null,null,null,null,null,null,null,null,null,null,null,null,null,null,null,null,null,null,null,null,null,{"$f":"IF(入力シート!$U$25=\"\",\"\",DBCS(入力シート!$U$25))","v":""}]
[null,null,null,"住所",null,null,null,null,null,null,null,null,null,null,null,null,null,null,null,null,null,null,null,null,null,null,null,null,null,null,null,null,null,null,null,null,null,null,null,null,null,null,null,null,null,null,null,null,null,null,null,null,null,null,null,null,null,null,null,"資格確認書\n発行要否"]
[null,null,null,null,null,null,null,null,{"$f":"IF(入力シート!$S$25=\"\",\"\",DBCS(入力シート!$S$25))","v":""},null,null,null,null,null,null,null,null,null,null,null,null,null,null,null,null,null,null,null,null,null,null,null,null,null,null,null,null,null,null,null,null,null,null,null,null,null,null,null,null,null,null,null,null,null,null,null,null,null,null,"被扶\n養者"]
[null,null,null,null,null,null,null,null,null,null,null,null,null,null,null,null,null,null,null,null,null,null,null,null,null,null,null,null,null,null,null,null,null,null,null,null,null,null,null,null,null,null,null,null,null,null,{"$f":"IF(入力シート!$V$25=\"\",\"\",DBCS(入力シート!$V$25))","v":""}]
[null,null,null,null,null,null,null,null,{"$f":"IF(入力シート!$T$25=\"\",\"\",DBCS(入力シート!$T$25))","v":""}]
[]
[]
[]
[null,"被保険者\n４",null,"①",null,null,null,{"$f":"IF(入力シート!$B$26=\"\",\"\",DBCS(入力シート!$B$26))","v":""},null,null,null,null,null,"②",null,null,null,{"$f":"IFERROR(LEFT(入力シート!$C$26,FIND(\" \",入力シート!$C$26,1)-1),\"\")","v":""},null,null,null,null,null,null,null,null,null,null,null,{"$f":"IFERROR(RIGHT(入力シート!$C$26,LEN(入力シート!$C$26)-FIND(\" \",入力シート!$C$26,1)),\"\")","v":""},null,null,null,null,null,null,null,null,null,null,null,"③",null,null,null,{"$f":"IF(入力シート!$E$26=\"\",\"\",IF(TEXT(入力シート!$E$26,\"g\")=\"S\",\"5．昭和\",IF(TEXT(入力シート!$E$26,\"g\")=\"H\",\"7．平成\",IF(TEXT(入力シート!$E$26,\"g\")=\"R\",\"9．令和\"))))","v":""},null,null,null,null,null,"年",null,null,"月",null,"日",null,null,"④",null,null,{"$f":"IF(入力シート!$F$26=\"\",\"\",IF(入力シート!$F$26=\"男\",\"1．男\",\"2．女\"))","v":""}]
[]
[null,null,null,"被保険者\n整理番号",null,null,null,null,null,null,null,null,null,"氏名",null,null,null,null,null,null,null,null,null,null,null,null,null,null,null,null,null,null,null,null,null,null,null,null,null,null,null,"生年\n月日",null,null,null,null,null,null,null,null,null,null,null,null,null,null,null,null,null,"種別"]
[null,null,null,null,null,null,null,null,null,null,null,null,null,null,null,null,null,null,null,null,null,null,null,null,null,null,null,null,null,null,null,null,null,null,null,null,null,null,null,null,null,null,null,null,null,null,null,null,null,null,null,{"$f":"IF(入力シート!$E$26=\"\",\"\",DBCS(TEXT(入力シート!$E$26,\"eemmdd\")))","v":""}]
[null,null,null,null,null,null,null,null,null,null,null,null,null,null,null,null,null,{"$f":"IFERROR(LEFT(入力シート!$D$26,FIND(\"　\",入力シート!$D$26,1)-1),\"\")","v":""},null,null,null,null,null,null,null,null,null,null,null,{"$f":"IFERROR(RIGHT(入力シート!$D$26,LEN(入力シート!$D$26)-FIND(\"　\",入力シート!$D$26,1)),\"\")","v":""}]
[]
[]
[]
[]
[]
[null,null,null,"⑤",null,null,null,{"$f":"IF(入力シート!$H$26=\"\",\"\",DBCS(入力シート!$H$26))","v":""},null,null,null,null,null,"⑥",null,null,null,{"$f":"IFERROR(IF(入力シート!$G$26=\"\",DBCS(LEFT(RIGHT(入力シート!$I$26,28-COLUMN()))),DBCS(LEFT(RIGHT(入力シート!$G$26,30-COLUMN())))),\"\")","v":""},null,{"$f":"IFERROR(IF(入力シート!$G$26=\"\",DBCS(LEFT(RIGHT(入力シート!$I$26,29-COLUMN()))),DBCS(LEFT(RIGHT(入力シート!$G$26,31-COLUMN())))),\"\")","v":""},null,{"$f":"IFERROR(IF(入力シート!$G$26=\"\",DBCS(LEFT(RIGHT(入力シート!$I$26,30-COLUMN()))),DBCS(LEFT(RIGHT(入力シート!$G$26,32-COLUMN())))),\"\")","v":""},null,{"$f":"IFERROR(IF(入力シート!$G$26=\"\",DBCS(LEFT(RIGHT(入力シート!$I$26,31-COLUMN()))),DBCS(LEFT(RIGHT(入力シート!$G$26,33-COLUMN())))),\"\")","v":""},null,{"$f":"IFERROR(IF(入力シート!$G$26=\"\",DBCS(LEFT(RIGHT(入力シート!$I$26,32-COLUMN()))),DBCS(LEFT(RIGHT(入力シート!$G$26,34-COLUMN())))),\"\")","v":""},null,{"$f":"IFERROR(IF(入力シート!$G$26=\"\",DBCS(LEFT(RIGHT(入力シート!$I$26,33-COLUMN()))),DBCS(LEFT(RIGHT(入力シート!$G$26,35-COLUMN())))),\"\")","v":""},null,{"$f":"IFERROR(IF(入力シート!$G$26=\"\",DBCS(LEFT(RIGHT(入力シート!$I$26,34-COLUMN()))),DBCS(LEFT(RIGHT(入力シート!$G$26,36-COLUMN())))),\"\")","v":""},null,{"$f":"IFERROR(IF(入力シート!$G$26=\"\",DBCS(LEFT(RIGHT(入力シート!$I$26,35-COLUMN()))),DBCS(LEFT(RIGHT(入力シート!$G$26,37-COLUMN())))),\"\")","v":""},null,{"$f":"IFERROR(IF(入力シート!$G$26=\"\",DBCS(LEFT(RIGHT(入力シート!$I$26,36-COLUMN()))),DBCS(LEFT(RIGHT(入力シート!$G$26,38-COLUMN())))),\"\")","v":""},null,{"$f":"IFERROR(IF(入力シート!$G$26=\"\",DBCS(LEFT(RIGHT(入力シート!$I$26,37-COLUMN()))),DBCS(LEFT(RIGHT(入力シート!$G$26,39-COLUMN())))),\"\")","v":""},null,{"$f":"IFERROR(IF(入力シート!$G$26=\"\",\"\",DBCS(LEFT(RIGHT(入力シート!$G$26,40-COLUMN())))),\"\")","v":""},null,{"$f":"IFERROR(IF(入力シート!$G$26=\"\",\"\",DBCS(LEFT(RIGHT(入力シート!$G$26,41-COLUMN())))),\"\")","v":""},null,"⑦",null,null,null,{"$f":"IF(入力シート!$J$26=\"\",\"\",IF(TEXT(入力シート!$J$26,\"g\")=\"S\",\"5．昭和\",IF(TEXT(入力シート!$J$26,\"g\")=\"H\",\"7．平成\",IF(TEXT(入力シート!$J$26,\"g\")=\"R\",\"9．令和\"))))","v":""},null,null,null,null,null,"年",null,null,"月",null,"日",null,null,"⑧",null,null,{"$f":"IF(入力シート!$N$26=\"\",\"\",DBCS(入力シート!$N$26))","v":""}]
[]
[null,null,null,"取得\n区分",null,null,null,null,null,null,null,null,null,"個人番号\n（基礎年\n金番号）",null,null,null,null,null,null,null,null,null,null,null,null,null,null,null,null,null,null,null,null,null,null,null,null,null,null,null,"取　得\n（該当）\n年月日",null,null,null,null,null,null,null,null,null,{"$f":"IF(入力シート!$J$26=\"\",\"\",DBCS(TEXT(入力シート!$J$26,\"eemmdd\")))","v":""},null,null,null,null,null,null,null,"被扶\n養者"]
[null,null,null,null,null,null,null,null,null,null,null,null,null,null,null,null,null,null,null,null,null,null,null,null,null,null,null,null,null,null,null,null,null,null,null,null,null,null,null,null,null,null,null,null,null,null,null,null,null,null,null,null,null,null,null,null,null,null,null,"被扶\n養者"]
[]
[]
[]
[null,null,null,"⑨",null,null,null,"㋐（通貨）",null,null,null,null,{"$f":"IF(入力シート!$K$26=\"\",\"\",入力シート!$K$26)","v":""},null,null,null,null,null,null,null,null,null,null,"円",null,"㋒（合計　㋐+㋑）",null,null,null,null,null,null,null,null,null,null,null,null,null,"円",null,"⑩",null,null,null,null,{"$f":"IF(入力シート!$O$26=\"\",\"\",DBCS(入力シート!$O$26))","v":""}]
[]
[null,null,null,"報酬\n月額",null,null,null,null,null,null,null,null,null,null,null,null,null,null,null,null,null,null,null,null,null,{"$f":"IF(入力シート!$M$26=\"\",\"\",入力シート!$M$26)","v":""},null,null,null,null,null,null,null,null,null,null,null,null,null,null,null,"備　考"]
[null,null,null,null,null,null,null,"㋑（現物）",null,null,null,null,{"$f":"IF(入力シート!$L$26=\"\",\"\",入力シート!$L$26)","v":""},null,null,null,null,null,null,null,null,null,null,"円",null,null,null,null,null,null,null,null,null,null,null,null,null,null,null,null,null,null,null,null,null,null,{"$f":"IF(入力シート!$P$26=\"\",\"\",DBCS(入力シート!$P$26))","v":""}]
[]
[]
[null,null,null,"⑪",null,null,null,null,null,null,null,null,null,null,null,null,null,null,null,null,null,null,null,null,null,null,null,null,null,null,null,null,null,null,null,null,null,null,null,null,null,null,null,null,null,null,null,null,null,null,null,null,null,null,null,null,null,null,null,"⑫",null,null,"□",null,"発行が必要"]
[null,null,null,null,null,null,null,null,"〒",null,{"$f":"IF(入力シート!$Q$26=\"\",\"\",DBCS(入力シート!$Q$26))","v":""},null,null,null,null,null,null,null,null,null,{"$f":"IF(入力シート!$R$26=\"\",\"\",DBCS(入力シート!$R$26))","v":""},null,null,null,null,null,null,null,null,null,null,null,null,null,null,null,null,null,null,null,null,null,null,null,null,null,{"$f":"IF(入力シート!$U$26=\"\",\"\",DBCS(入力シート!$U$26))","v":""}]
[null,null,null,"住所",null,null,null,null,null,null,null,null,null,null,null,null,null,null,null,null,null,null,null,null,null,null,null,null,null,null,null,null,null,null,null,null,null,null,null,null,null,null,null,null,null,null,null,null,null,null,null,null,null,null,null,null,null,null,null,"資格確認書\n発行要否"]
[null,null,null,null,null,null,null,null,{"$f":"IF(入力シート!$S$26=\"\",\"\",DBCS(入力シート!$S$26))","v":""},null,null,null,null,null,null,null,null,null,null,null,null,null,null,null,null,null,null,null,null,null,null,null,null,null,null,null,null,null,null,null,null,null,null,null,null,null,null,null,null,null,null,null,null,null,null,null,null,null,null,"被扶\n養者"]
[null,null,null,null,null,null,null,null,null,null,null,null,null,null,null,null,null,null,null,null,null,null,null,null,null,null,null,null,null,null,null,null,null,null,null,null,null,null,null,null,null,null,null,null,null,null,{"$f":"IF(入力シート!$V$26=\"\",\"\",DBCS(入力シート!$V$26))","v":""}]
[null,null,null,null,null,null,null,null,{"$f":"IF(入力シート!$T$26=\"\",\"\",DBCS(入力シート!$T$26))","v":""}]
[]
[]
[]
[]
[]
[]
[]
[]
[]
[]
[]
[]
[]
[]
[]
[]
[]
[]
[]
[]
[]
[]
[]
[null,"被保険者\n１",null,"①",null,null,null,{"$f":"IF(入力シート!$B$27=\"\",\"\",DBCS(入力シート!$B$27))","v":""},null,null,null,null,null,"②",null,null,null,{"$f":"IFERROR(LEFT(入力シート!$C$27,FIND(\" \",入力シート!$C$27,1)-1),\"\")","v":""},null,null,null,null,null,null,null,null,null,null,null,{"$f":"IFERROR(RIGHT(入力シート!$C$27,LEN(入力シート!$C$27)-FIND(\" \",入力シート!$C$27,1)),\"\")","v":""},null,null,null,null,null,null,null,null,null,null,null,"③",null,null,null,{"$f":"IF(入力シート!$E$27=\"\",\"\",IF(TEXT(入力シート!$E$27,\"g\")=\"S\",\"5．昭和\",IF(TEXT(入力シート!$E$27,\"g\")=\"H\",\"7．平成\",IF(TEXT(入力シート!$E$27,\"g\")=\"R\",\"9．令和\"))))","v":""},null,null,null,null,null,"年",null,null,"月",null,"日",null,null,"④",null,null,{"$f":"IF(入力シート!$F$27=\"\",\"\",IF(入力シート!$F$27=\"男\",\"1．男\",\"2．女\"))","v":""}]
[]
[null,null,null,"被保険者\n整理番号",null,null,null,null,null,null,null,null,null,"氏名",null,null,null,null,null,null,null,null,null,null,null,null,null,null,null,null,null,null,null,null,null,null,null,null,null,null,null,"生年\n月日",null,null,null,null,null,null,null,null,null,null,null,null,null,null,null,null,null,"種別"]
[null,null,null,null,null,null,null,null,null,null,null,null,null,null,null,null,null,null,null,null,null,null,null,null,null,null,null,null,null,null,null,null,null,null,null,null,null,null,null,null,null,null,null,null,null,null,null,null,null,null,null,{"$f":"IF(入力シート!$E$27=\"\",\"\",DBCS(TEXT(入力シート!$E$27,\"eemmdd\")))","v":""}]
[null,null,null,null,null,null,null,null,null,null,null,null,null,null,null,null,null,{"$f":"IFERROR(LEFT(入力シート!$D$27,FIND(\"　\",入力シート!$D$27,1)-1),\"\")","v":""},null,null,null,null,null,null,null,null,null,null,null,{"$f":"IFERROR(RIGHT(入力シート!$D$27,LEN(入力シート!$D$27)-FIND(\"　\",入力シート!$D$27,1)),\"\")","v":""}]
[]
[]
[]
[]
[]
[null,null,null,"⑤",null,null,null,{"$f":"IF(入力シート!$H$27=\"\",\"\",DBCS(入力シート!$H$27))","v":""},null,null,null,null,null,"⑥",null,null,null,{"$f":"IFERROR(IF(入力シート!$G$27=\"\",DBCS(LEFT(RIGHT(入力シート!$I$27,28-COLUMN()))),DBCS(LEFT(RIGHT(入力シート!$G$27,30-COLUMN())))),\"\")","v":""},null,{"$f":"IFERROR(IF(入力シート!$G$27=\"\",DBCS(LEFT(RIGHT(入力シート!$I$27,29-COLUMN()))),DBCS(LEFT(RIGHT(入力シート!$G$27,31-COLUMN())))),\"\")","v":""},null,{"$f":"IFERROR(IF(入力シート!$G$27=\"\",DBCS(LEFT(RIGHT(入力シート!$I$27,30-COLUMN()))),DBCS(LEFT(RIGHT(入力シート!$G$27,32-COLUMN())))),\"\")","v":""},null,{"$f":"IFERROR(IF(入力シート!$G$27=\"\",DBCS(LEFT(RIGHT(入力シート!$I$27,31-COLUMN()))),DBCS(LEFT(RIGHT(入力シート!$G$27,33-COLUMN())))),\"\")","v":""},null,{"$f":"IFERROR(IF(入力シート!$G$27=\"\",DBCS(LEFT(RIGHT(入力シート!$I$27,32-COLUMN()))),DBCS(LEFT(RIGHT(入力シート!$G$27,34-COLUMN())))),\"\")","v":""},null,{"$f":"IFERROR(IF(入力シート!$G$27=\"\",DBCS(LEFT(RIGHT(入力シート!$I$27,33-COLUMN()))),DBCS(LEFT(RIGHT(入力シート!$G$27,35-COLUMN())))),\"\")","v":""},null,{"$f":"IFERROR(IF(入力シート!$G$27=\"\",DBCS(LEFT(RIGHT(入力シート!$I$27,34-COLUMN()))),DBCS(LEFT(RIGHT(入力シート!$G$27,36-COLUMN())))),\"\")","v":""},null,{"$f":"IFERROR(IF(入力シート!$G$27=\"\",DBCS(LEFT(RIGHT(入力シート!$I$27,35-COLUMN()))),DBCS(LEFT(RIGHT(入力シート!$G$27,37-COLUMN())))),\"\")","v":""},null,{"$f":"IFERROR(IF(入力シート!$G$27=\"\",DBCS(LEFT(RIGHT(入力シート!$I$27,36-COLUMN()))),DBCS(LEFT(RIGHT(入力シート!$G$27,38-COLUMN())))),\"\")","v":""},null,{"$f":"IFERROR(IF(入力シート!$G$27=\"\",DBCS(LEFT(RIGHT(入力シート!$I$27,37-COLUMN()))),DBCS(LEFT(RIGHT(入力シート!$G$27,39-COLUMN())))),\"\")","v":""},null,{"$f":"IFERROR(IF(入力シート!$G$27=\"\",\"\",DBCS(LEFT(RIGHT(入力シート!$G$27,40-COLUMN())))),\"\")","v":""},null,{"$f":"IFERROR(IF(入力シート!$G$27=\"\",\"\",DBCS(LEFT(RIGHT(入力シート!$G$27,41-COLUMN())))),\"\")","v":""},null,"⑦",null,null,null,{"$f":"IF(入力シート!$J$27=\"\",\"\",IF(TEXT(入力シート!$J$27,\"g\")=\"S\",\"5．昭和\",IF(TEXT(入力シート!$J$27,\"g\")=\"H\",\"7．平成\",IF(TEXT(入力シート!$J$27,\"g\")=\"R\",\"9．令和\"))))","v":""},null,null,null,null,null,"年",null,null,"月",null,"日",null,null,"⑧",null,null,{"$f":"IF(入力シート!$N$27=\"\",\"\",DBCS(入力シート!$N$27))","v":""}]
[]
[null,null,null,"取得\n区分",null,null,null,null,null,null,null,null,null,"個人番号\n（基礎年\n金番号）",null,null,null,null,null,null,null,null,null,null,null,null,null,null,null,null,null,null,null,null,null,null,null,null,null,null,null,"取　得\n（該当）\n年月日",null,null,null,null,null,null,null,null,null,{"$f":"IF(入力シート!$J$27=\"\",\"\",DBCS(TEXT(入力シート!$J$27,\"eemmdd\")))","v":""},null,null,null,null,null,null,null,"被扶\n養者"]
[null,null,null,null,null,null,null,null,null,null,null,null,null,null,null,null,null,null,null,null,null,null,null,null,null,null,null,null,null,null,null,null,null,null,null,null,null,null,null,null,null,null,null,null,null,null,null,null,null,null,null,null,null,null,null,null,null,null,null,"被扶\n養者"]
[]
[]
[]
[null,null,null,"⑨",null,null,null,"㋐（通貨）",null,null,null,null,{"$f":"IF(入力シート!$K$27=\"\",\"\",入力シート!$K$27)","v":""},null,null,null,null,null,null,null,null,null,null,"円",null,"㋒（合計　㋐+㋑）",null,null,null,null,null,null,null,null,null,null,null,null,null,"円",null,"⑩",null,null,null,null,{"$f":"IF(入力シート!$O$27=\"\",\"\",DBCS(入力シート!$O$27))","v":""}]
[]
[null,null,null,"報酬\n月額",null,null,null,null,null,null,null,null,null,null,null,null,null,null,null,null,null,null,null,null,null,{"$f":"IF(入力シート!$M$27=\"\",\"\",入力シート!$M$27)","v":""},null,null,null,null,null,null,null,null,null,null,null,null,null,null,null,"備　考"]
[null,null,null,null,null,null,null,"㋑（現物）",null,null,null,null,{"$f":"IF(入力シート!$L$27=\"\",\"\",入力シート!$L$27)","v":""},null,null,null,null,null,null,null,null,null,null,"円",null,null,null,null,null,null,null,null,null,null,null,null,null,null,null,null,null,null,null,null,null,null,{"$f":"IF(入力シート!$P$27=\"\",\"\",DBCS(入力シート!$P$27))","v":""}]
[]
[]
[null,null,null,"⑪",null,null,null,null,null,null,null,null,null,null,null,null,null,null,null,null,null,null,null,null,null,null,null,null,null,null,null,null,null,null,null,null,null,null,null,null,null,null,null,null,null,null,null,null,null,null,null,null,null,null,null,null,null,null,null,"⑫",null,null,"□",null,"発行が必要"]
[null,null,null,null,null,null,null,null,"〒",null,{"$f":"IF(入力シート!$Q$27=\"\",\"\",DBCS(入力シート!$Q$27))","v":""},null,null,null,null,null,null,null,null,null,{"$f":"IF(入力シート!$R$27=\"\",\"\",DBCS(入力シート!$R$27))","v":""},null,null,null,null,null,null,null,null,null,null,null,null,null,null,null,null,null,null,null,null,null,null,null,null,null,{"$f":"IF(入力シート!$U$27=\"\",\"\",DBCS(入力シート!$U$27))","v":""}]
[null,null,null,"住所",null,null,null,null,null,null,null,null,null,null,null,null,null,null,null,null,null,null,null,null,null,null,null,null,null,null,null,null,null,null,null,null,null,null,null,null,null,null,null,null,null,null,null,null,null,null,null,null,null,null,null,null,null,null,null,"資格確認書\n発行要否"]
[null,null,null,null,null,null,null,null,{"$f":"IF(入力シート!$S$27=\"\",\"\",DBCS(入力シート!$S$27))","v":""},null,null,null,null,null,null,null,null,null,null,null,null,null,null,null,null,null,null,null,null,null,null,null,null,null,null,null,null,null,null,null,null,null,null,null,null,null,null,null,null,null,null,null,null,null,null,null,null,null,null,"被扶\n養者"]
[null,null,null,null,null,null,null,null,null,null,null,null,null,null,null,null,null,null,null,null,null,null,null,null,null,null,null,null,null,null,null,null,null,null,null,null,null,null,null,null,null,null,null,null,null,null,{"$f":"IF(入力シート!$V$27=\"\",\"\",DBCS(入力シート!$V$27))","v":""}]
[null,null,null,null,null,null,null,null,{"$f":"IF(入力シート!$T$27=\"\",\"\",DBCS(入力シート!$T$27))","v":""}]
[]
[]
[]
[null,"被保険者\n２",null,"①",null,null,null,{"$f":"IF(入力シート!$B$28=\"\",\"\",DBCS(入力シート!$B$28))","v":""},null,null,null,null,null,"②",null,null,null,{"$f":"IFERROR(LEFT(入力シート!$C$28,FIND(\" \",入力シート!$C$28,1)-1),\"\")","v":""},null,null,null,null,null,null,null,null,null,null,null,{"$f":"IFERROR(RIGHT(入力シート!$C$28,LEN(入力シート!$C$28)-FIND(\" \",入力シート!$C$28,1)),\"\")","v":""},null,null,null,null,null,null,null,null,null,null,null,"③",null,null,null,{"$f":"IF(入力シート!$E$28=\"\",\"\",IF(TEXT(入力シート!$E$28,\"g\")=\"S\",\"5．昭和\",IF(TEXT(入力シート!$E$28,\"g\")=\"H\",\"7．平成\",IF(TEXT(入力シート!$E$28,\"g\")=\"R\",\"9．令和\"))))","v":""},null,null,null,null,null,"年",null,null,"月",null,"日",null,null,"④",null,null,{"$f":"IF(入力シート!$F$28=\"\",\"\",IF(入力シート!$F$28=\"男\",\"1．男\",\"2．女\"))","v":""}]
[]
[null,null,null,"被保険者\n整理番号",null,null,null,null,null,null,null,null,null,"氏名",null,null,null,null,null,null,null,null,null,null,null,null,null,null,null,null,null,null,null,null,null,null,null,null,null,null,null,"生年\n月日",null,null,null,null,null,null,null,null,null,null,null,null,null,null,null,null,null,"種別"]
[null,null,null,null,null,null,null,null,null,null,null,null,null,null,null,null,null,null,null,null,null,null,null,null,null,null,null,null,null,null,null,null,null,null,null,null,null,null,null,null,null,null,null,null,null,null,null,null,null,null,null,{"$f":"IF(入力シート!$E$28=\"\",\"\",DBCS(TEXT(入力シート!$E$28,\"eemmdd\")))","v":""}]
[null,null,null,null,null,null,null,null,null,null,null,null,null,null,null,null,null,{"$f":"IFERROR(LEFT(入力シート!$D$28,FIND(\"　\",入力シート!$D$28,1)-1),\"\")","v":""},null,null,null,null,null,null,null,null,null,null,null,{"$f":"IFERROR(RIGHT(入力シート!$D$28,LEN(入力シート!$D$28)-FIND(\"　\",入力シート!$D$28,1)),\"\")","v":""}]
[]
[]
[]
[]
[]
[null,null,null,"⑤",null,null,null,{"$f":"IF(入力シート!$H$28=\"\",\"\",DBCS(入力シート!$H$28))","v":""},null,null,null,null,null,"⑥",null,null,null,{"$f":"IFERROR(IF(入力シート!$G$28=\"\",DBCS(LEFT(RIGHT(入力シート!$I$28,28-COLUMN()))),DBCS(LEFT(RIGHT(入力シート!$G$28,30-COLUMN())))),\"\")","v":""},null,{"$f":"IFERROR(IF(入力シート!$G$28=\"\",DBCS(LEFT(RIGHT(入力シート!$I$28,29-COLUMN()))),DBCS(LEFT(RIGHT(入力シート!$G$28,31-COLUMN())))),\"\")","v":""},null,{"$f":"IFERROR(IF(入力シート!$G$28=\"\",DBCS(LEFT(RIGHT(入力シート!$I$28,30-COLUMN()))),DBCS(LEFT(RIGHT(入力シート!$G$28,32-COLUMN())))),\"\")","v":""},null,{"$f":"IFERROR(IF(入力シート!$G$28=\"\",DBCS(LEFT(RIGHT(入力シート!$I$28,31-COLUMN()))),DBCS(LEFT(RIGHT(入力シート!$G$28,33-COLUMN())))),\"\")","v":""},null,{"$f":"IFERROR(IF(入力シート!$G$28=\"\",DBCS(LEFT(RIGHT(入力シート!$I$28,32-COLUMN()))),DBCS(LEFT(RIGHT(入力シート!$G$28,34-COLUMN())))),\"\")","v":""},null,{"$f":"IFERROR(IF(入力シート!$G$28=\"\",DBCS(LEFT(RIGHT(入力シート!$I$28,33-COLUMN()))),DBCS(LEFT(RIGHT(入力シート!$G$28,35-COLUMN())))),\"\")","v":""},null,{"$f":"IFERROR(IF(入力シート!$G$28=\"\",DBCS(LEFT(RIGHT(入力シート!$I$28,34-COLUMN()))),DBCS(LEFT(RIGHT(入力シート!$G$28,36-COLUMN())))),\"\")","v":""},null,{"$f":"IFERROR(IF(入力シート!$G$28=\"\",DBCS(LEFT(RIGHT(入力シート!$I$28,35-COLUMN()))),DBCS(LEFT(RIGHT(入力シート!$G$28,37-COLUMN())))),\"\")","v":""},null,{"$f":"IFERROR(IF(入力シート!$G$28=\"\",DBCS(LEFT(RIGHT(入力シート!$I$28,36-COLUMN()))),DBCS(LEFT(RIGHT(入力シート!$G$28,38-COLUMN())))),\"\")","v":""},null,{"$f":"IFERROR(IF(入力シート!$G$28=\"\",DBCS(LEFT(RIGHT(入力シート!$I$28,37-COLUMN()))),DBCS(LEFT(RIGHT(入力シート!$G$28,39-COLUMN())))),\"\")","v":""},null,{"$f":"IFERROR(IF(入力シート!$G$28=\"\",\"\",DBCS(LEFT(RIGHT(入力シート!$G$28,40-COLUMN())))),\"\")","v":""},null,{"$f":"IFERROR(IF(入力シート!$G$28=\"\",\"\",DBCS(LEFT(RIGHT(入力シート!$G$28,41-COLUMN())))),\"\")","v":""},null,"⑦",null,null,null,{"$f":"IF(入力シート!$J$28=\"\",\"\",IF(TEXT(入力シート!$J$28,\"g\")=\"S\",\"5．昭和\",IF(TEXT(入力シート!$J$28,\"g\")=\"H\",\"7．平成\",IF(TEXT(入力シート!$J$28,\"g\")=\"R\",\"9．令和\"))))","v":""},null,null,null,null,null,"年",null,null,"月",null,"日",null,null,"⑧",null,null,{"$f":"IF(入力シート!$N$28=\"\",\"\",DBCS(入力シート!$N$28))","v":""}]
[]
[null,null,null,"取得\n区分",null,null,null,null,null,null,null,null,null,"個人番号\n（基礎年\n金番号）",null,null,null,null,null,null,null,null,null,null,null,null,null,null,null,null,null,null,null,null,null,null,null,null,null,null,null,"取　得\n（該当）\n年月日",null,null,null,null,null,null,null,null,null,{"$f":"IF(入力シート!$J$28=\"\",\"\",DBCS(TEXT(入力シート!$J$28,\"eemmdd\")))","v":""},null,null,null,null,null,null,null,"被扶\n養者"]
[null,null,null,null,null,null,null,null,null,null,null,null,null,null,null,null,null,null,null,null,null,null,null,null,null,null,null,null,null,null,null,null,null,null,null,null,null,null,null,null,null,null,null,null,null,null,null,null,null,null,null,null,null,null,null,null,null,null,null,"被扶\n養者"]
[]
[]
[]
[null,null,null,"⑨",null,null,null,"㋐（通貨）",null,null,null,null,{"$f":"IF(入力シート!$K$28=\"\",\"\",入力シート!$K$28)","v":""},null,null,null,null,null,null,null,null,null,null,"円",null,"㋒（合計　㋐+㋑）",null,null,null,null,null,null,null,null,null,null,null,null,null,"円",null,"⑩",null,null,null,null,{"$f":"IF(入力シート!$O$28=\"\",\"\",DBCS(入力シート!$O$28))","v":""}]
[]
[null,null,null,"報酬\n月額",null,null,null,null,null,null,null,null,null,null,null,null,null,null,null,null,null,null,null,null,null,{"$f":"IF(入力シート!$M$28=\"\",\"\",入力シート!$M$28)","v":""},null,null,null,null,null,null,null,null,null,null,null,null,null,null,null,"備　考"]
[null,null,null,null,null,null,null,"㋑（現物）",null,null,null,null,{"$f":"IF(入力シート!$L$28=\"\",\"\",入力シート!$L$28)","v":""},null,null,null,null,null,null,null,null,null,null,"円",null,null,null,null,null,null,null,null,null,null,null,null,null,null,null,null,null,null,null,null,null,null,{"$f":"IF(入力シート!$P$28=\"\",\"\",DBCS(入力シート!$P$28))","v":""}]
[]
[]
[null,null,null,"⑪",null,null,null,null,null,null,null,null,null,null,null,null,null,null,null,null,null,null,null,null,null,null,null,null,null,null,null,null,null,null,null,null,null,null,null,null,null,null,null,null,null,null,null,null,null,null,null,null,null,null,null,null,null,null,null,"⑫",null,null,"□",null,"発行が必要"]
[null,null,null,null,null,null,null,null,"〒",null,{"$f":"IF(入力シート!$Q$28=\"\",\"\",DBCS(入力シート!$Q$28))","v":""},null,null,null,null,null,null,null,null,null,{"$f":"IF(入力シート!$R$28=\"\",\"\",DBCS(入力シート!$R$28))","v":""},null,null,null,null,null,null,null,null,null,null,null,null,null,null,null,null,null,null,null,null,null,null,null,null,null,{"$f":"IF(入力シート!$U$28=\"\",\"\",DBCS(入力シート!$U$28))","v":""}]
[null,null,null,"住所",null,null,null,null,null,null,null,null,null,null,null,null,null,null,null,null,null,null,null,null,null,null,null,null,null,null,null,null,null,null,null,null,null,null,null,null,null,null,null,null,null,null,null,null,null,null,null,null,null,null,null,null,null,null,null,"資格確認書\n発行要否"]
[null,null,null,null,null,null,null,null,{"$f":"IF(入力シート!$S$28=\"\",\"\",DBCS(入力シート!$S$28))","v":""},null,null,null,null,null,null,null,null,null,null,null,null,null,null,null,null,null,null,null,null,null,null,null,null,null,null,null,null,null,null,null,null,null,null,null,null,null,null,null,null,null,null,null,null,null,null,null,null,null,null,"被扶\n養者"]
[null,null,null,null,null,null,null,null,null,null,null,null,null,null,null,null,null,null,null,null,null,null,null,null,null,null,null,null,null,null,null,null,null,null,null,null,null,null,null,null,null,null,null,null,null,null,{"$f":"IF(入力シート!$V$28=\"\",\"\",DBCS(入力シート!$V$28))","v":""}]
[null,null,null,null,null,null,null,null,{"$f":"IF(入力シート!$T$28=\"\",\"\",DBCS(入力シート!$T$28))","v":""}]
[]
[]
[]
[null,"被保険者\n３",null,"①",null,null,null,{"$f":"IF(入力シート!$B$29=\"\",\"\",DBCS(入力シート!$B$29))","v":""},null,null,null,null,null,"②",null,null,null,{"$f":"IFERROR(LEFT(入力シート!$C$29,FIND(\" \",入力シート!$C$29,1)-1),\"\")","v":""},null,null,null,null,null,null,null,null,null,null,null,{"$f":"IFERROR(RIGHT(入力シート!$C$29,LEN(入力シート!$C$29)-FIND(\" \",入力シート!$C$29,1)),\"\")","v":""},null,null,null,null,null,null,null,null,null,null,null,"③",null,null,null,{"$f":"IF(入力シート!$E$29=\"\",\"\",IF(TEXT(入力シート!$E$29,\"g\")=\"S\",\"5．昭和\",IF(TEXT(入力シート!$E$29,\"g\")=\"H\",\"7．平成\",IF(TEXT(入力シート!$E$29,\"g\")=\"R\",\"9．令和\"))))","v":""},null,null,null,null,null,"年",null,null,"月",null,"日",null,null,"④",null,null,{"$f":"IF(入力シート!$F$29=\"\",\"\",IF(入力シート!$F$29=\"男\",\"1．男\",\"2．女\"))","v":""}]
[]
[null,null,null,"被保険者\n整理番号",null,null,null,null,null,null,null,null,null,"氏名",null,null,null,null,null,null,null,null,null,null,null,null,null,null,null,null,null,null,null,null,null,null,null,null,null,null,null,"生年\n月日",null,null,null,null,null,null,null,null,null,null,null,null,null,null,null,null,null,"種別"]
[null,null,null,null,null,null,null,null,null,null,null,null,null,null,null,null,null,null,null,null,null,null,null,null,null,null,null,null,null,null,null,null,null,null,null,null,null,null,null,null,null,null,null,null,null,null,null,null,null,null,null,{"$f":"IF(入力シート!$E$29=\"\",\"\",DBCS(TEXT(入力シート!$E$29,\"eemmdd\")))","v":""}]
[null,null,null,null,null,null,null,null,null,null,null,null,null,null,null,null,null,{"$f":"IFERROR(LEFT(入力シート!$D$29,FIND(\"　\",入力シート!$D$29,1)-1),\"\")","v":""},null,null,null,null,null,null,null,null,null,null,null,{"$f":"IFERROR(RIGHT(入力シート!$D$29,LEN(入力シート!$D$29)-FIND(\"　\",入力シート!$D$29,1)),\"\")","v":""}]
[]
[]
[]
[]
[]
[null,null,null,"⑤",null,null,null,{"$f":"IF(入力シート!$H$29=\"\",\"\",DBCS(入力シート!$H$29))","v":""},null,null,null,null,null,"⑥",null,null,null,{"$f":"IFERROR(IF(入力シート!$G$29=\"\",DBCS(LEFT(RIGHT(入力シート!$I$29,28-COLUMN()))),DBCS(LEFT(RIGHT(入力シート!$G$29,30-COLUMN())))),\"\")","v":""},null,{"$f":"IFERROR(IF(入力シート!$G$29=\"\",DBCS(LEFT(RIGHT(入力シート!$I$29,29-COLUMN()))),DBCS(LEFT(RIGHT(入力シート!$G$29,31-COLUMN())))),\"\")","v":""},null,{"$f":"IFERROR(IF(入力シート!$G$29=\"\",DBCS(LEFT(RIGHT(入力シート!$I$29,30-COLUMN()))),DBCS(LEFT(RIGHT(入力シート!$G$29,32-COLUMN())))),\"\")","v":""},null,{"$f":"IFERROR(IF(入力シート!$G$29=\"\",DBCS(LEFT(RIGHT(入力シート!$I$29,31-COLUMN()))),DBCS(LEFT(RIGHT(入力シート!$G$29,33-COLUMN())))),\"\")","v":""},null,{"$f":"IFERROR(IF(入力シート!$G$29=\"\",DBCS(LEFT(RIGHT(入力シート!$I$29,32-COLUMN()))),DBCS(LEFT(RIGHT(入力シート!$G$29,34-COLUMN())))),\"\")","v":""},null,{"$f":"IFERROR(IF(入力シート!$G$29=\"\",DBCS(LEFT(RIGHT(入力シート!$I$29,33-COLUMN()))),DBCS(LEFT(RIGHT(入力シート!$G$29,35-COLUMN())))),\"\")","v":""},null,{"$f":"IFERROR(IF(入力シート!$G$29=\"\",DBCS(LEFT(RIGHT(入力シート!$I$29,34-COLUMN()))),DBCS(LEFT(RIGHT(入力シート!$G$29,36-COLUMN())))),\"\")","v":""},null,{"$f":"IFERROR(IF(入力シート!$G$29=\"\",DBCS(LEFT(RIGHT(入力シート!$I$29,35-COLUMN()))),DBCS(LEFT(RIGHT(入力シート!$G$29,37-COLUMN())))),\"\")","v":""},null,{"$f":"IFERROR(IF(入力シート!$G$29=\"\",DBCS(LEFT(RIGHT(入力シート!$I$29,36-COLUMN()))),DBCS(LEFT(RIGHT(入力シート!$G$29,38-COLUMN())))),\"\")","v":""},null,{"$f":"IFERROR(IF(入力シート!$G$29=\"\",DBCS(LEFT(RIGHT(入力シート!$I$29,37-COLUMN()))),DBCS(LEFT(RIGHT(入力シート!$G$29,39-COLUMN())))),\"\")","v":""},null,{"$f":"IFERROR(IF(入力シート!$G$29=\"\",\"\",DBCS(LEFT(RIGHT(入力シート!$G$29,40-COLUMN())))),\"\")","v":""},null,{"$f":"IFERROR(IF(入力シート!$G$29=\"\",\"\",DBCS(LEFT(RIGHT(入力シート!$G$29,41-COLUMN())))),\"\")","v":""},null,"⑦",null,null,null,{"$f":"IF(入力シート!$J$29=\"\",\"\",IF(TEXT(入力シート!$J$29,\"g\")=\"S\",\"5．昭和\",IF(TEXT(入力シート!$J$29,\"g\")=\"H\",\"7．平成\",IF(TEXT(入力シート!$J$29,\"g\")=\"R\",\"9．令和\"))))","v":""},null,null,null,null,null,"年",null,null,"月",null,"日",null,null,"⑧",null,null,{"$f":"IF(入力シート!$N$29=\"\",\"\",DBCS(入力シート!$N$29))","v":""}]
[]
[null,null,null,"取得\n区分",null,null,null,null,null,null,null,null,null,"個人番号\n（基礎年\n金番号）",null,null,null,null,null,null,null,null,null,null,null,null,null,null,null,null,null,null,null,null,null,null,null,null,null,null,null,"取　得\n（該当）\n年月日",null,null,null,null,null,null,null,null,null,{"$f":"IF(入力シート!$J$29=\"\",\"\",DBCS(TEXT(入力シート!$J$29,\"eemmdd\")))","v":""},null,null,null,null,null,null,null,"被扶\n養者"]
[null,null,null,null,null,null,null,null,null,null,null,null,null,null,null,null,null,null,null,null,null,null,null,null,null,null,null,null,null,null,null,null,null,null,null,null,null,null,null,null,null,null,null,null,null,null,null,null,null,null,null,null,null,null,null,null,null,null,null,"被扶\n養者"]
[]
[]
[]
[null,null,null,"⑨",null,null,null,"㋐（通貨）",null,null,null,null,{"$f":"IF(入力シート!$K$29=\"\",\"\",入力シート!$K$29)","v":""},null,null,null,null,null,null,null,null,null,null,"円",null,"㋒（合計　㋐+㋑）",null,null,null,null,null,null,null,null,null,null,null,null,null,"円",null,"⑩",null,null,null,null,{"$f":"IF(入力シート!$O$29=\"\",\"\",DBCS(入力シート!$O$29))","v":""}]
[]
[null,null,null,"報酬\n月額",null,null,null,null,null,null,null,null,null,null,null,null,null,null,null,null,null,null,null,null,null,{"$f":"IF(入力シート!$M$29=\"\",\"\",入力シート!$M$29)","v":""},null,null,null,null,null,null,null,null,null,null,null,null,null,null,null,"備　考"]
[null,null,null,null,null,null,null,"㋑（現物）",null,null,null,null,{"$f":"IF(入力シート!$L$29=\"\",\"\",入力シート!$L$29)","v":""},null,null,null,null,null,null,null,null,null,null,"円",null,null,null,null,null,null,null,null,null,null,null,null,null,null,null,null,null,null,null,null,null,null,{"$f":"IF(入力シート!$P$29=\"\",\"\",DBCS(入力シート!$P$29))","v":""}]
[]
[]
[null,null,null,"⑪",null,null,null,null,null,null,null,null,null,null,null,null,null,null,null,null,null,null,null,null,null,null,null,null,null,null,null,null,null,null,null,null,null,null,null,null,null,null,null,null,null,null,null,null,null,null,null,null,null,null,null,null,null,null,null,"⑫",null,null,"□",null,"発行が必要"]
[null,null,null,null,null,null,null,null,"〒",null,{"$f":"IF(入力シート!$Q$29=\"\",\"\",DBCS(入力シート!$Q$29))","v":""},null,null,null,null,null,null,null,null,null,{"$f":"IF(入力シート!$R$29=\"\",\"\",DBCS(入力シート!$R$29))","v":""},null,null,null,null,null,null,null,null,null,null,null,null,null,null,null,null,null,null,null,null,null,null,null,null,null,{"$f":"IF(入力シート!$U$29=\"\",\"\",DBCS(入力シート!$U$29))","v":""}]
[null,null,null,"住所",null,null,null,null,null,null,null,null,null,null,null,null,null,null,null,null,null,null,null,null,null,null,null,null,null,null,null,null,null,null,null,null,null,null,null,null,null,null,null,null,null,null,null,null,null,null,null,null,null,null,null,null,null,null,null,"資格確認書\n発行要否"]
[null,null,null,null,null,null,null,null,{"$f":"IF(入力シート!$S$29=\"\",\"\",DBCS(入力シート!$S$29))","v":""},null,null,null,null,null,null,null,null,null,null,null,null,null,null,null,null,null,null,null,null,null,null,null,null,null,null,null,null,null,null,null,null,null,null,null,null,null,null,null,null,null,null,null,null,null,null,null,null,null,null,"被扶\n養者"]
[null,null,null,null,null,null,null,null,null,null,null,null,null,null,null,null,null,null,null,null,null,null,null,null,null,null,null,null,null,null,null,null,null,null,null,null,null,null,null,null,null,null,null,null,null,null,{"$f":"IF(入力シート!$V$29=\"\",\"\",DBCS(入力シート!$V$29))","v":""}]
[null,null,null,null,null,null,null,null,{"$f":"IF(入力シート!$T$29=\"\",\"\",DBCS(入力シート!$T$29))","v":""}]
[]
[]
[]
[null,"被保険者\n４",null,"①",null,null,null,{"$f":"IF(入力シート!$B$30=\"\",\"\",DBCS(入力シート!$B$30))","v":""},null,null,null,null,null,"②",null,null,null,{"$f":"IFERROR(LEFT(入力シート!$C$30,FIND(\" \",入力シート!$C$30,1)-1),\"\")","v":""},null,null,null,null,null,null,null,null,null,null,null,{"$f":"IFERROR(RIGHT(入力シート!$C$30,LEN(入力シート!$C$30)-FIND(\" \",入力シート!$C$30,1)),\"\")","v":""},null,null,null,null,null,null,null,null,null,null,null,"③",null,null,null,{"$f":"IF(入力シート!$E$30=\"\",\"\",IF(TEXT(入力シート!$E$30,\"g\")=\"S\",\"5．昭和\",IF(TEXT(入力シート!$E$30,\"g\")=\"H\",\"7．平成\",IF(TEXT(入力シート!$E$30,\"g\")=\"R\",\"9．令和\"))))","v":""},null,null,null,null,null,"年",null,null,"月",null,"日",null,null,"④",null,null,{"$f":"IF(入力シート!$F$30=\"\",\"\",IF(入力シート!$F$30=\"男\",\"1．男\",\"2．女\"))","v":""}]
[]
[null,null,null,"被保険者\n整理番号",null,null,null,null,null,null,null,null,null,"氏名",null,null,null,null,null,null,null,null,null,null,null,null,null,null,null,null,null,null,null,null,null,null,null,null,null,null,null,"生年\n月日",null,null,null,null,null,null,null,null,null,null,null,null,null,null,null,null,null,"種別"]
[null,null,null,null,null,null,null,null,null,null,null,null,null,null,null,null,null,null,null,null,null,null,null,null,null,null,null,null,null,null,null,null,null,null,null,null,null,null,null,null,null,null,null,null,null,null,null,null,null,null,null,{"$f":"IF(入力シート!$E$30=\"\",\"\",DBCS(TEXT(入力シート!$E$30,\"eemmdd\")))","v":""}]
[null,null,null,null,null,null,null,null,null,null,null,null,null,null,null,null,null,{"$f":"IFERROR(LEFT(入力シート!$D$30,FIND(\"　\",入力シート!$D$30,1)-1),\"\")","v":""},null,null,null,null,null,null,null,null,null,null,null,{"$f":"IFERROR(RIGHT(入力シート!$D$30,LEN(入力シート!$D$30)-FIND(\"　\",入力シート!$D$30,1)),\"\")","v":""}]
[]
[]
[]
[]
[]
[null,null,null,"⑤",null,null,null,{"$f":"IF(入力シート!$H$30=\"\",\"\",DBCS(入力シート!$H$30))","v":""},null,null,null,null,null,"⑥",null,null,null,{"$f":"IFERROR(IF(入力シート!$G$30=\"\",DBCS(LEFT(RIGHT(入力シート!$I$30,28-COLUMN()))),DBCS(LEFT(RIGHT(入力シート!$G$30,30-COLUMN())))),\"\")","v":""},null,{"$f":"IFERROR(IF(入力シート!$G$30=\"\",DBCS(LEFT(RIGHT(入力シート!$I$30,29-COLUMN()))),DBCS(LEFT(RIGHT(入力シート!$G$30,31-COLUMN())))),\"\")","v":""},null,{"$f":"IFERROR(IF(入力シート!$G$30=\"\",DBCS(LEFT(RIGHT(入力シート!$I$30,30-COLUMN()))),DBCS(LEFT(RIGHT(入力シート!$G$30,32-COLUMN())))),\"\")","v":""},null,{"$f":"IFERROR(IF(入力シート!$G$30=\"\",DBCS(LEFT(RIGHT(入力シート!$I$30,31-COLUMN()))),DBCS(LEFT(RIGHT(入力シート!$G$30,33-COLUMN())))),\"\")","v":""},null,{"$f":"IFERROR(IF(入力シート!$G$30=\"\",DBCS(LEFT(RIGHT(入力シート!$I$30,32-COLUMN()))),DBCS(LEFT(RIGHT(入力シート!$G$30,34-COLUMN())))),\"\")","v":""},null,{"$f":"IFERROR(IF(入力シート!$G$30=\"\",DBCS(LEFT(RIGHT(入力シート!$I$30,33-COLUMN()))),DBCS(LEFT(RIGHT(入力シート!$G$30,35-COLUMN())))),\"\")","v":""},null,{"$f":"IFERROR(IF(入力シート!$G$30=\"\",DBCS(LEFT(RIGHT(入力シート!$I$30,34-COLUMN()))),DBCS(LEFT(RIGHT(入力シート!$G$30,36-COLUMN())))),\"\")","v":""},null,{"$f":"IFERROR(IF(入力シート!$G$30=\"\",DBCS(LEFT(RIGHT(入力シート!$I$30,35-COLUMN()))),DBCS(LEFT(RIGHT(入力シート!$G$30,37-COLUMN())))),\"\")","v":""},null,{"$f":"IFERROR(IF(入力シート!$G$30=\"\",DBCS(LEFT(RIGHT(入力シート!$I$30,36-COLUMN()))),DBCS(LEFT(RIGHT(入力シート!$G$30,38-COLUMN())))),\"\")","v":""},null,{"$f":"IFERROR(IF(入力シート!$G$30=\"\",DBCS(LEFT(RIGHT(入力シート!$I$30,37-COLUMN()))),DBCS(LEFT(RIGHT(入力シート!$G$30,39-COLUMN())))),\"\")","v":""},null,{"$f":"IFERROR(IF(入力シート!$G$30=\"\",\"\",DBCS(LEFT(RIGHT(入力シート!$G$30,40-COLUMN())))),\"\")","v":""},null,{"$f":"IFERROR(IF(入力シート!$G$30=\"\",\"\",DBCS(LEFT(RIGHT(入力シート!$G$30,41-COLUMN())))),\"\")","v":""},null,"⑦",null,null,null,{"$f":"IF(入力シート!$J$30=\"\",\"\",IF(TEXT(入力シート!$J$30,\"g\")=\"S\",\"5．昭和\",IF(TEXT(入力シート!$J$30,\"g\")=\"H\",\"7．平成\",IF(TEXT(入力シート!$J$30,\"g\")=\"R\",\"9．令和\"))))","v":""},null,null,null,null,null,"年",null,null,"月",null,"日",null,null,"⑧",null,null,{"$f":"IF(入力シート!$N$30=\"\",\"\",DBCS(入力シート!$N$30))","v":""}]
[]
[null,null,null,"取得\n区分",null,null,null,null,null,null,null,null,null,"個人番号\n（基礎年\n金番号）",null,null,null,null,null,null,null,null,null,null,null,null,null,null,null,null,null,null,null,null,null,null,null,null,null,null,null,"取　得\n（該当）\n年月日",null,null,null,null,null,null,null,null,null,{"$f":"IF(入力シート!$J$30=\"\",\"\",DBCS(TEXT(入力シート!$J$30,\"eemmdd\")))","v":""},null,null,null,null,null,null,null,"被扶\n養者"]
[null,null,null,null,null,null,null,null,null,null,null,null,null,null,null,null,null,null,null,null,null,null,null,null,null,null,null,null,null,null,null,null,null,null,null,null,null,null,null,null,null,null,null,null,null,null,null,null,null,null,null,null,null,null,null,null,null,null,null,"被扶\n養者"]
[]
[]
[]
[null,null,null,"⑨",null,null,null,"㋐（通貨）",null,null,null,null,{"$f":"IF(入力シート!$K$30=\"\",\"\",入力シート!$K$30)","v":""},null,null,null,null,null,null,null,null,null,null,"円",null,"㋒（合計　㋐+㋑）",null,null,null,null,null,null,null,null,null,null,null,null,null,"円",null,"⑩",null,null,null,null,{"$f":"IF(入力シート!$O$30=\"\",\"\",DBCS(入力シート!$O$30))","v":""}]
[]
[null,null,null,"報酬\n月額",null,null,null,null,null,null,null,null,null,null,null,null,null,null,null,null,null,null,null,null,null,{"$f":"IF(入力シート!$M$30=\"\",\"\",入力シート!$M$30)","v":""},null,null,null,null,null,null,null,null,null,null,null,null,null,null,null,"備　考"]
[null,null,null,null,null,null,null,"㋑（現物）",null,null,null,null,{"$f":"IF(入力シート!$L$30=\"\",\"\",入力シート!$L$30)","v":""},null,null,null,null,null,null,null,null,null,null,"円",null,null,null,null,null,null,null,null,null,null,null,null,null,null,null,null,null,null,null,null,null,null,{"$f":"IF(入力シート!$P$30=\"\",\"\",DBCS(入力シート!$P$30))","v":""}]
[]
[]
[null,null,null,"⑪",null,null,null,null,null,null,null,null,null,null,null,null,null,null,null,null,null,null,null,null,null,null,null,null,null,null,null,null,null,null,null,null,null,null,null,null,null,null,null,null,null,null,null,null,null,null,null,null,null,null,null,null,null,null,null,"⑫",null,null,"□",null,"発行が必要"]
[null,null,null,null,null,null,null,null,"〒",null,{"$f":"IF(入力シート!$Q$30=\"\",\"\",DBCS(入力シート!$Q$30))","v":""},null,null,null,null,null,null,null,null,null,{"$f":"IF(入力シート!$R$30=\"\",\"\",DBCS(入力シート!$R$30))","v":""},null,null,null,null,null,null,null,null,null,null,null,null,null,null,null,null,null,null,null,null,null,null,null,null,null,{"$f":"IF(入力シート!$U$30=\"\",\"\",DBCS(入力シート!$U$30))","v":""}]
[null,null,null,"住所",null,null,null,null,null,null,null,null,null,null,null,null,null,null,null,null,null,null,null,null,null,null,null,null,null,null,null,null,null,null,null,null,null,null,null,null,null,null,null,null,null,null,null,null,null,null,null,null,null,null,null,null,null,null,null,"資格確認書\n発行要否"]
[null,null,null,null,null,null,null,null,{"$f":"IF(入力シート!$S$30=\"\",\"\",DBCS(入力シート!$S$30))","v":""},null,null,null,null,null,null,null,null,null,null,null,null,null,null,null,null,null,null,null,null,null,null,null,null,null,null,null,null,null,null,null,null,null,null,null,null,null,null,null,null,null,null,null,null,null,null,null,null,null,null,"被扶\n養者"]
[null,null,null,null,null,null,null,null,null,null,null,null,null,null,null,null,null,null,null,null,null,null,null,null,null,null,null,null,null,null,null,null,null,null,null,null,null,null,null,null,null,null,null,null,null,null,{"$f":"IF(入力シート!$V$30=\"\",\"\",DBCS(入力シート!$V$30))","v":""}]
[null,null,null,null,null,null,null,null,{"$f":"IF(入力シート!$T$30=\"\",\"\",DBCS(入力シート!$T$30))","v":""}]
[]
[]
[]
[]
[]
[]
[]
[]
[]
[]
[]
[]
[]
[]
[]
[]
[]
[]
[]
[]
[]
[]
[]
[null,"被保険者\n１",null,"①",null,null,null,{"$f":"IF(入力シート!$B$31=\"\",\"\",DBCS(入力シート!$B$31))","v":""},null,null,null,null,null,"②",null,null,null,{"$f":"IFERROR(LEFT(入力シート!$C$31,FIND(\" \",入力シート!$C$31,1)-1),\"\")","v":""},null,null,null,null,null,null,null,null,null,null,null,{"$f":"IFERROR(RIGHT(入力シート!$C$31,LEN(入力シート!$C$31)-FIND(\" \",入力シート!$C$31,1)),\"\")","v":""},null,null,null,null,null,null,null,null,null,null,null,"③",null,null,null,{"$f":"IF(入力シート!$E$31=\"\",\"\",IF(TEXT(入力シート!$E$31,\"g\")=\"S\",\"5．昭和\",IF(TEXT(入力シート!$E$31,\"g\")=\"H\",\"7．平成\",IF(TEXT(入力シート!$E$31,\"g\")=\"R\",\"9．令和\"))))","v":""},null,null,null,null,null,"年",null,null,"月",null,"日",null,null,"④",null,null,{"$f":"IF(入力シート!$F$31=\"\",\"\",IF(入力シート!$F$31=\"男\",\"1．男\",\"2．女\"))","v":""}]
[]
[null,null,null,"被保険者\n整理番号",null,null,null,null,null,null,null,null,null,"氏名",null,null,null,null,null,null,null,null,null,null,null,null,null,null,null,null,null,null,null,null,null,null,null,null,null,null,null,"生年\n月日",null,null,null,null,null,null,null,null,null,null,null,null,null,null,null,null,null,"種別"]
[null,null,null,null,null,null,null,null,null,null,null,null,null,null,null,null,null,null,null,null,null,null,null,null,null,null,null,null,null,null,null,null,null,null,null,null,null,null,null,null,null,null,null,null,null,null,null,null,null,null,null,{"$f":"IF(入力シート!$E$31=\"\",\"\",DBCS(TEXT(入力シート!$E$31,\"eemmdd\")))","v":""}]
[null,null,null,null,null,null,null,null,null,null,null,null,null,null,null,null,null,{"$f":"IFERROR(LEFT(入力シート!$D$31,FIND(\"　\",入力シート!$D$31,1)-1),\"\")","v":""},null,null,null,null,null,null,null,null,null,null,null,{"$f":"IFERROR(RIGHT(入力シート!$D$31,LEN(入力シート!$D$31)-FIND(\"　\",入力シート!$D$31,1)),\"\")","v":""}]
[]
[]
[]
[]
[]
[null,null,null,"⑤",null,null,null,{"$f":"IF(入力シート!$H$31=\"\",\"\",DBCS(入力シート!$H$31))","v":""},null,null,null,null,null,"⑥",null,null,null,{"$f":"IFERROR(IF(入力シート!$G$31=\"\",DBCS(LEFT(RIGHT(入力シート!$I$31,28-COLUMN()))),DBCS(LEFT(RIGHT(入力シート!$G$31,30-COLUMN())))),\"\")","v":""},null,{"$f":"IFERROR(IF(入力シート!$G$31=\"\",DBCS(LEFT(RIGHT(入力シート!$I$31,29-COLUMN()))),DBCS(LEFT(RIGHT(入力シート!$G$31,31-COLUMN())))),\"\")","v":""},null,{"$f":"IFERROR(IF(入力シート!$G$31=\"\",DBCS(LEFT(RIGHT(入力シート!$I$31,30-COLUMN()))),DBCS(LEFT(RIGHT(入力シート!$G$31,32-COLUMN())))),\"\")","v":""},null,{"$f":"IFERROR(IF(入力シート!$G$31=\"\",DBCS(LEFT(RIGHT(入力シート!$I$31,31-COLUMN()))),DBCS(LEFT(RIGHT(入力シート!$G$31,33-COLUMN())))),\"\")","v":""},null,{"$f":"IFERROR(IF(入力シート!$G$31=\"\",DBCS(LEFT(RIGHT(入力シート!$I$31,32-COLUMN()))),DBCS(LEFT(RIGHT(入力シート!$G$31,34-COLUMN())))),\"\")","v":""},null,{"$f":"IFERROR(IF(入力シート!$G$31=\"\",DBCS(LEFT(RIGHT(入力シート!$I$31,33-COLUMN()))),DBCS(LEFT(RIGHT(入力シート!$G$31,35-COLUMN())))),\"\")","v":""},null,{"$f":"IFERROR(IF(入力シート!$G$31=\"\",DBCS(LEFT(RIGHT(入力シート!$I$31,34-COLUMN()))),DBCS(LEFT(RIGHT(入力シート!$G$31,36-COLUMN())))),\"\")","v":""},null,{"$f":"IFERROR(IF(入力シート!$G$31=\"\",DBCS(LEFT(RIGHT(入力シート!$I$31,35-COLUMN()))),DBCS(LEFT(RIGHT(入力シート!$G$31,37-COLUMN())))),\"\")","v":""},null,{"$f":"IFERROR(IF(入力シート!$G$31=\"\",DBCS(LEFT(RIGHT(入力シート!$I$31,36-COLUMN()))),DBCS(LEFT(RIGHT(入力シート!$G$31,38-COLUMN())))),\"\")","v":""},null,{"$f":"IFERROR(IF(入力シート!$G$31=\"\",DBCS(LEFT(RIGHT(入力シート!$I$31,37-COLUMN()))),DBCS(LEFT(RIGHT(入力シート!$G$31,39-COLUMN())))),\"\")","v":""},null,{"$f":"IFERROR(IF(入力シート!$G$31=\"\",\"\",DBCS(LEFT(RIGHT(入力シート!$G$31,40-COLUMN())))),\"\")","v":""},null,{"$f":"IFERROR(IF(入力シート!$G$31=\"\",\"\",DBCS(LEFT(RIGHT(入力シート!$G$31,41-COLUMN())))),\"\")","v":""},null,"⑦",null,null,null,{"$f":"IF(入力シート!$J$31=\"\",\"\",IF(TEXT(入力シート!$J$31,\"g\")=\"S\",\"5．昭和\",IF(TEXT(入力シート!$J$31,\"g\")=\"H\",\"7．平成\",IF(TEXT(入力シート!$J$31,\"g\")=\"R\",\"9．令和\"))))","v":""},null,null,null,null,null,"年",null,null,"月",null,"日",null,null,"⑧",null,null,{"$f":"IF(入力シート!$N$31=\"\",\"\",DBCS(入力シート!$N$31))","v":""}]
[]
[null,null,null,"取得\n区分",null,null,null,null,null,null,null,null,null,"個人番号\n（基礎年\n金番号）",null,null,null,null,null,null,null,null,null,null,null,null,null,null,null,null,null,null,null,null,null,null,null,null,null,null,null,"取　得\n（該当）\n年月日",null,null,null,null,null,null,null,null,null,{"$f":"IF(入力シート!$J$31=\"\",\"\",DBCS(TEXT(入力シート!$J$31,\"eemmdd\")))","v":""},null,null,null,null,null,null,null,"被扶\n養者"]
[null,null,null,null,null,null,null,null,null,null,null,null,null,null,null,null,null,null,null,null,null,null,null,null,null,null,null,null,null,null,null,null,null,null,null,null,null,null,null,null,null,null,null,null,null,null,null,null,null,null,null,null,null,null,null,null,null,null,null,"被扶\n養者"]
[]
[]
[]
[null,null,null,"⑨",null,null,null,"㋐（通貨）",null,null,null,null,{"$f":"IF(入力シート!$K$31=\"\",\"\",入力シート!$K$31)","v":""},null,null,null,null,null,null,null,null,null,null,"円",null,"㋒（合計　㋐+㋑）",null,null,null,null,null,null,null,null,null,null,null,null,null,"円",null,"⑩",null,null,null,null,{"$f":"IF(入力シート!$O$31=\"\",\"\",DBCS(入力シート!$O$31))","v":""}]
[]
[null,null,null,"報酬\n月額",null,null,null,null,null,null,null,null,null,null,null,null,null,null,null,null,null,null,null,null,null,{"$f":"IF(入力シート!$M$31=\"\",\"\",入力シート!$M$31)","v":""},null,null,null,null,null,null,null,null,null,null,null,null,null,null,null,"備　考"]
[null,null,null,null,null,null,null,"㋑（現物）",null,null,null,null,{"$f":"IF(入力シート!$L$31=\"\",\"\",入力シート!$L$31)","v":""},null,null,null,null,null,null,null,null,null,null,"円",null,null,null,null,null,null,null,null,null,null,null,null,null,null,null,null,null,null,null,null,null,null,{"$f":"IF(入力シート!$P$31=\"\",\"\",DBCS(入力シート!$P$31))","v":""}]
[]
[]
[null,null,null,"⑪",null,null,null,null,null,null,null,null,null,null,null,null,null,null,null,null,null,null,null,null,null,null,null,null,null,null,null,null,null,null,null,null,null,null,null,null,null,null,null,null,null,null,null,null,null,null,null,null,null,null,null,null,null,null,null,"⑫",null,null,"□",null,"発行が必要"]
[null,null,null,null,null,null,null,null,"〒",null,{"$f":"IF(入力シート!$Q$31=\"\",\"\",DBCS(入力シート!$Q$31))","v":""},null,null,null,null,null,null,null,null,null,{"$f":"IF(入力シート!$R$31=\"\",\"\",DBCS(入力シート!$R$31))","v":""},null,null,null,null,null,null,null,null,null,null,null,null,null,null,null,null,null,null,null,null,null,null,null,null,null,{"$f":"IF(入力シート!$U$31=\"\",\"\",DBCS(入力シート!$U$31))","v":""}]
[null,null,null,"住所",null,null,null,null,null,null,null,null,null,null,null,null,null,null,null,null,null,null,null,null,null,null,null,null,null,null,null,null,null,null,null,null,null,null,null,null,null,null,null,null,null,null,null,null,null,null,null,null,null,null,null,null,null,null,null,"資格確認書\n発行要否"]
[null,null,null,null,null,null,null,null,{"$f":"IF(入力シート!$S$31=\"\",\"\",DBCS(入力シート!$S$31))","v":""},null,null,null,null,null,null,null,null,null,null,null,null,null,null,null,null,null,null,null,null,null,null,null,null,null,null,null,null,null,null,null,null,null,null,null,null,null,null,null,null,null,null,null,null,null,null,null,null,null,null,"被扶\n養者"]
[null,null,null,null,null,null,null,null,null,null,null,null,null,null,null,null,null,null,null,null,null,null,null,null,null,null,null,null,null,null,null,null,null,null,null,null,null,null,null,null,null,null,null,null,null,null,{"$f":"IF(入力シート!$V$31=\"\",\"\",DBCS(入力シート!$V$31))","v":""}]
[null,null,null,null,null,null,null,null,{"$f":"IF(入力シート!$T$31=\"\",\"\",DBCS(入力シート!$T$31))","v":""}]
[]
[]
[]
[null,"被保険者\n２",null,"①",null,null,null,{"$f":"IF(入力シート!$B$32=\"\",\"\",DBCS(入力シート!$B$32))","v":""},null,null,null,null,null,"②",null,null,null,{"$f":"IFERROR(LEFT(入力シート!$C$32,FIND(\" \",入力シート!$C$32,1)-1),\"\")","v":""},null,null,null,null,null,null,null,null,null,null,null,{"$f":"IFERROR(RIGHT(入力シート!$C$32,LEN(入力シート!$C$32)-FIND(\" \",入力シート!$C$32,1)),\"\")","v":""},null,null,null,null,null,null,null,null,null,null,null,"③",null,null,null,{"$f":"IF(入力シート!$E$32=\"\",\"\",IF(TEXT(入力シート!$E$32,\"g\")=\"S\",\"5．昭和\",IF(TEXT(入力シート!$E$32,\"g\")=\"H\",\"7．平成\",IF(TEXT(入力シート!$E$32,\"g\")=\"R\",\"9．令和\"))))","v":""},null,null,null,null,null,"年",null,null,"月",null,"日",null,null,"④",null,null,{"$f":"IF(入力シート!$F$32=\"\",\"\",IF(入力シート!$F$32=\"男\",\"1．男\",\"2．女\"))","v":""}]
[]
[null,null,null,"被保険者\n整理番号",null,null,null,null,null,null,null,null,null,"氏名",null,null,null,null,null,null,null,null,null,null,null,null,null,null,null,null,null,null,null,null,null,null,null,null,null,null,null,"生年\n月日",null,null,null,null,null,null,null,null,null,null,null,null,null,null,null,null,null,"種別"]
[null,null,null,null,null,null,null,null,null,null,null,null,null,null,null,null,null,null,null,null,null,null,null,null,null,null,null,null,null,null,null,null,null,null,null,null,null,null,null,null,null,null,null,null,null,null,null,null,null,null,null,{"$f":"IF(入力シート!$E$32=\"\",\"\",DBCS(TEXT(入力シート!$E$32,\"eemmdd\")))","v":""}]
[null,null,null,null,null,null,null,null,null,null,null,null,null,null,null,null,null,{"$f":"IFERROR(LEFT(入力シート!$D$32,FIND(\"　\",入力シート!$D$32,1)-1),\"\")","v":""},null,null,null,null,null,null,null,null,null,null,null,{"$f":"IFERROR(RIGHT(入力シート!$D$32,LEN(入力シート!$D$32)-FIND(\"　\",入力シート!$D$32,1)),\"\")","v":""}]
[]
[]
[]
[]
[]
[null,null,null,"⑤",null,null,null,{"$f":"IF(入力シート!$H$32=\"\",\"\",DBCS(入力シート!$H$32))","v":""},null,null,null,null,null,"⑥",null,null,null,{"$f":"IFERROR(IF(入力シート!$G$32=\"\",DBCS(LEFT(RIGHT(入力シート!$I$32,28-COLUMN()))),DBCS(LEFT(RIGHT(入力シート!$G$32,30-COLUMN())))),\"\")","v":""},null,{"$f":"IFERROR(IF(入力シート!$G$32=\"\",DBCS(LEFT(RIGHT(入力シート!$I$32,29-COLUMN()))),DBCS(LEFT(RIGHT(入力シート!$G$32,31-COLUMN())))),\"\")","v":""},null,{"$f":"IFERROR(IF(入力シート!$G$32=\"\",DBCS(LEFT(RIGHT(入力シート!$I$32,30-COLUMN()))),DBCS(LEFT(RIGHT(入力シート!$G$32,32-COLUMN())))),\"\")","v":""},null,{"$f":"IFERROR(IF(入力シート!$G$32=\"\",DBCS(LEFT(RIGHT(入力シート!$I$32,31-COLUMN()))),DBCS(LEFT(RIGHT(入力シート!$G$32,33-COLUMN())))),\"\")","v":""},null,{"$f":"IFERROR(IF(入力シート!$G$32=\"\",DBCS(LEFT(RIGHT(入力シート!$I$32,32-COLUMN()))),DBCS(LEFT(RIGHT(入力シート!$G$32,34-COLUMN())))),\"\")","v":""},null,{"$f":"IFERROR(IF(入力シート!$G$32=\"\",DBCS(LEFT(RIGHT(入力シート!$I$32,33-COLUMN()))),DBCS(LEFT(RIGHT(入力シート!$G$32,35-COLUMN())))),\"\")","v":""},null,{"$f":"IFERROR(IF(入力シート!$G$32=\"\",DBCS(LEFT(RIGHT(入力シート!$I$32,34-COLUMN()))),DBCS(LEFT(RIGHT(入力シート!$G$32,36-COLUMN())))),\"\")","v":""},null,{"$f":"IFERROR(IF(入力シート!$G$32=\"\",DBCS(LEFT(RIGHT(入力シート!$I$32,35-COLUMN()))),DBCS(LEFT(RIGHT(入力シート!$G$32,37-COLUMN())))),\"\")","v":""},null,{"$f":"IFERROR(IF(入力シート!$G$32=\"\",DBCS(LEFT(RIGHT(入力シート!$I$32,36-COLUMN()))),DBCS(LEFT(RIGHT(入力シート!$G$32,38-COLUMN())))),\"\")","v":""},null,{"$f":"IFERROR(IF(入力シート!$G$32=\"\",DBCS(LEFT(RIGHT(入力シート!$I$32,37-COLUMN()))),DBCS(LEFT(RIGHT(入力シート!$G$32,39-COLUMN())))),\"\")","v":""},null,{"$f":"IFERROR(IF(入力シート!$G$32=\"\",\"\",DBCS(LEFT(RIGHT(入力シート!$G$32,40-COLUMN())))),\"\")","v":""},null,{"$f":"IFERROR(IF(入力シート!$G$32=\"\",\"\",DBCS(LEFT(RIGHT(入力シート!$G$32,41-COLUMN())))),\"\")","v":""},null,"⑦",null,null,null,{"$f":"IF(入力シート!$J$32=\"\",\"\",IF(TEXT(入力シート!$J$32,\"g\")=\"S\",\"5．昭和\",IF(TEXT(入力シート!$J$32,\"g\")=\"H\",\"7．平成\",IF(TEXT(入力シート!$J$32,\"g\")=\"R\",\"9．令和\"))))","v":""},null,null,null,null,null,"年",null,null,"月",null,"日",null,null,"⑧",null,null,{"$f":"IF(入力シート!$N$32=\"\",\"\",DBCS(入力シート!$N$32))","v":""}]
[]
[null,null,null,"取得\n区分",null,null,null,null,null,null,null,null,null,"個人番号\n（基礎年\n金番号）",null,null,null,null,null,null,null,null,null,null,null,null,null,null,null,null,null,null,null,null,null,null,null,null,null,null,null,"取　得\n（該当）\n年月日",null,null,null,null,null,null,null,null,null,{"$f":"IF(入力シート!$J$32=\"\",\"\",DBCS(TEXT(入力シート!$J$32,\"eemmdd\")))","v":""},null,null,null,null,null,null,null,"被扶\n養者"]
[null,null,null,null,null,null,null,null,null,null,null,null,null,null,null,null,null,null,null,null,null,null,null,null,null,null,null,null,null,null,null,null,null,null,null,null,null,null,null,null,null,null,null,null,null,null,null,null,null,null,null,null,null,null,null,null,null,null,null,"被扶\n養者"]
[]
[]
[]
[null,null,null,"⑨",null,null,null,"㋐（通貨）",null,null,null,null,{"$f":"IF(入力シート!$K$32=\"\",\"\",入力シート!$K$32)","v":""},null,null,null,null,null,null,null,null,null,null,"円",null,"㋒（合計　㋐+㋑）",null,null,null,null,null,null,null,null,null,null,null,null,null,"円",null,"⑩",null,null,null,null,{"$f":"IF(入力シート!$O$32=\"\",\"\",DBCS(入力シート!$O$32))","v":""}]
[]
[null,null,null,"報酬\n月額",null,null,null,null,null,null,null,null,null,null,null,null,null,null,null,null,null,null,null,null,null,{"$f":"IF(入力シート!$M$32=\"\",\"\",入力シート!$M$32)","v":""},null,null,null,null,null,null,null,null,null,null,null,null,null,null,null,"備　考"]
[null,null,null,null,null,null,null,"㋑（現物）",null,null,null,null,{"$f":"IF(入力シート!$L$32=\"\",\"\",入力シート!$L$32)","v":""},null,null,null,null,null,null,null,null,null,null,"円",null,null,null,null,null,null,null,null,null,null,null,null,null,null,null,null,null,null,null,null,null,null,{"$f":"IF(入力シート!$P$32=\"\",\"\",DBCS(入力シート!$P$32))","v":""}]
[]
[]
[null,null,null,"⑪",null,null,null,null,null,null,null,null,null,null,null,null,null,null,null,null,null,null,null,null,null,null,null,null,null,null,null,null,null,null,null,null,null,null,null,null,null,null,null,null,null,null,null,null,null,null,null,null,null,null,null,null,null,null,null,"⑫",null,null,"□",null,"発行が必要"]
[null,null,null,null,null,null,null,null,"〒",null,{"$f":"IF(入力シート!$Q$32=\"\",\"\",DBCS(入力シート!$Q$32))","v":""},null,null,null,null,null,null,null,null,null,{"$f":"IF(入力シート!$R$32=\"\",\"\",DBCS(入力シート!$R$32))","v":""},null,null,null,null,null,null,null,null,null,null,null,null,null,null,null,null,null,null,null,null,null,null,null,null,null,{"$f":"IF(入力シート!$U$32=\"\",\"\",DBCS(入力シート!$U$32))","v":""}]
[null,null,null,"住所",null,null,null,null,null,null,null,null,null,null,null,null,null,null,null,null,null,null,null,null,null,null,null,null,null,null,null,null,null,null,null,null,null,null,null,null,null,null,null,null,null,null,null,null,null,null,null,null,null,null,null,null,null,null,null,"資格確認書\n発行要否"]
[null,null,null,null,null,null,null,null,{"$f":"IF(入力シート!$S$32=\"\",\"\",DBCS(入力シート!$S$32))","v":""},null,null,null,null,null,null,null,null,null,null,null,null,null,null,null,null,null,null,null,null,null,null,null,null,null,null,null,null,null,null,null,null,null,null,null,null,null,null,null,null,null,null,null,null,null,null,null,null,null,null,"被扶\n養者"]
[null,null,null,null,null,null,null,null,null,null,null,null,null,null,null,null,null,null,null,null,null,null,null,null,null,null,null,null,null,null,null,null,null,null,null,null,null,null,null,null,null,null,null,null,null,null,{"$f":"IF(入力シート!$V$32=\"\",\"\",DBCS(入力シート!$V$32))","v":""}]
[null,null,null,null,null,null,null,null,{"$f":"IF(入力シート!$T$32=\"\",\"\",DBCS(入力シート!$T$32))","v":""}]
[]
[]
[]
[null,"被保険者\n３",null,"①",null,null,null,{"$f":"IF(入力シート!$B$33=\"\",\"\",DBCS(入力シート!$B$33))","v":""},null,null,null,null,null,"②",null,null,null,{"$f":"IFERROR(LEFT(入力シート!$C$33,FIND(\" \",入力シート!$C$33,1)-1),\"\")","v":""},null,null,null,null,null,null,null,null,null,null,null,{"$f":"IFERROR(RIGHT(入力シート!$C$33,LEN(入力シート!$C$33)-FIND(\" \",入力シート!$C$33,1)),\"\")","v":""},null,null,null,null,null,null,null,null,null,null,null,"③",null,null,null,{"$f":"IF(入力シート!$E$33=\"\",\"\",IF(TEXT(入力シート!$E$33,\"g\")=\"S\",\"5．昭和\",IF(TEXT(入力シート!$E$33,\"g\")=\"H\",\"7．平成\",IF(TEXT(入力シート!$E$33,\"g\")=\"R\",\"9．令和\"))))","v":""},null,null,null,null,null,"年",null,null,"月",null,"日",null,null,"④",null,null,{"$f":"IF(入力シート!$F$33=\"\",\"\",IF(入力シート!$F$33=\"男\",\"1．男\",\"2．女\"))","v":""}]
[]
[null,null,null,"被保険者\n整理番号",null,null,null,null,null,null,null,null,null,"氏名",null,null,null,null,null,null,null,null,null,null,null,null,null,null,null,null,null,null,null,null,null,null,null,null,null,null,null,"生年\n月日",null,null,null,null,null,null,null,null,null,null,null,null,null,null,null,null,null,"種別"]
[null,null,null,null,null,null,null,null,null,null,null,null,null,null,null,null,null,null,null,null,null,null,null,null,null,null,null,null,null,null,null,null,null,null,null,null,null,null,null,null,null,null,null,null,null,null,null,null,null,null,null,{"$f":"IF(入力シート!$E$33=\"\",\"\",DBCS(TEXT(入力シート!$E$33,\"eemmdd\")))","v":""}]
[null,null,null,null,null,null,null,null,null,null,null,null,null,null,null,null,null,{"$f":"IFERROR(LEFT(入力シート!$D$33,FIND(\"　\",入力シート!$D$33,1)-1),\"\")","v":""},null,null,null,null,null,null,null,null,null,null,null,{"$f":"IFERROR(RIGHT(入力シート!$D$33,LEN(入力シート!$D$33)-FIND(\"　\",入力シート!$D$33,1)),\"\")","v":""}]
[]
[]
[]
[]
[]
[null,null,null,"⑤",null,null,null,{"$f":"IF(入力シート!$H$33=\"\",\"\",DBCS(入力シート!$H$33))","v":""},null,null,null,null,null,"⑥",null,null,null,{"$f":"IFERROR(IF(入力シート!$G$33=\"\",DBCS(LEFT(RIGHT(入力シート!$I$33,28-COLUMN()))),DBCS(LEFT(RIGHT(入力シート!$G$33,30-COLUMN())))),\"\")","v":""},null,{"$f":"IFERROR(IF(入力シート!$G$33=\"\",DBCS(LEFT(RIGHT(入力シート!$I$33,29-COLUMN()))),DBCS(LEFT(RIGHT(入力シート!$G$33,31-COLUMN())))),\"\")","v":""},null,{"$f":"IFERROR(IF(入力シート!$G$33=\"\",DBCS(LEFT(RIGHT(入力シート!$I$33,30-COLUMN()))),DBCS(LEFT(RIGHT(入力シート!$G$33,32-COLUMN())))),\"\")","v":""},null,{"$f":"IFERROR(IF(入力シート!$G$33=\"\",DBCS(LEFT(RIGHT(入力シート!$I$33,31-COLUMN()))),DBCS(LEFT(RIGHT(入力シート!$G$33,33-COLUMN())))),\"\")","v":""},null,{"$f":"IFERROR(IF(入力シート!$G$33=\"\",DBCS(LEFT(RIGHT(入力シート!$I$33,32-COLUMN()))),DBCS(LEFT(RIGHT(入力シート!$G$33,34-COLUMN())))),\"\")","v":""},null,{"$f":"IFERROR(IF(入力シート!$G$33=\"\",DBCS(LEFT(RIGHT(入力シート!$I$33,33-COLUMN()))),DBCS(LEFT(RIGHT(入力シート!$G$33,35-COLUMN())))),\"\")","v":""},null,{"$f":"IFERROR(IF(入力シート!$G$33=\"\",DBCS(LEFT(RIGHT(入力シート!$I$33,34-COLUMN()))),DBCS(LEFT(RIGHT(入力シート!$G$33,36-COLUMN())))),\"\")","v":""},null,{"$f":"IFERROR(IF(入力シート!$G$33=\"\",DBCS(LEFT(RIGHT(入力シート!$I$33,35-COLUMN()))),DBCS(LEFT(RIGHT(入力シート!$G$33,37-COLUMN())))),\"\")","v":""},null,{"$f":"IFERROR(IF(入力シート!$G$33=\"\",DBCS(LEFT(RIGHT(入力シート!$I$33,36-COLUMN()))),DBCS(LEFT(RIGHT(入力シート!$G$33,38-COLUMN())))),\"\")","v":""},null,{"$f":"IFERROR(IF(入力シート!$G$33=\"\",DBCS(LEFT(RIGHT(入力シート!$I$33,37-COLUMN()))),DBCS(LEFT(RIGHT(入力シート!$G$33,39-COLUMN())))),\"\")","v":""},null,{"$f":"IFERROR(IF(入力シート!$G$33=\"\",\"\",DBCS(LEFT(RIGHT(入力シート!$G$33,40-COLUMN())))),\"\")","v":""},null,{"$f":"IFERROR(IF(入力シート!$G$33=\"\",\"\",DBCS(LEFT(RIGHT(入力シート!$G$33,41-COLUMN())))),\"\")","v":""},null,"⑦",null,null,null,{"$f":"IF(入力シート!$J$33=\"\",\"\",IF(TEXT(入力シート!$J$33,\"g\")=\"S\",\"5．昭和\",IF(TEXT(入力シート!$J$33,\"g\")=\"H\",\"7．平成\",IF(TEXT(入力シート!$J$33,\"g\")=\"R\",\"9．令和\"))))","v":""},null,null,null,null,null,"年",null,null,"月",null,"日",null,null,"⑧",null,null,{"$f":"IF(入力シート!$N$33=\"\",\"\",DBCS(入力シート!$N$33))","v":""}]
[]
[null,null,null,"取得\n区分",null,null,null,null,null,null,null,null,null,"個人番号\n（基礎年\n金番号）",null,null,null,null,null,null,null,null,null,null,null,null,null,null,null,null,null,null,null,null,null,null,null,null,null,null,null,"取　得\n（該当）\n年月日",null,null,null,null,null,null,null,null,null,{"$f":"IF(入力シート!$J$33=\"\",\"\",DBCS(TEXT(入力シート!$J$33,\"eemmdd\")))","v":""},null,null,null,null,null,null,null,"被扶\n養者"]
[null,null,null,null,null,null,null,null,null,null,null,null,null,null,null,null,null,null,null,null,null,null,null,null,null,null,null,null,null,null,null,null,null,null,null,null,null,null,null,null,null,null,null,null,null,null,null,null,null,null,null,null,null,null,null,null,null,null,null,"被扶\n養者"]
[]
[]
[]
[null,null,null,"⑨",null,null,null,"㋐（通貨）",null,null,null,null,{"$f":"IF(入力シート!$K$33=\"\",\"\",入力シート!$K$33)","v":""},null,null,null,null,null,null,null,null,null,null,"円",null,"㋒（合計　㋐+㋑）",null,null,null,null,null,null,null,null,null,null,null,null,null,"円",null,"⑩",null,null,null,null,{"$f":"IF(入力シート!$O$33=\"\",\"\",DBCS(入力シート!$O$33))","v":""}]
[]
[null,null,null,"報酬\n月額",null,null,null,null,null,null,null,null,null,null,null,null,null,null,null,null,null,null,null,null,null,{"$f":"IF(入力シート!$M$33=\"\",\"\",入力シート!$M$33)","v":""},null,null,null,null,null,null,null,null,null,null,null,null,null,null,null,"備　考"]
[null,null,null,null,null,null,null,"㋑（現物）",null,null,null,null,{"$f":"IF(入力シート!$L$33=\"\",\"\",入力シート!$L$33)","v":""},null,null,null,null,null,null,null,null,null,null,"円",null,null,null,null,null,null,null,null,null,null,null,null,null,null,null,null,null,null,null,null,null,null,{"$f":"IF(入力シート!$P$33=\"\",\"\",DBCS(入力シート!$P$33))","v":""}]
[]
[]
[null,null,null,"⑪",null,null,null,null,null,null,null,null,null,null,null,null,null,null,null,null,null,null,null,null,null,null,null,null,null,null,null,null,null,null,null,null,null,null,null,null,null,null,null,null,null,null,null,null,null,null,null,null,null,null,null,null,null,null,null,"⑫",null,null,"□",null,"発行が必要"]
[null,null,null,null,null,null,null,null,"〒",null,{"$f":"IF(入力シート!$Q$33=\"\",\"\",DBCS(入力シート!$Q$33))","v":""},null,null,null,null,null,null,null,null,null,{"$f":"IF(入力シート!$R$33=\"\",\"\",DBCS(入力シート!$R$33))","v":""},null,null,null,null,null,null,null,null,null,null,null,null,null,null,null,null,null,null,null,null,null,null,null,null,null,{"$f":"IF(入力シート!$U$33=\"\",\"\",DBCS(入力シート!$U$33))","v":""}]
[null,null,null,"住所",null,null,null,null,null,null,null,null,null,null,null,null,null,null,null,null,null,null,null,null,null,null,null,null,null,null,null,null,null,null,null,null,null,null,null,null,null,null,null,null,null,null,null,null,null,null,null,null,null,null,null,null,null,null,null,"資格確認書\n発行要否"]
[null,null,null,null,null,null,null,null,{"$f":"IF(入力シート!$S$33=\"\",\"\",DBCS(入力シート!$S$33))","v":""},null,null,null,null,null,null,null,null,null,null,null,null,null,null,null,null,null,null,null,null,null,null,null,null,null,null,null,null,null,null,null,null,null,null,null,null,null,null,null,null,null,null,null,null,null,null,null,null,null,null,"被扶\n養者"]
[null,null,null,null,null,null,null,null,null,null,null,null,null,null,null,null,null,null,null,null,null,null,null,null,null,null,null,null,null,null,null,null,null,null,null,null,null,null,null,null,null,null,null,null,null,null,{"$f":"IF(入力シート!$V$33=\"\",\"\",DBCS(入力シート!$V$33))","v":""}]
[null,null,null,null,null,null,null,null,{"$f":"IF(入力シート!$T$33=\"\",\"\",DBCS(入力シート!$T$33))","v":""}]
[]
[]
[]
[null,"被保険者\n４",null,"①",null,null,null,{"$f":"IF(入力シート!$B$34=\"\",\"\",DBCS(入力シート!$B$34))","v":""},null,null,null,null,null,"②",null,null,null,{"$f":"IFERROR(LEFT(入力シート!$C$34,FIND(\" \",入力シート!$C$34,1)-1),\"\")","v":""},null,null,null,null,null,null,null,null,null,null,null,{"$f":"IFERROR(RIGHT(入力シート!$C$34,LEN(入力シート!$C$34)-FIND(\" \",入力シート!$C$34,1)),\"\")","v":""},null,null,null,null,null,null,null,null,null,null,null,"③",null,null,null,{"$f":"IF(入力シート!$E$34=\"\",\"\",IF(TEXT(入力シート!$E$34,\"g\")=\"S\",\"5．昭和\",IF(TEXT(入力シート!$E$34,\"g\")=\"H\",\"7．平成\",IF(TEXT(入力シート!$E$34,\"g\")=\"R\",\"9．令和\"))))","v":""},null,null,null,null,null,"年",null,null,"月",null,"日",null,null,"④",null,null,{"$f":"IF(入力シート!$F$34=\"\",\"\",IF(入力シート!$F$34=\"男\",\"1．男\",\"2．女\"))","v":""}]
[]
[null,null,null,"被保険者\n整理番号",null,null,null,null,null,null,null,null,null,"氏名",null,null,null,null,null,null,null,null,null,null,null,null,null,null,null,null,null,null,null,null,null,null,null,null,null,null,null,"生年\n月日",null,null,null,null,null,null,null,null,null,null,null,null,null,null,null,null,null,"種別"]
[null,null,null,null,null,null,null,null,null,null,null,null,null,null,null,null,null,null,null,null,null,null,null,null,null,null,null,null,null,null,null,null,null,null,null,null,null,null,null,null,null,null,null,null,null,null,null,null,null,null,null,{"$f":"IF(入力シート!$E$34=\"\",\"\",DBCS(TEXT(入力シート!$E$34,\"eemmdd\")))","v":""}]
[null,null,null,null,null,null,null,null,null,null,null,null,null,null,null,null,null,{"$f":"IFERROR(LEFT(入力シート!$D$34,FIND(\"　\",入力シート!$D$34,1)-1),\"\")","v":""},null,null,null,null,null,null,null,null,null,null,null,{"$f":"IFERROR(RIGHT(入力シート!$D$34,LEN(入力シート!$D$34)-FIND(\"　\",入力シート!$D$34,1)),\"\")","v":""}]
[]
[]
[]
[]
[]
[null,null,null,"⑤",null,null,null,{"$f":"IF(入力シート!$H$34=\"\",\"\",DBCS(入力シート!$H$34))","v":""},null,null,null,null,null,"⑥",null,null,null,{"$f":"IFERROR(IF(入力シート!$G$34=\"\",DBCS(LEFT(RIGHT(入力シート!$I$34,28-COLUMN()))),DBCS(LEFT(RIGHT(入力シート!$G$34,30-COLUMN())))),\"\")","v":""},null,{"$f":"IFERROR(IF(入力シート!$G$34=\"\",DBCS(LEFT(RIGHT(入力シート!$I$34,29-COLUMN()))),DBCS(LEFT(RIGHT(入力シート!$G$34,31-COLUMN())))),\"\")","v":""},null,{"$f":"IFERROR(IF(入力シート!$G$34=\"\",DBCS(LEFT(RIGHT(入力シート!$I$34,30-COLUMN()))),DBCS(LEFT(RIGHT(入力シート!$G$34,32-COLUMN())))),\"\")","v":""},null,{"$f":"IFERROR(IF(入力シート!$G$34=\"\",DBCS(LEFT(RIGHT(入力シート!$I$34,31-COLUMN()))),DBCS(LEFT(RIGHT(入力シート!$G$34,33-COLUMN())))),\"\")","v":""},null,{"$f":"IFERROR(IF(入力シート!$G$34=\"\",DBCS(LEFT(RIGHT(入力シート!$I$34,32-COLUMN()))),DBCS(LEFT(RIGHT(入力シート!$G$34,34-COLUMN())))),\"\")","v":""},null,{"$f":"IFERROR(IF(入力シート!$G$34=\"\",DBCS(LEFT(RIGHT(入力シート!$I$34,33-COLUMN()))),DBCS(LEFT(RIGHT(入力シート!$G$34,35-COLUMN())))),\"\")","v":""},null,{"$f":"IFERROR(IF(入力シート!$G$34=\"\",DBCS(LEFT(RIGHT(入力シート!$I$34,34-COLUMN()))),DBCS(LEFT(RIGHT(入力シート!$G$34,36-COLUMN())))),\"\")","v":""},null,{"$f":"IFERROR(IF(入力シート!$G$34=\"\",DBCS(LEFT(RIGHT(入力シート!$I$34,35-COLUMN()))),DBCS(LEFT(RIGHT(入力シート!$G$34,37-COLUMN())))),\"\")","v":""},null,{"$f":"IFERROR(IF(入力シート!$G$34=\"\",DBCS(LEFT(RIGHT(入力シート!$I$34,36-COLUMN()))),DBCS(LEFT(RIGHT(入力シート!$G$34,38-COLUMN())))),\"\")","v":""},null,{"$f":"IFERROR(IF(入力シート!$G$34=\"\",DBCS(LEFT(RIGHT(入力シート!$I$34,37-COLUMN()))),DBCS(LEFT(RIGHT(入力シート!$G$34,39-COLUMN())))),\"\")","v":""},null,{"$f":"IFERROR(IF(入力シート!$G$34=\"\",\"\",DBCS(LEFT(RIGHT(入力シート!$G$34,40-COLUMN())))),\"\")","v":""},null,{"$f":"IFERROR(IF(入力シート!$G$34=\"\",\"\",DBCS(LEFT(RIGHT(入力シート!$G$34,41-COLUMN())))),\"\")","v":""},null,"⑦",null,null,null,{"$f":"IF(入力シート!$J$34=\"\",\"\",IF(TEXT(入力シート!$J$34,\"g\")=\"S\",\"5．昭和\",IF(TEXT(入力シート!$J$34,\"g\")=\"H\",\"7．平成\",IF(TEXT(入力シート!$J$34,\"g\")=\"R\",\"9．令和\"))))","v":""},null,null,null,null,null,"年",null,null,"月",null,"日",null,null,"⑧",null,null,{"$f":"IF(入力シート!$N$34=\"\",\"\",DBCS(入力シート!$N$34))","v":""}]
[]
[null,null,null,"取得\n区分",null,null,null,null,null,null,null,null,null,"個人番号\n（基礎年\n金番号）",null,null,null,null,null,null,null,null,null,null,null,null,null,null,null,null,null,null,null,null,null,null,null,null,null,null,null,"取　得\n（該当）\n年月日",null,null,null,null,null,null,null,null,null,{"$f":"IF(入力シート!$J$34=\"\",\"\",DBCS(TEXT(入力シート!$J$34,\"eemmdd\")))","v":""},null,null,null,null,null,null,null,"被扶\n養者"]
[null,null,null,null,null,null,null,null,null,null,null,null,null,null,null,null,null,null,null,null,null,null,null,null,null,null,null,null,null,null,null,null,null,null,null,null,null,null,null,null,null,null,null,null,null,null,null,null,null,null,null,null,null,null,null,null,null,null,null,"被扶\n養者"]
[]
[]
[]
[null,null,null,"⑨",null,null,null,"㋐（通貨）",null,null,null,null,{"$f":"IF(入力シート!$K$34=\"\",\"\",入力シート!$K$34)","v":""},null,null,null,null,null,null,null,null,null,null,"円",null,"㋒（合計　㋐+㋑）",null,null,null,null,null,null,null,null,null,null,null,null,null,"円",null,"⑩",null,null,null,null,{"$f":"IF(入力シート!$O$34=\"\",\"\",DBCS(入力シート!$O$34))","v":""}]
[]
[null,null,null,"報酬\n月額",null,null,null,null,null,null,null,null,null,null,null,null,null,null,null,null,null,null,null,null,null,{"$f":"IF(入力シート!$M$34=\"\",\"\",入力シート!$M$34)","v":""},null,null,null,null,null,null,null,null,null,null,null,null,null,null,null,"備　考"]
[null,null,null,null,null,null,null,"㋑（現物）",null,null,null,null,{"$f":"IF(入力シート!$L$34=\"\",\"\",入力シート!$L$34)","v":""},null,null,null,null,null,null,null,null,null,null,"円",null,null,null,null,null,null,null,null,null,null,null,null,null,null,null,null,null,null,null,null,null,null,{"$f":"IF(入力シート!$P$34=\"\",\"\",DBCS(入力シート!$P$34))","v":""}]
[]
[]
[null,null,null,"⑪",null,null,null,null,null,null,null,null,null,null,null,null,null,null,null,null,null,null,null,null,null,null,null,null,null,null,null,null,null,null,null,null,null,null,null,null,null,null,null,null,null,null,null,null,null,null,null,null,null,null,null,null,null,null,null,"⑫",null,null,"□",null,"発行が必要"]
[null,null,null,null,null,null,null,null,"〒",null,{"$f":"IF(入力シート!$Q$34=\"\",\"\",DBCS(入力シート!$Q$34))","v":""},null,null,null,null,null,null,null,null,null,{"$f":"IF(入力シート!$R$34=\"\",\"\",DBCS(入力シート!$R$34))","v":""},null,null,null,null,null,null,null,null,null,null,null,null,null,null,null,null,null,null,null,null,null,null,null,null,null,{"$f":"IF(入力シート!$U$34=\"\",\"\",DBCS(入力シート!$U$34))","v":""}]
[null,null,null,"住所",null,null,null,null,null,null,null,null,null,null,null,null,null,null,null,null,null,null,null,null,null,null,null,null,null,null,null,null,null,null,null,null,null,null,null,null,null,null,null,null,null,null,null,null,null,null,null,null,null,null,null,null,null,null,null,"資格確認書\n発行要否"]
[null,null,null,null,null,null,null,null,{"$f":"IF(入力シート!$S$34=\"\",\"\",DBCS(入力シート!$S$34))","v":""},null,null,null,null,null,null,null,null,null,null,null,null,null,null,null,null,null,null,null,null,null,null,null,null,null,null,null,null,null,null,null,null,null,null,null,null,null,null,null,null,null,null,null,null,null,null,null,null,null,null,"被扶\n養者"]
[null,null,null,null,null,null,null,null,null,null,null,null,null,null,null,null,null,null,null,null,null,null,null,null,null,null,null,null,null,null,null,null,null,null,null,null,null,null,null,null,null,null,null,null,null,null,{"$f":"IF(入力シート!$V$34=\"\",\"\",DBCS(入力シート!$V$34))","v":""}]
[null,null,null,null,null,null,null,null,{"$f":"IF(入力シート!$T$34=\"\",\"\",DBCS(入力シート!$T$34))","v":""}]
[]
[]
[]
[]
[]
[]
[]
[]
[]
[]
[]
[]
[]
[]
[]
[]
[]
[]
[]
[]
[]
[]
[]
[null,"被保険者\n１",null,"①",null,null,null,{"$f":"IF(入力シート!$B$35=\"\",\"\",DBCS(入力シート!$B$35))","v":""},null,null,null,null,null,"②",null,null,null,{"$f":"IFERROR(LEFT(入力シート!$C$35,FIND(\" \",入力シート!$C$35,1)-1),\"\")","v":""},null,null,null,null,null,null,null,null,null,null,null,{"$f":"IFERROR(RIGHT(入力シート!$C$35,LEN(入力シート!$C$35)-FIND(\" \",入力シート!$C$35,1)),\"\")","v":""},null,null,null,null,null,null,null,null,null,null,null,"③",null,null,null,{"$f":"IF(入力シート!$E$35=\"\",\"\",IF(TEXT(入力シート!$E$35,\"g\")=\"S\",\"5．昭和\",IF(TEXT(入力シート!$E$35,\"g\")=\"H\",\"7．平成\",IF(TEXT(入力シート!$E$35,\"g\")=\"R\",\"9．令和\"))))","v":""},null,null,null,null,null,"年",null,null,"月",null,"日",null,null,"④",null,null,{"$f":"IF(入力シート!$F$35=\"\",\"\",IF(入力シート!$F$35=\"男\",\"1．男\",\"2．女\"))","v":""}]
[]
[null,null,null,"被保険者\n整理番号",null,null,null,null,null,null,null,null,null,"氏名",null,null,null,null,null,null,null,null,null,null,null,null,null,null,null,null,null,null,null,null,null,null,null,null,null,null,null,"生年\n月日",null,null,null,null,null,null,null,null,null,null,null,null,null,null,null,null,null,"種別"]
[null,null,null,null,null,null,null,null,null,null,null,null,null,null,null,null,null,null,null,null,null,null,null,null,null,null,null,null,null,null,null,null,null,null,null,null,null,null,null,null,null,null,null,null,null,null,null,null,null,null,null,{"$f":"IF(入力シート!$E$35=\"\",\"\",DBCS(TEXT(入力シート!$E$35,\"eemmdd\")))","v":""}]
[null,null,null,null,null,null,null,null,null,null,null,null,null,null,null,null,null,{"$f":"IFERROR(LEFT(入力シート!$D$35,FIND(\"　\",入力シート!$D$35,1)-1),\"\")","v":""},null,null,null,null,null,null,null,null,null,null,null,{"$f":"IFERROR(RIGHT(入力シート!$D$35,LEN(入力シート!$D$35)-FIND(\"　\",入力シート!$D$35,1)),\"\")","v":""}]
[]
[]
[]
[]
[]
[null,null,null,"⑤",null,null,null,{"$f":"IF(入力シート!$H$35=\"\",\"\",DBCS(入力シート!$H$35))","v":""},null,null,null,null,null,"⑥",null,null,null,{"$f":"IFERROR(IF(入力シート!$G$35=\"\",DBCS(LEFT(RIGHT(入力シート!$I$35,28-COLUMN()))),DBCS(LEFT(RIGHT(入力シート!$G$35,30-COLUMN())))),\"\")","v":""},null,{"$f":"IFERROR(IF(入力シート!$G$35=\"\",DBCS(LEFT(RIGHT(入力シート!$I$35,29-COLUMN()))),DBCS(LEFT(RIGHT(入力シート!$G$35,31-COLUMN())))),\"\")","v":""},null,{"$f":"IFERROR(IF(入力シート!$G$35=\"\",DBCS(LEFT(RIGHT(入力シート!$I$35,30-COLUMN()))),DBCS(LEFT(RIGHT(入力シート!$G$35,32-COLUMN())))),\"\")","v":""},null,{"$f":"IFERROR(IF(入力シート!$G$35=\"\",DBCS(LEFT(RIGHT(入力シート!$I$35,31-COLUMN()))),DBCS(LEFT(RIGHT(入力シート!$G$35,33-COLUMN())))),\"\")","v":""},null,{"$f":"IFERROR(IF(入力シート!$G$35=\"\",DBCS(LEFT(RIGHT(入力シート!$I$35,32-COLUMN()))),DBCS(LEFT(RIGHT(入力シート!$G$35,34-COLUMN())))),\"\")","v":""},null,{"$f":"IFERROR(IF(入力シート!$G$35=\"\",DBCS(LEFT(RIGHT(入力シート!$I$35,33-COLUMN()))),DBCS(LEFT(RIGHT(入力シート!$G$35,35-COLUMN())))),\"\")","v":""},null,{"$f":"IFERROR(IF(入力シート!$G$35=\"\",DBCS(LEFT(RIGHT(入力シート!$I$35,34-COLUMN()))),DBCS(LEFT(RIGHT(入力シート!$G$35,36-COLUMN())))),\"\")","v":""},null,{"$f":"IFERROR(IF(入力シート!$G$35=\"\",DBCS(LEFT(RIGHT(入力シート!$I$35,35-COLUMN()))),DBCS(LEFT(RIGHT(入力シート!$G$35,37-COLUMN())))),\"\")","v":""},null,{"$f":"IFERROR(IF(入力シート!$G$35=\"\",DBCS(LEFT(RIGHT(入力シート!$I$35,36-COLUMN()))),DBCS(LEFT(RIGHT(入力シート!$G$35,38-COLUMN())))),\"\")","v":""},null,{"$f":"IFERROR(IF(入力シート!$G$35=\"\",DBCS(LEFT(RIGHT(入力シート!$I$35,37-COLUMN()))),DBCS(LEFT(RIGHT(入力シート!$G$35,39-COLUMN())))),\"\")","v":""},null,{"$f":"IFERROR(IF(入力シート!$G$35=\"\",\"\",DBCS(LEFT(RIGHT(入力シート!$G$35,40-COLUMN())))),\"\")","v":""},null,{"$f":"IFERROR(IF(入力シート!$G$35=\"\",\"\",DBCS(LEFT(RIGHT(入力シート!$G$35,41-COLUMN())))),\"\")","v":""},null,"⑦",null,null,null,{"$f":"IF(入力シート!$J$35=\"\",\"\",IF(TEXT(入力シート!$J$35,\"g\")=\"S\",\"5．昭和\",IF(TEXT(入力シート!$J$35,\"g\")=\"H\",\"7．平成\",IF(TEXT(入力シート!$J$35,\"g\")=\"R\",\"9．令和\"))))","v":""},null,null,null,null,null,"年",null,null,"月",null,"日",null,null,"⑧",null,null,{"$f":"IF(入力シート!$N$35=\"\",\"\",DBCS(入力シート!$N$35))","v":""}]
[]
[null,null,null,"取得\n区分",null,null,null,null,null,null,null,null,null,"個人番号\n（基礎年\n金番号）",null,null,null,null,null,null,null,null,null,null,null,null,null,null,null,null,null,null,null,null,null,null,null,null,null,null,null,"取　得\n（該当）\n年月日",null,null,null,null,null,null,null,null,null,{"$f":"IF(入力シート!$J$35=\"\",\"\",DBCS(TEXT(入力シート!$J$35,\"eemmdd\")))","v":""},null,null,null,null,null,null,null,"被扶\n養者"]
[null,null,null,null,null,null,null,null,null,null,null,null,null,null,null,null,null,null,null,null,null,null,null,null,null,null,null,null,null,null,null,null,null,null,null,null,null,null,null,null,null,null,null,null,null,null,null,null,null,null,null,null,null,null,null,null,null,null,null,"被扶\n養者"]
[]
[]
[]
[null,null,null,"⑨",null,null,null,"㋐（通貨）",null,null,null,null,{"$f":"IF(入力シート!$K$35=\"\",\"\",入力シート!$K$35)","v":""},null,null,null,null,null,null,null,null,null,null,"円",null,"㋒（合計　㋐+㋑）",null,null,null,null,null,null,null,null,null,null,null,null,null,"円",null,"⑩",null,null,null,null,{"$f":"IF(入力シート!$O$35=\"\",\"\",DBCS(入力シート!$O$35))","v":""}]
[]
[null,null,null,"報酬\n月額",null,null,null,null,null,null,null,null,null,null,null,null,null,null,null,null,null,null,null,null,null,{"$f":"IF(入力シート!$M$35=\"\",\"\",入力シート!$M$35)","v":""},null,null,null,null,null,null,null,null,null,null,null,null,null,null,null,"備　考"]
[null,null,null,null,null,null,null,"㋑（現物）",null,null,null,null,{"$f":"IF(入力シート!$L$35=\"\",\"\",入力シート!$L$35)","v":""},null,null,null,null,null,null,null,null,null,null,"円",null,null,null,null,null,null,null,null,null,null,null,null,null,null,null,null,null,null,null,null,null,null,{"$f":"IF(入力シート!$P$35=\"\",\"\",DBCS(入力シート!$P$35))","v":""}]
[]
[]
[null,null,null,"⑪",null,null,null,null,null,null,null,null,null,null,null,null,null,null,null,null,null,null,null,null,null,null,null,null,null,null,null,null,null,null,null,null,null,null,null,null,null,null,null,null,null,null,null,null,null,null,null,null,null,null,null,null,null,null,null,"⑫",null,null,"□",null,"発行が必要"]
[null,null,null,null,null,null,null,null,"〒",null,{"$f":"IF(入力シート!$Q$35=\"\",\"\",DBCS(入力シート!$Q$35))","v":""},null,null,null,null,null,null,null,null,null,{"$f":"IF(入力シート!$R$35=\"\",\"\",DBCS(入力シート!$R$35))","v":""},null,null,null,null,null,null,null,null,null,null,null,null,null,null,null,null,null,null,null,null,null,null,null,null,null,{"$f":"IF(入力シート!$U$35=\"\",\"\",DBCS(入力シート!$U$35))","v":""}]
[null,null,null,"住所",null,null,null,null,null,null,null,null,null,null,null,null,null,null,null,null,null,null,null,null,null,null,null,null,null,null,null,null,null,null,null,null,null,null,null,null,null,null,null,null,null,null,null,null,null,null,null,null,null,null,null,null,null,null,null,"資格確認書\n発行要否"]
[null,null,null,null,null,null,null,null,{"$f":"IF(入力シート!$S$35=\"\",\"\",DBCS(入力シート!$S$35))","v":""},null,null,null,null,null,null,null,null,null,null,null,null,null,null,null,null,null,null,null,null,null,null,null,null,null,null,null,null,null,null,null,null,null,null,null,null,null,null,null,null,null,null,null,null,null,null,null,null,null,null,"被扶\n養者"]
[null,null,null,null,null,null,null,null,null,null,null,null,null,null,null,null,null,null,null,null,null,null,null,null,null,null,null,null,null,null,null,null,null,null,null,null,null,null,null,null,null,null,null,null,null,null,{"$f":"IF(入力シート!$V$35=\"\",\"\",DBCS(入力シート!$V$35))","v":""}]
[null,null,null,null,null,null,null,null,{"$f":"IF(入力シート!$T$35=\"\",\"\",DBCS(入力シート!$T$35))","v":""}]
[]
[]
[]
[null,"被保険者\n２",null,"①",null,null,null,{"$f":"IF(入力シート!$B$36=\"\",\"\",DBCS(入力シート!$B$36))","v":""},null,null,null,null,null,"②",null,null,null,{"$f":"IFERROR(LEFT(入力シート!$C$36,FIND(\" \",入力シート!$C$36,1)-1),\"\")","v":""},null,null,null,null,null,null,null,null,null,null,null,{"$f":"IFERROR(RIGHT(入力シート!$C$36,LEN(入力シート!$C$36)-FIND(\" \",入力シート!$C$36,1)),\"\")","v":""},null,null,null,null,null,null,null,null,null,null,null,"③",null,null,null,{"$f":"IF(入力シート!$E$36=\"\",\"\",IF(TEXT(入力シート!$E$36,\"g\")=\"S\",\"5．昭和\",IF(TEXT(入力シート!$E$36,\"g\")=\"H\",\"7．平成\",IF(TEXT(入力シート!$E$36,\"g\")=\"R\",\"9．令和\"))))","v":""},null,null,null,null,null,"年",null,null,"月",null,"日",null,null,"④",null,null,{"$f":"IF(入力シート!$F$36=\"\",\"\",IF(入力シート!$F$36=\"男\",\"1．男\",\"2．女\"))","v":""}]
[]
[null,null,null,"被保険者\n整理番号",null,null,null,null,null,null,null,null,null,"氏名",null,null,null,null,null,null,null,null,null,null,null,null,null,null,null,null,null,null,null,null,null,null,null,null,null,null,null,"生年\n月日",null,null,null,null,null,null,null,null,null,null,null,null,null,null,null,null,null,"種別"]
[null,null,null,null,null,null,null,null,null,null,null,null,null,null,null,null,null,null,null,null,null,null,null,null,null,null,null,null,null,null,null,null,null,null,null,null,null,null,null,null,null,null,null,null,null,null,null,null,null,null,null,{"$f":"IF(入力シート!$E$36=\"\",\"\",DBCS(TEXT(入力シート!$E$36,\"eemmdd\")))","v":""}]
[null,null,null,null,null,null,null,null,null,null,null,null,null,null,null,null,null,{"$f":"IFERROR(LEFT(入力シート!$D$36,FIND(\"　\",入力シート!$D$36,1)-1),\"\")","v":""},null,null,null,null,null,null,null,null,null,null,null,{"$f":"IFERROR(RIGHT(入力シート!$D$36,LEN(入力シート!$D$36)-FIND(\"　\",入力シート!$D$36,1)),\"\")","v":""}]
[]
[]
[]
[]
[]
[null,null,null,"⑤",null,null,null,{"$f":"IF(入力シート!$H$36=\"\",\"\",DBCS(入力シート!$H$36))","v":""},null,null,null,null,null,"⑥",null,null,null,{"$f":"IFERROR(IF(入力シート!$G$36=\"\",DBCS(LEFT(RIGHT(入力シート!$I$36,28-COLUMN()))),DBCS(LEFT(RIGHT(入力シート!$G$36,30-COLUMN())))),\"\")","v":""},null,{"$f":"IFERROR(IF(入力シート!$G$36=\"\",DBCS(LEFT(RIGHT(入力シート!$I$36,29-COLUMN()))),DBCS(LEFT(RIGHT(入力シート!$G$36,31-COLUMN())))),\"\")","v":""},null,{"$f":"IFERROR(IF(入力シート!$G$36=\"\",DBCS(LEFT(RIGHT(入力シート!$I$36,30-COLUMN()))),DBCS(LEFT(RIGHT(入力シート!$G$36,32-COLUMN())))),\"\")","v":""},null,{"$f":"IFERROR(IF(入力シート!$G$36=\"\",DBCS(LEFT(RIGHT(入力シート!$I$36,31-COLUMN()))),DBCS(LEFT(RIGHT(入力シート!$G$36,33-COLUMN())))),\"\")","v":""},null,{"$f":"IFERROR(IF(入力シート!$G$36=\"\",DBCS(LEFT(RIGHT(入力シート!$I$36,32-COLUMN()))),DBCS(LEFT(RIGHT(入力シート!$G$36,34-COLUMN())))),\"\")","v":""},null,{"$f":"IFERROR(IF(入力シート!$G$36=\"\",DBCS(LEFT(RIGHT(入力シート!$I$36,33-COLUMN()))),DBCS(LEFT(RIGHT(入力シート!$G$36,35-COLUMN())))),\"\")","v":""},null,{"$f":"IFERROR(IF(入力シート!$G$36=\"\",DBCS(LEFT(RIGHT(入力シート!$I$36,34-COLUMN()))),DBCS(LEFT(RIGHT(入力シート!$G$36,36-COLUMN())))),\"\")","v":""},null,{"$f":"IFERROR(IF(入力シート!$G$36=\"\",DBCS(LEFT(RIGHT(入力シート!$I$36,35-COLUMN()))),DBCS(LEFT(RIGHT(入力シート!$G$36,37-COLUMN())))),\"\")","v":""},null,{"$f":"IFERROR(IF(入力シート!$G$36=\"\",DBCS(LEFT(RIGHT(入力シート!$I$36,36-COLUMN()))),DBCS(LEFT(RIGHT(入力シート!$G$36,38-COLUMN())))),\"\")","v":""},null,{"$f":"IFERROR(IF(入力シート!$G$36=\"\",DBCS(LEFT(RIGHT(入力シート!$I$36,37-COLUMN()))),DBCS(LEFT(RIGHT(入力シート!$G$36,39-COLUMN())))),\"\")","v":""},null,{"$f":"IFERROR(IF(入力シート!$G$36=\"\",\"\",DBCS(LEFT(RIGHT(入力シート!$G$36,40-COLUMN())))),\"\")","v":""},null,{"$f":"IFERROR(IF(入力シート!$G$36=\"\",\"\",DBCS(LEFT(RIGHT(入力シート!$G$36,41-COLUMN())))),\"\")","v":""},null,"⑦",null,null,null,{"$f":"IF(入力シート!$J$36=\"\",\"\",IF(TEXT(入力シート!$J$36,\"g\")=\"S\",\"5．昭和\",IF(TEXT(入力シート!$J$36,\"g\")=\"H\",\"7．平成\",IF(TEXT(入力シート!$J$36,\"g\")=\"R\",\"9．令和\"))))","v":""},null,null,null,null,null,"年",null,null,"月",null,"日",null,null,"⑧",null,null,{"$f":"IF(入力シート!$N$36=\"\",\"\",DBCS(入力シート!$N$36))","v":""}]
[]
[null,null,null,"取得\n区分",null,null,null,null,null,null,null,null,null,"個人番号\n（基礎年\n金番号）",null,null,null,null,null,null,null,null,null,null,null,null,null,null,null,null,null,null,null,null,null,null,null,null,null,null,null,"取　得\n（該当）\n年月日",null,null,null,null,null,null,null,null,null,{"$f":"IF(入力シート!$J$36=\"\",\"\",DBCS(TEXT(入力シート!$J$36,\"eemmdd\")))","v":""},null,null,null,null,null,null,null,"被扶\n養者"]
[null,null,null,null,null,null,null,null,null,null,null,null,null,null,null,null,null,null,null,null,null,null,null,null,null,null,null,null,null,null,null,null,null,null,null,null,null,null,null,null,null,null,null,null,null,null,null,null,null,null,null,null,null,null,null,null,null,null,null,"被扶\n養者"]
[]
[]
[]
[null,null,null,"⑨",null,null,null,"㋐（通貨）",null,null,null,null,{"$f":"IF(入力シート!$K$36=\"\",\"\",入力シート!$K$36)","v":""},null,null,null,null,null,null,null,null,null,null,"円",null,"㋒（合計　㋐+㋑）",null,null,null,null,null,null,null,null,null,null,null,null,null,"円",null,"⑩",null,null,null,null,{"$f":"IF(入力シート!$O$36=\"\",\"\",DBCS(入力シート!$O$36))","v":""}]
[]
[null,null,null,"報酬\n月額",null,null,null,null,null,null,null,null,null,null,null,null,null,null,null,null,null,null,null,null,null,{"$f":"IF(入力シート!$M$36=\"\",\"\",入力シート!$M$36)","v":""},null,null,null,null,null,null,null,null,null,null,null,null,null,null,null,"備　考"]
[null,null,null,null,null,null,null,"㋑（現物）",null,null,null,null,{"$f":"IF(入力シート!$L$36=\"\",\"\",入力シート!$L$36)","v":""},null,null,null,null,null,null,null,null,null,null,"円",null,null,null,null,null,null,null,null,null,null,null,null,null,null,null,null,null,null,null,null,null,null,{"$f":"IF(入力シート!$P$36=\"\",\"\",DBCS(入力シート!$P$36))","v":""}]
[]
[]
[null,null,null,"⑪",null,null,null,null,null,null,null,null,null,null,null,null,null,null,null,null,null,null,null,null,null,null,null,null,null,null,null,null,null,null,null,null,null,null,null,null,null,null,null,null,null,null,null,null,null,null,null,null,null,null,null,null,null,null,null,"⑫",null,null,"□",null,"発行が必要"]
[null,null,null,null,null,null,null,null,"〒",null,{"$f":"IF(入力シート!$Q$36=\"\",\"\",DBCS(入力シート!$Q$36))","v":""},null,null,null,null,null,null,null,null,null,{"$f":"IF(入力シート!$R$36=\"\",\"\",DBCS(入力シート!$R$36))","v":""},null,null,null,null,null,null,null,null,null,null,null,null,null,null,null,null,null,null,null,null,null,null,null,null,null,{"$f":"IF(入力シート!$U$36=\"\",\"\",DBCS(入力シート!$U$36))","v":""}]
[null,null,null,"住所",null,null,null,null,null,null,null,null,null,null,null,null,null,null,null,null,null,null,null,null,null,null,null,null,null,null,null,null,null,null,null,null,null,null,null,null,null,null,null,null,null,null,null,null,null,null,null,null,null,null,null,null,null,null,null,"資格確認書\n発行要否"]
[null,null,null,null,null,null,null,null,{"$f":"IF(入力シート!$S$36=\"\",\"\",DBCS(入力シート!$S$36))","v":""},null,null,null,null,null,null,null,null,null,null,null,null,null,null,null,null,null,null,null,null,null,null,null,null,null,null,null,null,null,null,null,null,null,null,null,null,null,null,null,null,null,null,null,null,null,null,null,null,null,null,"被扶\n養者"]
[null,null,null,null,null,null,null,null,null,null,null,null,null,null,null,null,null,null,null,null,null,null,null,null,null,null,null,null,null,null,null,null,null,null,null,null,null,null,null,null,null,null,null,null,null,null,{"$f":"IF(入力シート!$V$36=\"\",\"\",DBCS(入力シート!$V$36))","v":""}]
[null,null,null,null,null,null,null,null,{"$f":"IF(入力シート!$T$36=\"\",\"\",DBCS(入力シート!$T$36))","v":""}]
[]
[]
[]
[null,"被保険者\n３",null,"①",null,null,null,{"$f":"IF(入力シート!$B$37=\"\",\"\",DBCS(入力シート!$B$37))","v":""},null,null,null,null,null,"②",null,null,null,{"$f":"IFERROR(LEFT(入力シート!$C$37,FIND(\" \",入力シート!$C$37,1)-1),\"\")","v":""},null,null,null,null,null,null,null,null,null,null,null,{"$f":"IFERROR(RIGHT(入力シート!$C$37,LEN(入力シート!$C$37)-FIND(\" \",入力シート!$C$37,1)),\"\")","v":""},null,null,null,null,null,null,null,null,null,null,null,"③",null,null,null,{"$f":"IF(入力シート!$E$37=\"\",\"\",IF(TEXT(入力シート!$E$37,\"g\")=\"S\",\"5．昭和\",IF(TEXT(入力シート!$E$37,\"g\")=\"H\",\"7．平成\",IF(TEXT(入力シート!$E$37,\"g\")=\"R\",\"9．令和\"))))","v":""},null,null,null,null,null,"年",null,null,"月",null,"日",null,null,"④",null,null,{"$f":"IF(入力シート!$F$37=\"\",\"\",IF(入力シート!$F$37=\"男\",\"1．男\",\"2．女\"))","v":""}]
[]
[null,null,null,"被保険者\n整理番号",null,null,null,null,null,null,null,null,null,"氏名",null,null,null,null,null,null,null,null,null,null,null,null,null,null,null,null,null,null,null,null,null,null,null,null,null,null,null,"生年\n月日",null,null,null,null,null,null,null,null,null,null,null,null,null,null,null,null,null,"種別"]
[null,null,null,null,null,null,null,null,null,null,null,null,null,null,null,null,null,null,null,null,null,null,null,null,null,null,null,null,null,null,null,null,null,null,null,null,null,null,null,null,null,null,null,null,null,null,null,null,null,null,null,{"$f":"IF(入力シート!$E$37=\"\",\"\",DBCS(TEXT(入力シート!$E$37,\"eemmdd\")))","v":""}]
[null,null,null,null,null,null,null,null,null,null,null,null,null,null,null,null,null,{"$f":"IFERROR(LEFT(入力シート!$D$37,FIND(\"　\",入力シート!$D$37,1)-1),\"\")","v":""},null,null,null,null,null,null,null,null,null,null,null,{"$f":"IFERROR(RIGHT(入力シート!$D$37,LEN(入力シート!$D$37)-FIND(\"　\",入力シート!$D$37,1)),\"\")","v":""}]
[]
[]
[]
[]
[]
[null,null,null,"⑤",null,null,null,{"$f":"IF(入力シート!$H$37=\"\",\"\",DBCS(入力シート!$H$37))","v":""},null,null,null,null,null,"⑥",null,null,null,{"$f":"IFERROR(IF(入力シート!$G$37=\"\",DBCS(LEFT(RIGHT(入力シート!$I$37,28-COLUMN()))),DBCS(LEFT(RIGHT(入力シート!$G$37,30-COLUMN())))),\"\")","v":""},null,{"$f":"IFERROR(IF(入力シート!$G$37=\"\",DBCS(LEFT(RIGHT(入力シート!$I$37,29-COLUMN()))),DBCS(LEFT(RIGHT(入力シート!$G$37,31-COLUMN())))),\"\")","v":""},null,{"$f":"IFERROR(IF(入力シート!$G$37=\"\",DBCS(LEFT(RIGHT(入力シート!$I$37,30-COLUMN()))),DBCS(LEFT(RIGHT(入力シート!$G$37,32-COLUMN())))),\"\")","v":""},null,{"$f":"IFERROR(IF(入力シート!$G$37=\"\",DBCS(LEFT(RIGHT(入力シート!$I$37,31-COLUMN()))),DBCS(LEFT(RIGHT(入力シート!$G$37,33-COLUMN())))),\"\")","v":""},null,{"$f":"IFERROR(IF(入力シート!$G$37=\"\",DBCS(LEFT(RIGHT(入力シート!$I$37,32-COLUMN()))),DBCS(LEFT(RIGHT(入力シート!$G$37,34-COLUMN())))),\"\")","v":""},null,{"$f":"IFERROR(IF(入力シート!$G$37=\"\",DBCS(LEFT(RIGHT(入力シート!$I$37,33-COLUMN()))),DBCS(LEFT(RIGHT(入力シート!$G$37,35-COLUMN())))),\"\")","v":""},null,{"$f":"IFERROR(IF(入力シート!$G$37=\"\",DBCS(LEFT(RIGHT(入力シート!$I$37,34-COLUMN()))),DBCS(LEFT(RIGHT(入力シート!$G$37,36-COLUMN())))),\"\")","v":""},null,{"$f":"IFERROR(IF(入力シート!$G$37=\"\",DBCS(LEFT(RIGHT(入力シート!$I$37,35-COLUMN()))),DBCS(LEFT(RIGHT(入力シート!$G$37,37-COLUMN())))),\"\")","v":""},null,{"$f":"IFERROR(IF(入力シート!$G$37=\"\",DBCS(LEFT(RIGHT(入力シート!$I$37,36-COLUMN()))),DBCS(LEFT(RIGHT(入力シート!$G$37,38-COLUMN())))),\"\")","v":""},null,{"$f":"IFERROR(IF(入力シート!$G$37=\"\",DBCS(LEFT(RIGHT(入力シート!$I$37,37-COLUMN()))),DBCS(LEFT(RIGHT(入力シート!$G$37,39-COLUMN())))),\"\")","v":""},null,{"$f":"IFERROR(IF(入力シート!$G$37=\"\",\"\",DBCS(LEFT(RIGHT(入力シート!$G$37,40-COLUMN())))),\"\")","v":""},null,{"$f":"IFERROR(IF(入力シート!$G$37=\"\",\"\",DBCS(LEFT(RIGHT(入力シート!$G$37,41-COLUMN())))),\"\")","v":""},null,"⑦",null,null,null,{"$f":"IF(入力シート!$J$37=\"\",\"\",IF(TEXT(入力シート!$J$37,\"g\")=\"S\",\"5．昭和\",IF(TEXT(入力シート!$J$37,\"g\")=\"H\",\"7．平成\",IF(TEXT(入力シート!$J$37,\"g\")=\"R\",\"9．令和\"))))","v":""},null,null,null,null,null,"年",null,null,"月",null,"日",null,null,"⑧",null,null,{"$f":"IF(入力シート!$N$37=\"\",\"\",DBCS(入力シート!$N$37))","v":""}]
[]
[null,null,null,"取得\n区分",null,null,null,null,null,null,null,null,null,"個人番号\n（基礎年\n金番号）",null,null,null,null,null,null,null,null,null,null,null,null,null,null,null,null,null,null,null,null,null,null,null,null,null,null,null,"取　得\n（該当）\n年月日",null,null,null,null,null,null,null,null,null,{"$f":"IF(入力シート!$J$37=\"\",\"\",DBCS(TEXT(入力シート!$J$37,\"eemmdd\")))","v":""},null,null,null,null,null,null,null,"被扶\n養者"]
[null,null,null,null,null,null,null,null,null,null,null,null,null,null,null,null,null,null,null,null,null,null,null,null,null,null,null,null,null,null,null,null,null,null,null,null,null,null,null,null,null,null,null,null,null,null,null,null,null,null,null,null,null,null,null,null,null,null,null,"被扶\n養者"]
[]
[]
[]
[null,null,null,"⑨",null,null,null,"㋐（通貨）",null,null,null,null,{"$f":"IF(入力シート!$K$37=\"\",\"\",入力シート!$K$37)","v":""},null,null,null,null,null,null,null,null,null,null,"円",null,"㋒（合計　㋐+㋑）",null,null,null,null,null,null,null,null,null,null,null,null,null,"円",null,"⑩",null,null,null,null,{"$f":"IF(入力シート!$O$37=\"\",\"\",DBCS(入力シート!$O$37))","v":""}]
[]
[null,null,null,"報酬\n月額",null,null,null,null,null,null,null,null,null,null,null,null,null,null,null,null,null,null,null,null,null,{"$f":"IF(入力シート!$M$37=\"\",\"\",入力シート!$M$37)","v":""},null,null,null,null,null,null,null,null,null,null,null,null,null,null,null,"備　考"]
[null,null,null,null,null,null,null,"㋑（現物）",null,null,null,null,{"$f":"IF(入力シート!$L$37=\"\",\"\",入力シート!$L$37)","v":""},null,null,null,null,null,null,null,null,null,null,"円",null,null,null,null,null,null,null,null,null,null,null,null,null,null,null,null,null,null,null,null,null,null,{"$f":"IF(入力シート!$P$37=\"\",\"\",DBCS(入力シート!$P$37))","v":""}]
[]
[]
[null,null,null,"⑪",null,null,null,null,null,null,null,null,null,null,null,null,null,null,null,null,null,null,null,null,null,null,null,null,null,null,null,null,null,null,null,null,null,null,null,null,null,null,null,null,null,null,null,null,null,null,null,null,null,null,null,null,null,null,null,"⑫",null,null,"□",null,"発行が必要"]
[null,null,null,null,null,null,null,null,"〒",null,{"$f":"IF(入力シート!$Q$37=\"\",\"\",DBCS(入力シート!$Q$37))","v":""},null,null,null,null,null,null,null,null,null,{"$f":"IF(入力シート!$R$37=\"\",\"\",DBCS(入力シート!$R$37))","v":""},null,null,null,null,null,null,null,null,null,null,null,null,null,null,null,null,null,null,null,null,null,null,null,null,null,{"$f":"IF(入力シート!$U$37=\"\",\"\",DBCS(入力シート!$U$37))","v":""}]
[null,null,null,"住所",null,null,null,null,null,null,null,null,null,null,null,null,null,null,null,null,null,null,null,null,null,null,null,null,null,null,null,null,null,null,null,null,null,null,null,null,null,null,null,null,null,null,null,null,null,null,null,null,null,null,null,null,null,null,null,"資格確認書\n発行要否"]
[null,null,null,null,null,null,null,null,{"$f":"IF(入力シート!$S$37=\"\",\"\",DBCS(入力シート!$S$37))","v":""},null,null,null,null,null,null,null,null,null,null,null,null,null,null,null,null,null,null,null,null,null,null,null,null,null,null,null,null,null,null,null,null,null,null,null,null,null,null,null,null,null,null,null,null,null,null,null,null,null,null,"被扶\n養者"]
[null,null,null,null,null,null,null,null,null,null,null,null,null,null,null,null,null,null,null,null,null,null,null,null,null,null,null,null,null,null,null,null,null,null,null,null,null,null,null,null,null,null,null,null,null,null,{"$f":"IF(入力シート!$V$37=\"\",\"\",DBCS(入力シート!$V$37))","v":""}]
[null,null,null,null,null,null,null,null,{"$f":"IF(入力シート!$T$37=\"\",\"\",DBCS(入力シート!$T$37))","v":""}]
[]
[]
[]
[null,"被保険者\n４",null,"①",null,null,null,{"$f":"IF(入力シート!$B$38=\"\",\"\",DBCS(入力シート!$B$38))","v":""},null,null,null,null,null,"②",null,null,null,{"$f":"IFERROR(LEFT(入力シート!$C$38,FIND(\" \",入力シート!$C$38,1)-1),\"\")","v":""},null,null,null,null,null,null,null,null,null,null,null,{"$f":"IFERROR(RIGHT(入力シート!$C$38,LEN(入力シート!$C$38)-FIND(\" \",入力シート!$C$38,1)),\"\")","v":""},null,null,null,null,null,null,null,null,null,null,null,"③",null,null,null,{"$f":"IF(入力シート!$E$38=\"\",\"\",IF(TEXT(入力シート!$E$38,\"g\")=\"S\",\"5．昭和\",IF(TEXT(入力シート!$E$38,\"g\")=\"H\",\"7．平成\",IF(TEXT(入力シート!$E$38,\"g\")=\"R\",\"9．令和\"))))","v":""},null,null,null,null,null,"年",null,null,"月",null,"日",null,null,"④",null,null,{"$f":"IF(入力シート!$F$38=\"\",\"\",IF(入力シート!$F$38=\"男\",\"1．男\",\"2．女\"))","v":""}]
[]
[null,null,null,"被保険者\n整理番号",null,null,null,null,null,null,null,null,null,"氏名",null,null,null,null,null,null,null,null,null,null,null,null,null,null,null,null,null,null,null,null,null,null,null,null,null,null,null,"生年\n月日",null,null,null,null,null,null,null,null,null,null,null,null,null,null,null,null,null,"種別"]
[null,null,null,null,null,null,null,null,null,null,null,null,null,null,null,null,null,null,null,null,null,null,null,null,null,null,null,null,null,null,null,null,null,null,null,null,null,null,null,null,null,null,null,null,null,null,null,null,null,null,null,{"$f":"IF(入力シート!$E$38=\"\",\"\",DBCS(TEXT(入力シート!$E$38,\"eemmdd\")))","v":""}]
[null,null,null,null,null,null,null,null,null,null,null,null,null,null,null,null,null,{"$f":"IFERROR(LEFT(入力シート!$D$38,FIND(\"　\",入力シート!$D$38,1)-1),\"\")","v":""},null,null,null,null,null,null,null,null,null,null,null,{"$f":"IFERROR(RIGHT(入力シート!$D$38,LEN(入力シート!$D$38)-FIND(\"　\",入力シート!$D$38,1)),\"\")","v":""}]
[]
[]
[]
[]
[]
[null,null,null,"⑤",null,null,null,{"$f":"IF(入力シート!$H$38=\"\",\"\",DBCS(入力シート!$H$38))","v":""},null,null,null,null,null,"⑥",null,null,null,{"$f":"IFERROR(IF(入力シート!$G$38=\"\",DBCS(LEFT(RIGHT(入力シート!$I$38,28-COLUMN()))),DBCS(LEFT(RIGHT(入力シート!$G$38,30-COLUMN())))),\"\")","v":""},null,{"$f":"IFERROR(IF(入力シート!$G$38=\"\",DBCS(LEFT(RIGHT(入力シート!$I$38,29-COLUMN()))),DBCS(LEFT(RIGHT(入力シート!$G$38,31-COLUMN())))),\"\")","v":""},null,{"$f":"IFERROR(IF(入力シート!$G$38=\"\",DBCS(LEFT(RIGHT(入力シート!$I$38,30-COLUMN()))),DBCS(LEFT(RIGHT(入力シート!$G$38,32-COLUMN())))),\"\")","v":""},null,{"$f":"IFERROR(IF(入力シート!$G$38=\"\",DBCS(LEFT(RIGHT(入力シート!$I$38,31-COLUMN()))),DBCS(LEFT(RIGHT(入力シート!$G$38,33-COLUMN())))),\"\")","v":""},null,{"$f":"IFERROR(IF(入力シート!$G$38=\"\",DBCS(LEFT(RIGHT(入力シート!$I$38,32-COLUMN()))),DBCS(LEFT(RIGHT(入力シート!$G$38,34-COLUMN())))),\"\")","v":""},null,{"$f":"IFERROR(IF(入力シート!$G$38=\"\",DBCS(LEFT(RIGHT(入力シート!$I$38,33-COLUMN()))),DBCS(LEFT(RIGHT(入力シート!$G$38,35-COLUMN())))),\"\")","v":""},null,{"$f":"IFERROR(IF(入力シート!$G$38=\"\",DBCS(LEFT(RIGHT(入力シート!$I$38,34-COLUMN()))),DBCS(LEFT(RIGHT(入力シート!$G$38,36-COLUMN())))),\"\")","v":""},null,{"$f":"IFERROR(IF(入力シート!$G$38=\"\",DBCS(LEFT(RIGHT(入力シート!$I$38,35-COLUMN()))),DBCS(LEFT(RIGHT(入力シート!$G$38,37-COLUMN())))),\"\")","v":""},null,{"$f":"IFERROR(IF(入力シート!$G$38=\"\",DBCS(LEFT(RIGHT(入力シート!$I$38,36-COLUMN()))),DBCS(LEFT(RIGHT(入力シート!$G$38,38-COLUMN())))),\"\")","v":""},null,{"$f":"IFERROR(IF(入力シート!$G$38=\"\",DBCS(LEFT(RIGHT(入力シート!$I$38,37-COLUMN()))),DBCS(LEFT(RIGHT(入力シート!$G$38,39-COLUMN())))),\"\")","v":""},null,{"$f":"IFERROR(IF(入力シート!$G$38=\"\",\"\",DBCS(LEFT(RIGHT(入力シート!$G$38,40-COLUMN())))),\"\")","v":""},null,{"$f":"IFERROR(IF(入力シート!$G$38=\"\",\"\",DBCS(LEFT(RIGHT(入力シート!$G$38,41-COLUMN())))),\"\")","v":""},null,"⑦",null,null,null,{"$f":"IF(入力シート!$J$38=\"\",\"\",IF(TEXT(入力シート!$J$38,\"g\")=\"S\",\"5．昭和\",IF(TEXT(入力シート!$J$38,\"g\")=\"H\",\"7．平成\",IF(TEXT(入力シート!$J$38,\"g\")=\"R\",\"9．令和\"))))","v":""},null,null,null,null,null,"年",null,null,"月",null,"日",null,null,"⑧",null,null,{"$f":"IF(入力シート!$N$38=\"\",\"\",DBCS(入力シート!$N$38))","v":""}]
[]
[null,null,null,"取得\n区分",null,null,null,null,null,null,null,null,null,"個人番号\n（基礎年\n金番号）",null,null,null,null,null,null,null,null,null,null,null,null,null,null,null,null,null,null,null,null,null,null,null,null,null,null,null,"取　得\n（該当）\n年月日",null,null,null,null,null,null,null,null,null,{"$f":"IF(入力シート!$J$38=\"\",\"\",DBCS(TEXT(入力シート!$J$38,\"eemmdd\")))","v":""},null,null,null,null,null,null,null,"被扶\n養者"]
[null,null,null,null,null,null,null,null,null,null,null,null,null,null,null,null,null,null,null,null,null,null,null,null,null,null,null,null,null,null,null,null,null,null,null,null,null,null,null,null,null,null,null,null,null,null,null,null,null,null,null,null,null,null,null,null,null,null,null,"被扶\n養者"]
[]
[]
[]
[null,null,null,"⑨",null,null,null,"㋐（通貨）",null,null,null,null,{"$f":"IF(入力シート!$K$38=\"\",\"\",入力シート!$K$38)","v":""},null,null,null,null,null,null,null,null,null,null,"円",null,"㋒（合計　㋐+㋑）",null,null,null,null,null,null,null,null,null,null,null,null,null,"円",null,"⑩",null,null,null,null,{"$f":"IF(入力シート!$O$38=\"\",\"\",DBCS(入力シート!$O$38))","v":""}]
[]
[null,null,null,"報酬\n月額",null,null,null,null,null,null,null,null,null,null,null,null,null,null,null,null,null,null,null,null,null,{"$f":"IF(入力シート!$M$38=\"\",\"\",入力シート!$M$38)","v":""},null,null,null,null,null,null,null,null,null,null,null,null,null,null,null,"備　考"]
[null,null,null,null,null,null,null,"㋑（現物）",null,null,null,null,{"$f":"IF(入力シート!$L$38=\"\",\"\",入力シート!$L$38)","v":""},null,null,null,null,null,null,null,null,null,null,"円",null,null,null,null,null,null,null,null,null,null,null,null,null,null,null,null,null,null,null,null,null,null,{"$f":"IF(入力シート!$P$38=\"\",\"\",DBCS(入力シート!$P$38))","v":""}]
[]
[]
[null,null,null,"⑪",null,null,null,null,null,null,null,null,null,null,null,null,null,null,null,null,null,null,null,null,null,null,null,null,null,null,null,null,null,null,null,null,null,null,null,null,null,null,null,null,null,null,null,null,null,null,null,null,null,null,null,null,null,null,null,"⑫",null,null,"□",null,"発行が必要"]
[null,null,null,null,null,null,null,null,"〒",null,{"$f":"IF(入力シート!$Q$38=\"\",\"\",DBCS(入力シート!$Q$38))","v":""},null,null,null,null,null,null,null,null,null,{"$f":"IF(入力シート!$R$38=\"\",\"\",DBCS(入力シート!$R$38))","v":""},null,null,null,null,null,null,null,null,null,null,null,null,null,null,null,null,null,null,null,null,null,null,null,null,null,{"$f":"IF(入力シート!$U$38=\"\",\"\",DBCS(入力シート!$U$38))","v":""}]
[null,null,null,"住所",null,null,null,null,null,null,null,null,null,null,null,null,null,null,null,null,null,null,null,null,null,null,null,null,null,null,null,null,null,null,null,null,null,null,null,null,null,null,null,null,null,null,null,null,null,null,null,null,null,null,null,null,null,null,null,"資格確認書\n発行要否"]
[null,null,null,null,null,null,null,null,{"$f":"IF(入力シート!$S$38=\"\",\"\",DBCS(入力シート!$S$38))","v":""},null,null,null,null,null,null,null,null,null,null,null,null,null,null,null,null,null,null,null,null,null,null,null,null,null,null,null,null,null,null,null,null,null,null,null,null,null,null,null,null,null,null,null,null,null,null,null,null,null,null,"被扶\n養者"]
[null,null,null,null,null,null,null,null,null,null,null,null,null,null,null,null,null,null,null,null,null,null,null,null,null,null,null,null,null,null,null,null,null,null,null,null,null,null,null,null,null,null,null,null,null,null,{"$f":"IF(入力シート!$V$38=\"\",\"\",DBCS(入力シート!$V$38))","v":""}]
[null,null,null,null,null,null,null,null,{"$f":"IF(入力シート!$T$38=\"\",\"\",DBCS(入力シート!$T$38))","v":""}]

{"sheet":"印刷_基金","index":3,"n_rows":915,"n_cols":63,"rows_kept":915,"cut":false,"hidden":false,"merged":[[172,23,179,24],[172,25,179,26],[172,27,179,69],[166,3,167,6],[159,3,160,6],[159,7,165,12],[159,13,160,16],[159,17,165,18],[159,19,165,20],[159,21,165,22],[159,23,165,24],[159,25,165,26],[159,27,165,28],[159,29,165,30],[159,31,165,32],[63,37,69,40],[76,27,83,69],[76,17,83,18],[76,19,83,20],[159,41,160,44],[159,45,165,50],[159,51,160,53],[159,54,160,55],[159,56,160,57],[159,59,160,61],[159,62,165,69],[159,33,165,34],[159,35,165,36],[159,37,165,40],[76,3,77,6],[78,3,83,6],[76,7,83,8],[76,9,83,10],[76,11,83,12],[76,13,83,14],[76,15,83,16],[76,21,83,22],[76,23,83,24],[76,25,83,26],[85,3,86,6],[85,13,86,16],[85,41,86,44],[108,19,115,20],[121,29,126,40],[127,3,128,6],[127,7,133,12],[127,13,128,16],[63,29,69,30],[63,31,69,32],[63,33,69,34],[63,3,64,6],[63,7,69,12],[63,13,64,16],[63,17,69,18],[63,19,69,20],[70,39,71,40],[70,41,71,44],[70,46,72,68],[72,3,75,6],[72,25,75,38],[72,39,75,40],[72,41,75,44],[73,7,75,11],[73,12,75,21],[73,22,75,22],[70,3,71,6],[70,7,72,11],[70,12,72,21],[70,22,72,22],[70,23,72,24],[70,25,71,36],[73,23,75,24],[73,46,75,68],[26,10,29,24],[30,8,33,35],[34,8,37,35],[38,3,42,6],[53,62,62,69],[48,3,50,6],[48,8,50,35],[63,62,69,69],[63,23,69,24],[63,25,69,26],[63,27,69,28],[43,8,47,35],[44,39,50,69],[53,1,83,2],[53,3,54,6],[53,7,62,12],[53,13,54,16],[53,17,56,28],[53,29,56,40],[53,41,54,44],[63,21,69,22],[56,51,62,58],[57,17,62,28],[57,29,62,40],[53,45,62,50],[53,51,54,53],[53,54,54,55],[53,56,54,57],[53,59,54,61],[63,54,64,55],[63,56,64,57],[63,59,64,61],[65,3,69,6],[65,13,69,16],[65,41,69,44],[65,51,69,58],[55,59,62,61],[55,41,62,44],[55,13,62,16],[55,3,62,6],[65,59,69,61],[63,35,69,36],[63,41,64,44],[63,45,69,50],[63,51,64,53],[2,18,6,25],[2,27,6,47],[5,1,7,2],[5,3,7,4],[5,5,7,6],[5,7,7,8],[14,1,17,13],[14,14,17,17],[17,55,17,69],[13,24,17,28],[13,29,17,36],[5,9,7,10],[2,1,4,10],[18,1,50,2],[18,3,22,6],[18,7,22,12],[18,13,22,14],[18,15,22,23],[18,24,22,28],[18,29,22,36],[38,8,42,35],[39,39,41,53],[42,39,43,50],[43,3,47,6],[18,55,20,69],[24,3,24,6],[24,7,50,7],[26,3,37,6],[26,8,29,9],[85,1,115,2],[85,7,94,12],[85,17,88,28],[85,29,88,40],[85,45,94,50],[85,51,86,53],[85,54,86,55],[85,56,86,57],[85,59,86,61],[95,51,96,53],[95,54,96,55],[95,56,96,57],[95,59,96,61],[108,3,109,6],[108,7,115,8],[108,9,115,10],[108,11,115,12],[108,13,115,14],[108,15,115,16],[108,17,115,18],[85,62,94,69],[87,3,94,6],[87,13,94,16],[87,41,94,44],[87,59,94,61],[88,51,94,58],[89,17,94,28],[89,29,94,40],[95,3,96,6],[95,7,101,12],[95,13,96,16],[95,17,101,18],[95,19,101,20],[95,21,101,22],[95,23,101,24],[95,25,101,26],[95,27,101,28],[95,29,101,30],[95,31,101,32],[95,33,101,34],[95,35,101,36],[95,37,101,40],[95,41,96,44],[95,45,101,50],[120,51,126,58],[121,17,126,28],[95,62,101,69],[97,3,101,6],[97,13,101,16],[97,41,101,44],[97,51,101,58],[97,59,101,61],[102,3,103,6],[102,7,104,11],[102,12,104,21],[102,22,104,22],[102,23,104,24],[102,25,103,36],[102,39,103,40],[102,41,103,44],[102,46,104,68],[104,3,107,6],[104,25,107,38],[104,39,107,40],[104,41,107,44],[105,7,107,11],[105,12,107,21],[105,22,107,22],[105,23,107,24],[105,46,107,68],[127,62,133,69],[127,17,133,18],[127,19,133,20],[127,21,133,22],[127,23,133,24],[127,25,133,26],[127,27,133,28],[127,29,133,30],[127,31,133,32],[127,33,133,34],[108,21,115,22],[108,23,115,24],[108,25,115,26],[108,27,115,69],[110,3,115,6],[117,1,147,2],[117,3,118,6],[117,7,126,12],[117,13,118,16],[117,17,120,28],[117,29,120,40],[117,41,118,44],[117,45,126,50],[117,51,118,53],[117,54,118,55],[117,56,118,57],[117,59,118,61],[117,62,126,69],[119,3,126,6],[119,13,126,16],[119,41,126,44],[119,59,126,61],[140,21,147,22],[129,3,133,6],[129,13,133,16],[129,41,133,44],[129,51,133,58],[129,59,133,61],[134,3,135,6],[134,7,136,11],[134,12,136,21],[134,22,136,22],[134,23,136,24],[134,25,135,36],[134,39,135,40],[134,41,135,44],[134,46,136,68],[136,3,139,6],[136,25,139,38],[136,39,139,40],[136,41,139,44],[137,7,139,11],[137,12,139,21],[137,22,139,22],[137,23,139,24],[137,46,139,68],[127,35,133,36],[127,37,133,40],[127,41,128,44],[127,45,133,50],[127,51,128,53],[127,54,128,55],[127,56,128,57],[127,59,128,61],[140,23,147,24],[140,25,147,26],[140,27,147,69],[142,3,147,6],[149,1,179,2],[149,3,150,6],[149,7,158,12],[149,13,150,16],[149,17,152,28],[149,29,152,40],[149,41,150,44],[149,45,158,50],[149,51,150,53],[149,54,150,55],[149,56,150,57],[149,59,150,61],[149,62,158,69],[151,3,158,6],[151,13,158,16],[151,41,158,44],[151,59,158,61],[152,51,158,58],[153,17,158,28],[153,29,158,40],[140,3,141,6],[140,7,147,8],[140,9,147,10],[140,11,147,12],[140,13,147,14],[140,15,147,16],[140,17,147,18],[140,19,147,20],[172,3,173,6],[172,7,179,8],[172,9,179,10],[172,11,179,12],[172,13,179,14],[172,15,179,16],[172,17,179,18],[172,19,179,20],[172,21,179,22],[174,3,179,6],[161,3,165,6],[161,13,165,16],[161,41,165,44],[161,51,165,58],[161,59,165,61],[166,7,168,11],[166,12,168,21],[166,22,168,22],[166,23,168,24],[166,25,167,36],[166,39,167,40],[166,41,167,44],[166,46,168,68],[168,3,171,6],[168,25,171,38],[168,39,171,40],[168,41,171,44],[169,7,171,11],[169,12,171,21],[169,22,171,22],[169,23,171,24],[169,46,171,68],[201,1,231,2],[201,3,202,6],[201,7,210,12],[201,13,202,16],[201,17,204,28],[201,29,204,40],[201,41,202,44],[201,45,210,50],[201,51,202,53],[211,3,212,6],[211,7,217,12],[211,13,212,16],[211,17,217,18],[211,19,217,20],[211,21,217,22],[211,23,217,24],[211,25,217,26],[211,27,217,28],[211,29,217,30],[211,31,217,32],[211,33,217,34],[211,35,217,36],[211,37,217,40],[211,41,212,44],[211,45,217,50],[211,51,212,53],[224,21,231,22],[218,3,219,6],[218,7,220,11],[218,12,220,21],[218,22,220,22],[218,23,220,24],[211,54,212,55],[211,56,212,57],[211,59,212,61],[211,62,217,69],[213,3,217,6],[213,13,217,16],[213,41,217,44],[213,51,217,58],[213,59,217,61],[201,54,202,55],[201,56,202,57],[201,59,202,61],[201,62,210,69],[203,3,210,6],[203,13,210,16],[203,41,210,44],[203,59,210,61],[204,51,210,58],[205,17,210,28],[205,29,210,40],[218,25,219,36],[218,39,219,40],[218,41,219,44],[218,46,220,68],[220,3,223,6],[220,25,223,38],[220,39,223,40],[220,41,223,44],[221,7,223,11],[221,12,223,21],[221,22,223,22],[221,23,223,24],[221,46,223,68],[224,23,231,24],[224,25,231,26],[224,27,231,69],[226,3,231,6],[224,3,225,6],[224,7,231,8],[224,9,231,10],[224,11,231,12],[224,13,231,14],[224,15,231,16],[224,17,231,18],[224,19,231,20],[233,1,263,2],[233,3,234,6],[233,7,242,12],[233,13,234,16],[233,17,236,28],[233,29,236,40],[233,41,234,44],[233,45,242,50],[233,51,234,53],[233,54,234,55],[233,56,234,57],[233,59,234,61],[233,62,242,69],[235,3,242,6],[235,13,242,16],[235,41,242,44],[235,59,242,61],[236,51,242,58],[237,17,242,28],[237,29,242,40],[252,3,255,6],[252,25,255,38],[252,39,255,40],[252,41,255,44],[253,7,255,11],[253,12,255,21],[253,22,255,22],[243,29,249,30],[243,31,249,32],[243,33,249,34],[243,35,249,36],[243,37,249,40],[243,41,244,44],[243,45,249,50],[243,51,244,53],[243,54,244,55],[243,3,244,6],[243,7,249,12],[243,13,244,16],[243,17,249,18],[243,19,249,20],[243,21,249,22],[243,23,249,24],[243,25,249,26],[243,27,249,28],[253,23,255,24],[253,46,255,68],[256,3,257,6],[256,7,263,8],[256,9,263,10],[256,11,263,12],[256,13,263,14],[256,15,263,16],[256,17,263,18],[256,19,263,20],[256,21,263,22],[256,23,263,24],[256,25,263,26],[256,27,263,69],[258,3,263,6],[243,56,244,57],[243,59,244,61],[243,62,249,69],[245,3,249,6],[245,13,249,16],[245,41,249,44],[245,51,249,58],[245,59,249,61],[250,3,251,6],[250,7,252,11],[250,12,252,21],[250,22,252,22],[250,23,252,24],[250,25,251,36],[250,39,251,40],[250,41,251,44],[250,46,252,68],[265,1,295,2],[265,3,266,6],[265,7,274,12],[265,13,266,16],[265,17,268,28],[265,29,268,40],[265,41,266,44],[265,45,274,50],[265,51,266,53],[275,3,276,6],[275,7,281,12],[275,13,276,16],[275,17,281,18],[275,19,281,20],[275,21,281,22],[275,23,281,24],[275,25,281,26],[275,27,281,28],[275,29,281,30],[275,31,281,32],[275,33,281,34],[275,35,281,36],[275,37,281,40],[275,41,276,44],[275,45,281,50],[275,51,276,53],[275,54,276,55],[275,56,276,57],[275,59,276,61],[275,62,281,69],[277,3,281,6],[277,13,281,16],[277,41,281,44],[277,51,281,58],[277,59,281,61],[265,54,266,55],[265,56,266,57],[265,59,266,61],[265,62,274,69],[267,3,274,6],[267,13,274,16],[267,41,274,44],[267,59,274,61],[268,51,274,58],[269,17,274,28],[269,29,274,40],[288,21,295,22],[282,3,283,6],[282,7,284,11],[282,12,284,21],[282,22,284,22],[282,23,284,24],[282,25,283,36],[282,39,283,40],[282,41,283,44],[282,46,284,68],[284,3,287,6],[284,25,287,38],[284,39,287,40],[284,41,287,44],[285,7,287,11],[285,12,287,21],[285,22,287,22],[285,23,287,24],[285,46,287,68],[288,23,295,24],[288,25,295,26],[288,27,295,69],[290,3,295,6],[288,3,289,6],[288,7,295,8],[288,9,295,10],[288,11,295,12],[288,13,295,14],[288,15,295,16],[288,17,295,18],[288,19,295,20],[297,1,327,2],[297,3,298,6],[297,7,306,12],[297,13,298,16],[297,17,300,28],[297,29,300,40],[297,41,298,44],[297,45,306,50],[297,51,298,53],[297,54,298,55],[297,56,298,57],[297,59,298,61],[297,62,306,69],[299,3,306,6],[299,13,306,16],[299,41,306,44],[299,59,306,61],[300,51,306,58],[301,17,306,28],[301,29,306,40],[316,3,319,6],[316,25,319,38],[316,39,319,40],[316,41,319,44],[317,7,319,11],[317,12,319,21],[317,22,319,22],[307,29,313,30],[307,31,313,32],[307,33,313,34],[307,35,313,36],[307,37,313,40],[307,41,308,44],[307,45,313,50],[307,51,308,53],[307,54,308,55],[307,3,308,6],[307,7,313,12],[307,13,308,16],[307,17,313,18],[307,19,313,20],[307,21,313,22],[307,23,313,24],[307,25,313,26],[307,27,313,28],[317,23,319,24],[317,46,319,68],[320,3,321,6],[320,7,327,8],[320,9,327,10],[320,11,327,12],[320,13,327,14],[320,15,327,16],[320,17,327,18],[320,19,327,20],[320,21,327,22],[320,23,327,24],[320,25,327,26],[320,27,327,69],[322,3,327,6],[307,56,308,57],[307,59,308,61],[307,62,313,69],[309,3,313,6],[309,13,313,16],[309,41,313,44],[309,51,313,58],[309,59,313,61],[314,3,315,6],[314,7,316,11],[314,12,316,21],[314,22,316,22],[314,23,316,24],[314,25,315,36],[314,39,315,40],[314,41,315,44],[314,46,316,68],[349,1,379,2],[349,3,350,6],[349,7,358,12],[349,13,350,16],[349,17,352,28],[349,29,352,40],[349,41,350,44],[349,45,358,50],[349,51,350,53],[359,3,360,6],[359,7,365,12],[359,13,360,16],[359,17,365,18],[359,19,365,20],[359,21,365,22],[359,23,365,24],[359,25,365,26],[359,27,365,28],[359,29,365,30],[359,31,365,32],[359,33,365,34],[359,35,365,36],[359,37,365,40],[359,41,360,44],[359,45,365,50],[359,51,360,53],[359,54,360,55],[359,56,360,57],[359,59,360,61],[359,62,365,69],[361,3,365,6],[361,13,365,16],[361,41,365,44],[361,51,365,58],[361,59,365,61],[349,54,350,55],[349,56,350,57],[349,59,350,61],[349,62,358,69],[351,3,358,6],[351,13,358,16],[351,41,358,44],[351,59,358,61],[352,51,358,58],[353,17,358,28],[353,29,358,40],[372,21,379,22],[366,3,367,6],[366,7,368,11],[366,12,368,21],[366,22,368,22],[366,23,368,24],[366,25,367,36],[366,39,367,40],[366,41,367,44],[366,46,368,68],[368,3,371,6],[368,25,371,38],[368,39,371,40],[368,41,371,44],[369,7,371,11],[369,12,371,21],[369,22,371,22],[369,23,371,24],[369,46,371,68],[372,23,379,24],[372,25,379,26],[372,27,379,69],[374,3,379,6],[372,3,373,6],[372,7,379,8],[372,9,379,10],[372,11,379,12],[372,13,379,14],[372,15,379,16],[372,17,379,18],[372,19,379,20],[381,1,411,2],[381,3,382,6],[381,7,390,12],[381,13,382,16],[381,17,384,28],[381,29,384,40],[381,41,382,44],[381,45,390,50],[381,51,382,53],[381,54,382,55],[381,56,382,57],[381,59,382,61],[381,62,390,69],[383,3,390,6],[383,13,390,16],[383,41,390,44],[383,59,390,61],[384,51,390,58],[385,17,390,28],[385,29,390,40],[400,3,403,6],[400,25,403,38],[400,39,403,40],[400,41,403,44],[401,7,403,11],[401,12,403,21],[401,22,403,22],[391,29,397,30],[391,31,397,32],[391,33,397,34],[391,35,397,36],[391,37,397,40],[391,41,392,44],[391,45,397,50],[391,51,392,53],[391,54,392,55],[391,3,392,6],[391,7,397,12],[391,13,392,16],[391,17,397,18],[391,19,397,20],[391,21,397,22],[391,23,397,24],[391,25,397,26],[391,27,397,28],[401,23,403,24],[401,46,403,68],[404,3,405,6],[404,7,411,8],[404,9,411,10],[404,11,411,12],[404,13,411,14],[404,15,411,16],[404,17,411,18],[404,19,411,20],[404,21,411,22],[404,23,411,24],[404,25,411,26],[404,27,411,69],[406,3,411,6],[391,56,392,57],[391,59,392,61],[391,62,397,69],[393,3,397,6],[393,13,397,16],[393,41,397,44],[393,51,397,58],[393,59,397,61],[398,3,399,6],[398,7,400,11],[398,12,400,21],[398,22,400,22],[398,23,400,24],[398,25,399,36],[398,39,399,40],[398,41,399,44],[398,46,400,68],[413,1,443,2],[413,3,414,6],[413,7,422,12],[413,13,414,16],[413,17,416,28],[413,29,416,40],[413,41,414,44],[413,45,422,50],[413,51,414,53],[423,3,424,6],[423,7,429,12],[423,13,424,16],[423,17,429,18],[423,19,429,20],[423,21,429,22],[423,23,429,24],[423,25,429,26],[423,27,429,28],[423,29,429,30],[423,31,429,32],[423,33,429,34],[423,35,429,36],[423,37,429,40],[423,41,424,44],[423,45,429,50],[423,51,424,53],[423,54,424,55],[423,56,424,57],[423,59,424,61],[423,62,429,69],[425,3,429,6],[425,13,429,16],[425,41,429,44],[425,51,429,58],[425,59,429,61],[413,54,414,55],[413,56,414,57],[413,59,414,61],[413,62,422,69],[415,3,422,6],[415,13,422,16],[415,41,422,44],[415,59,422,61],[416,51,422,58],[417,17,422,28],[417,29,422,40],[436,21,443,22],[430,3,431,6],[430,7,432,11],[430,12,432,21],[430,22,432,22],[430,23,432,24],[430,25,431,36],[430,39,431,40],[430,41,431,44],[430,46,432,68],[432,3,435,6],[432,25,435,38],[432,39,435,40],[432,41,435,44],[433,7,435,11],[433,12,435,21],[433,22,435,22],[433,23,435,24],[433,46,435,68],[436,23,443,24],[436,25,443,26],[436,27,443,69],[438,3,443,6],[436,3,437,6],[436,7,443,8],[436,9,443,10],[436,11,443,12],[436,13,443,14],[436,15,443,16],[436,17,443,18],[436,19,443,20],[445,1,475,2],[445,3,446,6],[445,7,454,12],[445,13,446,16],[445,17,448,28],[445,29,448,40],[445,41,446,44],[445,45,454,50],[445,51,446,53],[445,54,446,55],[445,56,446,57],[445,59,446,61],[445,62,454,69],[447,3,454,6],[447,13,454,16],[447,41,454,44],[447,59,454,61],[448,51,454,58],[449,17,454,28],[449,29,454,40],[464,3,467,6],[464,25,467,38],[464,39,467,40],[464,41,467,44],[465,7,467,11],[465,12,467,21],[465,22,467,22],[455,29,461,30],[455,31,461,32],[455,33,461,34],[455,35,461,36],[455,37,461,40],[455,41,456,44],[455,45,461,50],[455,51,456,53],[455,54,456,55],[455,3,456,6],[455,7,461,12],[455,13,456,16],[455,17,461,18],[455,19,461,20],[455,21,461,22],[455,23,461,24],[455,25,461,26],[455,27,461,28],[465,23,467,24],[465,46,467,68],[468,3,469,6],[468,7,475,8],[468,9,475,10],[468,11,475,12],[468,13,475,14],[468,15,475,16],[468,17,475,18],[468,19,475,20],[468,21,475,22],[468,23,475,24],[468,25,475,26],[468,27,475,69],[470,3,475,6],[455,56,456,57],[455,59,456,61],[455,62,461,69],[457,3,461,6],[457,13,461,16],[457,41,461,44],[457,51,461,58],[457,59,461,61],[462,3,463,6],[462,7,464,11],[462,12,464,21],[462,22,464,22],[462,23,464,24],[462,25,463,36],[462,39,463,40],[462,41,463,44],[462,46,464,68],[497,1,527,2],[497,3,498,6],[497,7,506,12],[497,13,498,16],[497,17,500,28],[497,29,500,40],[497,41,498,44],[497,45,506,50],[497,51,498,53],[507,3,508,6],[507,7,513,12],[507,13,508,16],[507,17,513,18],[507,19,513,20],[507,21,513,22],[507,23,513,24],[507,25,513,26],[507,27,513,28],[507,29,513,30],[507,31,513,32],[507,33,513,34],[507,35,513,36],[507,37,513,40],[507,41,508,44],[507,45,513,50],[507,51,508,53],[507,54,508,55],[507,56,508,57],[507,59,508,61],[507,62,513,69],[509,3,513,6],[509,13,513,16],[509,41,513,44],[509,51,513,58],[509,59,513,61],[497,54,498,55],[497,56,498,57],[497,59,498,61],[497,62,506,69]],"merged_total":1885,"flags":["merged_cut"]}
[]
[]
[null,"様式コード",null,null,null,null,null,null,null,null,null,null,null,null,null,null,null,null,"企業年金基金",null,null,null,null,null,null,null,null,"加入者資格取得届"]
[]
[]
[null,"Ｃ",null,"Ａ",null,"１",null,"０",null,"１"]
[]
[]
[]
[]
[]
[]
[]
[null,null,null,null,null,null,null,null,null,null,null,null,null,null,null,null,null,null,null,null,null,null,null,null,"基金\n事業所番号",null,null,null,null,{"$f":"IF(入力シート!$D$1=\"\",\"\",DBCS(入力シート!$D$1))","v":""}]
[null,{"$f":"IF(入力シート!$D$11=\"\",\"\",入力シート!$D$11)","v":""},null,null,null,null,null,null,null,null,null,null,null,null,"提出"]
[]
[]
[]
[null,"提\n出\n者\n記\n入\n欄",null,"事 業 所\n整理記号",null,null,null,{"$f":"IF(入力シート!$D$2=\"\",\"\",DBCS(入力シート!$D$2))","v":""},null,null,null,null,null,"-",null,{"$f":"IF(入力シート!$G$2=\"\",\"\",DBCS(入力シート!$G$2))","v":""},null,null,null,null,null,null,null,null,"事業所\n番　号",null,null,null,null,{"$f":"IF(入力シート!$D$3=\"\",\"\",DBCS(入力シート!$D$3))","v":""},null,null,null,null,null,null,null,null,null,null,null,null,null,null,null,null,null,null,null,null,null,null,null,null,null,"受付印"]
[]
[]
[]
[]
[]
[]
[]
[null,null,null,"事業所\n所在地",null,null,null,null,"〒",null,{"$f":"IF(入力シート!$D$4=\"\",\"\",DBCS(入力シート!$D$4))","v":""}]
[]
[]
[]
[null,null,null,null,null,null,null,null,{"$f":"IF(入力シート!$D$5=\"\",\"\",DBCS(入力シート!$D$5))","v":""}]
[]
[]
[]
[null,null,null,null,null,null,null,null,{"$f":"IF(入力シート!$D$6=\"\",\"\",DBCS(入力シート!$D$6))","v":""}]
[]
[]
[]
[null,null,null,"事業所\n名　称",null,null,null,null,{"$f":"IF(入力シート!$D$7=\"\",\"\",DBCS(入力シート!$D$7))","v":""}]
[null,null,null,null,null,null,null,null,null,null,null,null,null,null,null,null,null,null,null,null,null,null,null,null,null,null,null,null,null,null,null,null,null,null,null,null,null,null,null,"社会保険労務士記載欄"]
[]
[]
[null,null,null,null,null,null,null,null,null,null,null,null,null,null,null,null,null,null,null,null,null,null,null,null,null,null,null,null,null,null,null,null,null,null,null,null,null,null,null,"　　氏　　名　　等"]
[null,null,null,"事業主\n氏　名",null,null,null,null,{"$f":"IF(入力シート!$D$8=\"\",\"\",DBCS(入力シート!$D$8))","v":""}]
[]
[]
[]
[]
[null,null,null,"電話番号",null,null,null,null,{"$f":"IF(入力シート!$D$9=\"\",\"\",DBCS(入力シート!$D$9))","v":""}]
[]
[]
[]
[]
[null,"加入者\n１",null,"①",null,null,null,{"$f":"IF(入力シート!$B$15=\"\",\"\",DBCS(入力シート!$B$15))","v":""},null,null,null,null,null,"②",null,null,null,{"$f":"IFERROR(LEFT(入力シート!$C$15,FIND(\" \",入力シート!$C$15,1)-1),\"\")","v":""},null,null,null,null,null,null,null,null,null,null,null,{"$f":"IFERROR(RIGHT(入力シート!$C$15,LEN(入力シート!$C$15)-FIND(\" \",入力シート!$C$15,1)),\"\")","v":""},null,null,null,null,null,null,null,null,null,null,null,"③",null,null,null,{"$f":"IF(入力シート!$E$15=\"\",\"\",IF(TEXT(入力シート!$E$15,\"g\")=\"S\",\"5．昭和\",IF(TEXT(入力シート!$E$15,\"g\")=\"H\",\"7．平成\",IF(TEXT(入力シート!$E$15,\"g\")=\"R\",\"9．令和\"))))","v":""},null,null,null,null,null,"年",null,null,"月",null,"日",null,null,"④",null,null,{"$f":"IF(入力シート!$F$15=\"\",\"\",IF(入力シート!$F$15=\"男\",\"1．男\",\"2．女\"))","v":""}]
[]
[null,null,null,"被保険者\n整理番号",null,null,null,null,null,null,null,null,null,"氏名",null,null,null,null,null,null,null,null,null,null,null,null,null,null,null,null,null,null,null,null,null,null,null,null,null,null,null,"生年\n月日",null,null,null,null,null,null,null,null,null,null,null,null,null,null,null,null,null,"種別"]
[null,null,null,null,null,null,null,null,null,null,null,null,null,null,null,null,null,null,null,null,null,null,null,null,null,null,null,null,null,null,null,null,null,null,null,null,null,null,null,null,null,null,null,null,null,null,null,null,null,null,null,{"$f":"IF(入力シート!$E$15=\"\",\"\",DBCS(TEXT(入力シート!$E$15,\"eemmdd\")))","v":""}]
[null,null,null,null,null,null,null,null,null,null,null,null,null,null,null,null,null,{"$f":"IFERROR(LEFT(入力シート!$D$15,FIND(\"　\",入力シート!$D$15,1)-1),\"\")","v":""},null,null,null,null,null,null,null,null,null,null,null,{"$f":"IFERROR(RIGHT(入力シート!$D$15,LEN(入力シート!$D$15)-FIND(\"　\",入力シート!$D$15,1)),\"\")","v":""}]
[]
[]
[]
[]
[]
[null,null,null,"⑤",null,null,null,{"$f":"IF(入力シート!$H$15=\"\",\"\",DBCS(入力シート!$H$15))","v":""},null,null,null,null,null,"⑥",null,null,null,{"$f":"IFERROR(IF(入力シート!$I$15=\"\",\"\",DBCS(LEFT(RIGHT(入力シート!$I$15,28-COLUMN())))),\"\")","v":""},null,{"$f":"IFERROR(IF(入力シート!$I$15=\"\",\"\",DBCS(LEFT(RIGHT(入力シート!$I$15,29-COLUMN())))),\"\")","v":""},null,{"$f":"IFERROR(IF(入力シート!$I$15=\"\",\"\",DBCS(LEFT(RIGHT(入力シート!$I$15,30-COLUMN())))),\"\")","v":""},null,{"$f":"IFERROR(IF(入力シート!$I$15=\"\",\"\",DBCS(LEFT(RIGHT(入力シート!$I$15,31-COLUMN())))),\"\")","v":""},null,{"$f":"IFERROR(IF(入力シート!$I$15=\"\",\"\",DBCS(LEFT(RIGHT(入力シート!$I$15,32-COLUMN())))),\"\")","v":""},null,{"$f":"IFERROR(IF(入力シート!$I$15=\"\",\"\",DBCS(LEFT(RIGHT(入力シート!$I$15,33-COLUMN())))),\"\")","v":""},null,{"$f":"IFERROR(IF(入力シート!$I$15=\"\",\"\",DBCS(LEFT(RIGHT(入力シート!$I$15,34-COLUMN())))),\"\")","v":""},null,{"$f":"IFERROR(IF(入力シート!$I$15=\"\",\"\",DBCS(LEFT(RIGHT(入力シート!$I$15,35-COLUMN())))),\"\")","v":""},null,{"$f":"IFERROR(IF(入力シート!$I$15=\"\",\"\",DBCS(LEFT(RIGHT(入力シート!$I$15,36-COLUMN())))),\"\")","v":""},null,{"$f":"IFERROR(IF(入力シート!$I$15=\"\",\"\",DBCS(LEFT(RIGHT(入力シート!$I$15,37-COLUMN())))),\"\")","v":""},null,null,null,null,null,"⑦",null,null,null,{"$f":"IF(入力シート!$J$15=\"\",\"\",IF(TEXT(入力シート!$J$15,\"g\")=\"S\",\"5．昭和\",IF(TEXT(入力シート!$J$15,\"g\")=\"H\",\"7．平成\",IF(TEXT(入力シート!$J$15,\"g\")=\"R\",\"9．令和\"))))","v":""},null,null,null,null,null,"年",null,null,"月",null,"日",null,null,"⑧"]
[]
[null,null,null,"取得\n区分",null,null,null,null,null,null,null,null,null,"基礎年\n金番号",null,null,null,null,null,null,null,null,null,null,null,null,null,null,null,null,null,null,null,null,null,null,null,null,null,null,null,"取　得\n（該当）\n年月日",null,null,null,null,null,null,null,null,null,{"$f":"IF(入力シート!$J$15=\"\",\"\",DBCS(TEXT(入力シート!$J$15,\"eemmdd\")))","v":""},null,null,null,null,null,null,null,"被扶\n養者"]
[null,null,null,null,null,null,null,null,null,null,null,null,null,null,null,null,null,null,null,null,null,null,null,null,null,null,null,null,null,null,null,null,null,null,null,null,null,null,null,null,null,null,null,null,null,null,null,null,null,null,null,null,null,null,null,null,null,null,null,"被扶\n養者"]
[]
[]
[]
[null,null,null,"⑨",null,null,null,"㋐（通貨）",null,null,null,null,{"$f":"IF(入力シート!$K$15=\"\",\"\",入力シート!$K$15)","v":""},null,null,null,null,null,null,null,null,null,null,"円",null,"㋒（合計　㋐+㋑）",null,null,null,null,null,null,null,null,null,null,null,null,null,"円",null,"⑩",null,null,null,null,{"$f":"IF(入力シート!$O$15=\"\",\"\",DBCS(入力シート!$O$15))","v":""}]
[]
[null,null,null,"報酬\n月額",null,null,null,null,null,null,null,null,null,null,null,null,null,null,null,null,null,null,null,null,null,{"$f":"IF(入力シート!$M$15=\"\",\"\",入力シート!$M$15)","v":""},null,null,null,null,null,null,null,null,null,null,null,null,null,null,null,"備　考"]
[null,null,null,null,null,null,null,"㋑（現物）",null,null,null,null,{"$f":"IF(入力シート!$L$15=\"\",\"\",入力シート!$L$15)","v":""},null,null,null,null,null,null,null,null,null,null,"円",null,null,null,null,null,null,null,null,null,null,null,null,null,null,null,null,null,null,null,null,null,null,{"$f":"IF(入力シート!$P$15=\"\",\"\",DBCS(入力シート!$P$15))","v":""}]
[]
[]
[null,null,null,"⑪",null,null,null,{"$f":"IFERROR(IF(入力シート!$X$15=\"\",\"\",DBCS(LEFT(RIGHT(入力シート!$X$15,18-COLUMN())))),\"\")","v":""},null,{"$f":"IFERROR(IF(入力シート!$X$15=\"\",\"\",DBCS(LEFT(RIGHT(入力シート!$X$15,19-COLUMN())))),\"\")","v":""},null,{"$f":"IFERROR(IF(入力シート!$X$15=\"\",\"\",DBCS(LEFT(RIGHT(入力シート!$X$15,20-COLUMN())))),\"\")","v":""},null,{"$f":"IFERROR(IF(入力シート!$X$15=\"\",\"\",DBCS(LEFT(RIGHT(入力シート!$X$15,21-COLUMN())))),\"\")","v":""},null,{"$f":"IFERROR(IF(入力シート!$X$15=\"\",\"\",DBCS(LEFT(RIGHT(入力シート!$X$15,22-COLUMN())))),\"\")","v":""},null,{"$f":"IFERROR(IF(入力シート!$X$15=\"\",\"\",DBCS(LEFT(RIGHT(入力シート!$X$15,23-COLUMN())))),\"\")","v":""},null,{"$f":"IFERROR(IF(入力シート!$X$15=\"\",\"\",DBCS(LEFT(RIGHT(入力シート!$X$15,24-COLUMN())))),\"\")","v":""},null,{"$f":"IFERROR(IF(入力シート!$X$15=\"\",\"\",DBCS(LEFT(RIGHT(入力シート!$X$15,25-COLUMN())))),\"\")","v":""},null,{"$f":"IFERROR(IF(入力シート!$X$15=\"\",\"\",DBCS(LEFT(RIGHT(入力シート!$X$15,26-COLUMN())))),\"\")","v":""},null,{"$f":"IFERROR(IF(入力シート!$X$15=\"\",\"\",DBCS(LEFT(RIGHT(入力シート!$X$15,27-COLUMN())))),\"\")","v":""}]
[]
[null,null,null,"加入者\n番　号"]
[]
[]
[]
[]
[]
[]
[null,"加入者\n２",null,"①",null,null,null,{"$f":"IF(入力シート!$B$16=\"\",\"\",DBCS(入力シート!$B$16))","v":""},null,null,null,null,null,"②",null,null,null,{"$f":"IFERROR(LEFT(入力シート!$C$16,FIND(\" \",入力シート!$C$16,1)-1),\"\")","v":""},null,null,null,null,null,null,null,null,null,null,null,{"$f":"IFERROR(RIGHT(入力シート!$C$16,LEN(入力シート!$C$16)-FIND(\" \",入力シート!$C$16,1)),\"\")","v":""},null,null,null,null,null,null,null,null,null,null,null,"③",null,null,null,{"$f":"IF(入力シート!$E$16=\"\",\"\",IF(TEXT(入力シート!$E$16,\"g\")=\"S\",\"5．昭和\",IF(TEXT(入力シート!$E$16,\"g\")=\"H\",\"7．平成\",IF(TEXT(入力シート!$E$16,\"g\")=\"R\",\"9．令和\"))))","v":""},null,null,null,null,null,"年",null,null,"月",null,"日",null,null,"④",null,null,{"$f":"IF(入力シート!$F$16=\"\",\"\",IF(入力シート!$F$16=\"男\",\"1．男\",\"2．女\"))","v":""}]
[]
[null,null,null,"被保険者\n整理番号",null,null,null,null,null,null,null,null,null,"氏名",null,null,null,null,null,null,null,null,null,null,null,null,null,null,null,null,null,null,null,null,null,null,null,null,null,null,null,"生年\n月日",null,null,null,null,null,null,null,null,null,null,null,null,null,null,null,null,null,"種別"]
[null,null,null,null,null,null,null,null,null,null,null,null,null,null,null,null,null,null,null,null,null,null,null,null,null,null,null,null,null,null,null,null,null,null,null,null,null,null,null,null,null,null,null,null,null,null,null,null,null,null,null,{"$f":"IF(入力シート!$E$16=\"\",\"\",DBCS(TEXT(入力シート!$E$16,\"eemmdd\")))","v":""}]
[null,null,null,null,null,null,null,null,null,null,null,null,null,null,null,null,null,{"$f":"IFERROR(LEFT(入力シート!$D$16,FIND(\"　\",入力シート!$D$16,1)-1),\"\")","v":""},null,null,null,null,null,null,null,null,null,null,null,{"$f":"IFERROR(RIGHT(入力シート!$D$16,LEN(入力シート!$D$16)-FIND(\"　\",入力シート!$D$16,1)),\"\")","v":""}]
[]
[]
[]
[]
[]
[null,null,null,"⑤",null,null,null,{"$f":"IF(入力シート!$H$16=\"\",\"\",DBCS(入力シート!$H$16))","v":""},null,null,null,null,null,"⑥",null,null,null,{"$f":"IFERROR(IF(入力シート!$I$16=\"\",\"\",DBCS(LEFT(RIGHT(入力シート!$I$16,28-COLUMN())))),\"\")","v":""},null,{"$f":"IFERROR(IF(入力シート!$I$16=\"\",\"\",DBCS(LEFT(RIGHT(入力シート!$I$16,29-COLUMN())))),\"\")","v":""},null,{"$f":"IFERROR(IF(入力シート!$I$16=\"\",\"\",DBCS(LEFT(RIGHT(入力シート!$I$16,30-COLUMN())))),\"\")","v":""},null,{"$f":"IFERROR(IF(入力シート!$I$16=\"\",\"\",DBCS(LEFT(RIGHT(入力シート!$I$16,31-COLUMN())))),\"\")","v":""},null,{"$f":"IFERROR(IF(入力シート!$I$16=\"\",\"\",DBCS(LEFT(RIGHT(入力シート!$I$16,32-COLUMN())))),\"\")","v":""},null,{"$f":"IFERROR(IF(入力シート!$I$16=\"\",\"\",DBCS(LEFT(RIGHT(入力シート!$I$16,33-COLUMN())))),\"\")","v":""},null,{"$f":"IFERROR(IF(入力シート!$I$16=\"\",\"\",DBCS(LEFT(RIGHT(入力シート!$I$16,34-COLUMN())))),\"\")","v":""},null,{"$f":"IFERROR(IF(入力シート!$I$16=\"\",\"\",DBCS(LEFT(RIGHT(入力シート!$I$16,35-COLUMN())))),\"\")","v":""},null,{"$f":"IFERROR(IF(入力シート!$I$16=\"\",\"\",DBCS(LEFT(RIGHT(入力シート!$I$16,36-COLUMN())))),\"\")","v":""},null,{"$f":"IFERROR(IF(入力シート!$I$16=\"\",\"\",DBCS(LEFT(RIGHT(入力シート!$I$16,37-COLUMN())))),\"\")","v":""},null,null,null,null,null,"⑦",null,null,null,{"$f":"IF(入力シート!$J$16=\"\",\"\",IF(TEXT(入力シート!$J$16,\"g\")=\"S\",\"5．昭和\",IF(TEXT(入力シート!$J$16,\"g\")=\"H\",\"7．平成\",IF(TEXT(入力シート!$J$16,\"g\")=\"R\",\"9．令和\"))))","v":""},null,null,null,null,null,"年",null,null,"月",null,"日",null,null,"⑧"]
[]
[null,null,null,"取得\n区分",null,null,null,null,null,null,null,null,null,"基礎年\n金番号",null,null,null,null,null,null,null,null,null,null,null,null,null,null,null,null,null,null,null,null,null,null,null,null,null,null,null,"取　得\n（該当）\n年月日",null,null,null,null,null,null,null,null,null,{"$f":"IF(入力シート!$J$16=\"\",\"\",DBCS(TEXT(入力シート!$J$16,\"eemmdd\")))","v":""},null,null,null,null,null,null,null,"被扶\n養者"]
[null,null,null,null,null,null,null,null,null,null,null,null,null,null,null,null,null,null,null,null,null,null,null,null,null,null,null,null,null,null,null,null,null,null,null,null,null,null,null,null,null,null,null,null,null,null,null,null,null,null,null,null,null,null,null,null,null,null,null,"被扶\n養者"]
[]
[]
[]
[null,null,null,"⑨",null,null,null,"㋐（通貨）",null,null,null,null,{"$f":"IF(入力シート!$K$16=\"\",\"\",入力シート!$K$16)","v":""},null,null,null,null,null,null,null,null,null,null,"円",null,"㋒（合計　㋐+㋑）",null,null,null,null,null,null,null,null,null,null,null,null,null,"円",null,"⑩",null,null,null,null,{"$f":"IF(入力シート!$O$16=\"\",\"\",DBCS(入力シート!$O$16))","v":""}]
[]
[null,null,null,"報酬\n月額",null,null,null,null,null,null,null,null,null,null,null,null,null,null,null,null,null,null,null,null,null,{"$f":"IF(入力シート!$M$16=\"\",\"\",入力シート!$M$16)","v":""},null,null,null,null,null,null,null,null,null,null,null,null,null,null,null,"備　考"]
[null,null,null,null,null,null,null,"㋑（現物）",null,null,null,null,{"$f":"IF(入力シート!$L$16=\"\",\"\",入力シート!$L$16)","v":""},null,null,null,null,null,null,null,null,null,null,"円",null,null,null,null,null,null,null,null,null,null,null,null,null,null,null,null,null,null,null,null,null,null,{"$f":"IF(入力シート!$P$16=\"\",\"\",DBCS(入力シート!$P$16))","v":""}]
[]
[]
[null,null,null,"⑪",null,null,null,{"$f":"IFERROR(IF(入力シート!$X$16=\"\",\"\",DBCS(LEFT(RIGHT(入力シート!$X$16,18-COLUMN())))),\"\")","v":""},null,{"$f":"IFERROR(IF(入力シート!$X$16=\"\",\"\",DBCS(LEFT(RIGHT(入力シート!$X$16,19-COLUMN())))),\"\")","v":""},null,{"$f":"IFERROR(IF(入力シート!$X$16=\"\",\"\",DBCS(LEFT(RIGHT(入力シート!$X$16,20-COLUMN())))),\"\")","v":""},null,{"$f":"IFERROR(IF(入力シート!$X$16=\"\",\"\",DBCS(LEFT(RIGHT(入力シート!$X$16,21-COLUMN())))),\"\")","v":""},null,{"$f":"IFERROR(IF(入力シート!$X$16=\"\",\"\",DBCS(LEFT(RIGHT(入力シート!$X$16,22-COLUMN())))),\"\")","v":""},null,{"$f":"IFERROR(IF(入力シート!$X$16=\"\",\"\",DBCS(LEFT(RIGHT(入力シート!$X$16,23-COLUMN())))),\"\")","v":""},null,{"$f":"IFERROR(IF(入力シート!$X$16=\"\",\"\",DBCS(LEFT(RIGHT(入力シート!$X$16,24-COLUMN())))),\"\")","v":""},null,{"$f":"IFERROR(IF(入力シート!$X$16=\"\",\"\",DBCS(LEFT(RIGHT(入力シート!$X$16,25-COLUMN())))),\"\")","v":""},null,{"$f":"IFERROR(IF(入力シート!$X$16=\"\",\"\",DBCS(LEFT(RIGHT(入力シート!$X$16,26-COLUMN())))),\"\")","v":""},null,{"$f":"IFERROR(IF(入力シート!$X$16=\"\",\"\",DBCS(LEFT(RIGHT(入力シート!$X$16,27-COLUMN())))),\"\")","v":""}]
[]
[null,null,null,"加入者\n番　号"]
[]
[]
[]
[]
[]
[]
[null,"加入者\n３",null,"①",null,null,null,{"$f":"IF(入力シート!$B$17=\"\",\"\",DBCS(入力シート!$B$17))","v":""},null,null,null,null,null,"②",null,null,null,{"$f":"IFERROR(LEFT(入力シート!$C$17,FIND(\" \",入力シート!$C$17,1)-1),\"\")","v":""},null,null,null,null,null,null,null,null,null,null,null,{"$f":"IFERROR(RIGHT(入力シート!$C$17,LEN(入力シート!$C$17)-FIND(\" \",入力シート!$C$17,1)),\"\")","v":""},null,null,null,null,null,null,null,null,null,null,null,"③",null,null,null,{"$f":"IF(入力シート!$E$17=\"\",\"\",IF(TEXT(入力シート!$E$17,\"g\")=\"S\",\"5．昭和\",IF(TEXT(入力シート!$E$17,\"g\")=\"H\",\"7．平成\",IF(TEXT(入力シート!$E$17,\"g\")=\"R\",\"9．令和\"))))","v":""},null,null,null,null,null,"年",null,null,"月",null,"日",null,null,"④",null,null,{"$f":"IF(入力シート!$F$17=\"\",\"\",IF(入力シート!$F$17=\"男\",\"1．男\",\"2．女\"))","v":""}]
[]
[null,null,null,"被保険者\n整理番号",null,null,null,null,null,null,null,null,null,"氏名",null,null,null,null,null,null,null,null,null,null,null,null,null,null,null,null,null,null,null,null,null,null,null,null,null,null,null,"生年\n月日",null,null,null,null,null,null,null,null,null,null,null,null,null,null,null,null,null,"種別"]
[null,null,null,null,null,null,null,null,null,null,null,null,null,null,null,null,null,null,null,null,null,null,null,null,null,null,null,null,null,null,null,null,null,null,null,null,null,null,null,null,null,null,null,null,null,null,null,null,null,null,null,{"$f":"IF(入力シート!$E$17=\"\",\"\",DBCS(TEXT(入力シート!$E$17,\"eemmdd\")))","v":""}]
[null,null,null,null,null,null,null,null,null,null,null,null,null,null,null,null,null,{"$f":"IFERROR(LEFT(入力シート!$D$17,FIND(\"　\",入力シート!$D$17,1)-1),\"\")","v":""},null,null,null,null,null,null,null,null,null,null,null,{"$f":"IFERROR(RIGHT(入力シート!$D$17,LEN(入力シート!$D$17)-FIND(\"　\",入力シート!$D$17,1)),\"\")","v":""}]
[]
[]
[]
[]
[]
[null,null,null,"⑤",null,null,null,{"$f":"IF(入力シート!$H$17=\"\",\"\",DBCS(入力シート!$H$17))","v":""},null,null,null,null,null,"⑥",null,null,null,{"$f":"IFERROR(IF(入力シート!$I$17=\"\",\"\",DBCS(LEFT(RIGHT(入力シート!$I$17,28-COLUMN())))),\"\")","v":""},null,{"$f":"IFERROR(IF(入力シート!$I$17=\"\",\"\",DBCS(LEFT(RIGHT(入力シート!$I$17,29-COLUMN())))),\"\")","v":""},null,{"$f":"IFERROR(IF(入力シート!$I$17=\"\",\"\",DBCS(LEFT(RIGHT(入力シート!$I$17,30-COLUMN())))),\"\")","v":""},null,{"$f":"IFERROR(IF(入力シート!$I$17=\"\",\"\",DBCS(LEFT(RIGHT(入力シート!$I$17,31-COLUMN())))),\"\")","v":""},null,{"$f":"IFERROR(IF(入力シート!$I$17=\"\",\"\",DBCS(LEFT(RIGHT(入力シート!$I$17,32-COLUMN())))),\"\")","v":""},null,{"$f":"IFERROR(IF(入力シート!$I$17=\"\",\"\",DBCS(LEFT(RIGHT(入力シート!$I$17,33-COLUMN())))),\"\")","v":""},null,{"$f":"IFERROR(IF(入力シート!$I$17=\"\",\"\",DBCS(LEFT(RIGHT(入力シート!$I$17,34-COLUMN())))),\"\")","v":""},null,{"$f":"IFERROR(IF(入力シート!$I$17=\"\",\"\",DBCS(LEFT(RIGHT(入力シート!$I$17,35-COLUMN())))),\"\")","v":""},null,{"$f":"IFERROR(IF(入力シート!$I$17=\"\",\"\",DBCS(LEFT(RIGHT(入力シート!$I$17,36-COLUMN())))),\"\")","v":""},null,{"$f":"IFERROR(IF(入力シート!$I$17=\"\",\"\",DBCS(LEFT(RIGHT(入力シート!$I$17,37-COLUMN())))),\"\")","v":""},null,null,null,null,null,"⑦",null,null,null,{"$f":"IF(入力シート!$J$17=\"\",\"\",IF(TEXT(入力シート!$J$17,\"g\")=\"S\",\"5．昭和\",IF(TEXT(入力シート!$J$17,\"g\")=\"H\",\"7．平成\",IF(TEXT(入力シート!$J$17,\"g\")=\"R\",\"9．令和\"))))","v":""},null,null,null,null,null,"年",null,null,"月",null,"日",null,null,"⑧"]
[]
[null,null,null,"取得\n区分",null,null,null,null,null,null,null,null,null,"基礎年\n金番号",null,null,null,null,null,null,null,null,null,null,null,null,null,null,null,null,null,null,null,null,null,null,null,null,null,null,null,"取　得\n（該当）\n年月日",null,null,null,null,null,null,null,null,null,{"$f":"IF(入力シート!$J$17=\"\",\"\",DBCS(TEXT(入力シート!$J$17,\"eemmdd\")))","v":""},null,null,null,null,null,null,null,"被扶\n養者"]
[null,null,null,null,null,null,null,null,null,null,null,null,null,null,null,null,null,null,null,null,null,null,null,null,null,null,null,null,null,null,null,null,null,null,null,null,null,null,null,null,null,null,null,null,null,null,null,null,null,null,null,null,null,null,null,null,null,null,null,"被扶\n養者"]
[]
[]
[]
[null,null,null,"⑨",null,null,null,"㋐（通貨）",null,null,null,null,{"$f":"IF(入力シート!$K$17=\"\",\"\",入力シート!$K$17)","v":""},null,null,null,null,null,null,null,null,null,null,"円",null,"㋒（合計　㋐+㋑）",null,null,null,null,null,null,null,null,null,null,null,null,null,"円",null,"⑩",null,null,null,null,{"$f":"IF(入力シート!$O$17=\"\",\"\",DBCS(入力シート!$O$17))","v":""}]
[]
[null,null,null,"報酬\n月額",null,null,null,null,null,null,null,null,null,null,null,null,null,null,null,null,null,null,null,null,null,{"$f":"IF(入力シート!$M$17=\"\",\"\",入力シート!$M$17)","v":""},null,null,null,null,null,null,null,null,null,null,null,null,null,null,null,"備　考"]
[null,null,null,null,null,null,null,"㋑（現物）",null,null,null,null,{"$f":"IF(入力シート!$L$17=\"\",\"\",入力シート!$L$17)","v":""},null,null,null,null,null,null,null,null,null,null,"円",null,null,null,null,null,null,null,null,null,null,null,null,null,null,null,null,null,null,null,null,null,null,{"$f":"IF(入力シート!$P$17=\"\",\"\",DBCS(入力シート!$P$17))","v":""}]
[]
[]
[null,null,null,"⑪",null,null,null,{"$f":"IFERROR(IF(入力シート!$X$17=\"\",\"\",DBCS(LEFT(RIGHT(入力シート!$X$17,18-COLUMN())))),\"\")","v":""},null,{"$f":"IFERROR(IF(入力シート!$X$17=\"\",\"\",DBCS(LEFT(RIGHT(入力シート!$X$17,19-COLUMN())))),\"\")","v":""},null,{"$f":"IFERROR(IF(入力シート!$X$17=\"\",\"\",DBCS(LEFT(RIGHT(入力シート!$X$17,20-COLUMN())))),\"\")","v":""},null,{"$f":"IFERROR(IF(入力シート!$X$17=\"\",\"\",DBCS(LEFT(RIGHT(入力シート!$X$17,21-COLUMN())))),\"\")","v":""},null,{"$f":"IFERROR(IF(入力シート!$X$17=\"\",\"\",DBCS(LEFT(RIGHT(入力シート!$X$17,22-COLUMN())))),\"\")","v":""},null,{"$f":"IFERROR(IF(入力シート!$X$17=\"\",\"\",DBCS(LEFT(RIGHT(入力シート!$X$17,23-COLUMN())))),\"\")","v":""},null,{"$f":"IFERROR(IF(入力シート!$X$17=\"\",\"\",DBCS(LEFT(RIGHT(入力シート!$X$17,24-COLUMN())))),\"\")","v":""},null,{"$f":"IFERROR(IF(入力シート!$X$17=\"\",\"\",DBCS(LEFT(RIGHT(入力シート!$X$17,25-COLUMN())))),\"\")","v":""},null,{"$f":"IFERROR(IF(入力シート!$X$17=\"\",\"\",DBCS(LEFT(RIGHT(入力シート!$X$17,26-COLUMN())))),\"\")","v":""},null,{"$f":"IFERROR(IF(入力シート!$X$17=\"\",\"\",DBCS(LEFT(RIGHT(入力シート!$X$17,27-COLUMN())))),\"\")","v":""}]
[]
[null,null,null,"加入者\n番　号"]
[]
[]
[]
[]
[]
[]
[null,"加入者\n４",null,"①",null,null,null,{"$f":"IF(入力シート!$B$18=\"\",\"\",DBCS(入力シート!$B$18))","v":""},null,null,null,null,null,"②",null,null,null,{"$f":"IFERROR(LEFT(入力シート!$C$18,FIND(\" \",入力シート!$C$18,1)-1),\"\")","v":""},null,null,null,null,null,null,null,null,null,null,null,{"$f":"IFERROR(RIGHT(入力シート!$C$18,LEN(入力シート!$C$18)-FIND(\" \",入力シート!$C$18,1)),\"\")","v":""},null,null,null,null,null,null,null,null,null,null,null,"③",null,null,null,{"$f":"IF(入力シート!$E$18=\"\",\"\",IF(TEXT(入力シート!$E$18,\"g\")=\"S\",\"5．昭和\",IF(TEXT(入力シート!$E$18,\"g\")=\"H\",\"7．平成\",IF(TEXT(入力シート!$E$18,\"g\")=\"R\",\"9．令和\"))))","v":""},null,null,null,null,null,"年",null,null,"月",null,"日",null,null,"④",null,null,{"$f":"IF(入力シート!$F$18=\"\",\"\",IF(入力シート!$F$18=\"男\",\"1．男\",\"2．女\"))","v":""}]
[]
[null,null,null,"被保険者\n整理番号",null,null,null,null,null,null,null,null,null,"氏名",null,null,null,null,null,null,null,null,null,null,null,null,null,null,null,null,null,null,null,null,null,null,null,null,null,null,null,"生年\n月日",null,null,null,null,null,null,null,null,null,null,null,null,null,null,null,null,null,"種別"]
[null,null,null,null,null,null,null,null,null,null,null,null,null,null,null,null,null,null,null,null,null,null,null,null,null,null,null,null,null,null,null,null,null,null,null,null,null,null,null,null,null,null,null,null,null,null,null,null,null,null,null,{"$f":"IF(入力シート!$E$18=\"\",\"\",DBCS(TEXT(入力シート!$E$18,\"eemmdd\")))","v":""}]
[null,null,null,null,null,null,null,null,null,null,null,null,null,null,null,null,null,{"$f":"IFERROR(LEFT(入力シート!$D$18,FIND(\"　\",入力シート!$D$18,1)-1),\"\")","v":""},null,null,null,null,null,null,null,null,null,null,null,{"$f":"IFERROR(RIGHT(入力シート!$D$18,LEN(入力シート!$D$18)-FIND(\"　\",入力シート!$D$18,1)),\"\")","v":""}]
[]
[]
[]
[]
[]
[null,null,null,"⑤",null,null,null,{"$f":"IF(入力シート!$H$18=\"\",\"\",DBCS(入力シート!$H$18))","v":""},null,null,null,null,null,"⑥",null,null,null,{"$f":"IFERROR(IF(入力シート!$I$18=\"\",\"\",DBCS(LEFT(RIGHT(入力シート!$I$18,28-COLUMN())))),\"\")","v":""},null,{"$f":"IFERROR(IF(入力シート!$I$18=\"\",\"\",DBCS(LEFT(RIGHT(入力シート!$I$18,29-COLUMN())))),\"\")","v":""},null,{"$f":"IFERROR(IF(入力シート!$I$18=\"\",\"\",DBCS(LEFT(RIGHT(入力シート!$I$18,30-COLUMN())))),\"\")","v":""},null,{"$f":"IFERROR(IF(入力シート!$I$18=\"\",\"\",DBCS(LEFT(RIGHT(入力シート!$I$18,31-COLUMN())))),\"\")","v":""},null,{"$f":"IFERROR(IF(入力シート!$I$18=\"\",\"\",DBCS(LEFT(RIGHT(入力シート!$I$18,32-COLUMN())))),\"\")","v":""},null,{"$f":"IFERROR(IF(入力シート!$I$18=\"\",\"\",DBCS(LEFT(RIGHT(入力シート!$I$18,33-COLUMN())))),\"\")","v":""},null,{"$f":"IFERROR(IF(入力シート!$I$18=\"\",\"\",DBCS(LEFT(RIGHT(入力シート!$I$18,34-COLUMN())))),\"\")","v":""},null,{"$f":"IFERROR(IF(入力シート!$I$18=\"\",\"\",DBCS(LEFT(RIGHT(入力シート!$I$18,35-COLUMN())))),\"\")","v":""},null,{"$f":"IFERROR(IF(入力シート!$I$18=\"\",\"\",DBCS(LEFT(RIGHT(入力シート!$I$18,36-COLUMN())))),\"\")","v":""},null,{"$f":"IFERROR(IF(入力シート!$I$18=\"\",\"\",DBCS(LEFT(RIGHT(入力シート!$I$18,37-COLUMN())))),\"\")","v":""},null,null,null,null,null,"⑦",null,null,null,{"$f":"IF(入力シート!$J$18=\"\",\"\",IF(TEXT(入力シート!$J$18,\"g\")=\"S\",\"5．昭和\",IF(TEXT(入力シート!$J$18,\"g\")=\"H\",\"7．平成\",IF(TEXT(入力シート!$J$18,\"g\")=\"R\",\"9．令和\"))))","v":""},null,null,null,null,null,"年",null,null,"月",null,"日",null,null,"⑧"]
[]
[null,null,null,"取得\n区分",null,null,null,null,null,null,null,null,null,"基礎年\n金番号",null,null,null,null,null,null,null,null,null,null,null,null,null,null,null,null,null,null,null,null,null,null,null,null,null,null,null,"取　得\n（該当）\n年月日",null,null,null,null,null,null,null,null,null,{"$f":"IF(入力シート!$J$18=\"\",\"\",DBCS(TEXT(入力シート!$J$18,\"eemmdd\")))","v":""},null,null,null,null,null,null,null,"被扶\n養者"]
[null,null,null,null,null,null,null,null,null,null,null,null,null,null,null,null,null,null,null,null,null,null,null,null,null,null,null,null,null,null,null,null,null,null,null,null,null,null,null,null,null,null,null,null,null,null,null,null,null,null,null,null,null,null,null,null,null,null,null,"被扶\n養者"]
[]
[]
[]
[null,null,null,"⑨",null,null,null,"㋐（通貨）",null,null,null,null,{"$f":"IF(入力シート!$K$18=\"\",\"\",入力シート!$K$18)","v":""},null,null,null,null,null,null,null,null,null,null,"円",null,"㋒（合計　㋐+㋑）",null,null,null,null,null,null,null,null,null,null,null,null,null,"円",null,"⑩",null,null,null,null,{"$f":"IF(入力シート!$O$18=\"\",\"\",DBCS(入力シート!$O$18))","v":""}]
[]
[null,null,null,"報酬\n月額",null,null,null,null,null,null,null,null,null,null,null,null,null,null,null,null,null,null,null,null,null,{"$f":"IF(入力シート!$M$18=\"\",\"\",入力シート!$M$18)","v":""},null,null,null,null,null,null,null,null,null,null,null,null,null,null,null,"備　考"]
[null,null,null,null,null,null,null,"㋑（現物）",null,null,null,null,{"$f":"IF(入力シート!$L$18=\"\",\"\",入力シート!$L$18)","v":""},null,null,null,null,null,null,null,null,null,null,"円",null,null,null,null,null,null,null,null,null,null,null,null,null,null,null,null,null,null,null,null,null,null,{"$f":"IF(入力シート!$P$18=\"\",\"\",DBCS(入力シート!$P$18))","v":""}]
[]
[]
[null,null,null,"⑪",null,null,null,{"$f":"IFERROR(IF(入力シート!$X$18=\"\",\"\",DBCS(LEFT(RIGHT(入力シート!$X$18,18-COLUMN())))),\"\")","v":""},null,{"$f":"IFERROR(IF(入力シート!$X$18=\"\",\"\",DBCS(LEFT(RIGHT(入力シート!$X$18,19-COLUMN())))),\"\")","v":""},null,{"$f":"IFERROR(IF(入力シート!$X$18=\"\",\"\",DBCS(LEFT(RIGHT(入力シート!$X$18,20-COLUMN())))),\"\")","v":""},null,{"$f":"IFERROR(IF(入力シート!$X$18=\"\",\"\",DBCS(LEFT(RIGHT(入力シート!$X$18,21-COLUMN())))),\"\")","v":""},null,{"$f":"IFERROR(IF(入力シート!$X$18=\"\",\"\",DBCS(LEFT(RIGHT(入力シート!$X$18,22-COLUMN())))),\"\")","v":""},null,{"$f":"IFERROR(IF(入力シート!$X$18=\"\",\"\",DBCS(LEFT(RIGHT(入力シート!$X$18,23-COLUMN())))),\"\")","v":""},null,{"$f":"IFERROR(IF(入力シート!$X$18=\"\",\"\",DBCS(LEFT(RIGHT(入力シート!$X$18,24-COLUMN())))),\"\")","v":""},null,{"$f":"IFERROR(IF(入力シート!$X$18=\"\",\"\",DBCS(LEFT(RIGHT(入力シート!$X$18,25-COLUMN())))),\"\")","v":""},null,{"$f":"IFERROR(IF(入力シート!$X$18=\"\",\"\",DBCS(LEFT(RIGHT(入力シート!$X$18,26-COLUMN())))),\"\")","v":""},null,{"$f":"IFERROR(IF(入力シート!$X$18=\"\",\"\",DBCS(LEFT(RIGHT(入力シート!$X$18,27-COLUMN())))),\"\")","v":""}]
[]
[null,null,null,"加入者\n番　号"]
[]
[]
[]
[]
[]
[]
[]
[]
[]
[]
[]
[]
[]
[]
[]
[]
[]
[]
[]
[]
[]
[]
[]
[]
[]
[]
[null,"加入者\n１",null,"①",null,null,null,{"$f":"IF(入力シート!$B$19=\"\",\"\",DBCS(入力シート!$B$19))","v":""},null,null,null,null,null,"②",null,null,null,{"$f":"IFERROR(LEFT(入力シート!$C$19,FIND(\" \",入力シート!$C$19,1)-1),\"\")","v":""},null,null,null,null,null,null,null,null,null,null,null,{"$f":"IFERROR(RIGHT(入力シート!$C$19,LEN(入力シート!$C$19)-FIND(\" \",入力シート!$C$19,1)),\"\")","v":""},null,null,null,null,null,null,null,null,null,null,null,"③",null,null,null,{"$f":"IF(入力シート!$E$19=\"\",\"\",IF(TEXT(入力シート!$E$19,\"g\")=\"S\",\"5．昭和\",IF(TEXT(入力シート!$E$19,\"g\")=\"H\",\"7．平成\",IF(TEXT(入力シート!$E$19,\"g\")=\"R\",\"9．令和\"))))","v":""},null,null,null,null,null,"年",null,null,"月",null,"日",null,null,"④",null,null,{"$f":"IF(入力シート!$F$19=\"\",\"\",IF(入力シート!$F$19=\"男\",\"1．男\",\"2．女\"))","v":""}]
[]
[null,null,null,"被保険者\n整理番号",null,null,null,null,null,null,null,null,null,"氏名",null,null,null,null,null,null,null,null,null,null,null,null,null,null,null,null,null,null,null,null,null,null,null,null,null,null,null,"生年\n月日",null,null,null,null,null,null,null,null,null,null,null,null,null,null,null,null,null,"種別"]
[null,null,null,null,null,null,null,null,null,null,null,null,null,null,null,null,null,null,null,null,null,null,null,null,null,null,null,null,null,null,null,null,null,null,null,null,null,null,null,null,null,null,null,null,null,null,null,null,null,null,null,{"$f":"IF(入力シート!$E$19=\"\",\"\",DBCS(TEXT(入力シート!$E$19,\"eemmdd\")))","v":""}]
[null,null,null,null,null,null,null,null,null,null,null,null,null,null,null,null,null,{"$f":"IFERROR(LEFT(入力シート!$D$19,FIND(\"　\",入力シート!$D$19,1)-1),\"\")","v":""},null,null,null,null,null,null,null,null,null,null,null,{"$f":"IFERROR(RIGHT(入力シート!$D$19,LEN(入力シート!$D$19)-FIND(\"　\",入力シート!$D$19,1)),\"\")","v":""}]
[]
[]
[]
[]
[]
[null,null,null,"⑤",null,null,null,{"$f":"IF(入力シート!$H$19=\"\",\"\",DBCS(入力シート!$H$19))","v":""},null,null,null,null,null,"⑥",null,null,null,{"$f":"IFERROR(IF(入力シート!$I$19=\"\",\"\",DBCS(LEFT(RIGHT(入力シート!$I$19,28-COLUMN())))),\"\")","v":""},null,{"$f":"IFERROR(IF(入力シート!$I$19=\"\",\"\",DBCS(LEFT(RIGHT(入力シート!$I$19,29-COLUMN())))),\"\")","v":""},null,{"$f":"IFERROR(IF(入力シート!$I$19=\"\",\"\",DBCS(LEFT(RIGHT(入力シート!$I$19,30-COLUMN())))),\"\")","v":""},null,{"$f":"IFERROR(IF(入力シート!$I$19=\"\",\"\",DBCS(LEFT(RIGHT(入力シート!$I$19,31-COLUMN())))),\"\")","v":""},null,{"$f":"IFERROR(IF(入力シート!$I$19=\"\",\"\",DBCS(LEFT(RIGHT(入力シート!$I$19,32-COLUMN())))),\"\")","v":""},null,{"$f":"IFERROR(IF(入力シート!$I$19=\"\",\"\",DBCS(LEFT(RIGHT(入力シート!$I$19,33-COLUMN())))),\"\")","v":""},null,{"$f":"IFERROR(IF(入力シート!$I$19=\"\",\"\",DBCS(LEFT(RIGHT(入力シート!$I$19,34-COLUMN())))),\"\")","v":""},null,{"$f":"IFERROR(IF(入力シート!$I$19=\"\",\"\",DBCS(LEFT(RIGHT(入力シート!$I$19,35-COLUMN())))),\"\")","v":""},null,{"$f":"IFERROR(IF(入力シート!$I$19=\"\",\"\",DBCS(LEFT(RIGHT(入力シート!$I$19,36-COLUMN())))),\"\")","v":""},null,{"$f":"IFERROR(IF(入力シート!$I$19=\"\",\"\",DBCS(LEFT(RIGHT(入力シート!$I$19,37-COLUMN())))),\"\")","v":""},null,null,null,null,null,"⑦",null,null,null,{"$f":"IF(入力シート!$J$19=\"\",\"\",IF(TEXT(入力シート!$J$19,\"g\")=\"S\",\"5．昭和\",IF(TEXT(入力シート!$J$19,\"g\")=\"H\",\"7．平成\",IF(TEXT(入力シート!$J$19,\"g\")=\"R\",\"9．令和\"))))","v":""},null,null,null,null,null,"年",null,null,"月",null,"日",null,null,"⑧"]
[]
[null,null,null,"取得\n区分",null,null,null,null,null,null,null,null,null,"基礎年\n金番号",null,null,null,null,null,null,null,null,null,null,null,null,null,null,null,null,null,null,null,null,null,null,null,null,null,null,null,"取　得\n（該当）\n年月日",null,null,null,null,null,null,null,null,null,{"$f":"IF(入力シート!$J$19=\"\",\"\",DBCS(TEXT(入力シート!$J$19,\"eemmdd\")))","v":""},null,null,null,null,null,null,null,"被扶\n養者"]
[null,null,null,null,null,null,null,null,null,null,null,null,null,null,null,null,null,null,null,null,null,null,null,null,null,null,null,null,null,null,null,null,null,null,null,null,null,null,null,null,null,null,null,null,null,null,null,null,null,null,null,null,null,null,null,null,null,null,null,"被扶\n養者"]
[]
[]
[]
[null,null,null,"⑨",null,null,null,"㋐（通貨）",null,null,null,null,{"$f":"IF(入力シート!$K$19=\"\",\"\",入力シート!$K$19)","v":""},null,null,null,null,null,null,null,null,null,null,"円",null,"㋒（合計　㋐+㋑）",null,null,null,null,null,null,null,null,null,null,null,null,null,"円",null,"⑩",null,null,null,null,{"$f":"IF(入力シート!$O$19=\"\",\"\",DBCS(入力シート!$O$19))","v":""}]
[]
[null,null,null,"報酬\n月額",null,null,null,null,null,null,null,null,null,null,null,null,null,null,null,null,null,null,null,null,null,{"$f":"IF(入力シート!$M$19=\"\",\"\",入力シート!$M$19)","v":""},null,null,null,null,null,null,null,null,null,null,null,null,null,null,null,"備　考"]
[null,null,null,null,null,null,null,"㋑（現物）",null,null,null,null,{"$f":"IF(入力シート!$L$19=\"\",\"\",入力シート!$L$19)","v":""},null,null,null,null,null,null,null,null,null,null,"円",null,null,null,null,null,null,null,null,null,null,null,null,null,null,null,null,null,null,null,null,null,null,{"$f":"IF(入力シート!$P$19=\"\",\"\",DBCS(入力シート!$P$19))","v":""}]
[]
[]
[null,null,null,"⑪",null,null,null,{"$f":"IFERROR(IF(入力シート!$X$19=\"\",\"\",DBCS(LEFT(RIGHT(入力シート!$X$19,18-COLUMN())))),\"\")","v":""},null,{"$f":"IFERROR(IF(入力シート!$X$19=\"\",\"\",DBCS(LEFT(RIGHT(入力シート!$X$19,19-COLUMN())))),\"\")","v":""},null,{"$f":"IFERROR(IF(入力シート!$X$19=\"\",\"\",DBCS(LEFT(RIGHT(入力シート!$X$19,20-COLUMN())))),\"\")","v":""},null,{"$f":"IFERROR(IF(入力シート!$X$19=\"\",\"\",DBCS(LEFT(RIGHT(入力シート!$X$19,21-COLUMN())))),\"\")","v":""},null,{"$f":"IFERROR(IF(入力シート!$X$19=\"\",\"\",DBCS(LEFT(RIGHT(入力シート!$X$19,22-COLUMN())))),\"\")","v":""},null,{"$f":"IFERROR(IF(入力シート!$X$19=\"\",\"\",DBCS(LEFT(RIGHT(入力シート!$X$19,23-COLUMN())))),\"\")","v":""},null,{"$f":"IFERROR(IF(入力シート!$X$19=\"\",\"\",DBCS(LEFT(RIGHT(入力シート!$X$19,24-COLUMN())))),\"\")","v":""},null,{"$f":"IFERROR(IF(入力シート!$X$19=\"\",\"\",DBCS(LEFT(RIGHT(入力シート!$X$19,25-COLUMN())))),\"\")","v":""},null,{"$f":"IFERROR(IF(入力シート!$X$19=\"\",\"\",DBCS(LEFT(RIGHT(入力シート!$X$19,26-COLUMN())))),\"\")","v":""},null,{"$f":"IFERROR(IF(入力シート!$X$19=\"\",\"\",DBCS(LEFT(RIGHT(入力シート!$X$19,27-COLUMN())))),\"\")","v":""}]
[]
[null,null,null,"加入者\n番　号"]
[]
[]
[]
[]
[]
[]
[null,"加入者\n２",null,"①",null,null,null,{"$f":"IF(入力シート!$B$20=\"\",\"\",DBCS(入力シート!$B$20))","v":""},null,null,null,null,null,"②",null,null,null,{"$f":"IFERROR(LEFT(入力シート!$C$20,FIND(\" \",入力シート!$C$20,1)-1),\"\")","v":""},null,null,null,null,null,null,null,null,null,null,null,{"$f":"IFERROR(RIGHT(入力シート!$C$20,LEN(入力シート!$C$20)-FIND(\" \",入力シート!$C$20,1)),\"\")","v":""},null,null,null,null,null,null,null,null,null,null,null,"③",null,null,null,{"$f":"IF(入力シート!$E$20=\"\",\"\",IF(TEXT(入力シート!$E$20,\"g\")=\"S\",\"5．昭和\",IF(TEXT(入力シート!$E$20,\"g\")=\"H\",\"7．平成\",IF(TEXT(入力シート!$E$20,\"g\")=\"R\",\"9．令和\"))))","v":""},null,null,null,null,null,"年",null,null,"月",null,"日",null,null,"④",null,null,{"$f":"IF(入力シート!$F$20=\"\",\"\",IF(入力シート!$F$20=\"男\",\"1．男\",\"2．女\"))","v":""}]
[]
[null,null,null,"被保険者\n整理番号",null,null,null,null,null,null,null,null,null,"氏名",null,null,null,null,null,null,null,null,null,null,null,null,null,null,null,null,null,null,null,null,null,null,null,null,null,null,null,"生年\n月日",null,null,null,null,null,null,null,null,null,null,null,null,null,null,null,null,null,"種別"]
[null,null,null,null,null,null,null,null,null,null,null,null,null,null,null,null,null,null,null,null,null,null,null,null,null,null,null,null,null,null,null,null,null,null,null,null,null,null,null,null,null,null,null,null,null,null,null,null,null,null,null,{"$f":"IF(入力シート!$E$20=\"\",\"\",DBCS(TEXT(入力シート!$E$20,\"eemmdd\")))","v":""}]
[null,null,null,null,null,null,null,null,null,null,null,null,null,null,null,null,null,{"$f":"IFERROR(LEFT(入力シート!$D$20,FIND(\"　\",入力シート!$D$20,1)-1),\"\")","v":""},null,null,null,null,null,null,null,null,null,null,null,{"$f":"IFERROR(RIGHT(入力シート!$D$20,LEN(入力シート!$D$20)-FIND(\"　\",入力シート!$D$20,1)),\"\")","v":""}]
[]
[]
[]
[]
[]
[null,null,null,"⑤",null,null,null,{"$f":"IF(入力シート!$H$20=\"\",\"\",DBCS(入力シート!$H$20))","v":""},null,null,null,null,null,"⑥",null,null,null,{"$f":"IFERROR(IF(入力シート!$I$20=\"\",\"\",DBCS(LEFT(RIGHT(入力シート!$I$20,28-COLUMN())))),\"\")","v":""},null,{"$f":"IFERROR(IF(入力シート!$I$20=\"\",\"\",DBCS(LEFT(RIGHT(入力シート!$I$20,29-COLUMN())))),\"\")","v":""},null,{"$f":"IFERROR(IF(入力シート!$I$20=\"\",\"\",DBCS(LEFT(RIGHT(入力シート!$I$20,30-COLUMN())))),\"\")","v":""},null,{"$f":"IFERROR(IF(入力シート!$I$20=\"\",\"\",DBCS(LEFT(RIGHT(入力シート!$I$20,31-COLUMN())))),\"\")","v":""},null,{"$f":"IFERROR(IF(入力シート!$I$20=\"\",\"\",DBCS(LEFT(RIGHT(入力シート!$I$20,32-COLUMN())))),\"\")","v":""},null,{"$f":"IFERROR(IF(入力シート!$I$20=\"\",\"\",DBCS(LEFT(RIGHT(入力シート!$I$20,33-COLUMN())))),\"\")","v":""},null,{"$f":"IFERROR(IF(入力シート!$I$20=\"\",\"\",DBCS(LEFT(RIGHT(入力シート!$I$20,34-COLUMN())))),\"\")","v":""},null,{"$f":"IFERROR(IF(入力シート!$I$20=\"\",\"\",DBCS(LEFT(RIGHT(入力シート!$I$20,35-COLUMN())))),\"\")","v":""},null,{"$f":"IFERROR(IF(入力シート!$I$20=\"\",\"\",DBCS(LEFT(RIGHT(入力シート!$I$20,36-COLUMN())))),\"\")","v":""},null,{"$f":"IFERROR(IF(入力シート!$I$20=\"\",\"\",DBCS(LEFT(RIGHT(入力シート!$I$20,37-COLUMN())))),\"\")","v":""},null,null,null,null,null,"⑦",null,null,null,{"$f":"IF(入力シート!$J$20=\"\",\"\",IF(TEXT(入力シート!$J$20,\"g\")=\"S\",\"5．昭和\",IF(TEXT(入力シート!$J$20,\"g\")=\"H\",\"7．平成\",IF(TEXT(入力シート!$J$20,\"g\")=\"R\",\"9．令和\"))))","v":""},null,null,null,null,null,"年",null,null,"月",null,"日",null,null,"⑧"]
[]
[null,null,null,"取得\n区分",null,null,null,null,null,null,null,null,null,"基礎年\n金番号",null,null,null,null,null,null,null,null,null,null,null,null,null,null,null,null,null,null,null,null,null,null,null,null,null,null,null,"取　得\n（該当）\n年月日",null,null,null,null,null,null,null,null,null,{"$f":"IF(入力シート!$J$20=\"\",\"\",DBCS(TEXT(入力シート!$J$20,\"eemmdd\")))","v":""},null,null,null,null,null,null,null,"被扶\n養者"]
[null,null,null,null,null,null,null,null,null,null,null,null,null,null,null,null,null,null,null,null,null,null,null,null,null,null,null,null,null,null,null,null,null,null,null,null,null,null,null,null,null,null,null,null,null,null,null,null,null,null,null,null,null,null,null,null,null,null,null,"被扶\n養者"]
[]
[]
[]
[null,null,null,"⑨",null,null,null,"㋐（通貨）",null,null,null,null,{"$f":"IF(入力シート!$K$20=\"\",\"\",入力シート!$K$20)","v":""},null,null,null,null,null,null,null,null,null,null,"円",null,"㋒（合計　㋐+㋑）",null,null,null,null,null,null,null,null,null,null,null,null,null,"円",null,"⑩",null,null,null,null,{"$f":"IF(入力シート!$O$20=\"\",\"\",DBCS(入力シート!$O$20))","v":""}]
[]
[null,null,null,"報酬\n月額",null,null,null,null,null,null,null,null,null,null,null,null,null,null,null,null,null,null,null,null,null,{"$f":"IF(入力シート!$M$20=\"\",\"\",入力シート!$M$20)","v":""},null,null,null,null,null,null,null,null,null,null,null,null,null,null,null,"備　考"]
[null,null,null,null,null,null,null,"㋑（現物）",null,null,null,null,{"$f":"IF(入力シート!$L$20=\"\",\"\",入力シート!$L$20)","v":""},null,null,null,null,null,null,null,null,null,null,"円",null,null,null,null,null,null,null,null,null,null,null,null,null,null,null,null,null,null,null,null,null,null,{"$f":"IF(入力シート!$P$20=\"\",\"\",DBCS(入力シート!$P$20))","v":""}]
[]
[]
[null,null,null,"⑪",null,null,null,{"$f":"IFERROR(IF(入力シート!$X$20=\"\",\"\",DBCS(LEFT(RIGHT(入力シート!$X$20,18-COLUMN())))),\"\")","v":""},null,{"$f":"IFERROR(IF(入力シート!$X$20=\"\",\"\",DBCS(LEFT(RIGHT(入力シート!$X$20,19-COLUMN())))),\"\")","v":""},null,{"$f":"IFERROR(IF(入力シート!$X$20=\"\",\"\",DBCS(LEFT(RIGHT(入力シート!$X$20,20-COLUMN())))),\"\")","v":""},null,{"$f":"IFERROR(IF(入力シート!$X$20=\"\",\"\",DBCS(LEFT(RIGHT(入力シート!$X$20,21-COLUMN())))),\"\")","v":""},null,{"$f":"IFERROR(IF(入力シート!$X$20=\"\",\"\",DBCS(LEFT(RIGHT(入力シート!$X$20,22-COLUMN())))),\"\")","v":""},null,{"$f":"IFERROR(IF(入力シート!$X$20=\"\",\"\",DBCS(LEFT(RIGHT(入力シート!$X$20,23-COLUMN())))),\"\")","v":""},null,{"$f":"IFERROR(IF(入力シート!$X$20=\"\",\"\",DBCS(LEFT(RIGHT(入力シート!$X$20,24-COLUMN())))),\"\")","v":""},null,{"$f":"IFERROR(IF(入力シート!$X$20=\"\",\"\",DBCS(LEFT(RIGHT(入力シート!$X$20,25-COLUMN())))),\"\")","v":""},null,{"$f":"IFERROR(IF(入力シート!$X$20=\"\",\"\",DBCS(LEFT(RIGHT(入力シート!$X$20,26-COLUMN())))),\"\")","v":""},null,{"$f":"IFERROR(IF(入力シート!$X$20=\"\",\"\",DBCS(LEFT(RIGHT(入力シート!$X$20,27-COLUMN())))),\"\")","v":""}]
[]
[null,null,null,"加入者\n番　号"]
[]
[]
[]
[]
[]
[]
[null,"加入者\n３",null,"①",null,null,null,{"$f":"IF(入力シート!$B$21=\"\",\"\",DBCS(入力シート!$B$21))","v":""},null,null,null,null,null,"②",null,null,null,{"$f":"IFERROR(LEFT(入力シート!$C$21,FIND(\" \",入力シート!$C$21,1)-1),\"\")","v":""},null,null,null,null,null,null,null,null,null,null,null,{"$f":"IFERROR(RIGHT(入力シート!$C$21,LEN(入力シート!$C$21)-FIND(\" \",入力シート!$C$21,1)),\"\")","v":""},null,null,null,null,null,null,null,null,null,null,null,"③",null,null,null,{"$f":"IF(入力シート!$E$21=\"\",\"\",IF(TEXT(入力シート!$E$21,\"g\")=\"S\",\"5．昭和\",IF(TEXT(入力シート!$E$21,\"g\")=\"H\",\"7．平成\",IF(TEXT(入力シート!$E$21,\"g\")=\"R\",\"9．令和\"))))","v":""},null,null,null,null,null,"年",null,null,"月",null,"日",null,null,"④",null,null,{"$f":"IF(入力シート!$F$21=\"\",\"\",IF(入力シート!$F$21=\"男\",\"1．男\",\"2．女\"))","v":""}]
[]
[null,null,null,"被保険者\n整理番号",null,null,null,null,null,null,null,null,null,"氏名",null,null,null,null,null,null,null,null,null,null,null,null,null,null,null,null,null,null,null,null,null,null,null,null,null,null,null,"生年\n月日",null,null,null,null,null,null,null,null,null,null,null,null,null,null,null,null,null,"種別"]
[null,null,null,null,null,null,null,null,null,null,null,null,null,null,null,null,null,null,null,null,null,null,null,null,null,null,null,null,null,null,null,null,null,null,null,null,null,null,null,null,null,null,null,null,null,null,null,null,null,null,null,{"$f":"IF(入力シート!$E$21=\"\",\"\",DBCS(TEXT(入力シート!$E$21,\"eemmdd\")))","v":""}]
[null,null,null,null,null,null,null,null,null,null,null,null,null,null,null,null,null,{"$f":"IFERROR(LEFT(入力シート!$D$21,FIND(\"　\",入力シート!$D$21,1)-1),\"\")","v":""},null,null,null,null,null,null,null,null,null,null,null,{"$f":"IFERROR(RIGHT(入力シート!$D$21,LEN(入力シート!$D$21)-FIND(\"　\",入力シート!$D$21,1)),\"\")","v":""}]
[]
[]
[]
[]
[]
[null,null,null,"⑤",null,null,null,{"$f":"IF(入力シート!$H$21=\"\",\"\",DBCS(入力シート!$H$21))","v":""},null,null,null,null,null,"⑥",null,null,null,{"$f":"IFERROR(IF(入力シート!$I$21=\"\",\"\",DBCS(LEFT(RIGHT(入力シート!$I$21,28-COLUMN())))),\"\")","v":""},null,{"$f":"IFERROR(IF(入力シート!$I$21=\"\",\"\",DBCS(LEFT(RIGHT(入力シート!$I$21,29-COLUMN())))),\"\")","v":""},null,{"$f":"IFERROR(IF(入力シート!$I$21=\"\",\"\",DBCS(LEFT(RIGHT(入力シート!$I$21,30-COLUMN())))),\"\")","v":""},null,{"$f":"IFERROR(IF(入力シート!$I$21=\"\",\"\",DBCS(LEFT(RIGHT(入力シート!$I$21,31-COLUMN())))),\"\")","v":""},null,{"$f":"IFERROR(IF(入力シート!$I$21=\"\",\"\",DBCS(LEFT(RIGHT(入力シート!$I$21,32-COLUMN())))),\"\")","v":""},null,{"$f":"IFERROR(IF(入力シート!$I$21=\"\",\"\",DBCS(LEFT(RIGHT(入力シート!$I$21,33-COLUMN())))),\"\")","v":""},null,{"$f":"IFERROR(IF(入力シート!$I$21=\"\",\"\",DBCS(LEFT(RIGHT(入力シート!$I$21,34-COLUMN())))),\"\")","v":""},null,{"$f":"IFERROR(IF(入力シート!$I$21=\"\",\"\",DBCS(LEFT(RIGHT(入力シート!$I$21,35-COLUMN())))),\"\")","v":""},null,{"$f":"IFERROR(IF(入力シート!$I$21=\"\",\"\",DBCS(LEFT(RIGHT(入力シート!$I$21,36-COLUMN())))),\"\")","v":""},null,{"$f":"IFERROR(IF(入力シート!$I$21=\"\",\"\",DBCS(LEFT(RIGHT(入力シート!$I$21,37-COLUMN())))),\"\")","v":""},null,null,null,null,null,"⑦",null,null,null,{"$f":"IF(入力シート!$J$21=\"\",\"\",IF(TEXT(入力シート!$J$21,\"g\")=\"S\",\"5．昭和\",IF(TEXT(入力シート!$J$21,\"g\")=\"H\",\"7．平成\",IF(TEXT(入力シート!$J$21,\"g\")=\"R\",\"9．令和\"))))","v":""},null,null,null,null,null,"年",null,null,"月",null,"日",null,null,"⑧"]
[]
[null,null,null,"取得\n区分",null,null,null,null,null,null,null,null,null,"基礎年\n金番号",null,null,null,null,null,null,null,null,null,null,null,null,null,null,null,null,null,null,null,null,null,null,null,null,null,null,null,"取　得\n（該当）\n年月日",null,null,null,null,null,null,null,null,null,{"$f":"IF(入力シート!$J$21=\"\",\"\",DBCS(TEXT(入力シート!$J$21,\"eemmdd\")))","v":""},null,null,null,null,null,null,null,"被扶\n養者"]
[null,null,null,null,null,null,null,null,null,null,null,null,null,null,null,null,null,null,null,null,null,null,null,null,null,null,null,null,null,null,null,null,null,null,null,null,null,null,null,null,null,null,null,null,null,null,null,null,null,null,null,null,null,null,null,null,null,null,null,"被扶\n養者"]
[]
[]
[]
[null,null,null,"⑨",null,null,null,"㋐（通貨）",null,null,null,null,{"$f":"IF(入力シート!$K$21=\"\",\"\",入力シート!$K$21)","v":""},null,null,null,null,null,null,null,null,null,null,"円",null,"㋒（合計　㋐+㋑）",null,null,null,null,null,null,null,null,null,null,null,null,null,"円",null,"⑩",null,null,null,null,{"$f":"IF(入力シート!$O$21=\"\",\"\",DBCS(入力シート!$O$21))","v":""}]
[]
[null,null,null,"報酬\n月額",null,null,null,null,null,null,null,null,null,null,null,null,null,null,null,null,null,null,null,null,null,{"$f":"IF(入力シート!$M$21=\"\",\"\",入力シート!$M$21)","v":""},null,null,null,null,null,null,null,null,null,null,null,null,null,null,null,"備　考"]
[null,null,null,null,null,null,null,"㋑（現物）",null,null,null,null,{"$f":"IF(入力シート!$L$21=\"\",\"\",入力シート!$L$21)","v":""},null,null,null,null,null,null,null,null,null,null,"円",null,null,null,null,null,null,null,null,null,null,null,null,null,null,null,null,null,null,null,null,null,null,{"$f":"IF(入力シート!$P$21=\"\",\"\",DBCS(入力シート!$P$21))","v":""}]
[]
[]
[null,null,null,"⑪",null,null,null,{"$f":"IFERROR(IF(入力シート!$X$21=\"\",\"\",DBCS(LEFT(RIGHT(入力シート!$X$21,18-COLUMN())))),\"\")","v":""},null,{"$f":"IFERROR(IF(入力シート!$X$21=\"\",\"\",DBCS(LEFT(RIGHT(入力シート!$X$21,19-COLUMN())))),\"\")","v":""},null,{"$f":"IFERROR(IF(入力シート!$X$21=\"\",\"\",DBCS(LEFT(RIGHT(入力シート!$X$21,20-COLUMN())))),\"\")","v":""},null,{"$f":"IFERROR(IF(入力シート!$X$21=\"\",\"\",DBCS(LEFT(RIGHT(入力シート!$X$21,21-COLUMN())))),\"\")","v":""},null,{"$f":"IFERROR(IF(入力シート!$X$21=\"\",\"\",DBCS(LEFT(RIGHT(入力シート!$X$21,22-COLUMN())))),\"\")","v":""},null,{"$f":"IFERROR(IF(入力シート!$X$21=\"\",\"\",DBCS(LEFT(RIGHT(入力シート!$X$21,23-COLUMN())))),\"\")","v":""},null,{"$f":"IFERROR(IF(入力シート!$X$21=\"\",\"\",DBCS(LEFT(RIGHT(入力シート!$X$21,24-COLUMN())))),\"\")","v":""},null,{"$f":"IFERROR(IF(入力シート!$X$21=\"\",\"\",DBCS(LEFT(RIGHT(入力シート!$X$21,25-COLUMN())))),\"\")","v":""},null,{"$f":"IFERROR(IF(入力シート!$X$21=\"\",\"\",DBCS(LEFT(RIGHT(入力シート!$X$21,26-COLUMN())))),\"\")","v":""},null,{"$f":"IFERROR(IF(入力シート!$X$21=\"\",\"\",DBCS(LEFT(RIGHT(入力シート!$X$21,27-COLUMN())))),\"\")","v":""}]
[]
[null,null,null,"加入者\n番　号"]
[]
[]
[]
[]
[]
[]
[null,"加入者\n４",null,"①",null,null,null,{"$f":"IF(入力シート!$B$22=\"\",\"\",DBCS(入力シート!$B$22))","v":""},null,null,null,null,null,"②",null,null,null,{"$f":"IFERROR(LEFT(入力シート!$C$22,FIND(\" \",入力シート!$C$22,1)-1),\"\")","v":""},null,null,null,null,null,null,null,null,null,null,null,{"$f":"IFERROR(RIGHT(入力シート!$C$22,LEN(入力シート!$C$22)-FIND(\" \",入力シート!$C$22,1)),\"\")","v":""},null,null,null,null,null,null,null,null,null,null,null,"③",null,null,null,{"$f":"IF(入力シート!$E$22=\"\",\"\",IF(TEXT(入力シート!$E$22,\"g\")=\"S\",\"5．昭和\",IF(TEXT(入力シート!$E$22,\"g\")=\"H\",\"7．平成\",IF(TEXT(入力シート!$E$22,\"g\")=\"R\",\"9．令和\"))))","v":""},null,null,null,null,null,"年",null,null,"月",null,"日",null,null,"④",null,null,{"$f":"IF(入力シート!$F$22=\"\",\"\",IF(入力シート!$F$22=\"男\",\"1．男\",\"2．女\"))","v":""}]
[]
[null,null,null,"被保険者\n整理番号",null,null,null,null,null,null,null,null,null,"氏名",null,null,null,null,null,null,null,null,null,null,null,null,null,null,null,null,null,null,null,null,null,null,null,null,null,null,null,"生年\n月日",null,null,null,null,null,null,null,null,null,null,null,null,null,null,null,null,null,"種別"]
[null,null,null,null,null,null,null,null,null,null,null,null,null,null,null,null,null,null,null,null,null,null,null,null,null,null,null,null,null,null,null,null,null,null,null,null,null,null,null,null,null,null,null,null,null,null,null,null,null,null,null,{"$f":"IF(入力シート!$E$22=\"\",\"\",DBCS(TEXT(入力シート!$E$22,\"eemmdd\")))","v":""}]
[null,null,null,null,null,null,null,null,null,null,null,null,null,null,null,null,null,{"$f":"IFERROR(LEFT(入力シート!$D$22,FIND(\"　\",入力シート!$D$22,1)-1),\"\")","v":""},null,null,null,null,null,null,null,null,null,null,null,{"$f":"IFERROR(RIGHT(入力シート!$D$22,LEN(入力シート!$D$22)-FIND(\"　\",入力シート!$D$22,1)),\"\")","v":""}]
[]
[]
[]
[]
[]
[null,null,null,"⑤",null,null,null,{"$f":"IF(入力シート!$H$22=\"\",\"\",DBCS(入力シート!$H$22))","v":""},null,null,null,null,null,"⑥",null,null,null,{"$f":"IFERROR(IF(入力シート!$I$22=\"\",\"\",DBCS(LEFT(RIGHT(入力シート!$I$22,28-COLUMN())))),\"\")","v":""},null,{"$f":"IFERROR(IF(入力シート!$I$22=\"\",\"\",DBCS(LEFT(RIGHT(入力シート!$I$22,29-COLUMN())))),\"\")","v":""},null,{"$f":"IFERROR(IF(入力シート!$I$22=\"\",\"\",DBCS(LEFT(RIGHT(入力シート!$I$22,30-COLUMN())))),\"\")","v":""},null,{"$f":"IFERROR(IF(入力シート!$I$22=\"\",\"\",DBCS(LEFT(RIGHT(入力シート!$I$22,31-COLUMN())))),\"\")","v":""},null,{"$f":"IFERROR(IF(入力シート!$I$22=\"\",\"\",DBCS(LEFT(RIGHT(入力シート!$I$22,32-COLUMN())))),\"\")","v":""},null,{"$f":"IFERROR(IF(入力シート!$I$22=\"\",\"\",DBCS(LEFT(RIGHT(入力シート!$I$22,33-COLUMN())))),\"\")","v":""},null,{"$f":"IFERROR(IF(入力シート!$I$22=\"\",\"\",DBCS(LEFT(RIGHT(入力シート!$I$22,34-COLUMN())))),\"\")","v":""},null,{"$f":"IFERROR(IF(入力シート!$I$22=\"\",\"\",DBCS(LEFT(RIGHT(入力シート!$I$22,35-COLUMN())))),\"\")","v":""},null,{"$f":"IFERROR(IF(入力シート!$I$22=\"\",\"\",DBCS(LEFT(RIGHT(入力シート!$I$22,36-COLUMN())))),\"\")","v":""},null,{"$f":"IFERROR(IF(入力シート!$I$22=\"\",\"\",DBCS(LEFT(RIGHT(入力シート!$I$22,37-COLUMN())))),\"\")","v":""},null,null,null,null,null,"⑦",null,null,null,{"$f":"IF(入力シート!$J$22=\"\",\"\",IF(TEXT(入力シート!$J$22,\"g\")=\"S\",\"5．昭和\",IF(TEXT(入力シート!$J$22,\"g\")=\"H\",\"7．平成\",IF(TEXT(入力シート!$J$22,\"g\")=\"R\",\"9．令和\"))))","v":""},null,null,null,null,null,"年",null,null,"月",null,"日",null,null,"⑧"]
[]
[null,null,null,"取得\n区分",null,null,null,null,null,null,null,null,null,"基礎年\n金番号",null,null,null,null,null,null,null,null,null,null,null,null,null,null,null,null,null,null,null,null,null,null,null,null,null,null,null,"取　得\n（該当）\n年月日",null,null,null,null,null,null,null,null,null,{"$f":"IF(入力シート!$J$22=\"\",\"\",DBCS(TEXT(入力シート!$J$22,\"eemmdd\")))","v":""},null,null,null,null,null,null,null,"被扶\n養者"]
[null,null,null,null,null,null,null,null,null,null,null,null,null,null,null,null,null,null,null,null,null,null,null,null,null,null,null,null,null,null,null,null,null,null,null,null,null,null,null,null,null,null,null,null,null,null,null,null,null,null,null,null,null,null,null,null,null,null,null,"被扶\n養者"]
[]
[]
[]
[null,null,null,"⑨",null,null,null,"㋐（通貨）",null,null,null,null,{"$f":"IF(入力シート!$K$22=\"\",\"\",入力シート!$K$22)","v":""},null,null,null,null,null,null,null,null,null,null,"円",null,"㋒（合計　㋐+㋑）",null,null,null,null,null,null,null,null,null,null,null,null,null,"円",null,"⑩",null,null,null,null,{"$f":"IF(入力シート!$O$22=\"\",\"\",DBCS(入力シート!$O$22))","v":""}]
[]
[null,null,null,"報酬\n月額",null,null,null,null,null,null,null,null,null,null,null,null,null,null,null,null,null,null,null,null,null,{"$f":"IF(入力シート!$M$22=\"\",\"\",入力シート!$M$22)","v":""},null,null,null,null,null,null,null,null,null,null,null,null,null,null,null,"備　考"]
[null,null,null,null,null,null,null,"㋑（現物）",null,null,null,null,{"$f":"IF(入力シート!$L$22=\"\",\"\",入力シート!$L$22)","v":""},null,null,null,null,null,null,null,null,null,null,"円",null,null,null,null,null,null,null,null,null,null,null,null,null,null,null,null,null,null,null,null,null,null,{"$f":"IF(入力シート!$P$22=\"\",\"\",DBCS(入力シート!$P$22))","v":""}]
[]
[]
[null,null,null,"⑪",null,null,null,{"$f":"IFERROR(IF(入力シート!$X$22=\"\",\"\",DBCS(LEFT(RIGHT(入力シート!$X$22,18-COLUMN())))),\"\")","v":""},null,{"$f":"IFERROR(IF(入力シート!$X$22=\"\",\"\",DBCS(LEFT(RIGHT(入力シート!$X$22,19-COLUMN())))),\"\")","v":""},null,{"$f":"IFERROR(IF(入力シート!$X$22=\"\",\"\",DBCS(LEFT(RIGHT(入力シート!$X$22,20-COLUMN())))),\"\")","v":""},null,{"$f":"IFERROR(IF(入力シート!$X$22=\"\",\"\",DBCS(LEFT(RIGHT(入力シート!$X$22,21-COLUMN())))),\"\")","v":""},null,{"$f":"IFERROR(IF(入力シート!$X$22=\"\",\"\",DBCS(LEFT(RIGHT(入力シート!$X$22,22-COLUMN())))),\"\")","v":""},null,{"$f":"IFERROR(IF(入力シート!$X$22=\"\",\"\",DBCS(LEFT(RIGHT(入力シート!$X$22,23-COLUMN())))),\"\")","v":""},null,{"$f":"IFERROR(IF(入力シート!$X$22=\"\",\"\",DBCS(LEFT(RIGHT(入力シート!$X$22,24-COLUMN())))),\"\")","v":""},null,{"$f":"IFERROR(IF(入力シート!$X$22=\"\",\"\",DBCS(LEFT(RIGHT(入力シート!$X$22,25-COLUMN())))),\"\")","v":""},null,{"$f":"IFERROR(IF(入力シート!$X$22=\"\",\"\",DBCS(LEFT(RIGHT(入力シート!$X$22,26-COLUMN())))),\"\")","v":""},null,{"$f":"IFERROR(IF(入力シート!$X$22=\"\",\"\",DBCS(LEFT(RIGHT(入力シート!$X$22,27-COLUMN())))),\"\")","v":""}]
[]
[null,null,null,"加入者\n番　号"]
[]
[]
[]
[]
[]
[]
[]
[]
[]
[]
[]
[]
[]
[]
[]
[]
[]
[]
[]
[]
[]
[]
[]
[]
[]
[]
[null,"加入者\n１",null,"①",null,null,null,{"$f":"IF(入力シート!$B$23=\"\",\"\",DBCS(入力シート!$B$23))","v":""},null,null,null,null,null,"②",null,null,null,{"$f":"IFERROR(LEFT(入力シート!$C$23,FIND(\" \",入力シート!$C$23,1)-1),\"\")","v":""},null,null,null,null,null,null,null,null,null,null,null,{"$f":"IFERROR(RIGHT(入力シート!$C$23,LEN(入力シート!$C$23)-FIND(\" \",入力シート!$C$23,1)),\"\")","v":""},null,null,null,null,null,null,null,null,null,null,null,"③",null,null,null,{"$f":"IF(入力シート!$E$23=\"\",\"\",IF(TEXT(入力シート!$E$23,\"g\")=\"S\",\"5．昭和\",IF(TEXT(入力シート!$E$23,\"g\")=\"H\",\"7．平成\",IF(TEXT(入力シート!$E$23,\"g\")=\"R\",\"9．令和\"))))","v":""},null,null,null,null,null,"年",null,null,"月",null,"日",null,null,"④",null,null,{"$f":"IF(入力シート!$F$23=\"\",\"\",IF(入力シート!$F$23=\"男\",\"1．男\",\"2．女\"))","v":""}]
[]
[null,null,null,"被保険者\n整理番号",null,null,null,null,null,null,null,null,null,"氏名",null,null,null,null,null,null,null,null,null,null,null,null,null,null,null,null,null,null,null,null,null,null,null,null,null,null,null,"生年\n月日",null,null,null,null,null,null,null,null,null,null,null,null,null,null,null,null,null,"種別"]
[null,null,null,null,null,null,null,null,null,null,null,null,null,null,null,null,null,null,null,null,null,null,null,null,null,null,null,null,null,null,null,null,null,null,null,null,null,null,null,null,null,null,null,null,null,null,null,null,null,null,null,{"$f":"IF(入力シート!$E$23=\"\",\"\",DBCS(TEXT(入力シート!$E$23,\"eemmdd\")))","v":""}]
[null,null,null,null,null,null,null,null,null,null,null,null,null,null,null,null,null,{"$f":"IFERROR(LEFT(入力シート!$D$23,FIND(\"　\",入力シート!$D$23,1)-1),\"\")","v":""},null,null,null,null,null,null,null,null,null,null,null,{"$f":"IFERROR(RIGHT(入力シート!$D$23,LEN(入力シート!$D$23)-FIND(\"　\",入力シート!$D$23,1)),\"\")","v":""}]
[]
[]
[]
[]
[]
[null,null,null,"⑤",null,null,null,{"$f":"IF(入力シート!$H$23=\"\",\"\",DBCS(入力シート!$H$23))","v":""},null,null,null,null,null,"⑥",null,null,null,{"$f":"IFERROR(IF(入力シート!$I$23=\"\",\"\",DBCS(LEFT(RIGHT(入力シート!$I$23,28-COLUMN())))),\"\")","v":""},null,{"$f":"IFERROR(IF(入力シート!$I$23=\"\",\"\",DBCS(LEFT(RIGHT(入力シート!$I$23,29-COLUMN())))),\"\")","v":""},null,{"$f":"IFERROR(IF(入力シート!$I$23=\"\",\"\",DBCS(LEFT(RIGHT(入力シート!$I$23,30-COLUMN())))),\"\")","v":""},null,{"$f":"IFERROR(IF(入力シート!$I$23=\"\",\"\",DBCS(LEFT(RIGHT(入力シート!$I$23,31-COLUMN())))),\"\")","v":""},null,{"$f":"IFERROR(IF(入力シート!$I$23=\"\",\"\",DBCS(LEFT(RIGHT(入力シート!$I$23,32-COLUMN())))),\"\")","v":""},null,{"$f":"IFERROR(IF(入力シート!$I$23=\"\",\"\",DBCS(LEFT(RIGHT(入力シート!$I$23,33-COLUMN())))),\"\")","v":""},null,{"$f":"IFERROR(IF(入力シート!$I$23=\"\",\"\",DBCS(LEFT(RIGHT(入力シート!$I$23,34-COLUMN())))),\"\")","v":""},null,{"$f":"IFERROR(IF(入力シート!$I$23=\"\",\"\",DBCS(LEFT(RIGHT(入力シート!$I$23,35-COLUMN())))),\"\")","v":""},null,{"$f":"IFERROR(IF(入力シート!$I$23=\"\",\"\",DBCS(LEFT(RIGHT(入力シート!$I$23,36-COLUMN())))),\"\")","v":""},null,{"$f":"IFERROR(IF(入力シート!$I$23=\"\",\"\",DBCS(LEFT(RIGHT(入力シート!$I$23,37-COLUMN())))),\"\")","v":""},null,null,null,null,null,"⑦",null,null,null,{"$f":"IF(入力シート!$J$23=\"\",\"\",IF(TEXT(入力シート!$J$23,\"g\")=\"S\",\"5．昭和\",IF(TEXT(入力シート!$J$23,\"g\")=\"H\",\"7．平成\",IF(TEXT(入力シート!$J$23,\"g\")=\"R\",\"9．令和\"))))","v":""},null,null,null,null,null,"年",null,null,"月",null,"日",null,null,"⑧"]
[]
[null,null,null,"取得\n区分",null,null,null,null,null,null,null,null,null,"基礎年\n金番号",null,null,null,null,null,null,null,null,null,null,null,null,null,null,null,null,null,null,null,null,null,null,null,null,null,null,null,"取　得\n（該当）\n年月日",null,null,null,null,null,null,null,null,null,{"$f":"IF(入力シート!$J$23=\"\",\"\",DBCS(TEXT(入力シート!$J$23,\"eemmdd\")))","v":""},null,null,null,null,null,null,null,"被扶\n養者"]
[null,null,null,null,null,null,null,null,null,null,null,null,null,null,null,null,null,null,null,null,null,null,null,null,null,null,null,null,null,null,null,null,null,null,null,null,null,null,null,null,null,null,null,null,null,null,null,null,null,null,null,null,null,null,null,null,null,null,null,"被扶\n養者"]
[]
[]
[]
[null,null,null,"⑨",null,null,null,"㋐（通貨）",null,null,null,null,{"$f":"IF(入力シート!$K$23=\"\",\"\",入力シート!$K$23)","v":""},null,null,null,null,null,null,null,null,null,null,"円",null,"㋒（合計　㋐+㋑）",null,null,null,null,null,null,null,null,null,null,null,null,null,"円",null,"⑩",null,null,null,null,{"$f":"IF(入力シート!$O$23=\"\",\"\",DBCS(入力シート!$O$23))","v":""}]
[]
[null,null,null,"報酬\n月額",null,null,null,null,null,null,null,null,null,null,null,null,null,null,null,null,null,null,null,null,null,{"$f":"IF(入力シート!$M$23=\"\",\"\",入力シート!$M$23)","v":""},null,null,null,null,null,null,null,null,null,null,null,null,null,null,null,"備　考"]
[null,null,null,null,null,null,null,"㋑（現物）",null,null,null,null,{"$f":"IF(入力シート!$L$23=\"\",\"\",入力シート!$L$23)","v":""},null,null,null,null,null,null,null,null,null,null,"円",null,null,null,null,null,null,null,null,null,null,null,null,null,null,null,null,null,null,null,null,null,null,{"$f":"IF(入力シート!$P$23=\"\",\"\",DBCS(入力シート!$P$23))","v":""}]
[]
[]
[null,null,null,"⑪",null,null,null,{"$f":"IFERROR(IF(入力シート!$X$23=\"\",\"\",DBCS(LEFT(RIGHT(入力シート!$X$23,18-COLUMN())))),\"\")","v":""},null,{"$f":"IFERROR(IF(入力シート!$X$23=\"\",\"\",DBCS(LEFT(RIGHT(入力シート!$X$23,19-COLUMN())))),\"\")","v":""},null,{"$f":"IFERROR(IF(入力シート!$X$23=\"\",\"\",DBCS(LEFT(RIGHT(入力シート!$X$23,20-COLUMN())))),\"\")","v":""},null,{"$f":"IFERROR(IF(入力シート!$X$23=\"\",\"\",DBCS(LEFT(RIGHT(入力シート!$X$23,21-COLUMN())))),\"\")","v":""},null,{"$f":"IFERROR(IF(入力シート!$X$23=\"\",\"\",DBCS(LEFT(RIGHT(入力シート!$X$23,22-COLUMN())))),\"\")","v":""},null,{"$f":"IFERROR(IF(入力シート!$X$23=\"\",\"\",DBCS(LEFT(RIGHT(入力シート!$X$23,23-COLUMN())))),\"\")","v":""},null,{"$f":"IFERROR(IF(入力シート!$X$23=\"\",\"\",DBCS(LEFT(RIGHT(入力シート!$X$23,24-COLUMN())))),\"\")","v":""},null,{"$f":"IFERROR(IF(入力シート!$X$23=\"\",\"\",DBCS(LEFT(RIGHT(入力シート!$X$23,25-COLUMN())))),\"\")","v":""},null,{"$f":"IFERROR(IF(入力シート!$X$23=\"\",\"\",DBCS(LEFT(RIGHT(入力シート!$X$23,26-COLUMN())))),\"\")","v":""},null,{"$f":"IFERROR(IF(入力シート!$X$23=\"\",\"\",DBCS(LEFT(RIGHT(入力シート!$X$23,27-COLUMN())))),\"\")","v":""}]
[]
[null,null,null,"加入者\n番　号"]
[]
[]
[]
[]
[]
[]
[null,"加入者\n２",null,"①",null,null,null,{"$f":"IF(入力シート!$B$24=\"\",\"\",DBCS(入力シート!$B$24))","v":""},null,null,null,null,null,"②",null,null,null,{"$f":"IFERROR(LEFT(入力シート!$C$24,FIND(\" \",入力シート!$C$24,1)-1),\"\")","v":""},null,null,null,null,null,null,null,null,null,null,null,{"$f":"IFERROR(RIGHT(入力シート!$C$24,LEN(入力シート!$C$24)-FIND(\" \",入力シート!$C$24,1)),\"\")","v":""},null,null,null,null,null,null,null,null,null,null,null,"③",null,null,null,{"$f":"IF(入力シート!$E$24=\"\",\"\",IF(TEXT(入力シート!$E$24,\"g\")=\"S\",\"5．昭和\",IF(TEXT(入力シート!$E$24,\"g\")=\"H\",\"7．平成\",IF(TEXT(入力シート!$E$24,\"g\")=\"R\",\"9．令和\"))))","v":""},null,null,null,null,null,"年",null,null,"月",null,"日",null,null,"④",null,null,{"$f":"IF(入力シート!$F$24=\"\",\"\",IF(入力シート!$F$24=\"男\",\"1．男\",\"2．女\"))","v":""}]
[]
[null,null,null,"被保険者\n整理番号",null,null,null,null,null,null,null,null,null,"氏名",null,null,null,null,null,null,null,null,null,null,null,null,null,null,null,null,null,null,null,null,null,null,null,null,null,null,null,"生年\n月日",null,null,null,null,null,null,null,null,null,null,null,null,null,null,null,null,null,"種別"]
[null,null,null,null,null,null,null,null,null,null,null,null,null,null,null,null,null,null,null,null,null,null,null,null,null,null,null,null,null,null,null,null,null,null,null,null,null,null,null,null,null,null,null,null,null,null,null,null,null,null,null,{"$f":"IF(入力シート!$E$24=\"\",\"\",DBCS(TEXT(入力シート!$E$24,\"eemmdd\")))","v":""}]
[null,null,null,null,null,null,null,null,null,null,null,null,null,null,null,null,null,{"$f":"IFERROR(LEFT(入力シート!$D$24,FIND(\"　\",入力シート!$D$24,1)-1),\"\")","v":""},null,null,null,null,null,null,null,null,null,null,null,{"$f":"IFERROR(RIGHT(入力シート!$D$24,LEN(入力シート!$D$24)-FIND(\"　\",入力シート!$D$24,1)),\"\")","v":""}]
[]
[]
[]
[]
[]
[null,null,null,"⑤",null,null,null,{"$f":"IF(入力シート!$H$24=\"\",\"\",DBCS(入力シート!$H$24))","v":""},null,null,null,null,null,"⑥",null,null,null,{"$f":"IFERROR(IF(入力シート!$I$24=\"\",\"\",DBCS(LEFT(RIGHT(入力シート!$I$24,28-COLUMN())))),\"\")","v":""},null,{"$f":"IFERROR(IF(入力シート!$I$24=\"\",\"\",DBCS(LEFT(RIGHT(入力シート!$I$24,29-COLUMN())))),\"\")","v":""},null,{"$f":"IFERROR(IF(入力シート!$I$24=\"\",\"\",DBCS(LEFT(RIGHT(入力シート!$I$24,30-COLUMN())))),\"\")","v":""},null,{"$f":"IFERROR(IF(入力シート!$I$24=\"\",\"\",DBCS(LEFT(RIGHT(入力シート!$I$24,31-COLUMN())))),\"\")","v":""},null,{"$f":"IFERROR(IF(入力シート!$I$24=\"\",\"\",DBCS(LEFT(RIGHT(入力シート!$I$24,32-COLUMN())))),\"\")","v":""},null,{"$f":"IFERROR(IF(入力シート!$I$24=\"\",\"\",DBCS(LEFT(RIGHT(入力シート!$I$24,33-COLUMN())))),\"\")","v":""},null,{"$f":"IFERROR(IF(入力シート!$I$24=\"\",\"\",DBCS(LEFT(RIGHT(入力シート!$I$24,34-COLUMN())))),\"\")","v":""},null,{"$f":"IFERROR(IF(入力シート!$I$24=\"\",\"\",DBCS(LEFT(RIGHT(入力シート!$I$24,35-COLUMN())))),\"\")","v":""},null,{"$f":"IFERROR(IF(入力シート!$I$24=\"\",\"\",DBCS(LEFT(RIGHT(入力シート!$I$24,36-COLUMN())))),\"\")","v":""},null,{"$f":"IFERROR(IF(入力シート!$I$24=\"\",\"\",DBCS(LEFT(RIGHT(入力シート!$I$24,37-COLUMN())))),\"\")","v":""},null,null,null,null,null,"⑦",null,null,null,{"$f":"IF(入力シート!$J$24=\"\",\"\",IF(TEXT(入力シート!$J$24,\"g\")=\"S\",\"5．昭和\",IF(TEXT(入力シート!$J$24,\"g\")=\"H\",\"7．平成\",IF(TEXT(入力シート!$J$24,\"g\")=\"R\",\"9．令和\"))))","v":""},null,null,null,null,null,"年",null,null,"月",null,"日",null,null,"⑧"]
[]
[null,null,null,"取得\n区分",null,null,null,null,null,null,null,null,null,"基礎年\n金番号",null,null,null,null,null,null,null,null,null,null,null,null,null,null,null,null,null,null,null,null,null,null,null,null,null,null,null,"取　得\n（該当）\n年月日",null,null,null,null,null,null,null,null,null,{"$f":"IF(入力シート!$J$24=\"\",\"\",DBCS(TEXT(入力シート!$J$24,\"eemmdd\")))","v":""},null,null,null,null,null,null,null,"被扶\n養者"]
[null,null,null,null,null,null,null,null,null,null,null,null,null,null,null,null,null,null,null,null,null,null,null,null,null,null,null,null,null,null,null,null,null,null,null,null,null,null,null,null,null,null,null,null,null,null,null,null,null,null,null,null,null,null,null,null,null,null,null,"被扶\n養者"]
[]
[]
[]
[null,null,null,"⑨",null,null,null,"㋐（通貨）",null,null,null,null,{"$f":"IF(入力シート!$K$24=\"\",\"\",入力シート!$K$24)","v":""},null,null,null,null,null,null,null,null,null,null,"円",null,"㋒（合計　㋐+㋑）",null,null,null,null,null,null,null,null,null,null,null,null,null,"円",null,"⑩",null,null,null,null,{"$f":"IF(入力シート!$O$24=\"\",\"\",DBCS(入力シート!$O$24))","v":""}]
[]
[null,null,null,"報酬\n月額",null,null,null,null,null,null,null,null,null,null,null,null,null,null,null,null,null,null,null,null,null,{"$f":"IF(入力シート!$M$24=\"\",\"\",入力シート!$M$24)","v":""},null,null,null,null,null,null,null,null,null,null,null,null,null,null,null,"備　考"]
[null,null,null,null,null,null,null,"㋑（現物）",null,null,null,null,{"$f":"IF(入力シート!$L$24=\"\",\"\",入力シート!$L$24)","v":""},null,null,null,null,null,null,null,null,null,null,"円",null,null,null,null,null,null,null,null,null,null,null,null,null,null,null,null,null,null,null,null,null,null,{"$f":"IF(入力シート!$P$24=\"\",\"\",DBCS(入力シート!$P$24))","v":""}]
[]
[]
[null,null,null,"⑪",null,null,null,{"$f":"IFERROR(IF(入力シート!$X$24=\"\",\"\",DBCS(LEFT(RIGHT(入力シート!$X$24,18-COLUMN())))),\"\")","v":""},null,{"$f":"IFERROR(IF(入力シート!$X$24=\"\",\"\",DBCS(LEFT(RIGHT(入力シート!$X$24,19-COLUMN())))),\"\")","v":""},null,{"$f":"IFERROR(IF(入力シート!$X$24=\"\",\"\",DBCS(LEFT(RIGHT(入力シート!$X$24,20-COLUMN())))),\"\")","v":""},null,{"$f":"IFERROR(IF(入力シート!$X$24=\"\",\"\",DBCS(LEFT(RIGHT(入力シート!$X$24,21-COLUMN())))),\"\")","v":""},null,{"$f":"IFERROR(IF(入力シート!$X$24=\"\",\"\",DBCS(LEFT(RIGHT(入力シート!$X$24,22-COLUMN())))),\"\")","v":""},null,{"$f":"IFERROR(IF(入力シート!$X$24=\"\",\"\",DBCS(LEFT(RIGHT(入力シート!$X$24,23-COLUMN())))),\"\")","v":""},null,{"$f":"IFERROR(IF(入力シート!$X$24=\"\",\"\",DBCS(LEFT(RIGHT(入力シート!$X$24,24-COLUMN())))),\"\")","v":""},null,{"$f":"IFERROR(IF(入力シート!$X$24=\"\",\"\",DBCS(LEFT(RIGHT(入力シート!$X$24,25-COLUMN())))),\"\")","v":""},null,{"$f":"IFERROR(IF(入力シート!$X$24=\"\",\"\",DBCS(LEFT(RIGHT(入力シート!$X$24,26-COLUMN())))),\"\")","v":""},null,{"$f":"IFERROR(IF(入力シート!$X$24=\"\",\"\",DBCS(LEFT(RIGHT(入力シート!$X$24,27-COLUMN())))),\"\")","v":""}]
[]
[null,null,null,"加入者\n番　号"]
[]
[]
[]
[]
[]
[]
[null,"加入者\n３",null,"①",null,null,null,{"$f":"IF(入力シート!$B$25=\"\",\"\",DBCS(入力シート!$B$25))","v":""},null,null,null,null,null,"②",null,null,null,{"$f":"IFERROR(LEFT(入力シート!$C$25,FIND(\" \",入力シート!$C$25,1)-1),\"\")","v":""},null,null,null,null,null,null,null,null,null,null,null,{"$f":"IFERROR(RIGHT(入力シート!$C$25,LEN(入力シート!$C$25)-FIND(\" \",入力シート!$C$25,1)),\"\")","v":""},null,null,null,null,null,null,null,null,null,null,null,"③",null,null,null,{"$f":"IF(入力シート!$E$25=\"\",\"\",IF(TEXT(入力シート!$E$25,\"g\")=\"S\",\"5．昭和\",IF(TEXT(入力シート!$E$25,\"g\")=\"H\",\"7．平成\",IF(TEXT(入力シート!$E$25,\"g\")=\"R\",\"9．令和\"))))","v":""},null,null,null,null,null,"年",null,null,"月",null,"日",null,null,"④",null,null,{"$f":"IF(入力シート!$F$25=\"\",\"\",IF(入力シート!$F$25=\"男\",\"1．男\",\"2．女\"))","v":""}]
[]
[null,null,null,"被保険者\n整理番号",null,null,null,null,null,null,null,null,null,"氏名",null,null,null,null,null,null,null,null,null,null,null,null,null,null,null,null,null,null,null,null,null,null,null,null,null,null,null,"生年\n月日",null,null,null,null,null,null,null,null,null,null,null,null,null,null,null,null,null,"種別"]
[null,null,null,null,null,null,null,null,null,null,null,null,null,null,null,null,null,null,null,null,null,null,null,null,null,null,null,null,null,null,null,null,null,null,null,null,null,null,null,null,null,null,null,null,null,null,null,null,null,null,null,{"$f":"IF(入力シート!$E$25=\"\",\"\",DBCS(TEXT(入力シート!$E$25,\"eemmdd\")))","v":""}]
[null,null,null,null,null,null,null,null,null,null,null,null,null,null,null,null,null,{"$f":"IFERROR(LEFT(入力シート!$D$25,FIND(\"　\",入力シート!$D$25,1)-1),\"\")","v":""},null,null,null,null,null,null,null,null,null,null,null,{"$f":"IFERROR(RIGHT(入力シート!$D$25,LEN(入力シート!$D$25)-FIND(\"　\",入力シート!$D$25,1)),\"\")","v":""}]
[]
[]
[]
[]
[]
[null,null,null,"⑤",null,null,null,{"$f":"IF(入力シート!$H$25=\"\",\"\",DBCS(入力シート!$H$25))","v":""},null,null,null,null,null,"⑥",null,null,null,{"$f":"IFERROR(IF(入力シート!$I$25=\"\",\"\",DBCS(LEFT(RIGHT(入力シート!$I$25,28-COLUMN())))),\"\")","v":""},null,{"$f":"IFERROR(IF(入力シート!$I$25=\"\",\"\",DBCS(LEFT(RIGHT(入力シート!$I$25,29-COLUMN())))),\"\")","v":""},null,{"$f":"IFERROR(IF(入力シート!$I$25=\"\",\"\",DBCS(LEFT(RIGHT(入力シート!$I$25,30-COLUMN())))),\"\")","v":""},null,{"$f":"IFERROR(IF(入力シート!$I$25=\"\",\"\",DBCS(LEFT(RIGHT(入力シート!$I$25,31-COLUMN())))),\"\")","v":""},null,{"$f":"IFERROR(IF(入力シート!$I$25=\"\",\"\",DBCS(LEFT(RIGHT(入力シート!$I$25,32-COLUMN())))),\"\")","v":""},null,{"$f":"IFERROR(IF(入力シート!$I$25=\"\",\"\",DBCS(LEFT(RIGHT(入力シート!$I$25,33-COLUMN())))),\"\")","v":""},null,{"$f":"IFERROR(IF(入力シート!$I$25=\"\",\"\",DBCS(LEFT(RIGHT(入力シート!$I$25,34-COLUMN())))),\"\")","v":""},null,{"$f":"IFERROR(IF(入力シート!$I$25=\"\",\"\",DBCS(LEFT(RIGHT(入力シート!$I$25,35-COLUMN())))),\"\")","v":""},null,{"$f":"IFERROR(IF(入力シート!$I$25=\"\",\"\",DBCS(LEFT(RIGHT(入力シート!$I$25,36-COLUMN())))),\"\")","v":""},null,{"$f":"IFERROR(IF(入力シート!$I$25=\"\",\"\",DBCS(LEFT(RIGHT(入力シート!$I$25,37-COLUMN())))),\"\")","v":""},null,null,null,null,null,"⑦",null,null,null,{"$f":"IF(入力シート!$J$25=\"\",\"\",IF(TEXT(入力シート!$J$25,\"g\")=\"S\",\"5．昭和\",IF(TEXT(入力シート!$J$25,\"g\")=\"H\",\"7．平成\",IF(TEXT(入力シート!$J$25,\"g\")=\"R\",\"9．令和\"))))","v":""},null,null,null,null,null,"年",null,null,"月",null,"日",null,null,"⑧"]
[]
[null,null,null,"取得\n区分",null,null,null,null,null,null,null,null,null,"基礎年\n金番号",null,null,null,null,null,null,null,null,null,null,null,null,null,null,null,null,null,null,null,null,null,null,null,null,null,null,null,"取　得\n（該当）\n年月日",null,null,null,null,null,null,null,null,null,{"$f":"IF(入力シート!$J$25=\"\",\"\",DBCS(TEXT(入力シート!$J$25,\"eemmdd\")))","v":""},null,null,null,null,null,null,null,"被扶\n養者"]
[null,null,null,null,null,null,null,null,null,null,null,null,null,null,null,null,null,null,null,null,null,null,null,null,null,null,null,null,null,null,null,null,null,null,null,null,null,null,null,null,null,null,null,null,null,null,null,null,null,null,null,null,null,null,null,null,null,null,null,"被扶\n養者"]
[]
[]
[]
[null,null,null,"⑨",null,null,null,"㋐（通貨）",null,null,null,null,{"$f":"IF(入力シート!$K$25=\"\",\"\",入力シート!$K$25)","v":""},null,null,null,null,null,null,null,null,null,null,"円",null,"㋒（合計　㋐+㋑）",null,null,null,null,null,null,null,null,null,null,null,null,null,"円",null,"⑩",null,null,null,null,{"$f":"IF(入力シート!$O$25=\"\",\"\",DBCS(入力シート!$O$25))","v":""}]
[]
[null,null,null,"報酬\n月額",null,null,null,null,null,null,null,null,null,null,null,null,null,null,null,null,null,null,null,null,null,{"$f":"IF(入力シート!$M$25=\"\",\"\",入力シート!$M$25)","v":""},null,null,null,null,null,null,null,null,null,null,null,null,null,null,null,"備　考"]
[null,null,null,null,null,null,null,"㋑（現物）",null,null,null,null,{"$f":"IF(入力シート!$L$25=\"\",\"\",入力シート!$L$25)","v":""},null,null,null,null,null,null,null,null,null,null,"円",null,null,null,null,null,null,null,null,null,null,null,null,null,null,null,null,null,null,null,null,null,null,{"$f":"IF(入力シート!$P$25=\"\",\"\",DBCS(入力シート!$P$25))","v":""}]
[]
[]
[null,null,null,"⑪",null,null,null,{"$f":"IFERROR(IF(入力シート!$X$25=\"\",\"\",DBCS(LEFT(RIGHT(入力シート!$X$25,18-COLUMN())))),\"\")","v":""},null,{"$f":"IFERROR(IF(入力シート!$X$25=\"\",\"\",DBCS(LEFT(RIGHT(入力シート!$X$25,19-COLUMN())))),\"\")","v":""},null,{"$f":"IFERROR(IF(入力シート!$X$25=\"\",\"\",DBCS(LEFT(RIGHT(入力シート!$X$25,20-COLUMN())))),\"\")","v":""},null,{"$f":"IFERROR(IF(入力シート!$X$25=\"\",\"\",DBCS(LEFT(RIGHT(入力シート!$X$25,21-COLUMN())))),\"\")","v":""},null,{"$f":"IFERROR(IF(入力シート!$X$25=\"\",\"\",DBCS(LEFT(RIGHT(入力シート!$X$25,22-COLUMN())))),\"\")","v":""},null,{"$f":"IFERROR(IF(入力シート!$X$25=\"\",\"\",DBCS(LEFT(RIGHT(入力シート!$X$25,23-COLUMN())))),\"\")","v":""},null,{"$f":"IFERROR(IF(入力シート!$X$25=\"\",\"\",DBCS(LEFT(RIGHT(入力シート!$X$25,24-COLUMN())))),\"\")","v":""},null,{"$f":"IFERROR(IF(入力シート!$X$25=\"\",\"\",DBCS(LEFT(RIGHT(入力シート!$X$25,25-COLUMN())))),\"\")","v":""},null,{"$f":"IFERROR(IF(入力シート!$X$25=\"\",\"\",DBCS(LEFT(RIGHT(入力シート!$X$25,26-COLUMN())))),\"\")","v":""},null,{"$f":"IFERROR(IF(入力シート!$X$25=\"\",\"\",DBCS(LEFT(RIGHT(入力シート!$X$25,27-COLUMN())))),\"\")","v":""}]
[]
[null,null,null,"加入者\n番　号"]
[]
[]
[]
[]
[]
[]
[null,"加入者\n４",null,"①",null,null,null,{"$f":"IF(入力シート!$B$26=\"\",\"\",DBCS(入力シート!$B$26))","v":""},null,null,null,null,null,"②",null,null,null,{"$f":"IFERROR(LEFT(入力シート!$C$26,FIND(\" \",入力シート!$C$26,1)-1),\"\")","v":""},null,null,null,null,null,null,null,null,null,null,null,{"$f":"IFERROR(RIGHT(入力シート!$C$26,LEN(入力シート!$C$26)-FIND(\" \",入力シート!$C$26,1)),\"\")","v":""},null,null,null,null,null,null,null,null,null,null,null,"③",null,null,null,{"$f":"IF(入力シート!$E$26=\"\",\"\",IF(TEXT(入力シート!$E$26,\"g\")=\"S\",\"5．昭和\",IF(TEXT(入力シート!$E$26,\"g\")=\"H\",\"7．平成\",IF(TEXT(入力シート!$E$26,\"g\")=\"R\",\"9．令和\"))))","v":""},null,null,null,null,null,"年",null,null,"月",null,"日",null,null,"④",null,null,{"$f":"IF(入力シート!$F$26=\"\",\"\",IF(入力シート!$F$26=\"男\",\"1．男\",\"2．女\"))","v":""}]
[]
[null,null,null,"被保険者\n整理番号",null,null,null,null,null,null,null,null,null,"氏名",null,null,null,null,null,null,null,null,null,null,null,null,null,null,null,null,null,null,null,null,null,null,null,null,null,null,null,"生年\n月日",null,null,null,null,null,null,null,null,null,null,null,null,null,null,null,null,null,"種別"]
[null,null,null,null,null,null,null,null,null,null,null,null,null,null,null,null,null,null,null,null,null,null,null,null,null,null,null,null,null,null,null,null,null,null,null,null,null,null,null,null,null,null,null,null,null,null,null,null,null,null,null,{"$f":"IF(入力シート!$E$26=\"\",\"\",DBCS(TEXT(入力シート!$E$26,\"eemmdd\")))","v":""}]
[null,null,null,null,null,null,null,null,null,null,null,null,null,null,null,null,null,{"$f":"IFERROR(LEFT(入力シート!$D$26,FIND(\"　\",入力シート!$D$26,1)-1),\"\")","v":""},null,null,null,null,null,null,null,null,null,null,null,{"$f":"IFERROR(RIGHT(入力シート!$D$26,LEN(入力シート!$D$26)-FIND(\"　\",入力シート!$D$26,1)),\"\")","v":""}]
[]
[]
[]
[]
[]
[null,null,null,"⑤",null,null,null,{"$f":"IF(入力シート!$H$26=\"\",\"\",DBCS(入力シート!$H$26))","v":""},null,null,null,null,null,"⑥",null,null,null,{"$f":"IFERROR(IF(入力シート!$I$26=\"\",\"\",DBCS(LEFT(RIGHT(入力シート!$I$26,28-COLUMN())))),\"\")","v":""},null,{"$f":"IFERROR(IF(入力シート!$I$26=\"\",\"\",DBCS(LEFT(RIGHT(入力シート!$I$26,29-COLUMN())))),\"\")","v":""},null,{"$f":"IFERROR(IF(入力シート!$I$26=\"\",\"\",DBCS(LEFT(RIGHT(入力シート!$I$26,30-COLUMN())))),\"\")","v":""},null,{"$f":"IFERROR(IF(入力シート!$I$26=\"\",\"\",DBCS(LEFT(RIGHT(入力シート!$I$26,31-COLUMN())))),\"\")","v":""},null,{"$f":"IFERROR(IF(入力シート!$I$26=\"\",\"\",DBCS(LEFT(RIGHT(入力シート!$I$26,32-COLUMN())))),\"\")","v":""},null,{"$f":"IFERROR(IF(入力シート!$I$26=\"\",\"\",DBCS(LEFT(RIGHT(入力シート!$I$26,33-COLUMN())))),\"\")","v":""},null,{"$f":"IFERROR(IF(入力シート!$I$26=\"\",\"\",DBCS(LEFT(RIGHT(入力シート!$I$26,34-COLUMN())))),\"\")","v":""},null,{"$f":"IFERROR(IF(入力シート!$I$26=\"\",\"\",DBCS(LEFT(RIGHT(入力シート!$I$26,35-COLUMN())))),\"\")","v":""},null,{"$f":"IFERROR(IF(入力シート!$I$26=\"\",\"\",DBCS(LEFT(RIGHT(入力シート!$I$26,36-COLUMN())))),\"\")","v":""},null,{"$f":"IFERROR(IF(入力シート!$I$26=\"\",\"\",DBCS(LEFT(RIGHT(入力シート!$I$26,37-COLUMN())))),\"\")","v":""},null,null,null,null,null,"⑦",null,null,null,{"$f":"IF(入力シート!$J$26=\"\",\"\",IF(TEXT(入力シート!$J$26,\"g\")=\"S\",\"5．昭和\",IF(TEXT(入力シート!$J$26,\"g\")=\"H\",\"7．平成\",IF(TEXT(入力シート!$J$26,\"g\")=\"R\",\"9．令和\"))))","v":""},null,null,null,null,null,"年",null,null,"月",null,"日",null,null,"⑧"]
[]
[null,null,null,"取得\n区分",null,null,null,null,null,null,null,null,null,"基礎年\n金番号",null,null,null,null,null,null,null,null,null,null,null,null,null,null,null,null,null,null,null,null,null,null,null,null,null,null,null,"取　得\n（該当）\n年月日",null,null,null,null,null,null,null,null,null,{"$f":"IF(入力シート!$J$26=\"\",\"\",DBCS(TEXT(入力シート!$J$26,\"eemmdd\")))","v":""},null,null,null,null,null,null,null,"被扶\n養者"]
[null,null,null,null,null,null,null,null,null,null,null,null,null,null,null,null,null,null,null,null,null,null,null,null,null,null,null,null,null,null,null,null,null,null,null,null,null,null,null,null,null,null,null,null,null,null,null,null,null,null,null,null,null,null,null,null,null,null,null,"被扶\n養者"]
[]
[]
[]
[null,null,null,"⑨",null,null,null,"㋐（通貨）",null,null,null,null,{"$f":"IF(入力シート!$K$26=\"\",\"\",入力シート!$K$26)","v":""},null,null,null,null,null,null,null,null,null,null,"円",null,"㋒（合計　㋐+㋑）",null,null,null,null,null,null,null,null,null,null,null,null,null,"円",null,"⑩",null,null,null,null,{"$f":"IF(入力シート!$O$26=\"\",\"\",DBCS(入力シート!$O$26))","v":""}]
[]
[null,null,null,"報酬\n月額",null,null,null,null,null,null,null,null,null,null,null,null,null,null,null,null,null,null,null,null,null,{"$f":"IF(入力シート!$M$26=\"\",\"\",入力シート!$M$26)","v":""},null,null,null,null,null,null,null,null,null,null,null,null,null,null,null,"備　考"]
[null,null,null,null,null,null,null,"㋑（現物）",null,null,null,null,{"$f":"IF(入力シート!$L$26=\"\",\"\",入力シート!$L$26)","v":""},null,null,null,null,null,null,null,null,null,null,"円",null,null,null,null,null,null,null,null,null,null,null,null,null,null,null,null,null,null,null,null,null,null,{"$f":"IF(入力シート!$P$26=\"\",\"\",DBCS(入力シート!$P$26))","v":""}]
[]
[]
[null,null,null,"⑪",null,null,null,{"$f":"IFERROR(IF(入力シート!$X$26=\"\",\"\",DBCS(LEFT(RIGHT(入力シート!$X$26,18-COLUMN())))),\"\")","v":""},null,{"$f":"IFERROR(IF(入力シート!$X$26=\"\",\"\",DBCS(LEFT(RIGHT(入力シート!$X$26,19-COLUMN())))),\"\")","v":""},null,{"$f":"IFERROR(IF(入力シート!$X$26=\"\",\"\",DBCS(LEFT(RIGHT(入力シート!$X$26,20-COLUMN())))),\"\")","v":""},null,{"$f":"IFERROR(IF(入力シート!$X$26=\"\",\"\",DBCS(LEFT(RIGHT(入力シート!$X$26,21-COLUMN())))),\"\")","v":""},null,{"$f":"IFERROR(IF(入力シート!$X$26=\"\",\"\",DBCS(LEFT(RIGHT(入力シート!$X$26,22-COLUMN())))),\"\")","v":""},null,{"$f":"IFERROR(IF(入力シート!$X$26=\"\",\"\",DBCS(LEFT(RIGHT(入力シート!$X$26,23-COLUMN())))),\"\")","v":""},null,{"$f":"IFERROR(IF(入力シート!$X$26=\"\",\"\",DBCS(LEFT(RIGHT(入力シート!$X$26,24-COLUMN())))),\"\")","v":""},null,{"$f":"IFERROR(IF(入力シート!$X$26=\"\",\"\",DBCS(LEFT(RIGHT(入力シート!$X$26,25-COLUMN())))),\"\")","v":""},null,{"$f":"IFERROR(IF(入力シート!$X$26=\"\",\"\",DBCS(LEFT(RIGHT(入力シート!$X$26,26-COLUMN())))),\"\")","v":""},null,{"$f":"IFERROR(IF(入力シート!$X$26=\"\",\"\",DBCS(LEFT(RIGHT(入力シート!$X$26,27-COLUMN())))),\"\")","v":""}]
[]
[null,null,null,"加入者\n番　号"]
[]
[]
[]
[]
[]
[]
[]
[]
[]
[]
[]
[]
[]
[]
[]
[]
[]
[]
[]
[]
[]
[]
[]
[]
[]
[]
[null,"加入者\n１",null,"①",null,null,null,{"$f":"IF(入力シート!$B$27=\"\",\"\",DBCS(入力シート!$B$27))","v":""},null,null,null,null,null,"②",null,null,null,{"$f":"IFERROR(LEFT(入力シート!$C$27,FIND(\" \",入力シート!$C$27,1)-1),\"\")","v":""},null,null,null,null,null,null,null,null,null,null,null,{"$f":"IFERROR(RIGHT(入力シート!$C$27,LEN(入力シート!$C$27)-FIND(\" \",入力シート!$C$27,1)),\"\")","v":""},null,null,null,null,null,null,null,null,null,null,null,"③",null,null,null,{"$f":"IF(入力シート!$E$27=\"\",\"\",IF(TEXT(入力シート!$E$27,\"g\")=\"S\",\"5．昭和\",IF(TEXT(入力シート!$E$27,\"g\")=\"H\",\"7．平成\",IF(TEXT(入力シート!$E$27,\"g\")=\"R\",\"9．令和\"))))","v":""},null,null,null,null,null,"年",null,null,"月",null,"日",null,null,"④",null,null,{"$f":"IF(入力シート!$F$27=\"\",\"\",IF(入力シート!$F$27=\"男\",\"1．男\",\"2．女\"))","v":""}]
[]
[null,null,null,"被保険者\n整理番号",null,null,null,null,null,null,null,null,null,"氏名",null,null,null,null,null,null,null,null,null,null,null,null,null,null,null,null,null,null,null,null,null,null,null,null,null,null,null,"生年\n月日",null,null,null,null,null,null,null,null,null,null,null,null,null,null,null,null,null,"種別"]
[null,null,null,null,null,null,null,null,null,null,null,null,null,null,null,null,null,null,null,null,null,null,null,null,null,null,null,null,null,null,null,null,null,null,null,null,null,null,null,null,null,null,null,null,null,null,null,null,null,null,null,{"$f":"IF(入力シート!$E$27=\"\",\"\",DBCS(TEXT(入力シート!$E$27,\"eemmdd\")))","v":""}]
[null,null,null,null,null,null,null,null,null,null,null,null,null,null,null,null,null,{"$f":"IFERROR(LEFT(入力シート!$D$27,FIND(\"　\",入力シート!$D$27,1)-1),\"\")","v":""},null,null,null,null,null,null,null,null,null,null,null,{"$f":"IFERROR(RIGHT(入力シート!$D$27,LEN(入力シート!$D$27)-FIND(\"　\",入力シート!$D$27,1)),\"\")","v":""}]
[]
[]
[]
[]
[]
[null,null,null,"⑤",null,null,null,{"$f":"IF(入力シート!$H$27=\"\",\"\",DBCS(入力シート!$H$27))","v":""},null,null,null,null,null,"⑥",null,null,null,{"$f":"IFERROR(IF(入力シート!$I$27=\"\",\"\",DBCS(LEFT(RIGHT(入力シート!$I$27,28-COLUMN())))),\"\")","v":""},null,{"$f":"IFERROR(IF(入力シート!$I$27=\"\",\"\",DBCS(LEFT(RIGHT(入力シート!$I$27,29-COLUMN())))),\"\")","v":""},null,{"$f":"IFERROR(IF(入力シート!$I$27=\"\",\"\",DBCS(LEFT(RIGHT(入力シート!$I$27,30-COLUMN())))),\"\")","v":""},null,{"$f":"IFERROR(IF(入力シート!$I$27=\"\",\"\",DBCS(LEFT(RIGHT(入力シート!$I$27,31-COLUMN())))),\"\")","v":""},null,{"$f":"IFERROR(IF(入力シート!$I$27=\"\",\"\",DBCS(LEFT(RIGHT(入力シート!$I$27,32-COLUMN())))),\"\")","v":""},null,{"$f":"IFERROR(IF(入力シート!$I$27=\"\",\"\",DBCS(LEFT(RIGHT(入力シート!$I$27,33-COLUMN())))),\"\")","v":""},null,{"$f":"IFERROR(IF(入力シート!$I$27=\"\",\"\",DBCS(LEFT(RIGHT(入力シート!$I$27,34-COLUMN())))),\"\")","v":""},null,{"$f":"IFERROR(IF(入力シート!$I$27=\"\",\"\",DBCS(LEFT(RIGHT(入力シート!$I$27,35-COLUMN())))),\"\")","v":""},null,{"$f":"IFERROR(IF(入力シート!$I$27=\"\",\"\",DBCS(LEFT(RIGHT(入力シート!$I$27,36-COLUMN())))),\"\")","v":""},null,{"$f":"IFERROR(IF(入力シート!$I$27=\"\",\"\",DBCS(LEFT(RIGHT(入力シート!$I$27,37-COLUMN())))),\"\")","v":""},null,null,null,null,null,"⑦",null,null,null,{"$f":"IF(入力シート!$J$27=\"\",\"\",IF(TEXT(入力シート!$J$27,\"g\")=\"S\",\"5．昭和\",IF(TEXT(入力シート!$J$27,\"g\")=\"H\",\"7．平成\",IF(TEXT(入力シート!$J$27,\"g\")=\"R\",\"9．令和\"))))","v":""},null,null,null,null,null,"年",null,null,"月",null,"日",null,null,"⑧"]
[]
[null,null,null,"取得\n区分",null,null,null,null,null,null,null,null,null,"基礎年\n金番号",null,null,null,null,null,null,null,null,null,null,null,null,null,null,null,null,null,null,null,null,null,null,null,null,null,null,null,"取　得\n（該当）\n年月日",null,null,null,null,null,null,null,null,null,{"$f":"IF(入力シート!$J$27=\"\",\"\",DBCS(TEXT(入力シート!$J$27,\"eemmdd\")))","v":""},null,null,null,null,null,null,null,"被扶\n養者"]
[null,null,null,null,null,null,null,null,null,null,null,null,null,null,null,null,null,null,null,null,null,null,null,null,null,null,null,null,null,null,null,null,null,null,null,null,null,null,null,null,null,null,null,null,null,null,null,null,null,null,null,null,null,null,null,null,null,null,null,"被扶\n養者"]
[]
[]
[]
[null,null,null,"⑨",null,null,null,"㋐（通貨）",null,null,null,null,{"$f":"IF(入力シート!$K$27=\"\",\"\",入力シート!$K$27)","v":""},null,null,null,null,null,null,null,null,null,null,"円",null,"㋒（合計　㋐+㋑）",null,null,null,null,null,null,null,null,null,null,null,null,null,"円",null,"⑩",null,null,null,null,{"$f":"IF(入力シート!$O$27=\"\",\"\",DBCS(入力シート!$O$27))","v":""}]
[]
[null,null,null,"報酬\n月額",null,null,null,null,null,null,null,null,null,null,null,null,null,null,null,null,null,null,null,null,null,{"$f":"IF(入力シート!$M$27=\"\",\"\",入力シート!$M$27)","v":""},null,null,null,null,null,null,null,null,null,null,null,null,null,null,null,"備　考"]
[null,null,null,null,null,null,null,"㋑（現物）",null,null,null,null,{"$f":"IF(入力シート!$L$27=\"\",\"\",入力シート!$L$27)","v":""},null,null,null,null,null,null,null,null,null,null,"円",null,null,null,null,null,null,null,null,null,null,null,null,null,null,null,null,null,null,null,null,null,null,{"$f":"IF(入力シート!$P$27=\"\",\"\",DBCS(入力シート!$P$27))","v":""}]
[]
[]
[null,null,null,"⑪",null,null,null,{"$f":"IFERROR(IF(入力シート!$X$27=\"\",\"\",DBCS(LEFT(RIGHT(入力シート!$X$27,18-COLUMN())))),\"\")","v":""},null,{"$f":"IFERROR(IF(入力シート!$X$27=\"\",\"\",DBCS(LEFT(RIGHT(入力シート!$X$27,19-COLUMN())))),\"\")","v":""},null,{"$f":"IFERROR(IF(入力シート!$X$27=\"\",\"\",DBCS(LEFT(RIGHT(入力シート!$X$27,20-COLUMN())))),\"\")","v":""},null,{"$f":"IFERROR(IF(入力シート!$X$27=\"\",\"\",DBCS(LEFT(RIGHT(入力シート!$X$27,21-COLUMN())))),\"\")","v":""},null,{"$f":"IFERROR(IF(入力シート!$X$27=\"\",\"\",DBCS(LEFT(RIGHT(入力シート!$X$27,22-COLUMN())))),\"\")","v":""},null,{"$f":"IFERROR(IF(入力シート!$X$27=\"\",\"\",DBCS(LEFT(RIGHT(入力シート!$X$27,23-COLUMN())))),\"\")","v":""},null,{"$f":"IFERROR(IF(入力シート!$X$27=\"\",\"\",DBCS(LEFT(RIGHT(入力シート!$X$27,24-COLUMN())))),\"\")","v":""},null,{"$f":"IFERROR(IF(入力シート!$X$27=\"\",\"\",DBCS(LEFT(RIGHT(入力シート!$X$27,25-COLUMN())))),\"\")","v":""},null,{"$f":"IFERROR(IF(入力シート!$X$27=\"\",\"\",DBCS(LEFT(RIGHT(入力シート!$X$27,26-COLUMN())))),\"\")","v":""},null,{"$f":"IFERROR(IF(入力シート!$X$27=\"\",\"\",DBCS(LEFT(RIGHT(入力シート!$X$27,27-COLUMN())))),\"\")","v":""}]
[]
[null,null,null,"加入者\n番　号"]
[]
[]
[]
[]
[]
[]
[null,"加入者\n２",null,"①",null,null,null,{"$f":"IF(入力シート!$B$28=\"\",\"\",DBCS(入力シート!$B$28))","v":""},null,null,null,null,null,"②",null,null,null,{"$f":"IFERROR(LEFT(入力シート!$C$28,FIND(\" \",入力シート!$C$28,1)-1),\"\")","v":""},null,null,null,null,null,null,null,null,null,null,null,{"$f":"IFERROR(RIGHT(入力シート!$C$28,LEN(入力シート!$C$28)-FIND(\" \",入力シート!$C$28,1)),\"\")","v":""},null,null,null,null,null,null,null,null,null,null,null,"③",null,null,null,{"$f":"IF(入力シート!$E$28=\"\",\"\",IF(TEXT(入力シート!$E$28,\"g\")=\"S\",\"5．昭和\",IF(TEXT(入力シート!$E$28,\"g\")=\"H\",\"7．平成\",IF(TEXT(入力シート!$E$28,\"g\")=\"R\",\"9．令和\"))))","v":""},null,null,null,null,null,"年",null,null,"月",null,"日",null,null,"④",null,null,{"$f":"IF(入力シート!$F$28=\"\",\"\",IF(入力シート!$F$28=\"男\",\"1．男\",\"2．女\"))","v":""}]
[]
[null,null,null,"被保険者\n整理番号",null,null,null,null,null,null,null,null,null,"氏名",null,null,null,null,null,null,null,null,null,null,null,null,null,null,null,null,null,null,null,null,null,null,null,null,null,null,null,"生年\n月日",null,null,null,null,null,null,null,null,null,null,null,null,null,null,null,null,null,"種別"]
[null,null,null,null,null,null,null,null,null,null,null,null,null,null,null,null,null,null,null,null,null,null,null,null,null,null,null,null,null,null,null,null,null,null,null,null,null,null,null,null,null,null,null,null,null,null,null,null,null,null,null,{"$f":"IF(入力シート!$E$28=\"\",\"\",DBCS(TEXT(入力シート!$E$28,\"eemmdd\")))","v":""}]
[null,null,null,null,null,null,null,null,null,null,null,null,null,null,null,null,null,{"$f":"IFERROR(LEFT(入力シート!$D$28,FIND(\"　\",入力シート!$D$28,1)-1),\"\")","v":""},null,null,null,null,null,null,null,null,null,null,null,{"$f":"IFERROR(RIGHT(入力シート!$D$28,LEN(入力シート!$D$28)-FIND(\"　\",入力シート!$D$28,1)),\"\")","v":""}]
[]
[]
[]
[]
[]
[null,null,null,"⑤",null,null,null,{"$f":"IF(入力シート!$H$28=\"\",\"\",DBCS(入力シート!$H$28))","v":""},null,null,null,null,null,"⑥",null,null,null,{"$f":"IFERROR(IF(入力シート!$I$28=\"\",\"\",DBCS(LEFT(RIGHT(入力シート!$I$28,28-COLUMN())))),\"\")","v":""},null,{"$f":"IFERROR(IF(入力シート!$I$28=\"\",\"\",DBCS(LEFT(RIGHT(入力シート!$I$28,29-COLUMN())))),\"\")","v":""},null,{"$f":"IFERROR(IF(入力シート!$I$28=\"\",\"\",DBCS(LEFT(RIGHT(入力シート!$I$28,30-COLUMN())))),\"\")","v":""},null,{"$f":"IFERROR(IF(入力シート!$I$28=\"\",\"\",DBCS(LEFT(RIGHT(入力シート!$I$28,31-COLUMN())))),\"\")","v":""},null,{"$f":"IFERROR(IF(入力シート!$I$28=\"\",\"\",DBCS(LEFT(RIGHT(入力シート!$I$28,32-COLUMN())))),\"\")","v":""},null,{"$f":"IFERROR(IF(入力シート!$I$28=\"\",\"\",DBCS(LEFT(RIGHT(入力シート!$I$28,33-COLUMN())))),\"\")","v":""},null,{"$f":"IFERROR(IF(入力シート!$I$28=\"\",\"\",DBCS(LEFT(RIGHT(入力シート!$I$28,34-COLUMN())))),\"\")","v":""},null,{"$f":"IFERROR(IF(入力シート!$I$28=\"\",\"\",DBCS(LEFT(RIGHT(入力シート!$I$28,35-COLUMN())))),\"\")","v":""},null,{"$f":"IFERROR(IF(入力シート!$I$28=\"\",\"\",DBCS(LEFT(RIGHT(入力シート!$I$28,36-COLUMN())))),\"\")","v":""},null,{"$f":"IFERROR(IF(入力シート!$I$28=\"\",\"\",DBCS(LEFT(RIGHT(入力シート!$I$28,37-COLUMN())))),\"\")","v":""},null,null,null,null,null,"⑦",null,null,null,{"$f":"IF(入力シート!$J$28=\"\",\"\",IF(TEXT(入力シート!$J$28,\"g\")=\"S\",\"5．昭和\",IF(TEXT(入力シート!$J$28,\"g\")=\"H\",\"7．平成\",IF(TEXT(入力シート!$J$28,\"g\")=\"R\",\"9．令和\"))))","v":""},null,null,null,null,null,"年",null,null,"月",null,"日",null,null,"⑧"]
[]
[null,null,null,"取得\n区分",null,null,null,null,null,null,null,null,null,"基礎年\n金番号",null,null,null,null,null,null,null,null,null,null,null,null,null,null,null,null,null,null,null,null,null,null,null,null,null,null,null,"取　得\n（該当）\n年月日",null,null,null,null,null,null,null,null,null,{"$f":"IF(入力シート!$J$28=\"\",\"\",DBCS(TEXT(入力シート!$J$28,\"eemmdd\")))","v":""},null,null,null,null,null,null,null,"被扶\n養者"]
[null,null,null,null,null,null,null,null,null,null,null,null,null,null,null,null,null,null,null,null,null,null,null,null,null,null,null,null,null,null,null,null,null,null,null,null,null,null,null,null,null,null,null,null,null,null,null,null,null,null,null,null,null,null,null,null,null,null,null,"被扶\n養者"]
[]
[]
[]
[null,null,null,"⑨",null,null,null,"㋐（通貨）",null,null,null,null,{"$f":"IF(入力シート!$K$28=\"\",\"\",入力シート!$K$28)","v":""},null,null,null,null,null,null,null,null,null,null,"円",null,"㋒（合計　㋐+㋑）",null,null,null,null,null,null,null,null,null,null,null,null,null,"円",null,"⑩",null,null,null,null,{"$f":"IF(入力シート!$O$28=\"\",\"\",DBCS(入力シート!$O$28))","v":""}]
[]
[null,null,null,"報酬\n月額",null,null,null,null,null,null,null,null,null,null,null,null,null,null,null,null,null,null,null,null,null,{"$f":"IF(入力シート!$M$28=\"\",\"\",入力シート!$M$28)","v":""},null,null,null,null,null,null,null,null,null,null,null,null,null,null,null,"備　考"]
[null,null,null,null,null,null,null,"㋑（現物）",null,null,null,null,{"$f":"IF(入力シート!$L$28=\"\",\"\",入力シート!$L$28)","v":""},null,null,null,null,null,null,null,null,null,null,"円",null,null,null,null,null,null,null,null,null,null,null,null,null,null,null,null,null,null,null,null,null,null,{"$f":"IF(入力シート!$P$28=\"\",\"\",DBCS(入力シート!$P$28))","v":""}]
[]
[]
[null,null,null,"⑪",null,null,null,{"$f":"IFERROR(IF(入力シート!$X$28=\"\",\"\",DBCS(LEFT(RIGHT(入力シート!$X$28,18-COLUMN())))),\"\")","v":""},null,{"$f":"IFERROR(IF(入力シート!$X$28=\"\",\"\",DBCS(LEFT(RIGHT(入力シート!$X$28,19-COLUMN())))),\"\")","v":""},null,{"$f":"IFERROR(IF(入力シート!$X$28=\"\",\"\",DBCS(LEFT(RIGHT(入力シート!$X$28,20-COLUMN())))),\"\")","v":""},null,{"$f":"IFERROR(IF(入力シート!$X$28=\"\",\"\",DBCS(LEFT(RIGHT(入力シート!$X$28,21-COLUMN())))),\"\")","v":""},null,{"$f":"IFERROR(IF(入力シート!$X$28=\"\",\"\",DBCS(LEFT(RIGHT(入力シート!$X$28,22-COLUMN())))),\"\")","v":""},null,{"$f":"IFERROR(IF(入力シート!$X$28=\"\",\"\",DBCS(LEFT(RIGHT(入力シート!$X$28,23-COLUMN())))),\"\")","v":""},null,{"$f":"IFERROR(IF(入力シート!$X$28=\"\",\"\",DBCS(LEFT(RIGHT(入力シート!$X$28,24-COLUMN())))),\"\")","v":""},null,{"$f":"IFERROR(IF(入力シート!$X$28=\"\",\"\",DBCS(LEFT(RIGHT(入力シート!$X$28,25-COLUMN())))),\"\")","v":""},null,{"$f":"IFERROR(IF(入力シート!$X$28=\"\",\"\",DBCS(LEFT(RIGHT(入力シート!$X$28,26-COLUMN())))),\"\")","v":""},null,{"$f":"IFERROR(IF(入力シート!$X$28=\"\",\"\",DBCS(LEFT(RIGHT(入力シート!$X$28,27-COLUMN())))),\"\")","v":""}]
[]
[null,null,null,"加入者\n番　号"]
[]
[]
[]
[]
[]
[]
[null,"加入者\n３",null,"①",null,null,null,{"$f":"IF(入力シート!$B$29=\"\",\"\",DBCS(入力シート!$B$29))","v":""},null,null,null,null,null,"②",null,null,null,{"$f":"IFERROR(LEFT(入力シート!$C$29,FIND(\" \",入力シート!$C$29,1)-1),\"\")","v":""},null,null,null,null,null,null,null,null,null,null,null,{"$f":"IFERROR(RIGHT(入力シート!$C$29,LEN(入力シート!$C$29)-FIND(\" \",入力シート!$C$29,1)),\"\")","v":""},null,null,null,null,null,null,null,null,null,null,null,"③",null,null,null,{"$f":"IF(入力シート!$E$29=\"\",\"\",IF(TEXT(入力シート!$E$29,\"g\")=\"S\",\"5．昭和\",IF(TEXT(入力シート!$E$29,\"g\")=\"H\",\"7．平成\",IF(TEXT(入力シート!$E$29,\"g\")=\"R\",\"9．令和\"))))","v":""},null,null,null,null,null,"年",null,null,"月",null,"日",null,null,"④",null,null,{"$f":"IF(入力シート!$F$29=\"\",\"\",IF(入力シート!$F$29=\"男\",\"1．男\",\"2．女\"))","v":""}]
[]
[null,null,null,"被保険者\n整理番号",null,null,null,null,null,null,null,null,null,"氏名",null,null,null,null,null,null,null,null,null,null,null,null,null,null,null,null,null,null,null,null,null,null,null,null,null,null,null,"生年\n月日",null,null,null,null,null,null,null,null,null,null,null,null,null,null,null,null,null,"種別"]
[null,null,null,null,null,null,null,null,null,null,null,null,null,null,null,null,null,null,null,null,null,null,null,null,null,null,null,null,null,null,null,null,null,null,null,null,null,null,null,null,null,null,null,null,null,null,null,null,null,null,null,{"$f":"IF(入力シート!$E$29=\"\",\"\",DBCS(TEXT(入力シート!$E$29,\"eemmdd\")))","v":""}]
[null,null,null,null,null,null,null,null,null,null,null,null,null,null,null,null,null,{"$f":"IFERROR(LEFT(入力シート!$D$29,FIND(\"　\",入力シート!$D$29,1)-1),\"\")","v":""},null,null,null,null,null,null,null,null,null,null,null,{"$f":"IFERROR(RIGHT(入力シート!$D$29,LEN(入力シート!$D$29)-FIND(\"　\",入力シート!$D$29,1)),\"\")","v":""}]
[]
[]
[]
[]
[]
[null,null,null,"⑤",null,null,null,{"$f":"IF(入力シート!$H$29=\"\",\"\",DBCS(入力シート!$H$29))","v":""},null,null,null,null,null,"⑥",null,null,null,{"$f":"IFERROR(IF(入力シート!$I$29=\"\",\"\",DBCS(LEFT(RIGHT(入力シート!$I$29,28-COLUMN())))),\"\")","v":""},null,{"$f":"IFERROR(IF(入力シート!$I$29=\"\",\"\",DBCS(LEFT(RIGHT(入力シート!$I$29,29-COLUMN())))),\"\")","v":""},null,{"$f":"IFERROR(IF(入力シート!$I$29=\"\",\"\",DBCS(LEFT(RIGHT(入力シート!$I$29,30-COLUMN())))),\"\")","v":""},null,{"$f":"IFERROR(IF(入力シート!$I$29=\"\",\"\",DBCS(LEFT(RIGHT(入力シート!$I$29,31-COLUMN())))),\"\")","v":""},null,{"$f":"IFERROR(IF(入力シート!$I$29=\"\",\"\",DBCS(LEFT(RIGHT(入力シート!$I$29,32-COLUMN())))),\"\")","v":""},null,{"$f":"IFERROR(IF(入力シート!$I$29=\"\",\"\",DBCS(LEFT(RIGHT(入力シート!$I$29,33-COLUMN())))),\"\")","v":""},null,{"$f":"IFERROR(IF(入力シート!$I$29=\"\",\"\",DBCS(LEFT(RIGHT(入力シート!$I$29,34-COLUMN())))),\"\")","v":""},null,{"$f":"IFERROR(IF(入力シート!$I$29=\"\",\"\",DBCS(LEFT(RIGHT(入力シート!$I$29,35-COLUMN())))),\"\")","v":""},null,{"$f":"IFERROR(IF(入力シート!$I$29=\"\",\"\",DBCS(LEFT(RIGHT(入力シート!$I$29,36-COLUMN())))),\"\")","v":""},null,{"$f":"IFERROR(IF(入力シート!$I$29=\"\",\"\",DBCS(LEFT(RIGHT(入力シート!$I$29,37-COLUMN())))),\"\")","v":""},null,null,null,null,null,"⑦",null,null,null,{"$f":"IF(入力シート!$J$29=\"\",\"\",IF(TEXT(入力シート!$J$29,\"g\")=\"S\",\"5．昭和\",IF(TEXT(入力シート!$J$29,\"g\")=\"H\",\"7．平成\",IF(TEXT(入力シート!$J$29,\"g\")=\"R\",\"9．令和\"))))","v":""},null,null,null,null,null,"年",null,null,"月",null,"日",null,null,"⑧"]
[]
[null,null,null,"取得\n区分",null,null,null,null,null,null,null,null,null,"基礎年\n金番号",null,null,null,null,null,null,null,null,null,null,null,null,null,null,null,null,null,null,null,null,null,null,null,null,null,null,null,"取　得\n（該当）\n年月日",null,null,null,null,null,null,null,null,null,{"$f":"IF(入力シート!$J$29=\"\",\"\",DBCS(TEXT(入力シート!$J$29,\"eemmdd\")))","v":""},null,null,null,null,null,null,null,"被扶\n養者"]
[null,null,null,null,null,null,null,null,null,null,null,null,null,null,null,null,null,null,null,null,null,null,null,null,null,null,null,null,null,null,null,null,null,null,null,null,null,null,null,null,null,null,null,null,null,null,null,null,null,null,null,null,null,null,null,null,null,null,null,"被扶\n養者"]
[]
[]
[]
[null,null,null,"⑨",null,null,null,"㋐（通貨）",null,null,null,null,{"$f":"IF(入力シート!$K$29=\"\",\"\",入力シート!$K$29)","v":""},null,null,null,null,null,null,null,null,null,null,"円",null,"㋒（合計　㋐+㋑）",null,null,null,null,null,null,null,null,null,null,null,null,null,"円",null,"⑩",null,null,null,null,{"$f":"IF(入力シート!$O$29=\"\",\"\",DBCS(入力シート!$O$29))","v":""}]
[]
[null,null,null,"報酬\n月額",null,null,null,null,null,null,null,null,null,null,null,null,null,null,null,null,null,null,null,null,null,{"$f":"IF(入力シート!$M$29=\"\",\"\",入力シート!$M$29)","v":""},null,null,null,null,null,null,null,null,null,null,null,null,null,null,null,"備　考"]
[null,null,null,null,null,null,null,"㋑（現物）",null,null,null,null,{"$f":"IF(入力シート!$L$29=\"\",\"\",入力シート!$L$29)","v":""},null,null,null,null,null,null,null,null,null,null,"円",null,null,null,null,null,null,null,null,null,null,null,null,null,null,null,null,null,null,null,null,null,null,{"$f":"IF(入力シート!$P$29=\"\",\"\",DBCS(入力シート!$P$29))","v":""}]
[]
[]
[null,null,null,"⑪",null,null,null,{"$f":"IFERROR(IF(入力シート!$X$29=\"\",\"\",DBCS(LEFT(RIGHT(入力シート!$X$29,18-COLUMN())))),\"\")","v":""},null,{"$f":"IFERROR(IF(入力シート!$X$29=\"\",\"\",DBCS(LEFT(RIGHT(入力シート!$X$29,19-COLUMN())))),\"\")","v":""},null,{"$f":"IFERROR(IF(入力シート!$X$29=\"\",\"\",DBCS(LEFT(RIGHT(入力シート!$X$29,20-COLUMN())))),\"\")","v":""},null,{"$f":"IFERROR(IF(入力シート!$X$29=\"\",\"\",DBCS(LEFT(RIGHT(入力シート!$X$29,21-COLUMN())))),\"\")","v":""},null,{"$f":"IFERROR(IF(入力シート!$X$29=\"\",\"\",DBCS(LEFT(RIGHT(入力シート!$X$29,22-COLUMN())))),\"\")","v":""},null,{"$f":"IFERROR(IF(入力シート!$X$29=\"\",\"\",DBCS(LEFT(RIGHT(入力シート!$X$29,23-COLUMN())))),\"\")","v":""},null,{"$f":"IFERROR(IF(入力シート!$X$29=\"\",\"\",DBCS(LEFT(RIGHT(入力シート!$X$29,24-COLUMN())))),\"\")","v":""},null,{"$f":"IFERROR(IF(入力シート!$X$29=\"\",\"\",DBCS(LEFT(RIGHT(入力シート!$X$29,25-COLUMN())))),\"\")","v":""},null,{"$f":"IFERROR(IF(入力シート!$X$29=\"\",\"\",DBCS(LEFT(RIGHT(入力シート!$X$29,26-COLUMN())))),\"\")","v":""},null,{"$f":"IFERROR(IF(入力シート!$X$29=\"\",\"\",DBCS(LEFT(RIGHT(入力シート!$X$29,27-COLUMN())))),\"\")","v":""}]
[]
[null,null,null,"加入者\n番　号"]
[]
[]
[]
[]
[]
[]
[null,"加入者\n４",null,"①",null,null,null,{"$f":"IF(入力シート!$B$30=\"\",\"\",DBCS(入力シート!$B$30))","v":""},null,null,null,null,null,"②",null,null,null,{"$f":"IFERROR(LEFT(入力シート!$C$30,FIND(\" \",入力シート!$C$30,1)-1),\"\")","v":""},null,null,null,null,null,null,null,null,null,null,null,{"$f":"IFERROR(RIGHT(入力シート!$C$30,LEN(入力シート!$C$30)-FIND(\" \",入力シート!$C$30,1)),\"\")","v":""},null,null,null,null,null,null,null,null,null,null,null,"③",null,null,null,{"$f":"IF(入力シート!$E$30=\"\",\"\",IF(TEXT(入力シート!$E$30,\"g\")=\"S\",\"5．昭和\",IF(TEXT(入力シート!$E$30,\"g\")=\"H\",\"7．平成\",IF(TEXT(入力シート!$E$30,\"g\")=\"R\",\"9．令和\"))))","v":""},null,null,null,null,null,"年",null,null,"月",null,"日",null,null,"④",null,null,{"$f":"IF(入力シート!$F$30=\"\",\"\",IF(入力シート!$F$30=\"男\",\"1．男\",\"2．女\"))","v":""}]
[]
[null,null,null,"被保険者\n整理番号",null,null,null,null,null,null,null,null,null,"氏名",null,null,null,null,null,null,null,null,null,null,null,null,null,null,null,null,null,null,null,null,null,null,null,null,null,null,null,"生年\n月日",null,null,null,null,null,null,null,null,null,null,null,null,null,null,null,null,null,"種別"]
[null,null,null,null,null,null,null,null,null,null,null,null,null,null,null,null,null,null,null,null,null,null,null,null,null,null,null,null,null,null,null,null,null,null,null,null,null,null,null,null,null,null,null,null,null,null,null,null,null,null,null,{"$f":"IF(入力シート!$E$30=\"\",\"\",DBCS(TEXT(入力シート!$E$30,\"eemmdd\")))","v":""}]
[null,null,null,null,null,null,null,null,null,null,null,null,null,null,null,null,null,{"$f":"IFERROR(LEFT(入力シート!$D$30,FIND(\"　\",入力シート!$D$30,1)-1),\"\")","v":""},null,null,null,null,null,null,null,null,null,null,null,{"$f":"IFERROR(RIGHT(入力シート!$D$30,LEN(入力シート!$D$30)-FIND(\"　\",入力シート!$D$30,1)),\"\")","v":""}]
[]
[]
[]
[]
[]
[null,null,null,"⑤",null,null,null,{"$f":"IF(入力シート!$H$30=\"\",\"\",DBCS(入力シート!$H$30))","v":""},null,null,null,null,null,"⑥",null,null,null,{"$f":"IFERROR(IF(入力シート!$I$30=\"\",\"\",DBCS(LEFT(RIGHT(入力シート!$I$30,28-COLUMN())))),\"\")","v":""},null,{"$f":"IFERROR(IF(入力シート!$I$30=\"\",\"\",DBCS(LEFT(RIGHT(入力シート!$I$30,29-COLUMN())))),\"\")","v":""},null,{"$f":"IFERROR(IF(入力シート!$I$30=\"\",\"\",DBCS(LEFT(RIGHT(入力シート!$I$30,30-COLUMN())))),\"\")","v":""},null,{"$f":"IFERROR(IF(入力シート!$I$30=\"\",\"\",DBCS(LEFT(RIGHT(入力シート!$I$30,31-COLUMN())))),\"\")","v":""},null,{"$f":"IFERROR(IF(入力シート!$I$30=\"\",\"\",DBCS(LEFT(RIGHT(入力シート!$I$30,32-COLUMN())))),\"\")","v":""},null,{"$f":"IFERROR(IF(入力シート!$I$30=\"\",\"\",DBCS(LEFT(RIGHT(入力シート!$I$30,33-COLUMN())))),\"\")","v":""},null,{"$f":"IFERROR(IF(入力シート!$I$30=\"\",\"\",DBCS(LEFT(RIGHT(入力シート!$I$30,34-COLUMN())))),\"\")","v":""},null,{"$f":"IFERROR(IF(入力シート!$I$30=\"\",\"\",DBCS(LEFT(RIGHT(入力シート!$I$30,35-COLUMN())))),\"\")","v":""},null,{"$f":"IFERROR(IF(入力シート!$I$30=\"\",\"\",DBCS(LEFT(RIGHT(入力シート!$I$30,36-COLUMN())))),\"\")","v":""},null,{"$f":"IFERROR(IF(入力シート!$I$30=\"\",\"\",DBCS(LEFT(RIGHT(入力シート!$I$30,37-COLUMN())))),\"\")","v":""},null,null,null,null,null,"⑦",null,null,null,{"$f":"IF(入力シート!$J$30=\"\",\"\",IF(TEXT(入力シート!$J$30,\"g\")=\"S\",\"5．昭和\",IF(TEXT(入力シート!$J$30,\"g\")=\"H\",\"7．平成\",IF(TEXT(入力シート!$J$30,\"g\")=\"R\",\"9．令和\"))))","v":""},null,null,null,null,null,"年",null,null,"月",null,"日",null,null,"⑧"]
[]
[null,null,null,"取得\n区分",null,null,null,null,null,null,null,null,null,"基礎年\n金番号",null,null,null,null,null,null,null,null,null,null,null,null,null,null,null,null,null,null,null,null,null,null,null,null,null,null,null,"取　得\n（該当）\n年月日",null,null,null,null,null,null,null,null,null,{"$f":"IF(入力シート!$J$30=\"\",\"\",DBCS(TEXT(入力シート!$J$30,\"eemmdd\")))","v":""},null,null,null,null,null,null,null,"被扶\n養者"]
[null,null,null,null,null,null,null,null,null,null,null,null,null,null,null,null,null,null,null,null,null,null,null,null,null,null,null,null,null,null,null,null,null,null,null,null,null,null,null,null,null,null,null,null,null,null,null,null,null,null,null,null,null,null,null,null,null,null,null,"被扶\n養者"]
[]
[]
[]
[null,null,null,"⑨",null,null,null,"㋐（通貨）",null,null,null,null,{"$f":"IF(入力シート!$K$30=\"\",\"\",入力シート!$K$30)","v":""},null,null,null,null,null,null,null,null,null,null,"円",null,"㋒（合計　㋐+㋑）",null,null,null,null,null,null,null,null,null,null,null,null,null,"円",null,"⑩",null,null,null,null,{"$f":"IF(入力シート!$O$30=\"\",\"\",DBCS(入力シート!$O$30))","v":""}]
[]
[null,null,null,"報酬\n月額",null,null,null,null,null,null,null,null,null,null,null,null,null,null,null,null,null,null,null,null,null,{"$f":"IF(入力シート!$M$30=\"\",\"\",入力シート!$M$30)","v":""},null,null,null,null,null,null,null,null,null,null,null,null,null,null,null,"備　考"]
[null,null,null,null,null,null,null,"㋑（現物）",null,null,null,null,{"$f":"IF(入力シート!$L$30=\"\",\"\",入力シート!$L$30)","v":""},null,null,null,null,null,null,null,null,null,null,"円",null,null,null,null,null,null,null,null,null,null,null,null,null,null,null,null,null,null,null,null,null,null,{"$f":"IF(入力シート!$P$30=\"\",\"\",DBCS(入力シート!$P$30))","v":""}]
[]
[]
[null,null,null,"⑪",null,null,null,{"$f":"IFERROR(IF(入力シート!$X$30=\"\",\"\",DBCS(LEFT(RIGHT(入力シート!$X$30,18-COLUMN())))),\"\")","v":""},null,{"$f":"IFERROR(IF(入力シート!$X$30=\"\",\"\",DBCS(LEFT(RIGHT(入力シート!$X$30,19-COLUMN())))),\"\")","v":""},null,{"$f":"IFERROR(IF(入力シート!$X$30=\"\",\"\",DBCS(LEFT(RIGHT(入力シート!$X$30,20-COLUMN())))),\"\")","v":""},null,{"$f":"IFERROR(IF(入力シート!$X$30=\"\",\"\",DBCS(LEFT(RIGHT(入力シート!$X$30,21-COLUMN())))),\"\")","v":""},null,{"$f":"IFERROR(IF(入力シート!$X$30=\"\",\"\",DBCS(LEFT(RIGHT(入力シート!$X$30,22-COLUMN())))),\"\")","v":""},null,{"$f":"IFERROR(IF(入力シート!$X$30=\"\",\"\",DBCS(LEFT(RIGHT(入力シート!$X$30,23-COLUMN())))),\"\")","v":""},null,{"$f":"IFERROR(IF(入力シート!$X$30=\"\",\"\",DBCS(LEFT(RIGHT(入力シート!$X$30,24-COLUMN())))),\"\")","v":""},null,{"$f":"IFERROR(IF(入力シート!$X$30=\"\",\"\",DBCS(LEFT(RIGHT(入力シート!$X$30,25-COLUMN())))),\"\")","v":""},null,{"$f":"IFERROR(IF(入力シート!$X$30=\"\",\"\",DBCS(LEFT(RIGHT(入力シート!$X$30,26-COLUMN())))),\"\")","v":""},null,{"$f":"IFERROR(IF(入力シート!$X$30=\"\",\"\",DBCS(LEFT(RIGHT(入力シート!$X$30,27-COLUMN())))),\"\")","v":""}]
[]
[null,null,null,"加入者\n番　号"]
[]
[]
[]
[]
[]
[]
[]
[]
[]
[]
[]
[]
[]
[]
[]
[]
[]
[]
[]
[]
[]
[]
[]
[]
[]
[]
[null,"加入者\n１",null,"①",null,null,null,{"$f":"IF(入力シート!$B$31=\"\",\"\",DBCS(入力シート!$B$31))","v":""},null,null,null,null,null,"②",null,null,null,{"$f":"IFERROR(LEFT(入力シート!$C$31,FIND(\" \",入力シート!$C$31,1)-1),\"\")","v":""},null,null,null,null,null,null,null,null,null,null,null,{"$f":"IFERROR(RIGHT(入力シート!$C$31,LEN(入力シート!$C$31)-FIND(\" \",入力シート!$C$31,1)),\"\")","v":""},null,null,null,null,null,null,null,null,null,null,null,"③",null,null,null,{"$f":"IF(入力シート!$E$31=\"\",\"\",IF(TEXT(入力シート!$E$31,\"g\")=\"S\",\"5．昭和\",IF(TEXT(入力シート!$E$31,\"g\")=\"H\",\"7．平成\",IF(TEXT(入力シート!$E$31,\"g\")=\"R\",\"9．令和\"))))","v":""},null,null,null,null,null,"年",null,null,"月",null,"日",null,null,"④",null,null,{"$f":"IF(入力シート!$F$31=\"\",\"\",IF(入力シート!$F$31=\"男\",\"1．男\",\"2．女\"))","v":""}]
[]
[null,null,null,"被保険者\n整理番号",null,null,null,null,null,null,null,null,null,"氏名",null,null,null,null,null,null,null,null,null,null,null,null,null,null,null,null,null,null,null,null,null,null,null,null,null,null,null,"生年\n月日",null,null,null,null,null,null,null,null,null,null,null,null,null,null,null,null,null,"種別"]
[null,null,null,null,null,null,null,null,null,null,null,null,null,null,null,null,null,null,null,null,null,null,null,null,null,null,null,null,null,null,null,null,null,null,null,null,null,null,null,null,null,null,null,null,null,null,null,null,null,null,null,{"$f":"IF(入力シート!$E$31=\"\",\"\",DBCS(TEXT(入力シート!$E$31,\"eemmdd\")))","v":""}]
[null,null,null,null,null,null,null,null,null,null,null,null,null,null,null,null,null,{"$f":"IFERROR(LEFT(入力シート!$D$31,FIND(\"　\",入力シート!$D$31,1)-1),\"\")","v":""},null,null,null,null,null,null,null,null,null,null,null,{"$f":"IFERROR(RIGHT(入力シート!$D$31,LEN(入力シート!$D$31)-FIND(\"　\",入力シート!$D$31,1)),\"\")","v":""}]
[]
[]
[]
[]
[]
[null,null,null,"⑤",null,null,null,{"$f":"IF(入力シート!$H$31=\"\",\"\",DBCS(入力シート!$H$31))","v":""},null,null,null,null,null,"⑥",null,null,null,{"$f":"IFERROR(IF(入力シート!$I$31=\"\",\"\",DBCS(LEFT(RIGHT(入力シート!$I$31,28-COLUMN())))),\"\")","v":""},null,{"$f":"IFERROR(IF(入力シート!$I$31=\"\",\"\",DBCS(LEFT(RIGHT(入力シート!$I$31,29-COLUMN())))),\"\")","v":""},null,{"$f":"IFERROR(IF(入力シート!$I$31=\"\",\"\",DBCS(LEFT(RIGHT(入力シート!$I$31,30-COLUMN())))),\"\")","v":""},null,{"$f":"IFERROR(IF(入力シート!$I$31=\"\",\"\",DBCS(LEFT(RIGHT(入力シート!$I$31,31-COLUMN())))),\"\")","v":""},null,{"$f":"IFERROR(IF(入力シート!$I$31=\"\",\"\",DBCS(LEFT(RIGHT(入力シート!$I$31,32-COLUMN())))),\"\")","v":""},null,{"$f":"IFERROR(IF(入力シート!$I$31=\"\",\"\",DBCS(LEFT(RIGHT(入力シート!$I$31,33-COLUMN())))),\"\")","v":""},null,{"$f":"IFERROR(IF(入力シート!$I$31=\"\",\"\",DBCS(LEFT(RIGHT(入力シート!$I$31,34-COLUMN())))),\"\")","v":""},null,{"$f":"IFERROR(IF(入力シート!$I$31=\"\",\"\",DBCS(LEFT(RIGHT(入力シート!$I$31,35-COLUMN())))),\"\")","v":""},null,{"$f":"IFERROR(IF(入力シート!$I$31=\"\",\"\",DBCS(LEFT(RIGHT(入力シート!$I$31,36-COLUMN())))),\"\")","v":""},null,{"$f":"IFERROR(IF(入力シート!$I$31=\"\",\"\",DBCS(LEFT(RIGHT(入力シート!$I$31,37-COLUMN())))),\"\")","v":""},null,null,null,null,null,"⑦",null,null,null,{"$f":"IF(入力シート!$J$31=\"\",\"\",IF(TEXT(入力シート!$J$31,\"g\")=\"S\",\"5．昭和\",IF(TEXT(入力シート!$J$31,\"g\")=\"H\",\"7．平成\",IF(TEXT(入力シート!$J$31,\"g\")=\"R\",\"9．令和\"))))","v":""},null,null,null,null,null,"年",null,null,"月",null,"日",null,null,"⑧"]
[]
[null,null,null,"取得\n区分",null,null,null,null,null,null,null,null,null,"基礎年\n金番号",null,null,null,null,null,null,null,null,null,null,null,null,null,null,null,null,null,null,null,null,null,null,null,null,null,null,null,"取　得\n（該当）\n年月日",null,null,null,null,null,null,null,null,null,{"$f":"IF(入力シート!$J$31=\"\",\"\",DBCS(TEXT(入力シート!$J$31,\"eemmdd\")))","v":""},null,null,null,null,null,null,null,"被扶\n養者"]
[null,null,null,null,null,null,null,null,null,null,null,null,null,null,null,null,null,null,null,null,null,null,null,null,null,null,null,null,null,null,null,null,null,null,null,null,null,null,null,null,null,null,null,null,null,null,null,null,null,null,null,null,null,null,null,null,null,null,null,"被扶\n養者"]
[]
[]
[]
[null,null,null,"⑨",null,null,null,"㋐（通貨）",null,null,null,null,{"$f":"IF(入力シート!$K$31=\"\",\"\",入力シート!$K$31)","v":""},null,null,null,null,null,null,null,null,null,null,"円",null,"㋒（合計　㋐+㋑）",null,null,null,null,null,null,null,null,null,null,null,null,null,"円",null,"⑩",null,null,null,null,{"$f":"IF(入力シート!$O$31=\"\",\"\",DBCS(入力シート!$O$31))","v":""}]
[]
[null,null,null,"報酬\n月額",null,null,null,null,null,null,null,null,null,null,null,null,null,null,null,null,null,null,null,null,null,{"$f":"IF(入力シート!$M$31=\"\",\"\",入力シート!$M$31)","v":""},null,null,null,null,null,null,null,null,null,null,null,null,null,null,null,"備　考"]
[null,null,null,null,null,null,null,"㋑（現物）",null,null,null,null,{"$f":"IF(入力シート!$L$31=\"\",\"\",入力シート!$L$31)","v":""},null,null,null,null,null,null,null,null,null,null,"円",null,null,null,null,null,null,null,null,null,null,null,null,null,null,null,null,null,null,null,null,null,null,{"$f":"IF(入力シート!$P$31=\"\",\"\",DBCS(入力シート!$P$31))","v":""}]
[]
[]
[null,null,null,"⑪",null,null,null,{"$f":"IFERROR(IF(入力シート!$X$31=\"\",\"\",DBCS(LEFT(RIGHT(入力シート!$X$31,18-COLUMN())))),\"\")","v":""},null,{"$f":"IFERROR(IF(入力シート!$X$31=\"\",\"\",DBCS(LEFT(RIGHT(入力シート!$X$31,19-COLUMN())))),\"\")","v":""},null,{"$f":"IFERROR(IF(入力シート!$X$31=\"\",\"\",DBCS(LEFT(RIGHT(入力シート!$X$31,20-COLUMN())))),\"\")","v":""},null,{"$f":"IFERROR(IF(入力シート!$X$31=\"\",\"\",DBCS(LEFT(RIGHT(入力シート!$X$31,21-COLUMN())))),\"\")","v":""},null,{"$f":"IFERROR(IF(入力シート!$X$31=\"\",\"\",DBCS(LEFT(RIGHT(入力シート!$X$31,22-COLUMN())))),\"\")","v":""},null,{"$f":"IFERROR(IF(入力シート!$X$31=\"\",\"\",DBCS(LEFT(RIGHT(入力シート!$X$31,23-COLUMN())))),\"\")","v":""},null,{"$f":"IFERROR(IF(入力シート!$X$31=\"\",\"\",DBCS(LEFT(RIGHT(入力シート!$X$31,24-COLUMN())))),\"\")","v":""},null,{"$f":"IFERROR(IF(入力シート!$X$31=\"\",\"\",DBCS(LEFT(RIGHT(入力シート!$X$31,25-COLUMN())))),\"\")","v":""},null,{"$f":"IFERROR(IF(入力シート!$X$31=\"\",\"\",DBCS(LEFT(RIGHT(入力シート!$X$31,26-COLUMN())))),\"\")","v":""},null,{"$f":"IFERROR(IF(入力シート!$X$31=\"\",\"\",DBCS(LEFT(RIGHT(入力シート!$X$31,27-COLUMN())))),\"\")","v":""}]
[]
[null,null,null,"加入者\n番　号"]
[]
[]
[]
[]
[]
[]
[null,"加入者\n２",null,"①",null,null,null,{"$f":"IF(入力シート!$B$32=\"\",\"\",DBCS(入力シート!$B$32))","v":""},null,null,null,null,null,"②",null,null,null,{"$f":"IFERROR(LEFT(入力シート!$C$32,FIND(\" \",入力シート!$C$32,1)-1),\"\")","v":""},null,null,null,null,null,null,null,null,null,null,null,{"$f":"IFERROR(RIGHT(入力シート!$C$32,LEN(入力シート!$C$32)-FIND(\" \",入力シート!$C$32,1)),\"\")","v":""},null,null,null,null,null,null,null,null,null,null,null,"③",null,null,null,{"$f":"IF(入力シート!$E$32=\"\",\"\",IF(TEXT(入力シート!$E$32,\"g\")=\"S\",\"5．昭和\",IF(TEXT(入力シート!$E$32,\"g\")=\"H\",\"7．平成\",IF(TEXT(入力シート!$E$32,\"g\")=\"R\",\"9．令和\"))))","v":""},null,null,null,null,null,"年",null,null,"月",null,"日",null,null,"④",null,null,{"$f":"IF(入力シート!$F$32=\"\",\"\",IF(入力シート!$F$32=\"男\",\"1．男\",\"2．女\"))","v":""}]
[]
[null,null,null,"被保険者\n整理番号",null,null,null,null,null,null,null,null,null,"氏名",null,null,null,null,null,null,null,null,null,null,null,null,null,null,null,null,null,null,null,null,null,null,null,null,null,null,null,"生年\n月日",null,null,null,null,null,null,null,null,null,null,null,null,null,null,null,null,null,"種別"]
[null,null,null,null,null,null,null,null,null,null,null,null,null,null,null,null,null,null,null,null,null,null,null,null,null,null,null,null,null,null,null,null,null,null,null,null,null,null,null,null,null,null,null,null,null,null,null,null,null,null,null,{"$f":"IF(入力シート!$E$32=\"\",\"\",DBCS(TEXT(入力シート!$E$32,\"eemmdd\")))","v":""}]
[null,null,null,null,null,null,null,null,null,null,null,null,null,null,null,null,null,{"$f":"IFERROR(LEFT(入力シート!$D$32,FIND(\"　\",入力シート!$D$32,1)-1),\"\")","v":""},null,null,null,null,null,null,null,null,null,null,null,{"$f":"IFERROR(RIGHT(入力シート!$D$32,LEN(入力シート!$D$32)-FIND(\"　\",入力シート!$D$32,1)),\"\")","v":""}]
[]
[]
[]
[]
[]
[null,null,null,"⑤",null,null,null,{"$f":"IF(入力シート!$H$32=\"\",\"\",DBCS(入力シート!$H$32))","v":""},null,null,null,null,null,"⑥",null,null,null,{"$f":"IFERROR(IF(入力シート!$I$32=\"\",\"\",DBCS(LEFT(RIGHT(入力シート!$I$32,28-COLUMN())))),\"\")","v":""},null,{"$f":"IFERROR(IF(入力シート!$I$32=\"\",\"\",DBCS(LEFT(RIGHT(入力シート!$I$32,29-COLUMN())))),\"\")","v":""},null,{"$f":"IFERROR(IF(入力シート!$I$32=\"\",\"\",DBCS(LEFT(RIGHT(入力シート!$I$32,30-COLUMN())))),\"\")","v":""},null,{"$f":"IFERROR(IF(入力シート!$I$32=\"\",\"\",DBCS(LEFT(RIGHT(入力シート!$I$32,31-COLUMN())))),\"\")","v":""},null,{"$f":"IFERROR(IF(入力シート!$I$32=\"\",\"\",DBCS(LEFT(RIGHT(入力シート!$I$32,32-COLUMN())))),\"\")","v":""},null,{"$f":"IFERROR(IF(入力シート!$I$32=\"\",\"\",DBCS(LEFT(RIGHT(入力シート!$I$32,33-COLUMN())))),\"\")","v":""},null,{"$f":"IFERROR(IF(入力シート!$I$32=\"\",\"\",DBCS(LEFT(RIGHT(入力シート!$I$32,34-COLUMN())))),\"\")","v":""},null,{"$f":"IFERROR(IF(入力シート!$I$32=\"\",\"\",DBCS(LEFT(RIGHT(入力シート!$I$32,35-COLUMN())))),\"\")","v":""},null,{"$f":"IFERROR(IF(入力シート!$I$32=\"\",\"\",DBCS(LEFT(RIGHT(入力シート!$I$32,36-COLUMN())))),\"\")","v":""},null,{"$f":"IFERROR(IF(入力シート!$I$32=\"\",\"\",DBCS(LEFT(RIGHT(入力シート!$I$32,37-COLUMN())))),\"\")","v":""},null,null,null,null,null,"⑦",null,null,null,{"$f":"IF(入力シート!$J$32=\"\",\"\",IF(TEXT(入力シート!$J$32,\"g\")=\"S\",\"5．昭和\",IF(TEXT(入力シート!$J$32,\"g\")=\"H\",\"7．平成\",IF(TEXT(入力シート!$J$32,\"g\")=\"R\",\"9．令和\"))))","v":""},null,null,null,null,null,"年",null,null,"月",null,"日",null,null,"⑧"]
[]
[null,null,null,"取得\n区分",null,null,null,null,null,null,null,null,null,"基礎年\n金番号",null,null,null,null,null,null,null,null,null,null,null,null,null,null,null,null,null,null,null,null,null,null,null,null,null,null,null,"取　得\n（該当）\n年月日",null,null,null,null,null,null,null,null,null,{"$f":"IF(入力シート!$J$32=\"\",\"\",DBCS(TEXT(入力シート!$J$32,\"eemmdd\")))","v":""},null,null,null,null,null,null,null,"被扶\n養者"]
[null,null,null,null,null,null,null,null,null,null,null,null,null,null,null,null,null,null,null,null,null,null,null,null,null,null,null,null,null,null,null,null,null,null,null,null,null,null,null,null,null,null,null,null,null,null,null,null,null,null,null,null,null,null,null,null,null,null,null,"被扶\n養者"]
[]
[]
[]
[null,null,null,"⑨",null,null,null,"㋐（通貨）",null,null,null,null,{"$f":"IF(入力シート!$K$32=\"\",\"\",入力シート!$K$32)","v":""},null,null,null,null,null,null,null,null,null,null,"円",null,"㋒（合計　㋐+㋑）",null,null,null,null,null,null,null,null,null,null,null,null,null,"円",null,"⑩",null,null,null,null,{"$f":"IF(入力シート!$O$32=\"\",\"\",DBCS(入力シート!$O$32))","v":""}]
[]
[null,null,null,"報酬\n月額",null,null,null,null,null,null,null,null,null,null,null,null,null,null,null,null,null,null,null,null,null,{"$f":"IF(入力シート!$M$32=\"\",\"\",入力シート!$M$32)","v":""},null,null,null,null,null,null,null,null,null,null,null,null,null,null,null,"備　考"]
[null,null,null,null,null,null,null,"㋑（現物）",null,null,null,null,{"$f":"IF(入力シート!$L$32=\"\",\"\",入力シート!$L$32)","v":""},null,null,null,null,null,null,null,null,null,null,"円",null,null,null,null,null,null,null,null,null,null,null,null,null,null,null,null,null,null,null,null,null,null,{"$f":"IF(入力シート!$P$32=\"\",\"\",DBCS(入力シート!$P$32))","v":""}]
[]
[]
[null,null,null,"⑪",null,null,null,{"$f":"IFERROR(IF(入力シート!$X$32=\"\",\"\",DBCS(LEFT(RIGHT(入力シート!$X$32,18-COLUMN())))),\"\")","v":""},null,{"$f":"IFERROR(IF(入力シート!$X$32=\"\",\"\",DBCS(LEFT(RIGHT(入力シート!$X$32,19-COLUMN())))),\"\")","v":""},null,{"$f":"IFERROR(IF(入力シート!$X$32=\"\",\"\",DBCS(LEFT(RIGHT(入力シート!$X$32,20-COLUMN())))),\"\")","v":""},null,{"$f":"IFERROR(IF(入力シート!$X$32=\"\",\"\",DBCS(LEFT(RIGHT(入力シート!$X$32,21-COLUMN())))),\"\")","v":""},null,{"$f":"IFERROR(IF(入力シート!$X$32=\"\",\"\",DBCS(LEFT(RIGHT(入力シート!$X$32,22-COLUMN())))),\"\")","v":""},null,{"$f":"IFERROR(IF(入力シート!$X$32=\"\",\"\",DBCS(LEFT(RIGHT(入力シート!$X$32,23-COLUMN())))),\"\")","v":""},null,{"$f":"IFERROR(IF(入力シート!$X$32=\"\",\"\",DBCS(LEFT(RIGHT(入力シート!$X$32,24-COLUMN())))),\"\")","v":""},null,{"$f":"IFERROR(IF(入力シート!$X$32=\"\",\"\",DBCS(LEFT(RIGHT(入力シート!$X$32,25-COLUMN())))),\"\")","v":""},null,{"$f":"IFERROR(IF(入力シート!$X$32=\"\",\"\",DBCS(LEFT(RIGHT(入力シート!$X$32,26-COLUMN())))),\"\")","v":""},null,{"$f":"IFERROR(IF(入力シート!$X$32=\"\",\"\",DBCS(LEFT(RIGHT(入力シート!$X$32,27-COLUMN())))),\"\")","v":""}]
[]
[null,null,null,"加入者\n番　号"]
[]
[]
[]
[]
[]
[]
[null,"加入者\n３",null,"①",null,null,null,{"$f":"IF(入力シート!$B$33=\"\",\"\",DBCS(入力シート!$B$33))","v":""},null,null,null,null,null,"②",null,null,null,{"$f":"IFERROR(LEFT(入力シート!$C$33,FIND(\" \",入力シート!$C$33,1)-1),\"\")","v":""},null,null,null,null,null,null,null,null,null,null,null,{"$f":"IFERROR(RIGHT(入力シート!$C$33,LEN(入力シート!$C$33)-FIND(\" \",入力シート!$C$33,1)),\"\")","v":""},null,null,null,null,null,null,null,null,null,null,null,"③",null,null,null,{"$f":"IF(入力シート!$E$33=\"\",\"\",IF(TEXT(入力シート!$E$33,\"g\")=\"S\",\"5．昭和\",IF(TEXT(入力シート!$E$33,\"g\")=\"H\",\"7．平成\",IF(TEXT(入力シート!$E$33,\"g\")=\"R\",\"9．令和\"))))","v":""},null,null,null,null,null,"年",null,null,"月",null,"日",null,null,"④",null,null,{"$f":"IF(入力シート!$F$33=\"\",\"\",IF(入力シート!$F$33=\"男\",\"1．男\",\"2．女\"))","v":""}]
[]
[null,null,null,"被保険者\n整理番号",null,null,null,null,null,null,null,null,null,"氏名",null,null,null,null,null,null,null,null,null,null,null,null,null,null,null,null,null,null,null,null,null,null,null,null,null,null,null,"生年\n月日",null,null,null,null,null,null,null,null,null,null,null,null,null,null,null,null,null,"種別"]
[null,null,null,null,null,null,null,null,null,null,null,null,null,null,null,null,null,null,null,null,null,null,null,null,null,null,null,null,null,null,null,null,null,null,null,null,null,null,null,null,null,null,null,null,null,null,null,null,null,null,null,{"$f":"IF(入力シート!$E$33=\"\",\"\",DBCS(TEXT(入力シート!$E$33,\"eemmdd\")))","v":""}]
[null,null,null,null,null,null,null,null,null,null,null,null,null,null,null,null,null,{"$f":"IFERROR(LEFT(入力シート!$D$33,FIND(\"　\",入力シート!$D$33,1)-1),\"\")","v":""},null,null,null,null,null,null,null,null,null,null,null,{"$f":"IFERROR(RIGHT(入力シート!$D$33,LEN(入力シート!$D$33)-FIND(\"　\",入力シート!$D$33,1)),\"\")","v":""}]
[]
[]
[]
[]
[]
[null,null,null,"⑤",null,null,null,{"$f":"IF(入力シート!$H$33=\"\",\"\",DBCS(入力シート!$H$33))","v":""},null,null,null,null,null,"⑥",null,null,null,{"$f":"IFERROR(IF(入力シート!$I$33=\"\",\"\",DBCS(LEFT(RIGHT(入力シート!$I$33,28-COLUMN())))),\"\")","v":""},null,{"$f":"IFERROR(IF(入力シート!$I$33=\"\",\"\",DBCS(LEFT(RIGHT(入力シート!$I$33,29-COLUMN())))),\"\")","v":""},null,{"$f":"IFERROR(IF(入力シート!$I$33=\"\",\"\",DBCS(LEFT(RIGHT(入力シート!$I$33,30-COLUMN())))),\"\")","v":""},null,{"$f":"IFERROR(IF(入力シート!$I$33=\"\",\"\",DBCS(LEFT(RIGHT(入力シート!$I$33,31-COLUMN())))),\"\")","v":""},null,{"$f":"IFERROR(IF(入力シート!$I$33=\"\",\"\",DBCS(LEFT(RIGHT(入力シート!$I$33,32-COLUMN())))),\"\")","v":""},null,{"$f":"IFERROR(IF(入力シート!$I$33=\"\",\"\",DBCS(LEFT(RIGHT(入力シート!$I$33,33-COLUMN())))),\"\")","v":""},null,{"$f":"IFERROR(IF(入力シート!$I$33=\"\",\"\",DBCS(LEFT(RIGHT(入力シート!$I$33,34-COLUMN())))),\"\")","v":""},null,{"$f":"IFERROR(IF(入力シート!$I$33=\"\",\"\",DBCS(LEFT(RIGHT(入力シート!$I$33,35-COLUMN())))),\"\")","v":""},null,{"$f":"IFERROR(IF(入力シート!$I$33=\"\",\"\",DBCS(LEFT(RIGHT(入力シート!$I$33,36-COLUMN())))),\"\")","v":""},null,{"$f":"IFERROR(IF(入力シート!$I$33=\"\",\"\",DBCS(LEFT(RIGHT(入力シート!$I$33,37-COLUMN())))),\"\")","v":""},null,null,null,null,null,"⑦",null,null,null,{"$f":"IF(入力シート!$J$33=\"\",\"\",IF(TEXT(入力シート!$J$33,\"g\")=\"S\",\"5．昭和\",IF(TEXT(入力シート!$J$33,\"g\")=\"H\",\"7．平成\",IF(TEXT(入力シート!$J$33,\"g\")=\"R\",\"9．令和\"))))","v":""},null,null,null,null,null,"年",null,null,"月",null,"日",null,null,"⑧"]
[]
[null,null,null,"取得\n区分",null,null,null,null,null,null,null,null,null,"基礎年\n金番号",null,null,null,null,null,null,null,null,null,null,null,null,null,null,null,null,null,null,null,null,null,null,null,null,null,null,null,"取　得\n（該当）\n年月日",null,null,null,null,null,null,null,null,null,{"$f":"IF(入力シート!$J$33=\"\",\"\",DBCS(TEXT(入力シート!$J$33,\"eemmdd\")))","v":""},null,null,null,null,null,null,null,"被扶\n養者"]
[null,null,null,null,null,null,null,null,null,null,null,null,null,null,null,null,null,null,null,null,null,null,null,null,null,null,null,null,null,null,null,null,null,null,null,null,null,null,null,null,null,null,null,null,null,null,null,null,null,null,null,null,null,null,null,null,null,null,null,"被扶\n養者"]
[]
[]
[]
[null,null,null,"⑨",null,null,null,"㋐（通貨）",null,null,null,null,{"$f":"IF(入力シート!$K$33=\"\",\"\",入力シート!$K$33)","v":""},null,null,null,null,null,null,null,null,null,null,"円",null,"㋒（合計　㋐+㋑）",null,null,null,null,null,null,null,null,null,null,null,null,null,"円",null,"⑩",null,null,null,null,{"$f":"IF(入力シート!$O$33=\"\",\"\",DBCS(入力シート!$O$33))","v":""}]
[]
[null,null,null,"報酬\n月額",null,null,null,null,null,null,null,null,null,null,null,null,null,null,null,null,null,null,null,null,null,{"$f":"IF(入力シート!$M$33=\"\",\"\",入力シート!$M$33)","v":""},null,null,null,null,null,null,null,null,null,null,null,null,null,null,null,"備　考"]
[null,null,null,null,null,null,null,"㋑（現物）",null,null,null,null,{"$f":"IF(入力シート!$L$33=\"\",\"\",入力シート!$L$33)","v":""},null,null,null,null,null,null,null,null,null,null,"円",null,null,null,null,null,null,null,null,null,null,null,null,null,null,null,null,null,null,null,null,null,null,{"$f":"IF(入力シート!$P$33=\"\",\"\",DBCS(入力シート!$P$33))","v":""}]
[]
[]
[null,null,null,"⑪",null,null,null,{"$f":"IFERROR(IF(入力シート!$X$33=\"\",\"\",DBCS(LEFT(RIGHT(入力シート!$X$33,18-COLUMN())))),\"\")","v":""},null,{"$f":"IFERROR(IF(入力シート!$X$33=\"\",\"\",DBCS(LEFT(RIGHT(入力シート!$X$33,19-COLUMN())))),\"\")","v":""},null,{"$f":"IFERROR(IF(入力シート!$X$33=\"\",\"\",DBCS(LEFT(RIGHT(入力シート!$X$33,20-COLUMN())))),\"\")","v":""},null,{"$f":"IFERROR(IF(入力シート!$X$33=\"\",\"\",DBCS(LEFT(RIGHT(入力シート!$X$33,21-COLUMN())))),\"\")","v":""},null,{"$f":"IFERROR(IF(入力シート!$X$33=\"\",\"\",DBCS(LEFT(RIGHT(入力シート!$X$33,22-COLUMN())))),\"\")","v":""},null,{"$f":"IFERROR(IF(入力シート!$X$33=\"\",\"\",DBCS(LEFT(RIGHT(入力シート!$X$33,23-COLUMN())))),\"\")","v":""},null,{"$f":"IFERROR(IF(入力シート!$X$33=\"\",\"\",DBCS(LEFT(RIGHT(入力シート!$X$33,24-COLUMN())))),\"\")","v":""},null,{"$f":"IFERROR(IF(入力シート!$X$33=\"\",\"\",DBCS(LEFT(RIGHT(入力シート!$X$33,25-COLUMN())))),\"\")","v":""},null,{"$f":"IFERROR(IF(入力シート!$X$33=\"\",\"\",DBCS(LEFT(RIGHT(入力シート!$X$33,26-COLUMN())))),\"\")","v":""},null,{"$f":"IFERROR(IF(入力シート!$X$33=\"\",\"\",DBCS(LEFT(RIGHT(入力シート!$X$33,27-COLUMN())))),\"\")","v":""}]
[]
[null,null,null,"加入者\n番　号"]
[]
[]
[]
[]
[]
[]
[null,"加入者\n４",null,"①",null,null,null,{"$f":"IF(入力シート!$B$34=\"\",\"\",DBCS(入力シート!$B$34))","v":""},null,null,null,null,null,"②",null,null,null,{"$f":"IFERROR(LEFT(入力シート!$C$34,FIND(\" \",入力シート!$C$34,1)-1),\"\")","v":""},null,null,null,null,null,null,null,null,null,null,null,{"$f":"IFERROR(RIGHT(入力シート!$C$34,LEN(入力シート!$C$34)-FIND(\" \",入力シート!$C$34,1)),\"\")","v":""},null,null,null,null,null,null,null,null,null,null,null,"③",null,null,null,{"$f":"IF(入力シート!$E$34=\"\",\"\",IF(TEXT(入力シート!$E$34,\"g\")=\"S\",\"5．昭和\",IF(TEXT(入力シート!$E$34,\"g\")=\"H\",\"7．平成\",IF(TEXT(入力シート!$E$34,\"g\")=\"R\",\"9．令和\"))))","v":""},null,null,null,null,null,"年",null,null,"月",null,"日",null,null,"④",null,null,{"$f":"IF(入力シート!$F$34=\"\",\"\",IF(入力シート!$F$34=\"男\",\"1．男\",\"2．女\"))","v":""}]
[]
[null,null,null,"被保険者\n整理番号",null,null,null,null,null,null,null,null,null,"氏名",null,null,null,null,null,null,null,null,null,null,null,null,null,null,null,null,null,null,null,null,null,null,null,null,null,null,null,"生年\n月日",null,null,null,null,null,null,null,null,null,null,null,null,null,null,null,null,null,"種別"]
[null,null,null,null,null,null,null,null,null,null,null,null,null,null,null,null,null,null,null,null,null,null,null,null,null,null,null,null,null,null,null,null,null,null,null,null,null,null,null,null,null,null,null,null,null,null,null,null,null,null,null,{"$f":"IF(入力シート!$E$34=\"\",\"\",DBCS(TEXT(入力シート!$E$34,\"eemmdd\")))","v":""}]
[null,null,null,null,null,null,null,null,null,null,null,null,null,null,null,null,null,{"$f":"IFERROR(LEFT(入力シート!$D$34,FIND(\"　\",入力シート!$D$34,1)-1),\"\")","v":""},null,null,null,null,null,null,null,null,null,null,null,{"$f":"IFERROR(RIGHT(入力シート!$D$34,LEN(入力シート!$D$34)-FIND(\"　\",入力シート!$D$34,1)),\"\")","v":""}]
[]
[]
[]
[]
[]
[null,null,null,"⑤",null,null,null,{"$f":"IF(入力シート!$H$34=\"\",\"\",DBCS(入力シート!$H$34))","v":""},null,null,null,null,null,"⑥",null,null,null,{"$f":"IFERROR(IF(入力シート!$I$34=\"\",\"\",DBCS(LEFT(RIGHT(入力シート!$I$34,28-COLUMN())))),\"\")","v":""},null,{"$f":"IFERROR(IF(入力シート!$I$34=\"\",\"\",DBCS(LEFT(RIGHT(入力シート!$I$34,29-COLUMN())))),\"\")","v":""},null,{"$f":"IFERROR(IF(入力シート!$I$34=\"\",\"\",DBCS(LEFT(RIGHT(入力シート!$I$34,30-COLUMN())))),\"\")","v":""},null,{"$f":"IFERROR(IF(入力シート!$I$34=\"\",\"\",DBCS(LEFT(RIGHT(入力シート!$I$34,31-COLUMN())))),\"\")","v":""},null,{"$f":"IFERROR(IF(入力シート!$I$34=\"\",\"\",DBCS(LEFT(RIGHT(入力シート!$I$34,32-COLUMN())))),\"\")","v":""},null,{"$f":"IFERROR(IF(入力シート!$I$34=\"\",\"\",DBCS(LEFT(RIGHT(入力シート!$I$34,33-COLUMN())))),\"\")","v":""},null,{"$f":"IFERROR(IF(入力シート!$I$34=\"\",\"\",DBCS(LEFT(RIGHT(入力シート!$I$34,34-COLUMN())))),\"\")","v":""},null,{"$f":"IFERROR(IF(入力シート!$I$34=\"\",\"\",DBCS(LEFT(RIGHT(入力シート!$I$34,35-COLUMN())))),\"\")","v":""},null,{"$f":"IFERROR(IF(入力シート!$I$34=\"\",\"\",DBCS(LEFT(RIGHT(入力シート!$I$34,36-COLUMN())))),\"\")","v":""},null,{"$f":"IFERROR(IF(入力シート!$I$34=\"\",\"\",DBCS(LEFT(RIGHT(入力シート!$I$34,37-COLUMN())))),\"\")","v":""},null,null,null,null,null,"⑦",null,null,null,{"$f":"IF(入力シート!$J$34=\"\",\"\",IF(TEXT(入力シート!$J$34,\"g\")=\"S\",\"5．昭和\",IF(TEXT(入力シート!$J$34,\"g\")=\"H\",\"7．平成\",IF(TEXT(入力シート!$J$34,\"g\")=\"R\",\"9．令和\"))))","v":""},null,null,null,null,null,"年",null,null,"月",null,"日",null,null,"⑧"]
[]
[null,null,null,"取得\n区分",null,null,null,null,null,null,null,null,null,"基礎年\n金番号",null,null,null,null,null,null,null,null,null,null,null,null,null,null,null,null,null,null,null,null,null,null,null,null,null,null,null,"取　得\n（該当）\n年月日",null,null,null,null,null,null,null,null,null,{"$f":"IF(入力シート!$J$34=\"\",\"\",DBCS(TEXT(入力シート!$J$34,\"eemmdd\")))","v":""},null,null,null,null,null,null,null,"被扶\n養者"]
[null,null,null,null,null,null,null,null,null,null,null,null,null,null,null,null,null,null,null,null,null,null,null,null,null,null,null,null,null,null,null,null,null,null,null,null,null,null,null,null,null,null,null,null,null,null,null,null,null,null,null,null,null,null,null,null,null,null,null,"被扶\n養者"]
[]
[]
[]
[null,null,null,"⑨",null,null,null,"㋐（通貨）",null,null,null,null,{"$f":"IF(入力シート!$K$34=\"\",\"\",入力シート!$K$34)","v":""},null,null,null,null,null,null,null,null,null,null,"円",null,"㋒（合計　㋐+㋑）",null,null,null,null,null,null,null,null,null,null,null,null,null,"円",null,"⑩",null,null,null,null,{"$f":"IF(入力シート!$O$34=\"\",\"\",DBCS(入力シート!$O$34))","v":""}]
[]
[null,null,null,"報酬\n月額",null,null,null,null,null,null,null,null,null,null,null,null,null,null,null,null,null,null,null,null,null,{"$f":"IF(入力シート!$M$34=\"\",\"\",入力シート!$M$34)","v":""},null,null,null,null,null,null,null,null,null,null,null,null,null,null,null,"備　考"]
[null,null,null,null,null,null,null,"㋑（現物）",null,null,null,null,{"$f":"IF(入力シート!$L$34=\"\",\"\",入力シート!$L$34)","v":""},null,null,null,null,null,null,null,null,null,null,"円",null,null,null,null,null,null,null,null,null,null,null,null,null,null,null,null,null,null,null,null,null,null,{"$f":"IF(入力シート!$P$34=\"\",\"\",DBCS(入力シート!$P$34))","v":""}]
[]
[]
[null,null,null,"⑪",null,null,null,{"$f":"IFERROR(IF(入力シート!$X$34=\"\",\"\",DBCS(LEFT(RIGHT(入力シート!$X$34,18-COLUMN())))),\"\")","v":""},null,{"$f":"IFERROR(IF(入力シート!$X$34=\"\",\"\",DBCS(LEFT(RIGHT(入力シート!$X$34,19-COLUMN())))),\"\")","v":""},null,{"$f":"IFERROR(IF(入力シート!$X$34=\"\",\"\",DBCS(LEFT(RIGHT(入力シート!$X$34,20-COLUMN())))),\"\")","v":""},null,{"$f":"IFERROR(IF(入力シート!$X$34=\"\",\"\",DBCS(LEFT(RIGHT(入力シート!$X$34,21-COLUMN())))),\"\")","v":""},null,{"$f":"IFERROR(IF(入力シート!$X$34=\"\",\"\",DBCS(LEFT(RIGHT(入力シート!$X$34,22-COLUMN())))),\"\")","v":""},null,{"$f":"IFERROR(IF(入力シート!$X$34=\"\",\"\",DBCS(LEFT(RIGHT(入力シート!$X$34,23-COLUMN())))),\"\")","v":""},null,{"$f":"IFERROR(IF(入力シート!$X$34=\"\",\"\",DBCS(LEFT(RIGHT(入力シート!$X$34,24-COLUMN())))),\"\")","v":""},null,{"$f":"IFERROR(IF(入力シート!$X$34=\"\",\"\",DBCS(LEFT(RIGHT(入力シート!$X$34,25-COLUMN())))),\"\")","v":""},null,{"$f":"IFERROR(IF(入力シート!$X$34=\"\",\"\",DBCS(LEFT(RIGHT(入力シート!$X$34,26-COLUMN())))),\"\")","v":""},null,{"$f":"IFERROR(IF(入力シート!$X$34=\"\",\"\",DBCS(LEFT(RIGHT(入力シート!$X$34,27-COLUMN())))),\"\")","v":""}]
[]
[null,null,null,"加入者\n番　号"]
[]
[]
[]
[]
[]
[]
[]
[]
[]
[]
[]
[]
[]
[]
[]
[]
[]
[]
[]
[]
[]
[]
[]
[]
[]
[]
[null,"加入者\n１",null,"①",null,null,null,{"$f":"IF(入力シート!$B$35=\"\",\"\",DBCS(入力シート!$B$35))","v":""},null,null,null,null,null,"②",null,null,null,{"$f":"IFERROR(LEFT(入力シート!$C$35,FIND(\" \",入力シート!$C$35,1)-1),\"\")","v":""},null,null,null,null,null,null,null,null,null,null,null,{"$f":"IFERROR(RIGHT(入力シート!$C$35,LEN(入力シート!$C$35)-FIND(\" \",入力シート!$C$35,1)),\"\")","v":""},null,null,null,null,null,null,null,null,null,null,null,"③",null,null,null,{"$f":"IF(入力シート!$E$35=\"\",\"\",IF(TEXT(入力シート!$E$35,\"g\")=\"S\",\"5．昭和\",IF(TEXT(入力シート!$E$35,\"g\")=\"H\",\"7．平成\",IF(TEXT(入力シート!$E$35,\"g\")=\"R\",\"9．令和\"))))","v":""},null,null,null,null,null,"年",null,null,"月",null,"日",null,null,"④",null,null,{"$f":"IF(入力シート!$F$35=\"\",\"\",IF(入力シート!$F$35=\"男\",\"1．男\",\"2．女\"))","v":""}]
[]
[null,null,null,"被保険者\n整理番号",null,null,null,null,null,null,null,null,null,"氏名",null,null,null,null,null,null,null,null,null,null,null,null,null,null,null,null,null,null,null,null,null,null,null,null,null,null,null,"生年\n月日",null,null,null,null,null,null,null,null,null,null,null,null,null,null,null,null,null,"種別"]
[null,null,null,null,null,null,null,null,null,null,null,null,null,null,null,null,null,null,null,null,null,null,null,null,null,null,null,null,null,null,null,null,null,null,null,null,null,null,null,null,null,null,null,null,null,null,null,null,null,null,null,{"$f":"IF(入力シート!$E$35=\"\",\"\",DBCS(TEXT(入力シート!$E$35,\"eemmdd\")))","v":""}]
[null,null,null,null,null,null,null,null,null,null,null,null,null,null,null,null,null,{"$f":"IFERROR(LEFT(入力シート!$D$35,FIND(\"　\",入力シート!$D$35,1)-1),\"\")","v":""},null,null,null,null,null,null,null,null,null,null,null,{"$f":"IFERROR(RIGHT(入力シート!$D$35,LEN(入力シート!$D$35)-FIND(\"　\",入力シート!$D$35,1)),\"\")","v":""}]
[]
[]
[]
[]
[]
[null,null,null,"⑤",null,null,null,{"$f":"IF(入力シート!$H$35=\"\",\"\",DBCS(入力シート!$H$35))","v":""},null,null,null,null,null,"⑥",null,null,null,{"$f":"IFERROR(IF(入力シート!$I$35=\"\",\"\",DBCS(LEFT(RIGHT(入力シート!$I$35,28-COLUMN())))),\"\")","v":""},null,{"$f":"IFERROR(IF(入力シート!$I$35=\"\",\"\",DBCS(LEFT(RIGHT(入力シート!$I$35,29-COLUMN())))),\"\")","v":""},null,{"$f":"IFERROR(IF(入力シート!$I$35=\"\",\"\",DBCS(LEFT(RIGHT(入力シート!$I$35,30-COLUMN())))),\"\")","v":""},null,{"$f":"IFERROR(IF(入力シート!$I$35=\"\",\"\",DBCS(LEFT(RIGHT(入力シート!$I$35,31-COLUMN())))),\"\")","v":""},null,{"$f":"IFERROR(IF(入力シート!$I$35=\"\",\"\",DBCS(LEFT(RIGHT(入力シート!$I$35,32-COLUMN())))),\"\")","v":""},null,{"$f":"IFERROR(IF(入力シート!$I$35=\"\",\"\",DBCS(LEFT(RIGHT(入力シート!$I$35,33-COLUMN())))),\"\")","v":""},null,{"$f":"IFERROR(IF(入力シート!$I$35=\"\",\"\",DBCS(LEFT(RIGHT(入力シート!$I$35,34-COLUMN())))),\"\")","v":""},null,{"$f":"IFERROR(IF(入力シート!$I$35=\"\",\"\",DBCS(LEFT(RIGHT(入力シート!$I$35,35-COLUMN())))),\"\")","v":""},null,{"$f":"IFERROR(IF(入力シート!$I$35=\"\",\"\",DBCS(LEFT(RIGHT(入力シート!$I$35,36-COLUMN())))),\"\")","v":""},null,{"$f":"IFERROR(IF(入力シート!$I$35=\"\",\"\",DBCS(LEFT(RIGHT(入力シート!$I$35,37-COLUMN())))),\"\")","v":""},null,null,null,null,null,"⑦",null,null,null,{"$f":"IF(入力シート!$J$35=\"\",\"\",IF(TEXT(入力シート!$J$35,\"g\")=\"S\",\"5．昭和\",IF(TEXT(入力シート!$J$35,\"g\")=\"H\",\"7．平成\",IF(TEXT(入力シート!$J$35,\"g\")=\"R\",\"9．令和\"))))","v":""},null,null,null,null,null,"年",null,null,"月",null,"日",null,null,"⑧"]
[]
[null,null,null,"取得\n区分",null,null,null,null,null,null,null,null,null,"基礎年\n金番号",null,null,null,null,null,null,null,null,null,null,null,null,null,null,null,null,null,null,null,null,null,null,null,null,null,null,null,"取　得\n（該当）\n年月日",null,null,null,null,null,null,null,null,null,{"$f":"IF(入力シート!$J$35=\"\",\"\",DBCS(TEXT(入力シート!$J$35,\"eemmdd\")))","v":""},null,null,null,null,null,null,null,"被扶\n養者"]
[null,null,null,null,null,null,null,null,null,null,null,null,null,null,null,null,null,null,null,null,null,null,null,null,null,null,null,null,null,null,null,null,null,null,null,null,null,null,null,null,null,null,null,null,null,null,null,null,null,null,null,null,null,null,null,null,null,null,null,"被扶\n養者"]
[]
[]
[]
[null,null,null,"⑨",null,null,null,"㋐（通貨）",null,null,null,null,{"$f":"IF(入力シート!$K$35=\"\",\"\",入力シート!$K$35)","v":""},null,null,null,null,null,null,null,null,null,null,"円",null,"㋒（合計　㋐+㋑）",null,null,null,null,null,null,null,null,null,null,null,null,null,"円",null,"⑩",null,null,null,null,{"$f":"IF(入力シート!$O$35=\"\",\"\",DBCS(入力シート!$O$35))","v":""}]
[]
[null,null,null,"報酬\n月額",null,null,null,null,null,null,null,null,null,null,null,null,null,null,null,null,null,null,null,null,null,{"$f":"IF(入力シート!$M$35=\"\",\"\",入力シート!$M$35)","v":""},null,null,null,null,null,null,null,null,null,null,null,null,null,null,null,"備　考"]
[null,null,null,null,null,null,null,"㋑（現物）",null,null,null,null,{"$f":"IF(入力シート!$L$35=\"\",\"\",入力シート!$L$35)","v":""},null,null,null,null,null,null,null,null,null,null,"円",null,null,null,null,null,null,null,null,null,null,null,null,null,null,null,null,null,null,null,null,null,null,{"$f":"IF(入力シート!$P$35=\"\",\"\",DBCS(入力シート!$P$35))","v":""}]
[]
[]
[null,null,null,"⑪",null,null,null,{"$f":"IFERROR(IF(入力シート!$X$35=\"\",\"\",DBCS(LEFT(RIGHT(入力シート!$X$35,18-COLUMN())))),\"\")","v":""},null,{"$f":"IFERROR(IF(入力シート!$X$35=\"\",\"\",DBCS(LEFT(RIGHT(入力シート!$X$35,19-COLUMN())))),\"\")","v":""},null,{"$f":"IFERROR(IF(入力シート!$X$35=\"\",\"\",DBCS(LEFT(RIGHT(入力シート!$X$35,20-COLUMN())))),\"\")","v":""},null,{"$f":"IFERROR(IF(入力シート!$X$35=\"\",\"\",DBCS(LEFT(RIGHT(入力シート!$X$35,21-COLUMN())))),\"\")","v":""},null,{"$f":"IFERROR(IF(入力シート!$X$35=\"\",\"\",DBCS(LEFT(RIGHT(入力シート!$X$35,22-COLUMN())))),\"\")","v":""},null,{"$f":"IFERROR(IF(入力シート!$X$35=\"\",\"\",DBCS(LEFT(RIGHT(入力シート!$X$35,23-COLUMN())))),\"\")","v":""},null,{"$f":"IFERROR(IF(入力シート!$X$35=\"\",\"\",DBCS(LEFT(RIGHT(入力シート!$X$35,24-COLUMN())))),\"\")","v":""},null,{"$f":"IFERROR(IF(入力シート!$X$35=\"\",\"\",DBCS(LEFT(RIGHT(入力シート!$X$35,25-COLUMN())))),\"\")","v":""},null,{"$f":"IFERROR(IF(入力シート!$X$35=\"\",\"\",DBCS(LEFT(RIGHT(入力シート!$X$35,26-COLUMN())))),\"\")","v":""},null,{"$f":"IFERROR(IF(入力シート!$X$35=\"\",\"\",DBCS(LEFT(RIGHT(入力シート!$X$35,27-COLUMN())))),\"\")","v":""}]
[]
[null,null,null,"加入者\n番　号"]
[]
[]
[]
[]
[]
[]
[null,"加入者\n２",null,"①",null,null,null,{"$f":"IF(入力シート!$B$36=\"\",\"\",DBCS(入力シート!$B$36))","v":""},null,null,null,null,null,"②",null,null,null,{"$f":"IFERROR(LEFT(入力シート!$C$36,FIND(\" \",入力シート!$C$36,1)-1),\"\")","v":""},null,null,null,null,null,null,null,null,null,null,null,{"$f":"IFERROR(RIGHT(入力シート!$C$36,LEN(入力シート!$C$36)-FIND(\" \",入力シート!$C$36,1)),\"\")","v":""},null,null,null,null,null,null,null,null,null,null,null,"③",null,null,null,{"$f":"IF(入力シート!$E$36=\"\",\"\",IF(TEXT(入力シート!$E$36,\"g\")=\"S\",\"5．昭和\",IF(TEXT(入力シート!$E$36,\"g\")=\"H\",\"7．平成\",IF(TEXT(入力シート!$E$36,\"g\")=\"R\",\"9．令和\"))))","v":""},null,null,null,null,null,"年",null,null,"月",null,"日",null,null,"④",null,null,{"$f":"IF(入力シート!$F$36=\"\",\"\",IF(入力シート!$F$36=\"男\",\"1．男\",\"2．女\"))","v":""}]
[]
[null,null,null,"被保険者\n整理番号",null,null,null,null,null,null,null,null,null,"氏名",null,null,null,null,null,null,null,null,null,null,null,null,null,null,null,null,null,null,null,null,null,null,null,null,null,null,null,"生年\n月日",null,null,null,null,null,null,null,null,null,null,null,null,null,null,null,null,null,"種別"]
[null,null,null,null,null,null,null,null,null,null,null,null,null,null,null,null,null,null,null,null,null,null,null,null,null,null,null,null,null,null,null,null,null,null,null,null,null,null,null,null,null,null,null,null,null,null,null,null,null,null,null,{"$f":"IF(入力シート!$E$36=\"\",\"\",DBCS(TEXT(入力シート!$E$36,\"eemmdd\")))","v":""}]
[null,null,null,null,null,null,null,null,null,null,null,null,null,null,null,null,null,{"$f":"IFERROR(LEFT(入力シート!$D$36,FIND(\"　\",入力シート!$D$36,1)-1),\"\")","v":""},null,null,null,null,null,null,null,null,null,null,null,{"$f":"IFERROR(RIGHT(入力シート!$D$36,LEN(入力シート!$D$36)-FIND(\"　\",入力シート!$D$36,1)),\"\")","v":""}]
[]
[]
[]
[]
[]
[null,null,null,"⑤",null,null,null,{"$f":"IF(入力シート!$H$36=\"\",\"\",DBCS(入力シート!$H$36))","v":""},null,null,null,null,null,"⑥",null,null,null,{"$f":"IFERROR(IF(入力シート!$I$36=\"\",\"\",DBCS(LEFT(RIGHT(入力シート!$I$36,28-COLUMN())))),\"\")","v":""},null,{"$f":"IFERROR(IF(入力シート!$I$36=\"\",\"\",DBCS(LEFT(RIGHT(入力シート!$I$36,29-COLUMN())))),\"\")","v":""},null,{"$f":"IFERROR(IF(入力シート!$I$36=\"\",\"\",DBCS(LEFT(RIGHT(入力シート!$I$36,30-COLUMN())))),\"\")","v":""},null,{"$f":"IFERROR(IF(入力シート!$I$36=\"\",\"\",DBCS(LEFT(RIGHT(入力シート!$I$36,31-COLUMN())))),\"\")","v":""},null,{"$f":"IFERROR(IF(入力シート!$I$36=\"\",\"\",DBCS(LEFT(RIGHT(入力シート!$I$36,32-COLUMN())))),\"\")","v":""},null,{"$f":"IFERROR(IF(入力シート!$I$36=\"\",\"\",DBCS(LEFT(RIGHT(入力シート!$I$36,33-COLUMN())))),\"\")","v":""},null,{"$f":"IFERROR(IF(入力シート!$I$36=\"\",\"\",DBCS(LEFT(RIGHT(入力シート!$I$36,34-COLUMN())))),\"\")","v":""},null,{"$f":"IFERROR(IF(入力シート!$I$36=\"\",\"\",DBCS(LEFT(RIGHT(入力シート!$I$36,35-COLUMN())))),\"\")","v":""},null,{"$f":"IFERROR(IF(入力シート!$I$36=\"\",\"\",DBCS(LEFT(RIGHT(入力シート!$I$36,36-COLUMN())))),\"\")","v":""},null,{"$f":"IFERROR(IF(入力シート!$I$36=\"\",\"\",DBCS(LEFT(RIGHT(入力シート!$I$36,37-COLUMN())))),\"\")","v":""},null,null,null,null,null,"⑦",null,null,null,{"$f":"IF(入力シート!$J$36=\"\",\"\",IF(TEXT(入力シート!$J$36,\"g\")=\"S\",\"5．昭和\",IF(TEXT(入力シート!$J$36,\"g\")=\"H\",\"7．平成\",IF(TEXT(入力シート!$J$36,\"g\")=\"R\",\"9．令和\"))))","v":""},null,null,null,null,null,"年",null,null,"月",null,"日",null,null,"⑧"]
[]
[null,null,null,"取得\n区分",null,null,null,null,null,null,null,null,null,"基礎年\n金番号",null,null,null,null,null,null,null,null,null,null,null,null,null,null,null,null,null,null,null,null,null,null,null,null,null,null,null,"取　得\n（該当）\n年月日",null,null,null,null,null,null,null,null,null,{"$f":"IF(入力シート!$J$36=\"\",\"\",DBCS(TEXT(入力シート!$J$36,\"eemmdd\")))","v":""},null,null,null,null,null,null,null,"被扶\n養者"]
[null,null,null,null,null,null,null,null,null,null,null,null,null,null,null,null,null,null,null,null,null,null,null,null,null,null,null,null,null,null,null,null,null,null,null,null,null,null,null,null,null,null,null,null,null,null,null,null,null,null,null,null,null,null,null,null,null,null,null,"被扶\n養者"]
[]
[]
[]
[null,null,null,"⑨",null,null,null,"㋐（通貨）",null,null,null,null,{"$f":"IF(入力シート!$K$36=\"\",\"\",入力シート!$K$36)","v":""},null,null,null,null,null,null,null,null,null,null,"円",null,"㋒（合計　㋐+㋑）",null,null,null,null,null,null,null,null,null,null,null,null,null,"円",null,"⑩",null,null,null,null,{"$f":"IF(入力シート!$O$36=\"\",\"\",DBCS(入力シート!$O$36))","v":""}]
[]
[null,null,null,"報酬\n月額",null,null,null,null,null,null,null,null,null,null,null,null,null,null,null,null,null,null,null,null,null,{"$f":"IF(入力シート!$M$36=\"\",\"\",入力シート!$M$36)","v":""},null,null,null,null,null,null,null,null,null,null,null,null,null,null,null,"備　考"]
[null,null,null,null,null,null,null,"㋑（現物）",null,null,null,null,{"$f":"IF(入力シート!$L$36=\"\",\"\",入力シート!$L$36)","v":""},null,null,null,null,null,null,null,null,null,null,"円",null,null,null,null,null,null,null,null,null,null,null,null,null,null,null,null,null,null,null,null,null,null,{"$f":"IF(入力シート!$P$36=\"\",\"\",DBCS(入力シート!$P$36))","v":""}]
[]
[]
[null,null,null,"⑪",null,null,null,{"$f":"IFERROR(IF(入力シート!$X$36=\"\",\"\",DBCS(LEFT(RIGHT(入力シート!$X$36,18-COLUMN())))),\"\")","v":""},null,{"$f":"IFERROR(IF(入力シート!$X$36=\"\",\"\",DBCS(LEFT(RIGHT(入力シート!$X$36,19-COLUMN())))),\"\")","v":""},null,{"$f":"IFERROR(IF(入力シート!$X$36=\"\",\"\",DBCS(LEFT(RIGHT(入力シート!$X$36,20-COLUMN())))),\"\")","v":""},null,{"$f":"IFERROR(IF(入力シート!$X$36=\"\",\"\",DBCS(LEFT(RIGHT(入力シート!$X$36,21-COLUMN())))),\"\")","v":""},null,{"$f":"IFERROR(IF(入力シート!$X$36=\"\",\"\",DBCS(LEFT(RIGHT(入力シート!$X$36,22-COLUMN())))),\"\")","v":""},null,{"$f":"IFERROR(IF(入力シート!$X$36=\"\",\"\",DBCS(LEFT(RIGHT(入力シート!$X$36,23-COLUMN())))),\"\")","v":""},null,{"$f":"IFERROR(IF(入力シート!$X$36=\"\",\"\",DBCS(LEFT(RIGHT(入力シート!$X$36,24-COLUMN())))),\"\")","v":""},null,{"$f":"IFERROR(IF(入力シート!$X$36=\"\",\"\",DBCS(LEFT(RIGHT(入力シート!$X$36,25-COLUMN())))),\"\")","v":""},null,{"$f":"IFERROR(IF(入力シート!$X$36=\"\",\"\",DBCS(LEFT(RIGHT(入力シート!$X$36,26-COLUMN())))),\"\")","v":""},null,{"$f":"IFERROR(IF(入力シート!$X$36=\"\",\"\",DBCS(LEFT(RIGHT(入力シート!$X$36,27-COLUMN())))),\"\")","v":""}]
[]
[null,null,null,"加入者\n番　号"]
[]
[]
[]
[]
[]
[]
[null,"加入者\n３",null,"①",null,null,null,{"$f":"IF(入力シート!$B$37=\"\",\"\",DBCS(入力シート!$B$37))","v":""},null,null,null,null,null,"②",null,null,null,{"$f":"IFERROR(LEFT(入力シート!$C$37,FIND(\" \",入力シート!$C$37,1)-1),\"\")","v":""},null,null,null,null,null,null,null,null,null,null,null,{"$f":"IFERROR(RIGHT(入力シート!$C$37,LEN(入力シート!$C$37)-FIND(\" \",入力シート!$C$37,1)),\"\")","v":""},null,null,null,null,null,null,null,null,null,null,null,"③",null,null,null,{"$f":"IF(入力シート!$E$37=\"\",\"\",IF(TEXT(入力シート!$E$37,\"g\")=\"S\",\"5．昭和\",IF(TEXT(入力シート!$E$37,\"g\")=\"H\",\"7．平成\",IF(TEXT(入力シート!$E$37,\"g\")=\"R\",\"9．令和\"))))","v":""},null,null,null,null,null,"年",null,null,"月",null,"日",null,null,"④",null,null,{"$f":"IF(入力シート!$F$37=\"\",\"\",IF(入力シート!$F$37=\"男\",\"1．男\",\"2．女\"))","v":""}]
[]
[null,null,null,"被保険者\n整理番号",null,null,null,null,null,null,null,null,null,"氏名",null,null,null,null,null,null,null,null,null,null,null,null,null,null,null,null,null,null,null,null,null,null,null,null,null,null,null,"生年\n月日",null,null,null,null,null,null,null,null,null,null,null,null,null,null,null,null,null,"種別"]
[null,null,null,null,null,null,null,null,null,null,null,null,null,null,null,null,null,null,null,null,null,null,null,null,null,null,null,null,null,null,null,null,null,null,null,null,null,null,null,null,null,null,null,null,null,null,null,null,null,null,null,{"$f":"IF(入力シート!$E$37=\"\",\"\",DBCS(TEXT(入力シート!$E$37,\"eemmdd\")))","v":""}]
[null,null,null,null,null,null,null,null,null,null,null,null,null,null,null,null,null,{"$f":"IFERROR(LEFT(入力シート!$D$37,FIND(\"　\",入力シート!$D$37,1)-1),\"\")","v":""},null,null,null,null,null,null,null,null,null,null,null,{"$f":"IFERROR(RIGHT(入力シート!$D$37,LEN(入力シート!$D$37)-FIND(\"　\",入力シート!$D$37,1)),\"\")","v":""}]
[]
[]
[]
[]
[]
[null,null,null,"⑤",null,null,null,{"$f":"IF(入力シート!$H$37=\"\",\"\",DBCS(入力シート!$H$37))","v":""},null,null,null,null,null,"⑥",null,null,null,{"$f":"IFERROR(IF(入力シート!$I$37=\"\",\"\",DBCS(LEFT(RIGHT(入力シート!$I$37,28-COLUMN())))),\"\")","v":""},null,{"$f":"IFERROR(IF(入力シート!$I$37=\"\",\"\",DBCS(LEFT(RIGHT(入力シート!$I$37,29-COLUMN())))),\"\")","v":""},null,{"$f":"IFERROR(IF(入力シート!$I$37=\"\",\"\",DBCS(LEFT(RIGHT(入力シート!$I$37,30-COLUMN())))),\"\")","v":""},null,{"$f":"IFERROR(IF(入力シート!$I$37=\"\",\"\",DBCS(LEFT(RIGHT(入力シート!$I$37,31-COLUMN())))),\"\")","v":""},null,{"$f":"IFERROR(IF(入力シート!$I$37=\"\",\"\",DBCS(LEFT(RIGHT(入力シート!$I$37,32-COLUMN())))),\"\")","v":""},null,{"$f":"IFERROR(IF(入力シート!$I$37=\"\",\"\",DBCS(LEFT(RIGHT(入力シート!$I$37,33-COLUMN())))),\"\")","v":""},null,{"$f":"IFERROR(IF(入力シート!$I$37=\"\",\"\",DBCS(LEFT(RIGHT(入力シート!$I$37,34-COLUMN())))),\"\")","v":""},null,{"$f":"IFERROR(IF(入力シート!$I$37=\"\",\"\",DBCS(LEFT(RIGHT(入力シート!$I$37,35-COLUMN())))),\"\")","v":""},null,{"$f":"IFERROR(IF(入力シート!$I$37=\"\",\"\",DBCS(LEFT(RIGHT(入力シート!$I$37,36-COLUMN())))),\"\")","v":""},null,{"$f":"IFERROR(IF(入力シート!$I$37=\"\",\"\",DBCS(LEFT(RIGHT(入力シート!$I$37,37-COLUMN())))),\"\")","v":""},null,null,null,null,null,"⑦",null,null,null,{"$f":"IF(入力シート!$J$37=\"\",\"\",IF(TEXT(入力シート!$J$37,\"g\")=\"S\",\"5．昭和\",IF(TEXT(入力シート!$J$37,\"g\")=\"H\",\"7．平成\",IF(TEXT(入力シート!$J$37,\"g\")=\"R\",\"9．令和\"))))","v":""},null,null,null,null,null,"年",null,null,"月",null,"日",null,null,"⑧"]
[]
[null,null,null,"取得\n区分",null,null,null,null,null,null,null,null,null,"基礎年\n金番号",null,null,null,null,null,null,null,null,null,null,null,null,null,null,null,null,null,null,null,null,null,null,null,null,null,null,null,"取　得\n（該当）\n年月日",null,null,null,null,null,null,null,null,null,{"$f":"IF(入力シート!$J$37=\"\",\"\",DBCS(TEXT(入力シート!$J$37,\"eemmdd\")))","v":""},null,null,null,null,null,null,null,"被扶\n養者"]
[null,null,null,null,null,null,null,null,null,null,null,null,null,null,null,null,null,null,null,null,null,null,null,null,null,null,null,null,null,null,null,null,null,null,null,null,null,null,null,null,null,null,null,null,null,null,null,null,null,null,null,null,null,null,null,null,null,null,null,"被扶\n養者"]
[]
[]
[]
[null,null,null,"⑨",null,null,null,"㋐（通貨）",null,null,null,null,{"$f":"IF(入力シート!$K$37=\"\",\"\",入力シート!$K$37)","v":""},null,null,null,null,null,null,null,null,null,null,"円",null,"㋒（合計　㋐+㋑）",null,null,null,null,null,null,null,null,null,null,null,null,null,"円",null,"⑩",null,null,null,null,{"$f":"IF(入力シート!$O$37=\"\",\"\",DBCS(入力シート!$O$37))","v":""}]
[]
[null,null,null,"報酬\n月額",null,null,null,null,null,null,null,null,null,null,null,null,null,null,null,null,null,null,null,null,null,{"$f":"IF(入力シート!$M$37=\"\",\"\",入力シート!$M$37)","v":""},null,null,null,null,null,null,null,null,null,null,null,null,null,null,null,"備　考"]
[null,null,null,null,null,null,null,"㋑（現物）",null,null,null,null,{"$f":"IF(入力シート!$L$37=\"\",\"\",入力シート!$L$37)","v":""},null,null,null,null,null,null,null,null,null,null,"円",null,null,null,null,null,null,null,null,null,null,null,null,null,null,null,null,null,null,null,null,null,null,{"$f":"IF(入力シート!$P$37=\"\",\"\",DBCS(入力シート!$P$37))","v":""}]
[]
[]
[null,null,null,"⑪",null,null,null,{"$f":"IFERROR(IF(入力シート!$X$37=\"\",\"\",DBCS(LEFT(RIGHT(入力シート!$X$37,18-COLUMN())))),\"\")","v":""},null,{"$f":"IFERROR(IF(入力シート!$X$37=\"\",\"\",DBCS(LEFT(RIGHT(入力シート!$X$37,19-COLUMN())))),\"\")","v":""},null,{"$f":"IFERROR(IF(入力シート!$X$37=\"\",\"\",DBCS(LEFT(RIGHT(入力シート!$X$37,20-COLUMN())))),\"\")","v":""},null,{"$f":"IFERROR(IF(入力シート!$X$37=\"\",\"\",DBCS(LEFT(RIGHT(入力シート!$X$37,21-COLUMN())))),\"\")","v":""},null,{"$f":"IFERROR(IF(入力シート!$X$37=\"\",\"\",DBCS(LEFT(RIGHT(入力シート!$X$37,22-COLUMN())))),\"\")","v":""},null,{"$f":"IFERROR(IF(入力シート!$X$37=\"\",\"\",DBCS(LEFT(RIGHT(入力シート!$X$37,23-COLUMN())))),\"\")","v":""},null,{"$f":"IFERROR(IF(入力シート!$X$37=\"\",\"\",DBCS(LEFT(RIGHT(入力シート!$X$37,24-COLUMN())))),\"\")","v":""},null,{"$f":"IFERROR(IF(入力シート!$X$37=\"\",\"\",DBCS(LEFT(RIGHT(入力シート!$X$37,25-COLUMN())))),\"\")","v":""},null,{"$f":"IFERROR(IF(入力シート!$X$37=\"\",\"\",DBCS(LEFT(RIGHT(入力シート!$X$37,26-COLUMN())))),\"\")","v":""},null,{"$f":"IFERROR(IF(入力シート!$X$37=\"\",\"\",DBCS(LEFT(RIGHT(入力シート!$X$37,27-COLUMN())))),\"\")","v":""}]
[]
[null,null,null,"加入者\n番　号"]
[]
[]
[]
[]
[]
[]
[null,"加入者\n４",null,"①",null,null,null,{"$f":"IF(入力シート!$B$38=\"\",\"\",DBCS(入力シート!$B$38))","v":""},null,null,null,null,null,"②",null,null,null,{"$f":"IFERROR(LEFT(入力シート!$C$38,FIND(\" \",入力シート!$C$38,1)-1),\"\")","v":""},null,null,null,null,null,null,null,null,null,null,null,{"$f":"IFERROR(RIGHT(入力シート!$C$38,LEN(入力シート!$C$38)-FIND(\" \",入力シート!$C$38,1)),\"\")","v":""},null,null,null,null,null,null,null,null,null,null,null,"③",null,null,null,{"$f":"IF(入力シート!$E$38=\"\",\"\",IF(TEXT(入力シート!$E$38,\"g\")=\"S\",\"5．昭和\",IF(TEXT(入力シート!$E$38,\"g\")=\"H\",\"7．平成\",IF(TEXT(入力シート!$E$38,\"g\")=\"R\",\"9．令和\"))))","v":""},null,null,null,null,null,"年",null,null,"月",null,"日",null,null,"④",null,null,{"$f":"IF(入力シート!$F$38=\"\",\"\",IF(入力シート!$F$38=\"男\",\"1．男\",\"2．女\"))","v":""}]
[]
[null,null,null,"被保険者\n整理番号",null,null,null,null,null,null,null,null,null,"氏名",null,null,null,null,null,null,null,null,null,null,null,null,null,null,null,null,null,null,null,null,null,null,null,null,null,null,null,"生年\n月日",null,null,null,null,null,null,null,null,null,null,null,null,null,null,null,null,null,"種別"]
[null,null,null,null,null,null,null,null,null,null,null,null,null,null,null,null,null,null,null,null,null,null,null,null,null,null,null,null,null,null,null,null,null,null,null,null,null,null,null,null,null,null,null,null,null,null,null,null,null,null,null,{"$f":"IF(入力シート!$E$38=\"\",\"\",DBCS(TEXT(入力シート!$E$38,\"eemmdd\")))","v":""}]
[null,null,null,null,null,null,null,null,null,null,null,null,null,null,null,null,null,{"$f":"IFERROR(LEFT(入力シート!$D$38,FIND(\"　\",入力シート!$D$38,1)-1),\"\")","v":""},null,null,null,null,null,null,null,null,null,null,null,{"$f":"IFERROR(RIGHT(入力シート!$D$38,LEN(入力シート!$D$38)-FIND(\"　\",入力シート!$D$38,1)),\"\")","v":""}]
[]
[]
[]
[]
[]
[null,null,null,"⑤",null,null,null,{"$f":"IF(入力シート!$H$38=\"\",\"\",DBCS(入力シート!$H$38))","v":""},null,null,null,null,null,"⑥",null,null,null,{"$f":"IFERROR(IF(入力シート!$I$38=\"\",\"\",DBCS(LEFT(RIGHT(入力シート!$I$38,28-COLUMN())))),\"\")","v":""},null,{"$f":"IFERROR(IF(入力シート!$I$38=\"\",\"\",DBCS(LEFT(RIGHT(入力シート!$I$38,29-COLUMN())))),\"\")","v":""},null,{"$f":"IFERROR(IF(入力シート!$I$38=\"\",\"\",DBCS(LEFT(RIGHT(入力シート!$I$38,30-COLUMN())))),\"\")","v":""},null,{"$f":"IFERROR(IF(入力シート!$I$38=\"\",\"\",DBCS(LEFT(RIGHT(入力シート!$I$38,31-COLUMN())))),\"\")","v":""},null,{"$f":"IFERROR(IF(入力シート!$I$38=\"\",\"\",DBCS(LEFT(RIGHT(入力シート!$I$38,32-COLUMN())))),\"\")","v":""},null,{"$f":"IFERROR(IF(入力シート!$I$38=\"\",\"\",DBCS(LEFT(RIGHT(入力シート!$I$38,33-COLUMN())))),\"\")","v":""},null,{"$f":"IFERROR(IF(入力シート!$I$38=\"\",\"\",DBCS(LEFT(RIGHT(入力シート!$I$38,34-COLUMN())))),\"\")","v":""},null,{"$f":"IFERROR(IF(入力シート!$I$38=\"\",\"\",DBCS(LEFT(RIGHT(入力シート!$I$38,35-COLUMN())))),\"\")","v":""},null,{"$f":"IFERROR(IF(入力シート!$I$38=\"\",\"\",DBCS(LEFT(RIGHT(入力シート!$I$38,36-COLUMN())))),\"\")","v":""},null,{"$f":"IFERROR(IF(入力シート!$I$38=\"\",\"\",DBCS(LEFT(RIGHT(入力シート!$I$38,37-COLUMN())))),\"\")","v":""},null,null,null,null,null,"⑦",null,null,null,{"$f":"IF(入力シート!$J$38=\"\",\"\",IF(TEXT(入力シート!$J$38,\"g\")=\"S\",\"5．昭和\",IF(TEXT(入力シート!$J$38,\"g\")=\"H\",\"7．平成\",IF(TEXT(入力シート!$J$38,\"g\")=\"R\",\"9．令和\"))))","v":""},null,null,null,null,null,"年",null,null,"月",null,"日",null,null,"⑧"]
[]
[null,null,null,"取得\n区分",null,null,null,null,null,null,null,null,null,"基礎年\n金番号",null,null,null,null,null,null,null,null,null,null,null,null,null,null,null,null,null,null,null,null,null,null,null,null,null,null,null,"取　得\n（該当）\n年月日",null,null,null,null,null,null,null,null,null,{"$f":"IF(入力シート!$J$38=\"\",\"\",DBCS(TEXT(入力シート!$J$38,\"eemmdd\")))","v":""},null,null,null,null,null,null,null,"被扶\n養者"]
[null,null,null,null,null,null,null,null,null,null,null,null,null,null,null,null,null,null,null,null,null,null,null,null,null,null,null,null,null,null,null,null,null,null,null,null,null,null,null,null,null,null,null,null,null,null,null,null,null,null,null,null,null,null,null,null,null,null,null,"被扶\n養者"]
[]
[]
[]
[null,null,null,"⑨",null,null,null,"㋐（通貨）",null,null,null,null,{"$f":"IF(入力シート!$K$38=\"\",\"\",入力シート!$K$38)","v":""},null,null,null,null,null,null,null,null,null,null,"円",null,"㋒（合計　㋐+㋑）",null,null,null,null,null,null,null,null,null,null,null,null,null,"円",null,"⑩",null,null,null,null,{"$f":"IF(入力シート!$O$38=\"\",\"\",DBCS(入力シート!$O$38))","v":""}]
[]
[null,null,null,"報酬\n月額",null,null,null,null,null,null,null,null,null,null,null,null,null,null,null,null,null,null,null,null,null,{"$f":"IF(入力シート!$M$38=\"\",\"\",入力シート!$M$38)","v":""},null,null,null,null,null,null,null,null,null,null,null,null,null,null,null,"備　考"]
[null,null,null,null,null,null,null,"㋑（現物）",null,null,null,null,{"$f":"IF(入力シート!$L$38=\"\",\"\",入力シート!$L$38)","v":""},null,null,null,null,null,null,null,null,null,null,"円",null,null,null,null,null,null,null,null,null,null,null,null,null,null,null,null,null,null,null,null,null,null,{"$f":"IF(入力シート!$P$38=\"\",\"\",DBCS(入力シート!$P$38))","v":""}]
[]
[]
[null,null,null,"⑪",null,null,null,{"$f":"IFERROR(IF(入力シート!$X$38=\"\",\"\",DBCS(LEFT(RIGHT(入力シート!$X$38,18-COLUMN())))),\"\")","v":""},null,{"$f":"IFERROR(IF(入力シート!$X$38=\"\",\"\",DBCS(LEFT(RIGHT(入力シート!$X$38,19-COLUMN())))),\"\")","v":""},null,{"$f":"IFERROR(IF(入力シート!$X$38=\"\",\"\",DBCS(LEFT(RIGHT(入力シート!$X$38,20-COLUMN())))),\"\")","v":""},null,{"$f":"IFERROR(IF(入力シート!$X$38=\"\",\"\",DBCS(LEFT(RIGHT(入力シート!$X$38,21-COLUMN())))),\"\")","v":""},null,{"$f":"IFERROR(IF(入力シート!$X$38=\"\",\"\",DBCS(LEFT(RIGHT(入力シート!$X$38,22-COLUMN())))),\"\")","v":""},null,{"$f":"IFERROR(IF(入力シート!$X$38=\"\",\"\",DBCS(LEFT(RIGHT(入力シート!$X$38,23-COLUMN())))),\"\")","v":""},null,{"$f":"IFERROR(IF(入力シート!$X$38=\"\",\"\",DBCS(LEFT(RIGHT(入力シート!$X$38,24-COLUMN())))),\"\")","v":""},null,{"$f":"IFERROR(IF(入力シート!$X$38=\"\",\"\",DBCS(LEFT(RIGHT(入力シート!$X$38,25-COLUMN())))),\"\")","v":""},null,{"$f":"IFERROR(IF(入力シート!$X$38=\"\",\"\",DBCS(LEFT(RIGHT(入力シート!$X$38,26-COLUMN())))),\"\")","v":""},null,{"$f":"IFERROR(IF(入力シート!$X$38=\"\",\"\",DBCS(LEFT(RIGHT(入力シート!$X$38,27-COLUMN())))),\"\")","v":""}]
[]
[null,null,null,"加入者\n番　号"]